Workbook

Sheet INGRESO DE DATOS
A11: 1. LLENE LA INFORMACIÓN DEL ASEGURADO PROPUESTO:
B13: Nombre del Asegurado Titular: | D13: Nombre Completo
B15: Número de adultos en la póliza: | D15: 2 | F15: Número de niños en la póliza: | H15: 0
B17: Edad del Asegurado Titular: | D17: 18 | F17: Edad del/la cónyuge: | H17: 18
C19: Zona de cotización: | D19: Guayas/Santa Elena
A22: 2. SELECCIONE EL PRODUCTO PARA VER LA COTIZACIÓN CORRESPONDIENTE:
B27: 0 | D27: 0

Sheet Global Health Ultimate
A13: RESUMEN DE BENEFICIOS | D13: Nombre del Asegurado Titular | F13: =+'INGRESO DE DATOS'!$D$13 -> Nombre Completo
D15: Número de adultos en la póliza | F15: =+'INGRESO DE DATOS'!$D$15 -> 2 | H15: Edad del Asegurado Titular | I15: =+'INGRESO DE DATOS'!$D$17 -> 18
D17: Número de niños en la póliza | F17: =+'INGRESO DE DATOS'!$H$15 -> 0 | H17: Edad del/la conyuge | I17: =+'INGRESO DE DATOS'!$H$17 -> 18
E19: Número de niños menores de 16 años | F19: =+'INGRESO DE DATOS'!$B$27 -> 0 | H19: Fecha de la cotización : | I19: =NOW() -> 2022-01-13T13:40:57.550
H20: FALSE
E21: Zona de cotización: | F21: ='INGRESO DE DATOS'!D19 -> Guayas/Santa Elena
E23: Deducibles | G23: PLAN 1 | H23: PLAN 2
E24: En el país de residencia | G24: $0 | H24: 1000
E25: Fuera del país de residencia | G25: $0 | H25: 1000
E27: Tarifas Anuales
E28: Prima para Asegurado Titular | G28: =VLOOKUP($I$15,Tablas!$A$905:$G$971,3,TRUE)+75 -> 24350 | H28: =VLOOKUP($I$15,Tablas!$A$905:$G$971,4,TRUE)+75 -> 15739
E29: Prima para conyuge | G29: =IF($F$15=1,0,(VLOOKUP($I$17,Tablas!$A$905:$G$971,3,TRUE))) -> 24275 | H29: =IF($F$15=1,0,(VLOOKUP($I$17,Tablas!$A$905:$G$971,4,TRUE))) -> 15664
E30: Prima para hijo (s) | G30: =IF($F$15=1, (IF($F$17=0, 0, (IF($F$19>$F$17, (VLOOKUP($F$17,Tablas!$A$972:$G$974,3,TRUE)), (IF($F$17>4,(IF($F$19=0, (VLOOKUP(3,Tablas!$A$972:$G$974,3,TRUE)), (IF($F$19=1, (VLOOKUP(3,Tablas!$A$972:$G$974,3,TRUE)), (IF($F$19=2, (VLOOKUP(3,Tablas!$A$972:$G$974,3,TRUE)), (VLOOKUP(3,Tablas!$A$972:$G$974,3,TRUE)))))))), (IF($F$17=4,(IF(4-$F$19=0,(VLOOKUP(2,Tablas!$A$972:$G$974,3,TRUE)), (IF(4-$F$19=1,(VLOOKUP(2,Tablas!$A$972:$G$974,3,TRUE)), (IF(4-$F$19=2, (VLOOKUP(2,Tablas!$A$972:$G$974,3,TRUE)), (VLOOKUP(3,Tablas!$A$972:$G$974,3,TRUE)))))))), (IF($F$17=3,(IF(3-$F$19=0,(VLOOKUP(1,Tablas!$A$972:$G$974,3,TRUE)), (IF(3-$F$19=1,(VLOOKUP(1,Tablas!$A$972:$G$974,3,TRUE)), (IF(3-$F$19=2, (VLOOKUP(2,Tablas!$A$972:$G$974,3,TRUE)), (VLOOKUP(3,Tablas!$A$972:$G$974,3,TRUE)))))))), (IF($F$17=2,(IF(2-$F$19=0, 0, (IF(2-$F$19=1,(VLOOKUP(1,Tablas!$A$972:$G$974,3,TRUE)), (IF(2-$F$19=2, (VLOOKUP(2,Tablas!$A$972:$G$974,3,TRUE)), 0)))))), (IF($F$17=1,(IF(1-$F$19=0, 0, (IF(1-$F$19=1,(VLOOKUP(1,Tablas!$A$972:$G$974,3,TRUE)),0)))),0)))))))))))))), (IF($F$17=0, 0, (IF($F$19>$F$17, (VLOOKUP($F$17,Tablas!$A$972:$G$974,3,TRUE)), (IF($F$17=4,(IF(4-$F$19=0, 0, (IF(4-$F$19=1, (VLOOKUP(1,Tablas!$A$972:$G$974,3,TRUE)), (IF(4-$F$19=2, (VLOOKUP(2,Tablas!$A$972:$G$974,3,TRUE)), (IF(4-$F$19=3, (VLOOKUP(3,Tablas!$A$972:$G$974,3,TRUE)), (IF(4-$F$19=4, (VLOOKUP(3,Tablas!$A$972:$G$974,3,TRUE)), 0)))))))))), (IF($F$17=5,(IF(5-$F$19=0, (VLOOKUP(1,Tablas!$A$972:$G$974,3,TRUE)), (IF(5-$F$19=1, (VLOOKUP(1,Tablas!$A$972:$G$974,3,TRUE)), (IF(5-$F$19=2, (VLOOKUP(2,Tablas!$A$972:$G$974,3,TRUE)), (IF(5-$F$19=3, (VLOOKUP(3,Tablas!$A$972:$G$974,3,TRUE)), (IF(5-$F$19=4, (VLOOKUP(3,Tablas!$A$972:$G$974,3,TRUE)), (VLOOKUP(3,Tablas!$A$972:$G$974,3,TRUE)))))))))))), (IF($F$17=6,(IF(6-$F$19=0, (VLOOKUP(2,Tablas!$A$972:$G$974,3,TRUE)), (IF(6-$F$19=1, (VLOOKUP(2,Tablas!$A$972:$G$974,3,TRUE)), (IF(6-$F$19=2, (VLOOKUP(2,Tablas!$A$972:$G$974,3,TRUE)), (IF(6-$F$19=3, (VLOOKUP(3,Tablas!$A$972:$G$974,3,TRUE)), (IF(6-$F$19=4, (VLOOKUP(3,Tablas!$A$972:$G$974,3,TRUE)), (VLOOKUP(3,Tablas!$A$972:$G$974,3,TRUE)))))))))))), (IF($F$17>6,(IF(7-$F$19=0, (VLOOKUP(3,Tablas!$A$972:$G$974,3,TRUE)), (IF(7-$F$19=1, (VLOOKUP(3,Tablas!$A$972:$G$974,3,TRUE)), (IF(7-$F$19=2, (VLOOKUP(3,Tablas!$A$972:$G$974,3,TRUE)), (IF(7-$F$19=3, (VLOOKUP(3,Tablas!$A$972:$G$974,3,TRUE)), (IF(7-$F$19=4, (VLOOKUP(3,Tablas!$A$972:$G$974,3,TRUE)), (VLOOKUP(3,Tablas!$A$972:$G$974,3,TRUE)))))))))))), (IF($F$17=3,(IF(3-$F$19=0,0, (IF(3-$F$19=1,(VLOOKUP(1,Tablas!$A$972:$G$974,3,TRUE)), (IF(3-$F$19=2, (VLOOKUP(2,Tablas!$A$972:$G$974,3,TRUE)), (VLOOKUP(3,Tablas!$A$972:$G$974,3,TRUE)))))))), (IF($F$17=2,(IF(2-$F$19=0, 0, (IF(2-$F$19=1,(VLOOKUP(1,Tablas!$A$972:$G$974,3,TRUE)), (IF(2-$F$19=2, (VLOOKUP(2,Tablas!$A$972:$G$974,3,TRUE)), 0)))))), (IF($F$17=1,(IF(1-$F$19=0, 0, (IF(1-$F$19=1,(VLOOKUP(1,Tablas!$A$972:$G$974,3,TRUE)),0)))),0))))))))))))))))))) -> 0 | H30: =IF($F$15=1, (IF($F$17=0, 0, (IF($F$19>$F$17, (VLOOKUP($F$17,Tablas!$A$972:$G$974,4,TRUE)), (IF($F$17>4,(IF($F$19=0, (VLOOKUP(3,Tablas!$A$972:$G$974,4,TRUE)), (IF($F$19=1, (VLOOKUP(3,Tablas!$A$972:$G$974,4,TRUE)), (IF($F$19=2, (VLOOKUP(3,Tablas!$A$972:$G$974,4,TRUE)), (VLOOKUP(3,Tablas!$A$972:$G$974,4,TRUE)))))))), (IF($F$17=4,(IF(4-$F$19=0,(VLOOKUP(2,Tablas!$A$972:$G$974,4,TRUE)), (IF(4-$F$19=1,(VLOOKUP(2,Tablas!$A$972:$G$974,4,TRUE)), (IF(4-$F$19=2, (VLOOKUP(2,Tablas!$A$972:$G$974,4,TRUE)), (VLOOKUP(3,Tablas!$A$972:$G$974,4,TRUE)))))))), (IF($F$17=3,(IF(3-$F$19=0,(VLOOKUP(1,Tablas!$A$972:$G$974,4,TRUE)), (IF(3-$F$19=1,(VLOOKUP(1,Tablas!$A$972:$G$974,4,TRUE)), (IF(3-$F$19=2, (VLOOKUP(2,Tablas!$A$972:$G$974,4,TRUE)), (VLOOKUP(3,Tablas!$A$972:$G$974,4,TRUE)))))))), (IF($F$17=2,(IF(2-$F$19=0, 0, (IF(2-$F$19=1,(VLOOKUP(1,Tablas!$A$972:$G$974,4,TRUE)), (IF(2-$F$19=2, (VLOOKUP(2,Tablas!$A$972:$G$974,4,TRUE)), 0)))))), (IF($F$17=1,(IF(1-$F$19=0, 0, (IF(1-$F$19=1,(VLOOKUP(1,Tablas!$A$972:$G$974,4,TRUE)),0)))),0)))))))))))))), (IF($F$17=0, 0, (IF($F$19>$F$17, (VLOOKUP($F$17,Tablas!$A$972:$G$974,4,TRUE)), (IF($F$17=4,(IF(4-$F$19=0, 0, (IF(4-$F$19=1, (VLOOKUP(1,Tablas!$A$972:$G$974,4,TRUE)), (IF(4-$F$19=2, (VLOOKUP(2,Tablas!$A$972:$G$974,4,TRUE)), (IF(4-$F$19=3, (VLOOKUP(3,Tablas!$A$972:$G$974,4,TRUE)), (IF(4-$F$19=4, (VLOOKUP(3,Tablas!$A$972:$G$974,4,TRUE)), 0)))))))))), (IF($F$17=5,(IF(5-$F$19=0, (VLOOKUP(1,Tablas!$A$972:$G$974,4,TRUE)), (IF(5-$F$19=1, (VLOOKUP(1,Tablas!$A$972:$G$974,4,TRUE)), (IF(5-$F$19=2, (VLOOKUP(2,Tablas!$A$972:$G$974,4,TRUE)), (IF(5-$F$19=3, (VLOOKUP(3,Tablas!$A$972:$G$974,4,TRUE)), (IF(5-$F$19=4, (VLOOKUP(3,Tablas!$A$972:$G$974,4,TRUE)), (VLOOKUP(3,Tablas!$A$972:$G$974,4,TRUE)))))))))))), (IF($F$17=6,(IF(6-$F$19=0, (VLOOKUP(2,Tablas!$A$972:$G$974,4,TRUE)), (IF(6-$F$19=1, (VLOOKUP(2,Tablas!$A$972:$G$974,4,TRUE)), (IF(6-$F$19=2, (VLOOKUP(2,Tablas!$A$972:$G$974,4,TRUE)), (IF(6-$F$19=3, (VLOOKUP(3,Tablas!$A$972:$G$974,4,TRUE)), (IF(6-$F$19=4, (VLOOKUP(3,Tablas!$A$972:$G$974,4,TRUE)), (VLOOKUP(3,Tablas!$A$972:$G$974,4,TRUE)))))))))))), (IF($F$17>6,(IF(7-$F$19=0, (VLOOKUP(3,Tablas!$A$972:$G$974,4,TRUE)), (IF(7-$F$19=1, (VLOOKUP(3,Tablas!$A$972:$G$974,4,TRUE)), (IF(7-$F$19=2, (VLOOKUP(3,Tablas!$A$972:$G$974,4,TRUE)), (IF(7-$F$19=3, (VLOOKUP(3,Tablas!$A$972:$G$974,4,TRUE)), (IF(7-$F$19=4, (VLOOKUP(3,Tablas!$A$972:$G$974,4,TRUE)), (VLOOKUP(3,Tablas!$A$972:$G$974,4,TRUE)))))))))))), (IF($F$17=3,(IF(3-$F$19=0,0, (IF(3-$F$19=1,(VLOOKUP(1,Tablas!$A$972:$G$974,4,TRUE)), (IF(3-$F$19=2, (VLOOKUP(2,Tablas!$A$972:$G$974,4,TRUE)), (VLOOKUP(3,Tablas!$A$972:$G$974,4,TRUE)))))))), (IF($F$17=2,(IF(2-$F$19=0, 0, (IF(2-$F$19=1,(VLOOKUP(1,Tablas!$A$972:$G$974,4,TRUE)), (IF(2-$F$19=2, (VLOOKUP(2,Tablas!$A$972:$G$974,4,TRUE)), 0)))))), (IF($F$17=1,(IF(1-$F$19=0, 0, (IF(1-$F$19=1,(VLOOKUP(1,Tablas!$A$972:$G$974,4,TRUE)),0)))),0))))))))))))))))))) -> 0
E31: Total de Prima neta | G31: =SUM(G28:G30) -> 48625 | H31: =SUM(H28:H30) -> 31403
E32: Tarifa administrativa anual | G32: 0 | H32: 0
E33: Contribución 3.5% Superintendencia de Bancos Contribución 0.5% Seguro Social Campesino | G33: =(G31)*4% -> 1945 | H33: =(H31)*4% -> 1256.12
E34: TOTAL ANUAL | G34: =SUM(G31:G33) -> 50570 | H34: =SUM(H31:H33) -> 32659.12
E35: Ahorros en tarifas de prima para niños | G35: =IF($F$15=1,IF($F$17=0,0,IF($F$19=0,0,IF($F$19=1,(VLOOKUP(1,Tablas!$A$972:$G$974,3,TRUE)),(VLOOKUP(2,Tablas!$A$972:$G$974,3,TRUE))))), IF($F$17=0,0,IF($F$19=0,0,IF($F$19=1,(VLOOKUP(1,Tablas!$A$972:$G$974,3,TRUE)),IF($F$19=2,(VLOOKUP(2,Tablas!$A$972:$G$974,3,TRUE)), (VLOOKUP(3,Tablas!$A$972:$G$974,3,TRUE))))))) -> 0 | H35: =IF($F$15=1,IF($F$17=0,0,IF($F$19=0,0,IF($F$19=1,(VLOOKUP(1,Tablas!$A$972:$G$974,4,TRUE)),(VLOOKUP(2,Tablas!$A$972:$G$974,4,TRUE))))), IF($F$17=0,0,IF($F$19=0,0,IF($F$19=1,(VLOOKUP(1,Tablas!$A$972:$G$974,4,TRUE)),IF($F$19=2,(VLOOKUP(2,Tablas!$A$972:$G$974,4,TRUE)), (VLOOKUP(3,Tablas!$A$972:$G$974,4,TRUE))))))) -> 0
E37: Tarifas Semianuales
E38: Prima para Asegurado Titular | G38: =VLOOKUP($I$15,Tablas!$A$1428:$G$1494,3,TRUE)+75 -> 12940.75 | H38: =VLOOKUP($I$15,Tablas!$A$1428:$G$1494,4,TRUE)+75 -> 8376.92
E39: Prima para conyuge | G39: =IF($F$15=1,0,(VLOOKUP($I$17,Tablas!$A$1428:$G$1494,3,TRUE))) -> 12865.75 | H39: =IF($F$15=1,0,(VLOOKUP($I$17,Tablas!$A$1428:$G$1494,4,TRUE))) -> 8301.92
E40: Prima para hijo (s) | G40: =IF($F$15=1, (IF($F$17=0, 0, (IF($F$19>$F$17, (VLOOKUP($F$17,Tablas!$A$1495:$G$1497,3,TRUE)), (IF($F$17>4,(IF($F$19=0, (VLOOKUP(3,Tablas!$A$1495:$G$1497,3,TRUE)), (IF($F$19=1, (VLOOKUP(3,Tablas!$A$1495:$G$1497,3,TRUE)), (IF($F$19=2, (VLOOKUP(3,Tablas!$A$1495:$G$1497,3,TRUE)), (VLOOKUP(3,Tablas!$A$1495:$G$1497,3,TRUE)))))))), (IF($F$17=4,(IF(4-$F$19=0,(VLOOKUP(2,Tablas!$A$1495:$G$1497,3,TRUE)), (IF(4-$F$19=1,(VLOOKUP(2,Tablas!$A$1495:$G$1497,3,TRUE)), (IF(4-$F$19=2, (VLOOKUP(2,Tablas!$A$1495:$G$1497,3,TRUE)), (VLOOKUP(3,Tablas!$A$1495:$G$1497,3,TRUE)))))))), (IF($F$17=3,(IF(3-$F$19=0,(VLOOKUP(1,Tablas!$A$1495:$G$1497,3,TRUE)), (IF(3-$F$19=1,(VLOOKUP(1,Tablas!$A$1495:$G$1497,3,TRUE)), (IF(3-$F$19=2, (VLOOKUP(2,Tablas!$A$1495:$G$1497,3,TRUE)), (VLOOKUP(3,Tablas!$A$1495:$G$1497,3,TRUE)))))))), (IF($F$17=2,(IF(2-$F$19=0, 0, (IF(2-$F$19=1,(VLOOKUP(1,Tablas!$A$1495:$G$1497,3,TRUE)), (IF(2-$F$19=2, (VLOOKUP(2,Tablas!$A$1495:$G$1497,3,TRUE)), 0)))))), (IF($F$17=1,(IF(1-$F$19=0, 0, (IF(1-$F$19=1,(VLOOKUP(1,Tablas!$A$1495:$G$1497,3,TRUE)),0)))),0)))))))))))))), (IF($F$17=0, 0, (IF($F$19>$F$17, (VLOOKUP($F$17,Tablas!$A$1495:$G$1497,3,TRUE)), (IF($F$17=4,(IF(4-$F$19=0, 0, (IF(4-$F$19=1, (VLOOKUP(1,Tablas!$A$1495:$G$1497,3,TRUE)), (IF(4-$F$19=2, (VLOOKUP(2,Tablas!$A$1495:$G$1497,3,TRUE)), (IF(4-$F$19=3, (VLOOKUP(3,Tablas!$A$1495:$G$1497,3,TRUE)), (IF(4-$F$19=4, (VLOOKUP(3,Tablas!$A$1495:$G$1497,3,TRUE)), 0)))))))))), (IF($F$17=5,(IF(5-$F$19=0, (VLOOKUP(1,Tablas!$A$1495:$G$1497,3,TRUE)), (IF(5-$F$19=1, (VLOOKUP(1,Tablas!$A$1495:$G$1497,3,TRUE)), (IF(5-$F$19=2, (VLOOKUP(2,Tablas!$A$1495:$G$1497,3,TRUE)), (IF(5-$F$19=3, (VLOOKUP(3,Tablas!$A$1495:$G$1497,3,TRUE)), (IF(5-$F$19=4, (VLOOKUP(3,Tablas!$A$1495:$G$1497,3,TRUE)), (VLOOKUP(3,Tablas!$A$1495:$G$1497,3,TRUE)))))))))))), (IF($F$17=6,(IF(6-$F$19=0, (VLOOKUP(2,Tablas!$A$1495:$G$1497,3,TRUE)), (IF(6-$F$19=1, (VLOOKUP(2,Tablas!$A$1495:$G$1497,3,TRUE)), (IF(6-$F$19=2, (VLOOKUP(2,Tablas!$A$1495:$G$1497,3,TRUE)), (IF(6-$F$19=3, (VLOOKUP(3,Tablas!$A$1495:$G$1497,3,TRUE)), (IF(6-$F$19=4, (VLOOKUP(3,Tablas!$A$1495:$G$1497,3,TRUE)), (VLOOKUP(3,Tablas!$A$1495:$G$1497,3,TRUE)))))))))))), (IF($F$17>6,(IF(7-$F$19=0, (VLOOKUP(3,Tablas!$A$1495:$G$1497,3,TRUE)), (IF(7-$F$19=1, (VLOOKUP(3,Tablas!$A$1495:$G$1497,3,TRUE)), (IF(7-$F$19=2, (VLOOKUP(3,Tablas!$A$1495:$G$1497,3,TRUE)), (IF(7-$F$19=3, (VLOOKUP(3,Tablas!$A$1495:$G$1497,3,TRUE)), (IF(7-$F$19=4, (VLOOKUP(3,Tablas!$A$1495:$G$1497,3,TRUE)), (VLOOKUP(3,Tablas!$A$1495:$G$1497,3,TRUE)))))))))))), (IF($F$17=3,(IF(3-$F$19=0,0, (IF(3-$F$19=1,(VLOOKUP(1,Tablas!$A$1495:$G$1497,3,TRUE)), (IF(3-$F$19=2, (VLOOKUP(2,Tablas!$A$1495:$G$1497,3,TRUE)), (VLOOKUP(3,Tablas!$A$1495:$G$1497,3,TRUE)))))))), (IF($F$17=2,(IF(2-$F$19=0, 0, (IF(2-$F$19=1,(VLOOKUP(1,Tablas!$A$1495:$G$1497,3,TRUE)), (IF(2-$F$19=2, (VLOOKUP(2,Tablas!$A$1495:$G$1497,3,TRUE)), 0)))))), (IF($F$17=1,(IF(1-$F$19=0, 0, (IF(1-$F$19=1,(VLOOKUP(1,Tablas!$A$1495:$G$1497,3,TRUE)),0)))),0))))))))))))))))))) -> 0 | H40: =IF($F$15=1, (IF($F$17=0, 0, (IF($F$19>$F$17, (VLOOKUP($F$17,Tablas!$A$1495:$G$1497,4,TRUE)), (IF($F$17>4,(IF($F$19=0, (VLOOKUP(3,Tablas!$A$1495:$G$1497,4,TRUE)), (IF($F$19=1, (VLOOKUP(3,Tablas!$A$1495:$G$1497,4,TRUE)), (IF($F$19=2, (VLOOKUP(3,Tablas!$A$1495:$G$1497,4,TRUE)), (VLOOKUP(3,Tablas!$A$1495:$G$1497,4,TRUE)))))))), (IF($F$17=4,(IF(4-$F$19=0,(VLOOKUP(2,Tablas!$A$1495:$G$1497,4,TRUE)), (IF(4-$F$19=1,(VLOOKUP(2,Tablas!$A$1495:$G$1497,4,TRUE)), (IF(4-$F$19=2, (VLOOKUP(2,Tablas!$A$1495:$G$1497,4,TRUE)), (VLOOKUP(3,Tablas!$A$1495:$G$1497,4,TRUE)))))))), (IF($F$17=3,(IF(3-$F$19=0,(VLOOKUP(1,Tablas!$A$1495:$G$1497,4,TRUE)), (IF(3-$F$19=1,(VLOOKUP(1,Tablas!$A$1495:$G$1497,4,TRUE)), (IF(3-$F$19=2, (VLOOKUP(2,Tablas!$A$1495:$G$1497,4,TRUE)), (VLOOKUP(3,Tablas!$A$1495:$G$1497,4,TRUE)))))))), (IF($F$17=2,(IF(2-$F$19=0, 0, (IF(2-$F$19=1,(VLOOKUP(1,Tablas!$A$1495:$G$1497,4,TRUE)), (IF(2-$F$19=2, (VLOOKUP(2,Tablas!$A$1495:$G$1497,4,TRUE)), 0)))))), (IF($F$17=1,(IF(1-$F$19=0, 0, (IF(1-$F$19=1,(VLOOKUP(1,Tablas!$A$1495:$G$1497,4,TRUE)),0)))),0)))))))))))))), (IF($F$17=0, 0, (IF($F$19>$F$17, (VLOOKUP($F$17,Tablas!$A$1495:$G$1497,4,TRUE)), (IF($F$17=4,(IF(4-$F$19=0, 0, (IF(4-$F$19=1, (VLOOKUP(1,Tablas!$A$1495:$G$1497,4,TRUE)), (IF(4-$F$19=2, (VLOOKUP(2,Tablas!$A$1495:$G$1497,4,TRUE)), (IF(4-$F$19=3, (VLOOKUP(3,Tablas!$A$1495:$G$1497,4,TRUE)), (IF(4-$F$19=4, (VLOOKUP(3,Tablas!$A$1495:$G$1497,4,TRUE)), 0)))))))))), (IF($F$17=5,(IF(5-$F$19=0, (VLOOKUP(1,Tablas!$A$1495:$G$1497,4,TRUE)), (IF(5-$F$19=1, (VLOOKUP(1,Tablas!$A$1495:$G$1497,4,TRUE)), (IF(5-$F$19=2, (VLOOKUP(2,Tablas!$A$1495:$G$1497,4,TRUE)), (IF(5-$F$19=3, (VLOOKUP(3,Tablas!$A$1495:$G$1497,4,TRUE)), (IF(5-$F$19=4, (VLOOKUP(3,Tablas!$A$1495:$G$1497,4,TRUE)), (VLOOKUP(3,Tablas!$A$1495:$G$1497,4,TRUE)))))))))))), (IF($F$17=6,(IF(6-$F$19=0, (VLOOKUP(2,Tablas!$A$1495:$G$1497,4,TRUE)), (IF(6-$F$19=1, (VLOOKUP(2,Tablas!$A$1495:$G$1497,4,TRUE)), (IF(6-$F$19=2, (VLOOKUP(2,Tablas!$A$1495:$G$1497,4,TRUE)), (IF(6-$F$19=3, (VLOOKUP(3,Tablas!$A$1495:$G$1497,4,TRUE)), (IF(6-$F$19=4, (VLOOKUP(3,Tablas!$A$1495:$G$1497,4,TRUE)), (VLOOKUP(3,Tablas!$A$1495:$G$1497,4,TRUE)))))))))))), (IF($F$17>6,(IF(7-$F$19=0, (VLOOKUP(3,Tablas!$A$1495:$G$1497,4,TRUE)), (IF(7-$F$19=1, (VLOOKUP(3,Tablas!$A$1495:$G$1497,4,TRUE)), (IF(7-$F$19=2, (VLOOKUP(3,Tablas!$A$1495:$G$1497,4,TRUE)), (IF(7-$F$19=3, (VLOOKUP(3,Tablas!$A$1495:$G$1497,4,TRUE)), (IF(7-$F$19=4, (VLOOKUP(3,Tablas!$A$1495:$G$1497,4,TRUE)), (VLOOKUP(3,Tablas!$A$1495:$G$1497,4,TRUE)))))))))))), (IF($F$17=3,(IF(3-$F$19=0,0, (IF(3-$F$19=1,(VLOOKUP(1,Tablas!$A$1495:$G$1497,4,TRUE)), (IF(3-$F$19=2, (VLOOKUP(2,Tablas!$A$1495:$G$1497,4,TRUE)), (VLOOKUP(3,Tablas!$A$1495:$G$1497,4,TRUE)))))))), (IF($F$17=2,(IF(2-$F$19=0, 0, (IF(2-$F$19=1,(VLOOKUP(1,Tablas!$A$1495:$G$1497,4,TRUE)), (IF(2-$F$19=2, (VLOOKUP(2,Tablas!$A$1495:$G$1497,4,TRUE)), 0)))))), (IF($F$17=1,(IF(1-$F$19=0, 0, (IF(1-$F$19=1,(VLOOKUP(1,Tablas!$A$1495:$G$1497,4,TRUE)),0)))),0))))))))))))))))))) -> 0
E41: Total de Prima neta | G41: =SUM(G38:G40) -> 25806.5 | H41: =SUM(H38:H40) -> 16678.84
E42: Tarifa administrativa anual | G42: 0 | H42: 0
E43: Contribución 3.5% Superintendencia de Bancos Contribución 0.5% Seguro Social Campesino | G43: =(G41)*4% -> 1032.26 | H43: =(H41)*4% -> 667.1536
E44: TOTAL de primera cuota | G44: =SUM(G41:G43) -> 26838.76 | H44: =SUM(H41:H43) -> 17345.9936
E45: Costo de segunda cuota | G45: =(G41+G43)-78 -> 26760.76 | H45: =H41+H43-78 -> 17267.9936
E46: TOTAL ANUAL | G46: =G44+G45 -> 53599.52 | H46: =H44+H45 -> 34613.9872
E47: Ahorros en tarifas de prima para niños | G47: =IF($F$15=1,IF($F$17=0,0,IF($F$19=0,0,IF($F$19=1,(VLOOKUP(1,Tablas!$A$1495:$G$1497,3,TRUE)),(VLOOKUP(2,Tablas!$A$1495:$G$1497,3,TRUE))))), IF($F$17=0,0,IF($F$19=0,0,IF($F$19=1,(VLOOKUP(1,Tablas!$A$1495:$G$1497,3,TRUE)),IF($F$19=2,(VLOOKUP(2,Tablas!$A$1495:$G$1497,3,TRUE)), (VLOOKUP(3,Tablas!$A$1495:$G$1497,3,TRUE))))))) -> 0 | H47: =IF($F$15=1,IF($F$17=0,0,IF($F$19=0,0,IF($F$19=1,(VLOOKUP(1,Tablas!$A$1495:$G$1497,4,TRUE)),(VLOOKUP(2,Tablas!$A$1495:$G$1497,4,TRUE))))), IF($F$17=0,0,IF($F$19=0,0,IF($F$19=1,(VLOOKUP(1,Tablas!$A$1495:$G$1497,4,TRUE)),IF($F$19=2,(VLOOKUP(2,Tablas!$A$1495:$G$1497,4,TRUE)), (VLOOKUP(3,Tablas!$A$1495:$G$1497,4,TRUE))))))) -> 0
E49: Tarifas Trimestrales
E50: Prima para Asegurado Titular | G50: =VLOOKUP($I$15,Tablas!$A$1054:$G$1120,3,TRUE)+75 -> 6750.625 | H50: =VLOOKUP($I$15,Tablas!$A$1054:$G$1120,4,TRUE)+75 -> 4382.6
E51: Prima para conyuge | G51: =IF($F$15=1,0,(VLOOKUP($I$17,Tablas!$A$1054:$G$1120,3,TRUE))) -> 6675.625 | H51: =IF($F$15=1,0,(VLOOKUP($I$17,Tablas!$A$1054:$G$1120,4,TRUE))) -> 4307.6
E52: Prima para hijo (s) | G52: =IF($F$15=1, (IF($F$17=0, 0, (IF($F$19>$F$17, (VLOOKUP($F$17,Tablas!$A$1121:$G$1123,3,TRUE)), (IF($F$17>4,(IF($F$19=0, (VLOOKUP(3,Tablas!$A$1121:$G$1123,3,TRUE)), (IF($F$19=1, (VLOOKUP(3,Tablas!$A$1121:$G$1123,3,TRUE)), (IF($F$19=2, (VLOOKUP(3,Tablas!$A$1121:$G$1123,3,TRUE)), (VLOOKUP(3,Tablas!$A$1121:$G$1123,3,TRUE)))))))), (IF($F$17=4,(IF(4-$F$19=0,(VLOOKUP(2,Tablas!$A$1121:$G$1123,3,TRUE)), (IF(4-$F$19=1,(VLOOKUP(2,Tablas!$A$1121:$G$1123,3,TRUE)), (IF(4-$F$19=2, (VLOOKUP(2,Tablas!$A$1121:$G$1123,3,TRUE)), (VLOOKUP(3,Tablas!$A$1121:$G$1123,3,TRUE)))))))), (IF($F$17=3,(IF(3-$F$19=0,(VLOOKUP(1,Tablas!$A$1121:$G$1123,3,TRUE)), (IF(3-$F$19=1,(VLOOKUP(1,Tablas!$A$1121:$G$1123,3,TRUE)), (IF(3-$F$19=2, (VLOOKUP(2,Tablas!$A$1121:$G$1123,3,TRUE)), (VLOOKUP(3,Tablas!$A$1121:$G$1123,3,TRUE)))))))), (IF($F$17=2,(IF(2-$F$19=0, 0, (IF(2-$F$19=1,(VLOOKUP(1,Tablas!$A$1121:$G$1123,3,TRUE)), (IF(2-$F$19=2, (VLOOKUP(2,Tablas!$A$1121:$G$1123,3,TRUE)), 0)))))), (IF($F$17=1,(IF(1-$F$19=0, 0, (IF(1-$F$19=1,(VLOOKUP(1,Tablas!$A$1121:$G$1123,3,TRUE)),0)))),0)))))))))))))), (IF($F$17=0, 0, (IF($F$19>$F$17, (VLOOKUP($F$17,Tablas!$A$1121:$G$1123,3,TRUE)), (IF($F$17=4,(IF(4-$F$19=0, 0, (IF(4-$F$19=1, (VLOOKUP(1,Tablas!$A$1121:$G$1123,3,TRUE)), (IF(4-$F$19=2, (VLOOKUP(2,Tablas!$A$1121:$G$1123,3,TRUE)), (IF(4-$F$19=3, (VLOOKUP(3,Tablas!$A$1121:$G$1123,3,TRUE)), (IF(4-$F$19=4, (VLOOKUP(3,Tablas!$A$1121:$G$1123,3,TRUE)), 0)))))))))), (IF($F$17=5,(IF(5-$F$19=0, (VLOOKUP(1,Tablas!$A$1121:$G$1123,3,TRUE)), (IF(5-$F$19=1, (VLOOKUP(1,Tablas!$A$1121:$G$1123,3,TRUE)), (IF(5-$F$19=2, (VLOOKUP(2,Tablas!$A$1121:$G$1123,3,TRUE)), (IF(5-$F$19=3, (VLOOKUP(3,Tablas!$A$1121:$G$1123,3,TRUE)), (IF(5-$F$19=4, (VLOOKUP(3,Tablas!$A$1121:$G$1123,3,TRUE)), (VLOOKUP(3,Tablas!$A$1121:$G$1123,3,TRUE)))))))))))), (IF($F$17=6,(IF(6-$F$19=0, (VLOOKUP(2,Tablas!$A$1121:$G$1123,3,TRUE)), (IF(6-$F$19=1, (VLOOKUP(2,Tablas!$A$1121:$G$1123,3,TRUE)), (IF(6-$F$19=2, (VLOOKUP(2,Tablas!$A$1121:$G$1123,3,TRUE)), (IF(6-$F$19=3, (VLOOKUP(3,Tablas!$A$1121:$G$1123,3,TRUE)), (IF(6-$F$19=4, (VLOOKUP(3,Tablas!$A$1121:$G$1123,3,TRUE)), (VLOOKUP(3,Tablas!$A$1121:$G$1123,3,TRUE)))))))))))), (IF($F$17>6,(IF(7-$F$19=0, (VLOOKUP(3,Tablas!$A$1121:$G$1123,3,TRUE)), (IF(7-$F$19=1, (VLOOKUP(3,Tablas!$A$1121:$G$1123,3,TRUE)), (IF(7-$F$19=2, (VLOOKUP(3,Tablas!$A$1121:$G$1123,3,TRUE)), (IF(7-$F$19=3, (VLOOKUP(3,Tablas!$A$1121:$G$1123,3,TRUE)), (IF(7-$F$19=4, (VLOOKUP(3,Tablas!$A$1121:$G$1123,3,TRUE)), (VLOOKUP(3,Tablas!$A$1121:$G$1123,3,TRUE)))))))))))), (IF($F$17=3,(IF(3-$F$19=0,0, (IF(3-$F$19=1,(VLOOKUP(1,Tablas!$A$1121:$G$1123,3,TRUE)), (IF(3-$F$19=2, (VLOOKUP(2,Tablas!$A$1121:$G$1123,3,TRUE)), (VLOOKUP(3,Tablas!$A$1121:$G$1123,3,TRUE)))))))), (IF($F$17=2,(IF(2-$F$19=0, 0, (IF(2-$F$19=1,(VLOOKUP(1,Tablas!$A$1121:$G$1123,3,TRUE)), (IF(2-$F$19=2, (VLOOKUP(2,Tablas!$A$1121:$G$1123,3,TRUE)), 0)))))), (IF($F$17=1,(IF(1-$F$19=0, 0, (IF(1-$F$19=1,(VLOOKUP(1,Tablas!$A$1121:$G$1123,3,TRUE)),0)))),0))))))))))))))))))) -> 0 | H52: =IF($F$15=1, (IF($F$17=0, 0, (IF($F$19>$F$17, (VLOOKUP($F$17,Tablas!$A$1121:$G$1123,4,TRUE)), (IF($F$17>4,(IF($F$19=0, (VLOOKUP(3,Tablas!$A$1121:$G$1123,4,TRUE)), (IF($F$19=1, (VLOOKUP(3,Tablas!$A$1121:$G$1123,4,TRUE)), (IF($F$19=2, (VLOOKUP(3,Tablas!$A$1121:$G$1123,4,TRUE)), (VLOOKUP(3,Tablas!$A$1121:$G$1123,4,TRUE)))))))), (IF($F$17=4,(IF(4-$F$19=0,(VLOOKUP(2,Tablas!$A$1121:$G$1123,4,TRUE)), (IF(4-$F$19=1,(VLOOKUP(2,Tablas!$A$1121:$G$1123,4,TRUE)), (IF(4-$F$19=2, (VLOOKUP(2,Tablas!$A$1121:$G$1123,4,TRUE)), (VLOOKUP(3,Tablas!$A$1121:$G$1123,4,TRUE)))))))), (IF($F$17=3,(IF(3-$F$19=0,(VLOOKUP(1,Tablas!$A$1121:$G$1123,4,TRUE)), (IF(3-$F$19=1,(VLOOKUP(1,Tablas!$A$1121:$G$1123,4,TRUE)), (IF(3-$F$19=2, (VLOOKUP(2,Tablas!$A$1121:$G$1123,4,TRUE)), (VLOOKUP(3,Tablas!$A$1121:$G$1123,4,TRUE)))))))), (IF($F$17=2,(IF(2-$F$19=0, 0, (IF(2-$F$19=1,(VLOOKUP(1,Tablas!$A$1121:$G$1123,4,TRUE)), (IF(2-$F$19=2, (VLOOKUP(2,Tablas!$A$1121:$G$1123,4,TRUE)), 0)))))), (IF($F$17=1,(IF(1-$F$19=0, 0, (IF(1-$F$19=1,(VLOOKUP(1,Tablas!$A$1121:$G$1123,4,TRUE)),0)))),0)))))))))))))), (IF($F$17=0, 0, (IF($F$19>$F$17, (VLOOKUP($F$17,Tablas!$A$1121:$G$1123,4,TRUE)), (IF($F$17=4,(IF(4-$F$19=0, 0, (IF(4-$F$19=1, (VLOOKUP(1,Tablas!$A$1121:$G$1123,4,TRUE)), (IF(4-$F$19=2, (VLOOKUP(2,Tablas!$A$1121:$G$1123,4,TRUE)), (IF(4-$F$19=3, (VLOOKUP(3,Tablas!$A$1121:$G$1123,4,TRUE)), (IF(4-$F$19=4, (VLOOKUP(3,Tablas!$A$1121:$G$1123,4,TRUE)), 0)))))))))), (IF($F$17=5,(IF(5-$F$19=0, (VLOOKUP(1,Tablas!$A$1121:$G$1123,4,TRUE)), (IF(5-$F$19=1, (VLOOKUP(1,Tablas!$A$1121:$G$1123,4,TRUE)), (IF(5-$F$19=2, (VLOOKUP(2,Tablas!$A$1121:$G$1123,4,TRUE)), (IF(5-$F$19=3, (VLOOKUP(3,Tablas!$A$1121:$G$1123,4,TRUE)), (IF(5-$F$19=4, (VLOOKUP(3,Tablas!$A$1121:$G$1123,4,TRUE)), (VLOOKUP(3,Tablas!$A$1121:$G$1123,4,TRUE)))))))))))), (IF($F$17=6,(IF(6-$F$19=0, (VLOOKUP(2,Tablas!$A$1121:$G$1123,4,TRUE)), (IF(6-$F$19=1, (VLOOKUP(2,Tablas!$A$1121:$G$1123,4,TRUE)), (IF(6-$F$19=2, (VLOOKUP(2,Tablas!$A$1121:$G$1123,4,TRUE)), (IF(6-$F$19=3, (VLOOKUP(3,Tablas!$A$1121:$G$1123,4,TRUE)), (IF(6-$F$19=4, (VLOOKUP(3,Tablas!$A$1121:$G$1123,4,TRUE)), (VLOOKUP(3,Tablas!$A$1121:$G$1123,4,TRUE)))))))))))), (IF($F$17>6,(IF(7-$F$19=0, (VLOOKUP(3,Tablas!$A$1121:$G$1123,4,TRUE)), (IF(7-$F$19=1, (VLOOKUP(3,Tablas!$A$1121:$G$1123,4,TRUE)), (IF(7-$F$19=2, (VLOOKUP(3,Tablas!$A$1121:$G$1123,4,TRUE)), (IF(7-$F$19=3, (VLOOKUP(3,Tablas!$A$1121:$G$1123,4,TRUE)), (IF(7-$F$19=4, (VLOOKUP(3,Tablas!$A$1121:$G$1123,4,TRUE)), (VLOOKUP(3,Tablas!$A$1121:$G$1123,4,TRUE)))))))))))), (IF($F$17=3,(IF(3-$F$19=0,0, (IF(3-$F$19=1,(VLOOKUP(1,Tablas!$A$1121:$G$1123,4,TRUE)), (IF(3-$F$19=2, (VLOOKUP(2,Tablas!$A$1121:$G$1123,4,TRUE)), (VLOOKUP(3,Tablas!$A$1121:$G$1123,4,TRUE)))))))), (IF($F$17=2,(IF(2-$F$19=0, 0, (IF(2-$F$19=1,(VLOOKUP(1,Tablas!$A$1121:$G$1123,4,TRUE)), (IF(2-$F$19=2, (VLOOKUP(2,Tablas!$A$1121:$G$1123,4,TRUE)), 0)))))), (IF($F$17=1,(IF(1-$F$19=0, 0, (IF(1-$F$19=1,(VLOOKUP(1,Tablas!$A$1121:$G$1123,4,TRUE)),0)))),0))))))))))))))))))) -> 0
E53: Total de Prima neta | G53: =SUM(G50:G52) -> 13426.25 | H53: =SUM(H50:H52) -> 8690.2
E54: Tarifa administrativa anual | G54: 0 | H54: 0
E55: Contribución 3.5% Superintendencia de Bancos Contribución 0.5% Seguro Social Campesino | G55: =(G53)*4% -> 537.05 | H55: =(H53)*4% -> 347.608
E56: TOTAL de primera cuota | G56: =SUM(G53:G55) -> 13963.3 | H56: =SUM(H53:H55) -> 9037.808
E57: Tres (3) cuotas adicionales, cada una de: | G57: =G53+G55-78 -> 13885.3 | H57: =H53+H55-78 -> 8959.808
E58: TOTAL ANUAL | G58: =G56+(G57*3) -> 55619.2 | H58: =H56+(H57*3) -> 35917.232
E59: Ahorros en tarifas de prima para niños | G59: =IF($F$15=1,IF($F$17=0,0,IF($F$19=0,0,IF($F$19=1,(VLOOKUP(1,Tablas!$A$1121:$G$1123,3,TRUE)),(VLOOKUP(2,Tablas!$A$1121:$G$1123,3,TRUE))))), IF($F$17=0,0,IF($F$19=0,0,IF($F$19=1,(VLOOKUP(1,Tablas!$A$1121:$G$1123,3,TRUE)),IF($F$19=2,(VLOOKUP(2,Tablas!$A$1121:$G$1123,3,TRUE)), (VLOOKUP(3,Tablas!$A$1121:$G$1123,3,TRUE))))))) -> 0 | H59: =IF($F$15=1,IF($F$17=0,0,IF($F$19=0,0,IF($F$19=1,(VLOOKUP(1,Tablas!$A$1121:$G$1123,4,TRUE)),(VLOOKUP(2,Tablas!$A$1121:$G$1123,4,TRUE))))), IF($F$17=0,0,IF($F$19=0,0,IF($F$19=1,(VLOOKUP(1,Tablas!$A$1121:$G$1123,4,TRUE)),IF($F$19=2,(VLOOKUP(2,Tablas!$A$1121:$G$1123,4,TRUE)), (VLOOKUP(3,Tablas!$A$1121:$G$1123,4,TRUE))))))) -> 0
E61: Tarifas en US$ - Efectivas a partir del 1ro. de enero de 2022
E62: Este presupuesto solamente tiene carácter informativo y en ningún momento expresa compromiso legal para suministrarle cobertura de seguro. La emisión de una póliza de seguro Bupa está sujeta a todas las evaluaciones de riesgo por parte de Bupa y a la recepción de todos los pagos de prima requeridos.

Sheet Global Health Elite
A14: RESUMEN DE BENEFICIOS | D14: Nombre del Asegurado Titular | F14: =+'INGRESO DE DATOS'!$D$13 -> Nombre Completo
D16: Número de adultos en la póliza | F16: =+'INGRESO DE DATOS'!$D$15 -> 2 | H16: Edad del Asegurado Titular | I16: =+'INGRESO DE DATOS'!$D$17 -> 18
D18: Número de niños en la póliza | F18: =+'INGRESO DE DATOS'!$H$15 -> 0 | H18: Edad del/la conyuge | I18: =+'INGRESO DE DATOS'!$H$17 -> 18
E20: Número de niños menores de 10 años | F20: =+'INGRESO DE DATOS'!$D$27 -> 0 | H20: Fecha de la cotización : | I20: =NOW() -> 2022-01-13T13:40:57.550
H21: FALSE
E22: Zona de cotización: | F22: ='INGRESO DE DATOS'!D19 -> Guayas/Santa Elena
E24: Deducibles | G24: PLAN 1 | H24: PLAN 2 | I24: PLAN 3 | J24: PLAN 4 | K24: PLAN 5
E25: En el país de residencia | G25: 250 | H25: 2000 | I25: 3500 | J25: 5000 | K25: 10000
E26: Fuera del país de residencia | G26: 5000 | H26: 2000 | I26: 3500 | J26: 5000 | K26: 10000
E28: Tarifas Anuales
E29: Prima para Asegurado Titular | G29: =VLOOKUP($I$16,Tablas!$A$6:$G$72,3,TRUE)+75 -> 10289 | H29: =VLOOKUP($I$16,Tablas!$A$6:$G$72,4,TRUE)+75 -> 9029 | I29: =VLOOKUP($I$16,Tablas!$A$6:$G$72,5,TRUE)+75 -> 7323 | J29: =VLOOKUP($I$16,Tablas!$A$6:$G$72,6,TRUE)+75 -> 6363 | K29: =VLOOKUP($I$16,Tablas!$A$6:$G$72,7,TRUE)+75 -> 4764
E30: Prima para conyuge | G30: =IF($F$16=1,0,(VLOOKUP($I$18,Tablas!$A$6:$G$72,3,TRUE))) -> 10214 | H30: =IF($F$16=1,0,(VLOOKUP($I$18,Tablas!$A$6:$G$72,4,TRUE))) -> 8954 | I30: =IF($F$16=1,0,(VLOOKUP($I$18,Tablas!$A$6:$G$72,5,TRUE))) -> 7248 | J30: =IF($F$16=1,0,(VLOOKUP($I$18,Tablas!$A$6:$G$72,6,TRUE))) -> 6288 | K30: =IF($F$16=1,0,(VLOOKUP($I$18,Tablas!$A$6:$G$72,7,TRUE))) -> 4689
E31: Prima para hijo (s) | G31: =IF($F$16=1, (IF($F$18=0, 0, (IF($F$20>$F$18, (VLOOKUP($F$18,Tablas!$A$73:$G$75,3,TRUE)), (IF($F$18>4,(IF($F$20=0, (VLOOKUP(3,Tablas!$A$73:$G$75,3,TRUE)), (IF($F$20=1, (VLOOKUP(3,Tablas!$A$73:$G$75,3,TRUE)), (IF($F$20=2, (VLOOKUP(3,Tablas!$A$73:$G$75,3,TRUE)), (VLOOKUP(3,Tablas!$A$73:$G$75,3,TRUE)))))))), (IF($F$18=4,(IF(4-$F$20=0,(VLOOKUP(2,Tablas!$A$73:$G$75,3,TRUE)), (IF(4-$F$20=1,(VLOOKUP(2,Tablas!$A$73:$G$75,3,TRUE)), (IF(4-$F$20=2, (VLOOKUP(2,Tablas!$A$73:$G$75,3,TRUE)), (VLOOKUP(3,Tablas!$A$73:$G$75,3,TRUE)))))))), (IF($F$18=3,(IF(3-$F$20=0,(VLOOKUP(1,Tablas!$A$73:$G$75,3,TRUE)), (IF(3-$F$20=1,(VLOOKUP(1,Tablas!$A$73:$G$75,3,TRUE)), (IF(3-$F$20=2, (VLOOKUP(2,Tablas!$A$73:$G$75,3,TRUE)), (VLOOKUP(3,Tablas!$A$73:$G$75,3,TRUE)))))))), (IF($F$18=2,(IF(2-$F$20=0, 0, (IF(2-$F$20=1,(VLOOKUP(1,Tablas!$A$73:$G$75,3,TRUE)), (IF(2-$F$20=2, (VLOOKUP(2,Tablas!$A$73:$G$75,3,TRUE)), 0)))))), (IF($F$18=1,(IF(1-$F$20=0, 0, (IF(1-$F$20=1,(VLOOKUP(1,Tablas!$A$73:$G$75,3,TRUE)),0)))),0)))))))))))))), (IF($F$18=0, 0, (IF($F$20>$F$18, (VLOOKUP($F$18,Tablas!$A$73:$G$75,3,TRUE)), (IF($F$18=4,(IF(4-$F$20=0, 0, (IF(4-$F$20=1, (VLOOKUP(1,Tablas!$A$73:$G$75,3,TRUE)), (IF(4-$F$20=2, (VLOOKUP(2,Tablas!$A$73:$G$75,3,TRUE)), (IF(4-$F$20=3, (VLOOKUP(3,Tablas!$A$73:$G$75,3,TRUE)), (IF(4-$F$20=4, (VLOOKUP(3,Tablas!$A$73:$G$75,3,TRUE)), 0)))))))))), (IF($F$18=5,(IF(5-$F$20=0, (VLOOKUP(1,Tablas!$A$73:$G$75,3,TRUE)), (IF(5-$F$20=1, (VLOOKUP(1,Tablas!$A$73:$G$75,3,TRUE)), (IF(5-$F$20=2, (VLOOKUP(2,Tablas!$A$73:$G$75,3,TRUE)), (IF(5-$F$20=3, (VLOOKUP(3,Tablas!$A$73:$G$75,3,TRUE)), (IF(5-$F$20=4, (VLOOKUP(3,Tablas!$A$73:$G$75,3,TRUE)), (VLOOKUP(3,Tablas!$A$73:$G$75,3,TRUE)))))))))))), (IF($F$18=6,(IF(6-$F$20=0, (VLOOKUP(2,Tablas!$A$73:$G$75,3,TRUE)), (IF(6-$F$20=1, (VLOOKUP(2,Tablas!$A$73:$G$75,3,TRUE)), (IF(6-$F$20=2, (VLOOKUP(2,Tablas!$A$73:$G$75,3,TRUE)), (IF(6-$F$20=3, (VLOOKUP(3,Tablas!$A$73:$G$75,3,TRUE)), (IF(6-$F$20=4, (VLOOKUP(3,Tablas!$A$73:$G$75,3,TRUE)), (VLOOKUP(3,Tablas!$A$73:$G$75,3,TRUE)))))))))))), (IF($F$18>6,(IF(7-$F$20=0, (VLOOKUP(3,Tablas!$A$73:$G$75,3,TRUE)), (IF(7-$F$20=1, (VLOOKUP(3,Tablas!$A$73:$G$75,3,TRUE)), (IF(7-$F$20=2, (VLOOKUP(3,Tablas!$A$73:$G$75,3,TRUE)), (IF(7-$F$20=3, (VLOOKUP(3,Tablas!$A$73:$G$75,3,TRUE)), (IF(7-$F$20=4, (VLOOKUP(3,Tablas!$A$73:$G$75,3,TRUE)), (VLOOKUP(3,Tablas!$A$73:$G$75,3,TRUE)))))))))))), (IF($F$18=3,(IF(3-$F$20=0,0, (IF(3-$F$20=1,(VLOOKUP(1,Tablas!$A$73:$G$75,3,TRUE)), (IF(3-$F$20=2, (VLOOKUP(2,Tablas!$A$73:$G$75,3,TRUE)), (VLOOKUP(3,Tablas!$A$73:$G$75,3,TRUE)))))))), (IF($F$18=2,(IF(2-$F$20=0, 0, (IF(2-$F$20=1,(VLOOKUP(1,Tablas!$A$73:$G$75,3,TRUE)), (IF(2-$F$20=2, (VLOOKUP(2,Tablas!$A$73:$G$75,3,TRUE)), 0)))))), (IF($F$18=1,(IF(1-$F$20=0, 0, (IF(1-$F$20=1,(VLOOKUP(1,Tablas!$A$73:$G$75,3,TRUE)),0)))),0))))))))))))))))))) -> 0 | H31: =IF($F$16=1, (IF($F$18=0, 0, (IF($F$20>$F$18, (VLOOKUP($F$18,Tablas!$A$73:$G$75,4,TRUE)), (IF($F$18>4,(IF($F$20=0, (VLOOKUP(3,Tablas!$A$73:$G$75,4,TRUE)), (IF($F$20=1, (VLOOKUP(3,Tablas!$A$73:$G$75,4,TRUE)), (IF($F$20=2, (VLOOKUP(3,Tablas!$A$73:$G$75,4,TRUE)), (VLOOKUP(3,Tablas!$A$73:$G$75,4,TRUE)))))))), (IF($F$18=4,(IF(4-$F$20=0,(VLOOKUP(2,Tablas!$A$73:$G$75,4,TRUE)), (IF(4-$F$20=1,(VLOOKUP(2,Tablas!$A$73:$G$75,4,TRUE)), (IF(4-$F$20=2, (VLOOKUP(2,Tablas!$A$73:$G$75,4,TRUE)), (VLOOKUP(3,Tablas!$A$73:$G$75,4,TRUE)))))))), (IF($F$18=3,(IF(3-$F$20=0,(VLOOKUP(1,Tablas!$A$73:$G$75,4,TRUE)), (IF(3-$F$20=1,(VLOOKUP(1,Tablas!$A$73:$G$75,4,TRUE)), (IF(3-$F$20=2, (VLOOKUP(2,Tablas!$A$73:$G$75,4,TRUE)), (VLOOKUP(3,Tablas!$A$73:$G$75,4,TRUE)))))))), (IF($F$18=2,(IF(2-$F$20=0, 0, (IF(2-$F$20=1,(VLOOKUP(1,Tablas!$A$73:$G$75,4,TRUE)), (IF(2-$F$20=2, (VLOOKUP(2,Tablas!$A$73:$G$75,4,TRUE)), 0)))))), (IF($F$18=1,(IF(1-$F$20=0, 0, (IF(1-$F$20=1,(VLOOKUP(1,Tablas!$A$73:$G$75,4,TRUE)),0)))),0)))))))))))))), (IF($F$18=0, 0, (IF($F$20>$F$18, (VLOOKUP($F$18,Tablas!$A$73:$G$75,4,TRUE)), (IF($F$18=4,(IF(4-$F$20=0, 0, (IF(4-$F$20=1, (VLOOKUP(1,Tablas!$A$73:$G$75,4,TRUE)), (IF(4-$F$20=2, (VLOOKUP(2,Tablas!$A$73:$G$75,4,TRUE)), (IF(4-$F$20=3, (VLOOKUP(3,Tablas!$A$73:$G$75,4,TRUE)), (IF(4-$F$20=4, (VLOOKUP(3,Tablas!$A$73:$G$75,4,TRUE)), 0)))))))))), (IF($F$18=5,(IF(5-$F$20=0, (VLOOKUP(1,Tablas!$A$73:$G$75,4,TRUE)), (IF(5-$F$20=1, (VLOOKUP(1,Tablas!$A$73:$G$75,4,TRUE)), (IF(5-$F$20=2, (VLOOKUP(2,Tablas!$A$73:$G$75,4,TRUE)), (IF(5-$F$20=3, (VLOOKUP(3,Tablas!$A$73:$G$75,4,TRUE)), (IF(5-$F$20=4, (VLOOKUP(3,Tablas!$A$73:$G$75,4,TRUE)), (VLOOKUP(3,Tablas!$A$73:$G$75,4,TRUE)))))))))))), (IF($F$18=6,(IF(6-$F$20=0, (VLOOKUP(2,Tablas!$A$73:$G$75,4,TRUE)), (IF(6-$F$20=1, (VLOOKUP(2,Tablas!$A$73:$G$75,4,TRUE)), (IF(6-$F$20=2, (VLOOKUP(2,Tablas!$A$73:$G$75,4,TRUE)), (IF(6-$F$20=3, (VLOOKUP(3,Tablas!$A$73:$G$75,4,TRUE)), (IF(6-$F$20=4, (VLOOKUP(3,Tablas!$A$73:$G$75,4,TRUE)), (VLOOKUP(3,Tablas!$A$73:$G$75,4,TRUE)))))))))))), (IF($F$18>6,(IF(7-$F$20=0, (VLOOKUP(3,Tablas!$A$73:$G$75,4,TRUE)), (IF(7-$F$20=1, (VLOOKUP(3,Tablas!$A$73:$G$75,4,TRUE)), (IF(7-$F$20=2, (VLOOKUP(3,Tablas!$A$73:$G$75,4,TRUE)), (IF(7-$F$20=3, (VLOOKUP(3,Tablas!$A$73:$G$75,4,TRUE)), (IF(7-$F$20=4, (VLOOKUP(3,Tablas!$A$73:$G$75,4,TRUE)), (VLOOKUP(3,Tablas!$A$73:$G$75,4,TRUE)))))))))))), (IF($F$18=3,(IF(3-$F$20=0,0, (IF(3-$F$20=1,(VLOOKUP(1,Tablas!$A$73:$G$75,4,TRUE)), (IF(3-$F$20=2, (VLOOKUP(2,Tablas!$A$73:$G$75,4,TRUE)), (VLOOKUP(3,Tablas!$A$73:$G$75,4,TRUE)))))))), (IF($F$18=2,(IF(2-$F$20=0, 0, (IF(2-$F$20=1,(VLOOKUP(1,Tablas!$A$73:$G$75,4,TRUE)), (IF(2-$F$20=2, (VLOOKUP(2,Tablas!$A$73:$G$75,4,TRUE)), 0)))))), (IF($F$18=1,(IF(1-$F$20=0, 0, (IF(1-$F$20=1,(VLOOKUP(1,Tablas!$A$73:$G$75,4,TRUE)),0)))),0))))))))))))))))))) -> 0 | I31: =IF($F$16=1, (IF($F$18=0, 0, (IF($F$20>$F$18, (VLOOKUP($F$18,Tablas!$A$73:$G$75,5,TRUE)), (IF($F$18>4,(IF($F$20=0, (VLOOKUP(3,Tablas!$A$73:$G$75,5,TRUE)), (IF($F$20=1, (VLOOKUP(3,Tablas!$A$73:$G$75,5,TRUE)), (IF($F$20=2, (VLOOKUP(3,Tablas!$A$73:$G$75,5,TRUE)), (VLOOKUP(3,Tablas!$A$73:$G$75,5,TRUE)))))))), (IF($F$18=4,(IF(4-$F$20=0,(VLOOKUP(2,Tablas!$A$73:$G$75,5,TRUE)), (IF(4-$F$20=1,(VLOOKUP(2,Tablas!$A$73:$G$75,5,TRUE)), (IF(4-$F$20=2, (VLOOKUP(2,Tablas!$A$73:$G$75,5,TRUE)), (VLOOKUP(3,Tablas!$A$73:$G$75,5,TRUE)))))))), (IF($F$18=3,(IF(3-$F$20=0,(VLOOKUP(1,Tablas!$A$73:$G$75,5,TRUE)), (IF(3-$F$20=1,(VLOOKUP(1,Tablas!$A$73:$G$75,5,TRUE)), (IF(3-$F$20=2, (VLOOKUP(2,Tablas!$A$73:$G$75,5,TRUE)), (VLOOKUP(3,Tablas!$A$73:$G$75,5,TRUE)))))))), (IF($F$18=2,(IF(2-$F$20=0, 0, (IF(2-$F$20=1,(VLOOKUP(1,Tablas!$A$73:$G$75,5,TRUE)), (IF(2-$F$20=2, (VLOOKUP(2,Tablas!$A$73:$G$75,5,TRUE)), 0)))))), (IF($F$18=1,(IF(1-$F$20=0, 0, (IF(1-$F$20=1,(VLOOKUP(1,Tablas!$A$73:$G$75,5,TRUE)),0)))),0)))))))))))))), (IF($F$18=0, 0, (IF($F$20>$F$18, (VLOOKUP($F$18,Tablas!$A$73:$G$75,5,TRUE)), (IF($F$18=4,(IF(4-$F$20=0, 0, (IF(4-$F$20=1, (VLOOKUP(1,Tablas!$A$73:$G$75,5,TRUE)), (IF(4-$F$20=2, (VLOOKUP(2,Tablas!$A$73:$G$75,5,TRUE)), (IF(4-$F$20=3, (VLOOKUP(3,Tablas!$A$73:$G$75,5,TRUE)), (IF(4-$F$20=4, (VLOOKUP(3,Tablas!$A$73:$G$75,5,TRUE)), 0)))))))))), (IF($F$18=5,(IF(5-$F$20=0, (VLOOKUP(1,Tablas!$A$73:$G$75,5,TRUE)), (IF(5-$F$20=1, (VLOOKUP(1,Tablas!$A$73:$G$75,5,TRUE)), (IF(5-$F$20=2, (VLOOKUP(2,Tablas!$A$73:$G$75,5,TRUE)), (IF(5-$F$20=3, (VLOOKUP(3,Tablas!$A$73:$G$75,5,TRUE)), (IF(5-$F$20=4, (VLOOKUP(3,Tablas!$A$73:$G$75,5,TRUE)), (VLOOKUP(3,Tablas!$A$73:$G$75,5,TRUE)))))))))))), (IF($F$18=6,(IF(6-$F$20=0, (VLOOKUP(2,Tablas!$A$73:$G$75,5,TRUE)), (IF(6-$F$20=1, (VLOOKUP(2,Tablas!$A$73:$G$75,5,TRUE)), (IF(6-$F$20=2, (VLOOKUP(2,Tablas!$A$73:$G$75,5,TRUE)), (IF(6-$F$20=3, (VLOOKUP(3,Tablas!$A$73:$G$75,5,TRUE)), (IF(6-$F$20=4, (VLOOKUP(3,Tablas!$A$73:$G$75,5,TRUE)), (VLOOKUP(3,Tablas!$A$73:$G$75,5,TRUE)))))))))))), (IF($F$18>6,(IF(7-$F$20=0, (VLOOKUP(3,Tablas!$A$73:$G$75,5,TRUE)), (IF(7-$F$20=1, (VLOOKUP(3,Tablas!$A$73:$G$75,5,TRUE)), (IF(7-$F$20=2, (VLOOKUP(3,Tablas!$A$73:$G$75,5,TRUE)), (IF(7-$F$20=3, (VLOOKUP(3,Tablas!$A$73:$G$75,5,TRUE)), (IF(7-$F$20=4, (VLOOKUP(3,Tablas!$A$73:$G$75,5,TRUE)), (VLOOKUP(3,Tablas!$A$73:$G$75,5,TRUE)))))))))))), (IF($F$18=3,(IF(3-$F$20=0,0, (IF(3-$F$20=1,(VLOOKUP(1,Tablas!$A$73:$G$75,5,TRUE)), (IF(3-$F$20=2, (VLOOKUP(2,Tablas!$A$73:$G$75,5,TRUE)), (VLOOKUP(3,Tablas!$A$73:$G$75,5,TRUE)))))))), (IF($F$18=2,(IF(2-$F$20=0, 0, (IF(2-$F$20=1,(VLOOKUP(1,Tablas!$A$73:$G$75,5,TRUE)), (IF(2-$F$20=2, (VLOOKUP(2,Tablas!$A$73:$G$75,5,TRUE)), 0)))))), (IF($F$18=1,(IF(1-$F$20=0, 0, (IF(1-$F$20=1,(VLOOKUP(1,Tablas!$A$73:$G$75,5,TRUE)),0)))),0))))))))))))))))))) -> 0 | J31: =IF($F$16=1, (IF($F$18=0, 0, (IF($F$20>$F$18, (VLOOKUP($F$18,Tablas!$A$73:$G$75,6,TRUE)), (IF($F$18>4,(IF($F$20=0, (VLOOKUP(3,Tablas!$A$73:$G$75,6,TRUE)), (IF($F$20=1, (VLOOKUP(3,Tablas!$A$73:$G$75,6,TRUE)), (IF($F$20=2, (VLOOKUP(3,Tablas!$A$73:$G$75,6,TRUE)), (VLOOKUP(3,Tablas!$A$73:$G$75,6,TRUE)))))))), (IF($F$18=4,(IF(4-$F$20=0,(VLOOKUP(2,Tablas!$A$73:$G$75,6,TRUE)), (IF(4-$F$20=1,(VLOOKUP(2,Tablas!$A$73:$G$75,6,TRUE)), (IF(4-$F$20=2, (VLOOKUP(2,Tablas!$A$73:$G$75,6,TRUE)), (VLOOKUP(3,Tablas!$A$73:$G$75,6,TRUE)))))))), (IF($F$18=3,(IF(3-$F$20=0,(VLOOKUP(1,Tablas!$A$73:$G$75,6,TRUE)), (IF(3-$F$20=1,(VLOOKUP(1,Tablas!$A$73:$G$75,6,TRUE)), (IF(3-$F$20=2, (VLOOKUP(2,Tablas!$A$73:$G$75,6,TRUE)), (VLOOKUP(3,Tablas!$A$73:$G$75,6,TRUE)))))))), (IF($F$18=2,(IF(2-$F$20=0, 0, (IF(2-$F$20=1,(VLOOKUP(1,Tablas!$A$73:$G$75,6,TRUE)), (IF(2-$F$20=2, (VLOOKUP(2,Tablas!$A$73:$G$75,6,TRUE)), 0)))))), (IF($F$18=1,(IF(1-$F$20=0, 0, (IF(1-$F$20=1,(VLOOKUP(1,Tablas!$A$73:$G$75,6,TRUE)),0)))),0)))))))))))))), (IF($F$18=0, 0, (IF($F$20>$F$18, (VLOOKUP($F$18,Tablas!$A$73:$G$75,6,TRUE)), (IF($F$18=4,(IF(4-$F$20=0, 0, (IF(4-$F$20=1, (VLOOKUP(1,Tablas!$A$73:$G$75,6,TRUE)), (IF(4-$F$20=2, (VLOOKUP(2,Tablas!$A$73:$G$75,6,TRUE)), (IF(4-$F$20=3, (VLOOKUP(3,Tablas!$A$73:$G$75,6,TRUE)), (IF(4-$F$20=4, (VLOOKUP(3,Tablas!$A$73:$G$75,6,TRUE)), 0)))))))))), (IF($F$18=5,(IF(5-$F$20=0, (VLOOKUP(1,Tablas!$A$73:$G$75,6,TRUE)), (IF(5-$F$20=1, (VLOOKUP(1,Tablas!$A$73:$G$75,6,TRUE)), (IF(5-$F$20=2, (VLOOKUP(2,Tablas!$A$73:$G$75,6,TRUE)), (IF(5-$F$20=3, (VLOOKUP(3,Tablas!$A$73:$G$75,6,TRUE)), (IF(5-$F$20=4, (VLOOKUP(3,Tablas!$A$73:$G$75,6,TRUE)), (VLOOKUP(3,Tablas!$A$73:$G$75,6,TRUE)))))))))))), (IF($F$18=6,(IF(6-$F$20=0, (VLOOKUP(2,Tablas!$A$73:$G$75,6,TRUE)), (IF(6-$F$20=1, (VLOOKUP(2,Tablas!$A$73:$G$75,6,TRUE)), (IF(6-$F$20=2, (VLOOKUP(2,Tablas!$A$73:$G$75,6,TRUE)), (IF(6-$F$20=3, (VLOOKUP(3,Tablas!$A$73:$G$75,6,TRUE)), (IF(6-$F$20=4, (VLOOKUP(3,Tablas!$A$73:$G$75,6,TRUE)), (VLOOKUP(3,Tablas!$A$73:$G$75,6,TRUE)))))))))))), (IF($F$18>6,(IF(7-$F$20=0, (VLOOKUP(3,Tablas!$A$73:$G$75,6,TRUE)), (IF(7-$F$20=1, (VLOOKUP(3,Tablas!$A$73:$G$75,6,TRUE)), (IF(7-$F$20=2, (VLOOKUP(3,Tablas!$A$73:$G$75,6,TRUE)), (IF(7-$F$20=3, (VLOOKUP(3,Tablas!$A$73:$G$75,6,TRUE)), (IF(7-$F$20=4, (VLOOKUP(3,Tablas!$A$73:$G$75,6,TRUE)), (VLOOKUP(3,Tablas!$A$73:$G$75,6,TRUE)))))))))))), (IF($F$18=3,(IF(3-$F$20=0,0, (IF(3-$F$20=1,(VLOOKUP(1,Tablas!$A$73:$G$75,6,TRUE)), (IF(3-$F$20=2, (VLOOKUP(2,Tablas!$A$73:$G$75,6,TRUE)), (VLOOKUP(3,Tablas!$A$73:$G$75,6,TRUE)))))))), (IF($F$18=2,(IF(2-$F$20=0, 0, (IF(2-$F$20=1,(VLOOKUP(1,Tablas!$A$73:$G$75,6,TRUE)), (IF(2-$F$20=2, (VLOOKUP(2,Tablas!$A$73:$G$75,6,TRUE)), 0)))))), (IF($F$18=1,(IF(1-$F$20=0, 0, (IF(1-$F$20=1,(VLOOKUP(1,Tablas!$A$73:$G$75,6,TRUE)),0)))),0))))))))))))))))))) -> 0 | K31: =IF($F$16=1, (IF($F$18=0, 0, (IF($F$20>$F$18, (VLOOKUP($F$18,Tablas!$A$73:$G$75,7,TRUE)), (IF($F$18>4,(IF($F$20=0, (VLOOKUP(3,Tablas!$A$73:$G$75,7,TRUE)), (IF($F$20=1, (VLOOKUP(3,Tablas!$A$73:$G$75,7,TRUE)), (IF($F$20=2, (VLOOKUP(3,Tablas!$A$73:$G$75,7,TRUE)), (VLOOKUP(3,Tablas!$A$73:$G$75,7,TRUE)))))))), (IF($F$18=4,(IF(4-$F$20=0,(VLOOKUP(2,Tablas!$A$73:$G$75,7,TRUE)), (IF(4-$F$20=1,(VLOOKUP(2,Tablas!$A$73:$G$75,7,TRUE)), (IF(4-$F$20=2, (VLOOKUP(2,Tablas!$A$73:$G$75,7,TRUE)), (VLOOKUP(3,Tablas!$A$73:$G$75,7,TRUE)))))))), (IF($F$18=3,(IF(3-$F$20=0,(VLOOKUP(1,Tablas!$A$73:$G$75,7,TRUE)), (IF(3-$F$20=1,(VLOOKUP(1,Tablas!$A$73:$G$75,7,TRUE)), (IF(3-$F$20=2, (VLOOKUP(2,Tablas!$A$73:$G$75,7,TRUE)), (VLOOKUP(3,Tablas!$A$73:$G$75,7,TRUE)))))))), (IF($F$18=2,(IF(2-$F$20=0, 0, (IF(2-$F$20=1,(VLOOKUP(1,Tablas!$A$73:$G$75,7,TRUE)), (IF(2-$F$20=2, (VLOOKUP(2,Tablas!$A$73:$G$75,7,TRUE)), 0)))))), (IF($F$18=1,(IF(1-$F$20=0, 0, (IF(1-$F$20=1,(VLOOKUP(1,Tablas!$A$73:$G$75,7,TRUE)),0)))),0)))))))))))))), (IF($F$18=0, 0, (IF($F$20>$F$18, (VLOOKUP($F$18,Tablas!$A$73:$G$75,7,TRUE)), (IF($F$18=4,(IF(4-$F$20=0, 0, (IF(4-$F$20=1, (VLOOKUP(1,Tablas!$A$73:$G$75,7,TRUE)), (IF(4-$F$20=2, (VLOOKUP(2,Tablas!$A$73:$G$75,7,TRUE)), (IF(4-$F$20=3, (VLOOKUP(3,Tablas!$A$73:$G$75,7,TRUE)), (IF(4-$F$20=4, (VLOOKUP(3,Tablas!$A$73:$G$75,7,TRUE)), 0)))))))))), (IF($F$18=5,(IF(5-$F$20=0, (VLOOKUP(1,Tablas!$A$73:$G$75,7,TRUE)), (IF(5-$F$20=1, (VLOOKUP(1,Tablas!$A$73:$G$75,7,TRUE)), (IF(5-$F$20=2, (VLOOKUP(2,Tablas!$A$73:$G$75,7,TRUE)), (IF(5-$F$20=3, (VLOOKUP(3,Tablas!$A$73:$G$75,7,TRUE)), (IF(5-$F$20=4, (VLOOKUP(3,Tablas!$A$73:$G$75,7,TRUE)), (VLOOKUP(3,Tablas!$A$73:$G$75,7,TRUE)))))))))))), (IF($F$18=6,(IF(6-$F$20=0, (VLOOKUP(2,Tablas!$A$73:$G$75,7,TRUE)), (IF(6-$F$20=1, (VLOOKUP(2,Tablas!$A$73:$G$75,7,TRUE)), (IF(6-$F$20=2, (VLOOKUP(2,Tablas!$A$73:$G$75,7,TRUE)), (IF(6-$F$20=3, (VLOOKUP(3,Tablas!$A$73:$G$75,7,TRUE)), (IF(6-$F$20=4, (VLOOKUP(3,Tablas!$A$73:$G$75,7,TRUE)), (VLOOKUP(3,Tablas!$A$73:$G$75,7,TRUE)))))))))))), (IF($F$18>6,(IF(7-$F$20=0, (VLOOKUP(3,Tablas!$A$73:$G$75,7,TRUE)), (IF(7-$F$20=1, (VLOOKUP(3,Tablas!$A$73:$G$75,7,TRUE)), (IF(7-$F$20=2, (VLOOKUP(3,Tablas!$A$73:$G$75,7,TRUE)), (IF(7-$F$20=3, (VLOOKUP(3,Tablas!$A$73:$G$75,7,TRUE)), (IF(7-$F$20=4, (VLOOKUP(3,Tablas!$A$73:$G$75,7,TRUE)), (VLOOKUP(3,Tablas!$A$73:$G$75,7,TRUE)))))))))))), (IF($F$18=3,(IF(3-$F$20=0,0, (IF(3-$F$20=1,(VLOOKUP(1,Tablas!$A$73:$G$75,7,TRUE)), (IF(3-$F$20=2, (VLOOKUP(2,Tablas!$A$73:$G$75,7,TRUE)), (VLOOKUP(3,Tablas!$A$73:$G$75,7,TRUE)))))))), (IF($F$18=2,(IF(2-$F$20=0, 0, (IF(2-$F$20=1,(VLOOKUP(1,Tablas!$A$73:$G$75,7,TRUE)), (IF(2-$F$20=2, (VLOOKUP(2,Tablas!$A$73:$G$75,7,TRUE)), 0)))))), (IF($F$18=1,(IF(1-$F$20=0, 0, (IF(1-$F$20=1,(VLOOKUP(1,Tablas!$A$73:$G$75,7,TRUE)),0)))),0))))))))))))))))))) -> 0
E32: Total de Prima neta | G32: =SUM(G29:G31) -> 20503 | H32: =SUM(H29:H31) -> 17983 | I32: 14571 | J32: =SUM(J29:J31) -> 12651 | K32: 9453
E33: Tarifa administrativa anual | G33: 0 | H33: 0 | I33: 0 | J33: 0 | K33: 0
E34: Contribución 3.5% Superintendencia de Bancos Contribución 0.5% Seguro Social Campesino | G34: =(G32)*4% -> 820.12 | H34: =(H32)*4% -> 719.32 | I34: =(I32)*4% -> 582.84 | J34: =(J32)*4% -> 506.04 | K34: =(K32)*4% -> 378.12
E35: TOTAL ANUAL | G35: =SUM(G32:G34) -> 21323.12 | H35: =SUM(H32:H34) -> 18702.32 | I35: =SUM(I32:I34) -> 15153.84 | J35: =SUM(J32:J34) -> 13157.04 | K35: =SUM(K32:K34) -> 9831.12
E36: Ahorros en tarifas de prima para niños | G36: =IF($F$16=1,IF($F$18=0,0,IF($F$20=0,0,IF($F$20=1,(VLOOKUP(1,Tablas!$A$73:$G$75,3,TRUE)),(VLOOKUP(2,Tablas!$A$73:$G$75,3,TRUE))))), IF($F$18=0,0,IF($F$20=0,0,IF($F$20=1,(VLOOKUP(1,Tablas!$A$73:$G$75,3,TRUE)),IF($F$20=2,(VLOOKUP(2,Tablas!$A$73:$G$75,3,TRUE)), (VLOOKUP(3,Tablas!$A$73:$G$75,3,TRUE))))))) -> 0 | H36: =IF($F$16=1,IF($F$18=0,0,IF($F$20=0,0,IF($F$20=1,(VLOOKUP(1,Tablas!$A$73:$G$75,4,TRUE)),(VLOOKUP(2,Tablas!$A$73:$G$75,4,TRUE))))), IF($F$18=0,0,IF($F$20=0,0,IF($F$20=1,(VLOOKUP(1,Tablas!$A$73:$G$75,4,TRUE)),IF($F$20=2,(VLOOKUP(2,Tablas!$A$73:$G$75,4,TRUE)), (VLOOKUP(3,Tablas!$A$73:$G$75,4,TRUE))))))) -> 0 | I36: =IF($F$16=1,IF($F$18=0,0,IF($F$20=0,0,IF($F$20=1,(VLOOKUP(1,Tablas!$A$73:$G$75,5,TRUE)),(VLOOKUP(2,Tablas!$A$73:$G$75,5,TRUE))))), IF($F$18=0,0,IF($F$20=0,0,IF($F$20=1,(VLOOKUP(1,Tablas!$A$73:$G$75,5,TRUE)),IF($F$20=2,(VLOOKUP(2,Tablas!$A$73:$G$75,5,TRUE)), (VLOOKUP(3,Tablas!$A$73:$G$75,5,TRUE))))))) -> 0 | J36: =IF($F$16=1,IF($F$18=0,0,IF($F$20=0,0,IF($F$20=1,(VLOOKUP(1,Tablas!$A$73:$G$75,6,TRUE)),(VLOOKUP(2,Tablas!$A$73:$G$75,6,TRUE))))), IF($F$18=0,0,IF($F$20=0,0,IF($F$20=1,(VLOOKUP(1,Tablas!$A$73:$G$75,6,TRUE)),IF($F$20=2,(VLOOKUP(2,Tablas!$A$73:$G$75,6,TRUE)), (VLOOKUP(3,Tablas!$A$73:$G$75,6,TRUE))))))) -> 0 | K36: =IF($F$16=1,IF($F$18=0,0,IF($F$20=0,0,IF($F$20=1,(VLOOKUP(1,Tablas!$A$73:$G$75,5,TRUE)),(VLOOKUP(2,Tablas!$A$73:$G$75,5,TRUE))))), IF($F$18=0,0,IF($F$20=0,0,IF($F$20=1,(VLOOKUP(1,Tablas!$A$73:$G$75,5,TRUE)),IF($F$20=2,(VLOOKUP(2,Tablas!$A$73:$G$75,5,TRUE)), (VLOOKUP(3,Tablas!$A$73:$G$75,5,TRUE))))))) -> 0
E38: Tarifas Semianuales
E39: Prima para Asegurado Titular | G39: =VLOOKUP($I$16,Tablas!$A$455:$G$521,3,TRUE)+75 -> 5488.42 | H39: =VLOOKUP($I$16,Tablas!$A$455:$G$521,4,TRUE)+75 -> 4820.62 | I39: =VLOOKUP($I$16,Tablas!$A$455:$G$521,5,TRUE)+75 -> 3916.44 | J39: =VLOOKUP($I$16,Tablas!$A$455:$G$521,6,TRUE)+75 -> 3407.64 | K39: =VLOOKUP($I$16,Tablas!$A$455:$G$521,7,TRUE)+75 -> 2560.17
E40: Prima para conyuge | G40: =IF($F$16=1,0,(VLOOKUP($I$18,Tablas!$A$455:$G$521,3,TRUE))) -> 5413.42 | H40: =IF($F$16=1,0,(VLOOKUP($I$18,Tablas!$A$455:$G$521,4,TRUE))) -> 4745.62 | I40: =IF($F$16=1,0,(VLOOKUP($I$18,Tablas!$A$455:$G$521,5,TRUE))) -> 3841.44 | J40: =IF($F$16=1,0,(VLOOKUP($I$18,Tablas!$A$455:$G$521,6,TRUE))) -> 3332.64 | K40: =IF($F$16=1,0,(VLOOKUP($I$18,Tablas!$A$455:$G$521,7,TRUE))) -> 2485.17
E41: Prima para hijo (s) | G41: =IF($F$16=1, (IF($F$18=0, 0, (IF($F$20>$F$18, (VLOOKUP($F$18,Tablas!$A$522:$G$524,3,TRUE)), (IF($F$18>4,(IF($F$20=0, (VLOOKUP(3,Tablas!$A$522:$G$524,3,TRUE)), (IF($F$20=1, (VLOOKUP(3,Tablas!$A$522:$G$524,3,TRUE)), (IF($F$20=2, (VLOOKUP(3,Tablas!$A$522:$G$524,3,TRUE)), (VLOOKUP(3,Tablas!$A$522:$G$524,3,TRUE)))))))), (IF($F$18=4,(IF(4-$F$20=0,(VLOOKUP(2,Tablas!$A$522:$G$524,3,TRUE)), (IF(4-$F$20=1,(VLOOKUP(2,Tablas!$A$522:$G$524,3,TRUE)), (IF(4-$F$20=2, (VLOOKUP(2,Tablas!$A$522:$G$524,3,TRUE)), (VLOOKUP(3,Tablas!$A$522:$G$524,3,TRUE)))))))), (IF($F$18=3,(IF(3-$F$20=0,(VLOOKUP(1,Tablas!$A$522:$G$524,3,TRUE)), (IF(3-$F$20=1,(VLOOKUP(1,Tablas!$A$522:$G$524,3,TRUE)), (IF(3-$F$20=2, (VLOOKUP(2,Tablas!$A$522:$G$524,3,TRUE)), (VLOOKUP(3,Tablas!$A$522:$G$524,3,TRUE)))))))), (IF($F$18=2,(IF(2-$F$20=0, 0, (IF(2-$F$20=1,(VLOOKUP(1,Tablas!$A$522:$G$524,3,TRUE)), (IF(2-$F$20=2, (VLOOKUP(2,Tablas!$A$522:$G$524,3,TRUE)), 0)))))), (IF($F$18=1,(IF(1-$F$20=0, 0, (IF(1-$F$20=1,(VLOOKUP(1,Tablas!$A$522:$G$524,3,TRUE)),0)))),0)))))))))))))), (IF($F$18=0, 0, (IF($F$20>$F$18, (VLOOKUP($F$18,Tablas!$A$522:$G$524,3,TRUE)), (IF($F$18=4,(IF(4-$F$20=0, 0, (IF(4-$F$20=1, (VLOOKUP(1,Tablas!$A$522:$G$524,3,TRUE)), (IF(4-$F$20=2, (VLOOKUP(2,Tablas!$A$522:$G$524,3,TRUE)), (IF(4-$F$20=3, (VLOOKUP(3,Tablas!$A$522:$G$524,3,TRUE)), (IF(4-$F$20=4, (VLOOKUP(3,Tablas!$A$522:$G$524,3,TRUE)), 0)))))))))), (IF($F$18=5,(IF(5-$F$20=0, (VLOOKUP(1,Tablas!$A$522:$G$524,3,TRUE)), (IF(5-$F$20=1, (VLOOKUP(1,Tablas!$A$522:$G$524,3,TRUE)), (IF(5-$F$20=2, (VLOOKUP(2,Tablas!$A$522:$G$524,3,TRUE)), (IF(5-$F$20=3, (VLOOKUP(3,Tablas!$A$522:$G$524,3,TRUE)), (IF(5-$F$20=4, (VLOOKUP(3,Tablas!$A$522:$G$524,3,TRUE)), (VLOOKUP(3,Tablas!$A$522:$G$524,3,TRUE)))))))))))), (IF($F$18=6,(IF(6-$F$20=0, (VLOOKUP(2,Tablas!$A$522:$G$524,3,TRUE)), (IF(6-$F$20=1, (VLOOKUP(2,Tablas!$A$522:$G$524,3,TRUE)), (IF(6-$F$20=2, (VLOOKUP(2,Tablas!$A$522:$G$524,3,TRUE)), (IF(6-$F$20=3, (VLOOKUP(3,Tablas!$A$522:$G$524,3,TRUE)), (IF(6-$F$20=4, (VLOOKUP(3,Tablas!$A$522:$G$524,3,TRUE)), (VLOOKUP(3,Tablas!$A$522:$G$524,3,TRUE)))))))))))), (IF($F$18>6,(IF(7-$F$20=0, (VLOOKUP(3,Tablas!$A$522:$G$524,3,TRUE)), (IF(7-$F$20=1, (VLOOKUP(3,Tablas!$A$522:$G$524,3,TRUE)), (IF(7-$F$20=2, (VLOOKUP(3,Tablas!$A$522:$G$524,3,TRUE)), (IF(7-$F$20=3, (VLOOKUP(3,Tablas!$A$522:$G$524,3,TRUE)), (IF(7-$F$20=4, (VLOOKUP(3,Tablas!$A$522:$G$524,3,TRUE)), (VLOOKUP(3,Tablas!$A$522:$G$524,3,TRUE)))))))))))), (IF($F$18=3,(IF(3-$F$20=0,0, (IF(3-$F$20=1,(VLOOKUP(1,Tablas!$A$522:$G$524,3,TRUE)), (IF(3-$F$20=2, (VLOOKUP(2,Tablas!$A$522:$G$524,3,TRUE)), (VLOOKUP(3,Tablas!$A$522:$G$524,3,TRUE)))))))), (IF($F$18=2,(IF(2-$F$20=0, 0, (IF(2-$F$20=1,(VLOOKUP(1,Tablas!$A$522:$G$524,3,TRUE)), (IF(2-$F$20=2, (VLOOKUP(2,Tablas!$A$522:$G$524,3,TRUE)), 0)))))), (IF($F$18=1,(IF(1-$F$20=0, 0, (IF(1-$F$20=1,(VLOOKUP(1,Tablas!$A$522:$G$524,3,TRUE)),0)))),0))))))))))))))))))) -> 0 | H41: =IF($F$16=1, (IF($F$18=0, 0, (IF($F$20>$F$18, (VLOOKUP($F$18,Tablas!$A$522:$G$524,4,TRUE)), (IF($F$18>4,(IF($F$20=0, (VLOOKUP(3,Tablas!$A$522:$G$524,4,TRUE)), (IF($F$20=1, (VLOOKUP(3,Tablas!$A$522:$G$524,4,TRUE)), (IF($F$20=2, (VLOOKUP(3,Tablas!$A$522:$G$524,4,TRUE)), (VLOOKUP(3,Tablas!$A$522:$G$524,4,TRUE)))))))), (IF($F$18=4,(IF(4-$F$20=0,(VLOOKUP(2,Tablas!$A$522:$G$524,4,TRUE)), (IF(4-$F$20=1,(VLOOKUP(2,Tablas!$A$522:$G$524,4,TRUE)), (IF(4-$F$20=2, (VLOOKUP(2,Tablas!$A$522:$G$524,4,TRUE)), (VLOOKUP(3,Tablas!$A$522:$G$524,4,TRUE)))))))), (IF($F$18=3,(IF(3-$F$20=0,(VLOOKUP(1,Tablas!$A$522:$G$524,4,TRUE)), (IF(3-$F$20=1,(VLOOKUP(1,Tablas!$A$522:$G$524,4,TRUE)), (IF(3-$F$20=2, (VLOOKUP(2,Tablas!$A$522:$G$524,4,TRUE)), (VLOOKUP(3,Tablas!$A$522:$G$524,4,TRUE)))))))), (IF($F$18=2,(IF(2-$F$20=0, 0, (IF(2-$F$20=1,(VLOOKUP(1,Tablas!$A$522:$G$524,4,TRUE)), (IF(2-$F$20=2, (VLOOKUP(2,Tablas!$A$522:$G$524,4,TRUE)), 0)))))), (IF($F$18=1,(IF(1-$F$20=0, 0, (IF(1-$F$20=1,(VLOOKUP(1,Tablas!$A$522:$G$524,4,TRUE)),0)))),0)))))))))))))), (IF($F$18=0, 0, (IF($F$20>$F$18, (VLOOKUP($F$18,Tablas!$A$522:$G$524,4,TRUE)), (IF($F$18=4,(IF(4-$F$20=0, 0, (IF(4-$F$20=1, (VLOOKUP(1,Tablas!$A$522:$G$524,4,TRUE)), (IF(4-$F$20=2, (VLOOKUP(2,Tablas!$A$522:$G$524,4,TRUE)), (IF(4-$F$20=3, (VLOOKUP(3,Tablas!$A$522:$G$524,4,TRUE)), (IF(4-$F$20=4, (VLOOKUP(3,Tablas!$A$522:$G$524,4,TRUE)), 0)))))))))), (IF($F$18=5,(IF(5-$F$20=0, (VLOOKUP(1,Tablas!$A$522:$G$524,4,TRUE)), (IF(5-$F$20=1, (VLOOKUP(1,Tablas!$A$522:$G$524,4,TRUE)), (IF(5-$F$20=2, (VLOOKUP(2,Tablas!$A$522:$G$524,4,TRUE)), (IF(5-$F$20=3, (VLOOKUP(3,Tablas!$A$522:$G$524,4,TRUE)), (IF(5-$F$20=4, (VLOOKUP(3,Tablas!$A$522:$G$524,4,TRUE)), (VLOOKUP(3,Tablas!$A$522:$G$524,4,TRUE)))))))))))), (IF($F$18=6,(IF(6-$F$20=0, (VLOOKUP(2,Tablas!$A$522:$G$524,4,TRUE)), (IF(6-$F$20=1, (VLOOKUP(2,Tablas!$A$522:$G$524,4,TRUE)), (IF(6-$F$20=2, (VLOOKUP(2,Tablas!$A$522:$G$524,4,TRUE)), (IF(6-$F$20=3, (VLOOKUP(3,Tablas!$A$522:$G$524,4,TRUE)), (IF(6-$F$20=4, (VLOOKUP(3,Tablas!$A$522:$G$524,4,TRUE)), (VLOOKUP(3,Tablas!$A$522:$G$524,4,TRUE)))))))))))), (IF($F$18>6,(IF(7-$F$20=0, (VLOOKUP(3,Tablas!$A$522:$G$524,4,TRUE)), (IF(7-$F$20=1, (VLOOKUP(3,Tablas!$A$522:$G$524,4,TRUE)), (IF(7-$F$20=2, (VLOOKUP(3,Tablas!$A$522:$G$524,4,TRUE)), (IF(7-$F$20=3, (VLOOKUP(3,Tablas!$A$522:$G$524,4,TRUE)), (IF(7-$F$20=4, (VLOOKUP(3,Tablas!$A$522:$G$524,4,TRUE)), (VLOOKUP(3,Tablas!$A$522:$G$524,4,TRUE)))))))))))), (IF($F$18=3,(IF(3-$F$20=0,0, (IF(3-$F$20=1,(VLOOKUP(1,Tablas!$A$522:$G$524,4,TRUE)), (IF(3-$F$20=2, (VLOOKUP(2,Tablas!$A$522:$G$524,4,TRUE)), (VLOOKUP(3,Tablas!$A$522:$G$524,4,TRUE)))))))), (IF($F$18=2,(IF(2-$F$20=0, 0, (IF(2-$F$20=1,(VLOOKUP(1,Tablas!$A$522:$G$524,4,TRUE)), (IF(2-$F$20=2, (VLOOKUP(2,Tablas!$A$522:$G$524,4,TRUE)), 0)))))), (IF($F$18=1,(IF(1-$F$20=0, 0, (IF(1-$F$20=1,(VLOOKUP(1,Tablas!$A$522:$G$524,4,TRUE)),0)))),0))))))))))))))))))) -> 0 | I41: =IF($F$16=1, (IF($F$18=0, 0, (IF($F$20>$F$18, (VLOOKUP($F$18,Tablas!$A$522:$G$524,5,TRUE)), (IF($F$18>4,(IF($F$20=0, (VLOOKUP(3,Tablas!$A$522:$G$524,5,TRUE)), (IF($F$20=1, (VLOOKUP(3,Tablas!$A$522:$G$524,5,TRUE)), (IF($F$20=2, (VLOOKUP(3,Tablas!$A$522:$G$524,5,TRUE)), (VLOOKUP(3,Tablas!$A$522:$G$524,5,TRUE)))))))), (IF($F$18=4,(IF(4-$F$20=0,(VLOOKUP(2,Tablas!$A$522:$G$524,5,TRUE)), (IF(4-$F$20=1,(VLOOKUP(2,Tablas!$A$522:$G$524,5,TRUE)), (IF(4-$F$20=2, (VLOOKUP(2,Tablas!$A$522:$G$524,5,TRUE)), (VLOOKUP(3,Tablas!$A$522:$G$524,5,TRUE)))))))), (IF($F$18=3,(IF(3-$F$20=0,(VLOOKUP(1,Tablas!$A$522:$G$524,5,TRUE)), (IF(3-$F$20=1,(VLOOKUP(1,Tablas!$A$522:$G$524,5,TRUE)), (IF(3-$F$20=2, (VLOOKUP(2,Tablas!$A$522:$G$524,5,TRUE)), (VLOOKUP(3,Tablas!$A$522:$G$524,5,TRUE)))))))), (IF($F$18=2,(IF(2-$F$20=0, 0, (IF(2-$F$20=1,(VLOOKUP(1,Tablas!$A$522:$G$524,5,TRUE)), (IF(2-$F$20=2, (VLOOKUP(2,Tablas!$A$522:$G$524,5,TRUE)), 0)))))), (IF($F$18=1,(IF(1-$F$20=0, 0, (IF(1-$F$20=1,(VLOOKUP(1,Tablas!$A$522:$G$524,5,TRUE)),0)))),0)))))))))))))), (IF($F$18=0, 0, (IF($F$20>$F$18, (VLOOKUP($F$18,Tablas!$A$522:$G$524,5,TRUE)), (IF($F$18=4,(IF(4-$F$20=0, 0, (IF(4-$F$20=1, (VLOOKUP(1,Tablas!$A$522:$G$524,5,TRUE)), (IF(4-$F$20=2, (VLOOKUP(2,Tablas!$A$522:$G$524,5,TRUE)), (IF(4-$F$20=3, (VLOOKUP(3,Tablas!$A$522:$G$524,5,TRUE)), (IF(4-$F$20=4, (VLOOKUP(3,Tablas!$A$522:$G$524,5,TRUE)), 0)))))))))), (IF($F$18=5,(IF(5-$F$20=0, (VLOOKUP(1,Tablas!$A$522:$G$524,5,TRUE)), (IF(5-$F$20=1, (VLOOKUP(1,Tablas!$A$522:$G$524,5,TRUE)), (IF(5-$F$20=2, (VLOOKUP(2,Tablas!$A$522:$G$524,5,TRUE)), (IF(5-$F$20=3, (VLOOKUP(3,Tablas!$A$522:$G$524,5,TRUE)), (IF(5-$F$20=4, (VLOOKUP(3,Tablas!$A$522:$G$524,5,TRUE)), (VLOOKUP(3,Tablas!$A$522:$G$524,5,TRUE)))))))))))), (IF($F$18=6,(IF(6-$F$20=0, (VLOOKUP(2,Tablas!$A$522:$G$524,5,TRUE)), (IF(6-$F$20=1, (VLOOKUP(2,Tablas!$A$522:$G$524,5,TRUE)), (IF(6-$F$20=2, (VLOOKUP(2,Tablas!$A$522:$G$524,5,TRUE)), (IF(6-$F$20=3, (VLOOKUP(3,Tablas!$A$522:$G$524,5,TRUE)), (IF(6-$F$20=4, (VLOOKUP(3,Tablas!$A$522:$G$524,5,TRUE)), (VLOOKUP(3,Tablas!$A$522:$G$524,5,TRUE)))))))))))), (IF($F$18>6,(IF(7-$F$20=0, (VLOOKUP(3,Tablas!$A$522:$G$524,5,TRUE)), (IF(7-$F$20=1, (VLOOKUP(3,Tablas!$A$522:$G$524,5,TRUE)), (IF(7-$F$20=2, (VLOOKUP(3,Tablas!$A$522:$G$524,5,TRUE)), (IF(7-$F$20=3, (VLOOKUP(3,Tablas!$A$522:$G$524,5,TRUE)), (IF(7-$F$20=4, (VLOOKUP(3,Tablas!$A$522:$G$524,5,TRUE)), (VLOOKUP(3,Tablas!$A$522:$G$524,5,TRUE)))))))))))), (IF($F$18=3,(IF(3-$F$20=0,0, (IF(3-$F$20=1,(VLOOKUP(1,Tablas!$A$522:$G$524,5,TRUE)), (IF(3-$F$20=2, (VLOOKUP(2,Tablas!$A$522:$G$524,5,TRUE)), (VLOOKUP(3,Tablas!$A$522:$G$524,5,TRUE)))))))), (IF($F$18=2,(IF(2-$F$20=0, 0, (IF(2-$F$20=1,(VLOOKUP(1,Tablas!$A$522:$G$524,5,TRUE)), (IF(2-$F$20=2, (VLOOKUP(2,Tablas!$A$522:$G$524,5,TRUE)), 0)))))), (IF($F$18=1,(IF(1-$F$20=0, 0, (IF(1-$F$20=1,(VLOOKUP(1,Tablas!$A$522:$G$524,5,TRUE)),0)))),0))))))))))))))))))) -> 0 | J41: =IF($F$16=1, (IF($F$18=0, 0, (IF($F$20>$F$18, (VLOOKUP($F$18,Tablas!$A$522:$G$524,6,TRUE)), (IF($F$18>4,(IF($F$20=0, (VLOOKUP(3,Tablas!$A$522:$G$524,6,TRUE)), (IF($F$20=1, (VLOOKUP(3,Tablas!$A$522:$G$524,6,TRUE)), (IF($F$20=2, (VLOOKUP(3,Tablas!$A$522:$G$524,6,TRUE)), (VLOOKUP(3,Tablas!$A$522:$G$524,6,TRUE)))))))), (IF($F$18=4,(IF(4-$F$20=0,(VLOOKUP(2,Tablas!$A$522:$G$524,6,TRUE)), (IF(4-$F$20=1,(VLOOKUP(2,Tablas!$A$522:$G$524,6,TRUE)), (IF(4-$F$20=2, (VLOOKUP(2,Tablas!$A$522:$G$524,6,TRUE)), (VLOOKUP(3,Tablas!$A$522:$G$524,6,TRUE)))))))), (IF($F$18=3,(IF(3-$F$20=0,(VLOOKUP(1,Tablas!$A$522:$G$524,6,TRUE)), (IF(3-$F$20=1,(VLOOKUP(1,Tablas!$A$522:$G$524,6,TRUE)), (IF(3-$F$20=2, (VLOOKUP(2,Tablas!$A$522:$G$524,6,TRUE)), (VLOOKUP(3,Tablas!$A$522:$G$524,6,TRUE)))))))), (IF($F$18=2,(IF(2-$F$20=0, 0, (IF(2-$F$20=1,(VLOOKUP(1,Tablas!$A$522:$G$524,6,TRUE)), (IF(2-$F$20=2, (VLOOKUP(2,Tablas!$A$522:$G$524,6,TRUE)), 0)))))), (IF($F$18=1,(IF(1-$F$20=0, 0, (IF(1-$F$20=1,(VLOOKUP(1,Tablas!$A$522:$G$524,6,TRUE)),0)))),0)))))))))))))), (IF($F$18=0, 0, (IF($F$20>$F$18, (VLOOKUP($F$18,Tablas!$A$522:$G$524,6,TRUE)), (IF($F$18=4,(IF(4-$F$20=0, 0, (IF(4-$F$20=1, (VLOOKUP(1,Tablas!$A$522:$G$524,6,TRUE)), (IF(4-$F$20=2, (VLOOKUP(2,Tablas!$A$522:$G$524,6,TRUE)), (IF(4-$F$20=3, (VLOOKUP(3,Tablas!$A$522:$G$524,6,TRUE)), (IF(4-$F$20=4, (VLOOKUP(3,Tablas!$A$522:$G$524,6,TRUE)), 0)))))))))), (IF($F$18=5,(IF(5-$F$20=0, (VLOOKUP(1,Tablas!$A$522:$G$524,6,TRUE)), (IF(5-$F$20=1, (VLOOKUP(1,Tablas!$A$522:$G$524,6,TRUE)), (IF(5-$F$20=2, (VLOOKUP(2,Tablas!$A$522:$G$524,6,TRUE)), (IF(5-$F$20=3, (VLOOKUP(3,Tablas!$A$522:$G$524,6,TRUE)), (IF(5-$F$20=4, (VLOOKUP(3,Tablas!$A$522:$G$524,6,TRUE)), (VLOOKUP(3,Tablas!$A$522:$G$524,6,TRUE)))))))))))), (IF($F$18=6,(IF(6-$F$20=0, (VLOOKUP(2,Tablas!$A$522:$G$524,6,TRUE)), (IF(6-$F$20=1, (VLOOKUP(2,Tablas!$A$522:$G$524,6,TRUE)), (IF(6-$F$20=2, (VLOOKUP(2,Tablas!$A$522:$G$524,6,TRUE)), (IF(6-$F$20=3, (VLOOKUP(3,Tablas!$A$522:$G$524,6,TRUE)), (IF(6-$F$20=4, (VLOOKUP(3,Tablas!$A$522:$G$524,6,TRUE)), (VLOOKUP(3,Tablas!$A$522:$G$524,6,TRUE)))))))))))), (IF($F$18>6,(IF(7-$F$20=0, (VLOOKUP(3,Tablas!$A$522:$G$524,6,TRUE)), (IF(7-$F$20=1, (VLOOKUP(3,Tablas!$A$522:$G$524,6,TRUE)), (IF(7-$F$20=2, (VLOOKUP(3,Tablas!$A$522:$G$524,6,TRUE)), (IF(7-$F$20=3, (VLOOKUP(3,Tablas!$A$522:$G$524,6,TRUE)), (IF(7-$F$20=4, (VLOOKUP(3,Tablas!$A$522:$G$524,6,TRUE)), (VLOOKUP(3,Tablas!$A$522:$G$524,6,TRUE)))))))))))), (IF($F$18=3,(IF(3-$F$20=0,0, (IF(3-$F$20=1,(VLOOKUP(1,Tablas!$A$522:$G$524,6,TRUE)), (IF(3-$F$20=2, (VLOOKUP(2,Tablas!$A$522:$G$524,6,TRUE)), (VLOOKUP(3,Tablas!$A$522:$G$524,6,TRUE)))))))), (IF($F$18=2,(IF(2-$F$20=0, 0, (IF(2-$F$20=1,(VLOOKUP(1,Tablas!$A$522:$G$524,6,TRUE)), (IF(2-$F$20=2, (VLOOKUP(2,Tablas!$A$522:$G$524,6,TRUE)), 0)))))), (IF($F$18=1,(IF(1-$F$20=0, 0, (IF(1-$F$20=1,(VLOOKUP(1,Tablas!$A$522:$G$524,6,TRUE)),0)))),0))))))))))))))))))) -> 0 | K41: =IF($F$16=1, (IF($F$18=0, 0, (IF($F$20>$F$18, (VLOOKUP($F$18,Tablas!$A$522:$G$524,7,TRUE)), (IF($F$18>4,(IF($F$20=0, (VLOOKUP(3,Tablas!$A$522:$G$524,7,TRUE)), (IF($F$20=1, (VLOOKUP(3,Tablas!$A$522:$G$524,7,TRUE)), (IF($F$20=2, (VLOOKUP(3,Tablas!$A$522:$G$524,7,TRUE)), (VLOOKUP(3,Tablas!$A$522:$G$524,7,TRUE)))))))), (IF($F$18=4,(IF(4-$F$20=0,(VLOOKUP(2,Tablas!$A$522:$G$524,7,TRUE)), (IF(4-$F$20=1,(VLOOKUP(2,Tablas!$A$522:$G$524,7,TRUE)), (IF(4-$F$20=2, (VLOOKUP(2,Tablas!$A$522:$G$524,7,TRUE)), (VLOOKUP(3,Tablas!$A$522:$G$524,7,TRUE)))))))), (IF($F$18=3,(IF(3-$F$20=0,(VLOOKUP(1,Tablas!$A$522:$G$524,7,TRUE)), (IF(3-$F$20=1,(VLOOKUP(1,Tablas!$A$522:$G$524,7,TRUE)), (IF(3-$F$20=2, (VLOOKUP(2,Tablas!$A$522:$G$524,7,TRUE)), (VLOOKUP(3,Tablas!$A$522:$G$524,7,TRUE)))))))), (IF($F$18=2,(IF(2-$F$20=0, 0, (IF(2-$F$20=1,(VLOOKUP(1,Tablas!$A$522:$G$524,7,TRUE)), (IF(2-$F$20=2, (VLOOKUP(2,Tablas!$A$522:$G$524,7,TRUE)), 0)))))), (IF($F$18=1,(IF(1-$F$20=0, 0, (IF(1-$F$20=1,(VLOOKUP(1,Tablas!$A$522:$G$524,7,TRUE)),0)))),0)))))))))))))), (IF($F$18=0, 0, (IF($F$20>$F$18, (VLOOKUP($F$18,Tablas!$A$522:$G$524,7,TRUE)), (IF($F$18=4,(IF(4-$F$20=0, 0, (IF(4-$F$20=1, (VLOOKUP(1,Tablas!$A$522:$G$524,7,TRUE)), (IF(4-$F$20=2, (VLOOKUP(2,Tablas!$A$522:$G$524,7,TRUE)), (IF(4-$F$20=3, (VLOOKUP(3,Tablas!$A$522:$G$524,7,TRUE)), (IF(4-$F$20=4, (VLOOKUP(3,Tablas!$A$522:$G$524,7,TRUE)), 0)))))))))), (IF($F$18=5,(IF(5-$F$20=0, (VLOOKUP(1,Tablas!$A$522:$G$524,7,TRUE)), (IF(5-$F$20=1, (VLOOKUP(1,Tablas!$A$522:$G$524,7,TRUE)), (IF(5-$F$20=2, (VLOOKUP(2,Tablas!$A$522:$G$524,7,TRUE)), (IF(5-$F$20=3, (VLOOKUP(3,Tablas!$A$522:$G$524,7,TRUE)), (IF(5-$F$20=4, (VLOOKUP(3,Tablas!$A$522:$G$524,7,TRUE)), (VLOOKUP(3,Tablas!$A$522:$G$524,7,TRUE)))))))))))), (IF($F$18=6,(IF(6-$F$20=0, (VLOOKUP(2,Tablas!$A$522:$G$524,7,TRUE)), (IF(6-$F$20=1, (VLOOKUP(2,Tablas!$A$522:$G$524,7,TRUE)), (IF(6-$F$20=2, (VLOOKUP(2,Tablas!$A$522:$G$524,7,TRUE)), (IF(6-$F$20=3, (VLOOKUP(3,Tablas!$A$522:$G$524,7,TRUE)), (IF(6-$F$20=4, (VLOOKUP(3,Tablas!$A$522:$G$524,7,TRUE)), (VLOOKUP(3,Tablas!$A$522:$G$524,7,TRUE)))))))))))), (IF($F$18>6,(IF(7-$F$20=0, (VLOOKUP(3,Tablas!$A$522:$G$524,7,TRUE)), (IF(7-$F$20=1, (VLOOKUP(3,Tablas!$A$522:$G$524,7,TRUE)), (IF(7-$F$20=2, (VLOOKUP(3,Tablas!$A$522:$G$524,7,TRUE)), (IF(7-$F$20=3, (VLOOKUP(3,Tablas!$A$522:$G$524,7,TRUE)), (IF(7-$F$20=4, (VLOOKUP(3,Tablas!$A$522:$G$524,7,TRUE)), (VLOOKUP(3,Tablas!$A$522:$G$524,7,TRUE)))))))))))), (IF($F$18=3,(IF(3-$F$20=0,0, (IF(3-$F$20=1,(VLOOKUP(1,Tablas!$A$522:$G$524,7,TRUE)), (IF(3-$F$20=2, (VLOOKUP(2,Tablas!$A$522:$G$524,7,TRUE)), (VLOOKUP(3,Tablas!$A$522:$G$524,7,TRUE)))))))), (IF($F$18=2,(IF(2-$F$20=0, 0, (IF(2-$F$20=1,(VLOOKUP(1,Tablas!$A$522:$G$524,7,TRUE)), (IF(2-$F$20=2, (VLOOKUP(2,Tablas!$A$522:$G$524,7,TRUE)), 0)))))), (IF($F$18=1,(IF(1-$F$20=0, 0, (IF(1-$F$20=1,(VLOOKUP(1,Tablas!$A$522:$G$524,7,TRUE)),0)))),0))))))))))))))))))) -> 0
E42: Total de Prima neta | G42: =SUM(G39:G41) -> 10901.84 | H42: =SUM(H39:H41) -> 9566.24 | I42: =SUM(I39:I41) -> 7757.88 | J42: =SUM(J39:J41) -> 6740.28 | K42: =SUM(K39:K41) -> 5045.34
E43: Tarifa administrativa anual | G43: 0 | H43: 0 | I43: 0 | J43: 0 | K43: 0
E44: Contribución 3.5% Superintendencia de Bancos Contribución 0.5% Seguro Social Campesino | G44: =(G42)*4% -> 436.0736 | H44: =(H42)*4% -> 382.6496 | I44: =(I42)*4% -> 310.3152 | J44: =(J42)*4% -> 269.6112 | K44: =(K42)*4% -> 201.8136
E45: TOTAL de primera cuota | G45: =SUM(G42:G44) -> 11337.9136 | H45: =SUM(H42:H44) -> 9948.8896 | I45: =SUM(I42:I44) -> 8068.1952 | J45: =SUM(J42:J44) -> 7009.8912 | K45: =SUM(K42:K44) -> 5247.1536
E46: Costo de segunda cuota | G46: =G42+G44-78 -> 11259.9136 | H46: =H42+H44-78 -> 9870.8896 | I46: =I42+I44-78 -> 7990.1952 | J46: =J42+J44-78 -> 6931.8912 | K46: =K42+K44-78 -> 5169.1536
E47: TOTAL ANUAL | G47: =G45+G46 -> 22597.8272 | H47: =H45+H46 -> 19819.7792 | I47: 16058.3904 | J47: =J45+J46 -> 13941.7824 | K47: 10416.3072
E48: Ahorros en tarifas de prima para niños | G48: =IF($F$16=1,IF($F$18=0,0,IF($F$20=0,0,IF($F$20=1,(VLOOKUP(1,Tablas!$A$522:$G$524,3,TRUE)),(VLOOKUP(2,Tablas!$A$522:$G$524,3,TRUE))))), IF($F$18=0,0,IF($F$20=0,0,IF($F$20=1,(VLOOKUP(1,Tablas!$A$522:$G$524,3,TRUE)),IF($F$20=2,(VLOOKUP(2,Tablas!$A$522:$G$524,3,TRUE)), (VLOOKUP(3,Tablas!$A$522:$G$524,3,TRUE))))))) -> 0 | H48: =IF($F$16=1,IF($F$18=0,0,IF($F$20=0,0,IF($F$20=1,(VLOOKUP(1,Tablas!$A$522:$G$524,4,TRUE)),(VLOOKUP(2,Tablas!$A$522:$G$524,4,TRUE))))), IF($F$18=0,0,IF($F$20=0,0,IF($F$20=1,(VLOOKUP(1,Tablas!$A$522:$G$524,4,TRUE)),IF($F$20=2,(VLOOKUP(2,Tablas!$A$522:$G$524,4,TRUE)), (VLOOKUP(3,Tablas!$A$522:$G$524,4,TRUE))))))) -> 0 | I48: =IF($F$16=1,IF($F$18=0,0,IF($F$20=0,0,IF($F$20=1,(VLOOKUP(1,Tablas!$A$522:$G$524,5,TRUE)),(VLOOKUP(2,Tablas!$A$522:$G$524,5,TRUE))))), IF($F$18=0,0,IF($F$20=0,0,IF($F$20=1,(VLOOKUP(1,Tablas!$A$522:$G$524,5,TRUE)),IF($F$20=2,(VLOOKUP(2,Tablas!$A$522:$G$524,5,TRUE)), (VLOOKUP(3,Tablas!$A$522:$G$524,5,TRUE))))))) -> 0 | J48: =IF($F$16=1,IF($F$18=0,0,IF($F$20=0,0,IF($F$20=1,(VLOOKUP(1,Tablas!$A$522:$G$524,6,TRUE)),(VLOOKUP(2,Tablas!$A$522:$G$524,6,TRUE))))), IF($F$18=0,0,IF($F$20=0,0,IF($F$20=1,(VLOOKUP(1,Tablas!$A$522:$G$524,6,TRUE)),IF($F$20=2,(VLOOKUP(2,Tablas!$A$522:$G$524,6,TRUE)), (VLOOKUP(3,Tablas!$A$522:$G$524,6,TRUE))))))) -> 0 | K48: =IF($F$16=1,IF($F$18=0,0,IF($F$20=0,0,IF($F$20=1,(VLOOKUP(1,Tablas!$A$522:$G$524,7,TRUE)),(VLOOKUP(2,Tablas!$A$522:$G$524,7,TRUE))))), IF($F$18=0,0,IF($F$20=0,0,IF($F$20=1,(VLOOKUP(1,Tablas!$A$522:$G$524,7,TRUE)),IF($F$20=2,(VLOOKUP(2,Tablas!$A$522:$G$524,7,TRUE)), (VLOOKUP(3,Tablas!$A$522:$G$524,7,TRUE))))))) -> 0
E50: Tarifas Trimestrales
E51: Prima para Asegurado Titular | G51: =VLOOKUP($I$16,Tablas!$A$680:$G$746,3,TRUE)+75 -> 2883.85 | H51: =VLOOKUP($I$16,Tablas!$A$680:$G$746,4,TRUE)+75 -> 2537.35 | I51: =VLOOKUP($I$16,Tablas!$A$680:$G$746,5,TRUE)+75 -> 2068.2 | J51: =VLOOKUP($I$16,Tablas!$A$680:$G$746,6,TRUE)+75 -> 1804.2 | K51: =VLOOKUP($I$16,Tablas!$A$680:$G$746,7,TRUE)+75 -> 1364.475
E52: Prima para conyuge | G52: =IF($F$16=1,0,(VLOOKUP($I$18,Tablas!$A$680:$G$746,3,TRUE))) -> 2808.85 | H52: =IF($F$16=1,0,(VLOOKUP($I$18,Tablas!$A$680:$G$746,4,TRUE))) -> 2462.35 | I52: =IF($F$16=1,0,(VLOOKUP($I$18,Tablas!$A$680:$G$746,5,TRUE))) -> 1993.2 | J52: =IF($F$16=1,0,(VLOOKUP($I$18,Tablas!$A$680:$G$746,6,TRUE))) -> 1729.2 | K52: =IF($F$16=1,0,(VLOOKUP($I$18,Tablas!$A$680:$G$746,7,TRUE))) -> 1289.475
E53: Prima para hijo (s) | G53: =IF($F$16=1, (IF($F$18=0, 0, (IF($F$20>$F$18, (VLOOKUP($F$18,Tablas!$A$747:$G$749,3,TRUE)), (IF($F$18>4,(IF($F$20=0, (VLOOKUP(3,Tablas!$A$747:$G$749,3,TRUE)), (IF($F$20=1, (VLOOKUP(3,Tablas!$A$747:$G$749,3,TRUE)), (IF($F$20=2, (VLOOKUP(3,Tablas!$A$747:$G$749,3,TRUE)), (VLOOKUP(3,Tablas!$A$747:$G$749,3,TRUE)))))))), (IF($F$18=4,(IF(4-$F$20=0,(VLOOKUP(2,Tablas!$A$747:$G$749,3,TRUE)), (IF(4-$F$20=1,(VLOOKUP(2,Tablas!$A$747:$G$749,3,TRUE)), (IF(4-$F$20=2, (VLOOKUP(2,Tablas!$A$747:$G$749,3,TRUE)), (VLOOKUP(3,Tablas!$A$747:$G$749,3,TRUE)))))))), (IF($F$18=3,(IF(3-$F$20=0,(VLOOKUP(1,Tablas!$A$747:$G$749,3,TRUE)), (IF(3-$F$20=1,(VLOOKUP(1,Tablas!$A$747:$G$749,3,TRUE)), (IF(3-$F$20=2, (VLOOKUP(2,Tablas!$A$747:$G$749,3,TRUE)), (VLOOKUP(3,Tablas!$A$747:$G$749,3,TRUE)))))))), (IF($F$18=2,(IF(2-$F$20=0, 0, (IF(2-$F$20=1,(VLOOKUP(1,Tablas!$A$747:$G$749,3,TRUE)), (IF(2-$F$20=2, (VLOOKUP(2,Tablas!$A$747:$G$749,3,TRUE)), 0)))))), (IF($F$18=1,(IF(1-$F$20=0, 0, (IF(1-$F$20=1,(VLOOKUP(1,Tablas!$A$747:$G$749,3,TRUE)),0)))),0)))))))))))))), (IF($F$18=0, 0, (IF($F$20>$F$18, (VLOOKUP($F$18,Tablas!$A$747:$G$749,3,TRUE)), (IF($F$18=4,(IF(4-$F$20=0, 0, (IF(4-$F$20=1, (VLOOKUP(1,Tablas!$A$747:$G$749,3,TRUE)), (IF(4-$F$20=2, (VLOOKUP(2,Tablas!$A$747:$G$749,3,TRUE)), (IF(4-$F$20=3, (VLOOKUP(3,Tablas!$A$747:$G$749,3,TRUE)), (IF(4-$F$20=4, (VLOOKUP(3,Tablas!$A$747:$G$749,3,TRUE)), 0)))))))))), (IF($F$18=5,(IF(5-$F$20=0, (VLOOKUP(1,Tablas!$A$747:$G$749,3,TRUE)), (IF(5-$F$20=1, (VLOOKUP(1,Tablas!$A$747:$G$749,3,TRUE)), (IF(5-$F$20=2, (VLOOKUP(2,Tablas!$A$747:$G$749,3,TRUE)), (IF(5-$F$20=3, (VLOOKUP(3,Tablas!$A$747:$G$749,3,TRUE)), (IF(5-$F$20=4, (VLOOKUP(3,Tablas!$A$747:$G$749,3,TRUE)), (VLOOKUP(3,Tablas!$A$747:$G$749,3,TRUE)))))))))))), (IF($F$18=6,(IF(6-$F$20=0, (VLOOKUP(2,Tablas!$A$747:$G$749,3,TRUE)), (IF(6-$F$20=1, (VLOOKUP(2,Tablas!$A$747:$G$749,3,TRUE)), (IF(6-$F$20=2, (VLOOKUP(2,Tablas!$A$747:$G$749,3,TRUE)), (IF(6-$F$20=3, (VLOOKUP(3,Tablas!$A$747:$G$749,3,TRUE)), (IF(6-$F$20=4, (VLOOKUP(3,Tablas!$A$747:$G$749,3,TRUE)), (VLOOKUP(3,Tablas!$A$747:$G$749,3,TRUE)))))))))))), (IF($F$18>6,(IF(7-$F$20=0, (VLOOKUP(3,Tablas!$A$747:$G$749,3,TRUE)), (IF(7-$F$20=1, (VLOOKUP(3,Tablas!$A$747:$G$749,3,TRUE)), (IF(7-$F$20=2, (VLOOKUP(3,Tablas!$A$747:$G$749,3,TRUE)), (IF(7-$F$20=3, (VLOOKUP(3,Tablas!$A$747:$G$749,3,TRUE)), (IF(7-$F$20=4, (VLOOKUP(3,Tablas!$A$747:$G$749,3,TRUE)), (VLOOKUP(3,Tablas!$A$747:$G$749,3,TRUE)))))))))))), (IF($F$18=3,(IF(3-$F$20=0,0, (IF(3-$F$20=1,(VLOOKUP(1,Tablas!$A$747:$G$749,3,TRUE)), (IF(3-$F$20=2, (VLOOKUP(2,Tablas!$A$747:$G$749,3,TRUE)), (VLOOKUP(3,Tablas!$A$747:$G$749,3,TRUE)))))))), (IF($F$18=2,(IF(2-$F$20=0, 0, (IF(2-$F$20=1,(VLOOKUP(1,Tablas!$A$747:$G$749,3,TRUE)), (IF(2-$F$20=2, (VLOOKUP(2,Tablas!$A$747:$G$749,3,TRUE)), 0)))))), (IF($F$18=1,(IF(1-$F$20=0, 0, (IF(1-$F$20=1,(VLOOKUP(1,Tablas!$A$747:$G$749,3,TRUE)),0)))),0))))))))))))))))))) -> 0 | H53: =IF($F$16=1, (IF($F$18=0, 0, (IF($F$20>$F$18, (VLOOKUP($F$18,Tablas!$A$747:$G$749,4,TRUE)), (IF($F$18>4,(IF($F$20=0, (VLOOKUP(3,Tablas!$A$747:$G$749,4,TRUE)), (IF($F$20=1, (VLOOKUP(3,Tablas!$A$747:$G$749,4,TRUE)), (IF($F$20=2, (VLOOKUP(3,Tablas!$A$747:$G$749,4,TRUE)), (VLOOKUP(3,Tablas!$A$747:$G$749,4,TRUE)))))))), (IF($F$18=4,(IF(4-$F$20=0,(VLOOKUP(2,Tablas!$A$747:$G$749,4,TRUE)), (IF(4-$F$20=1,(VLOOKUP(2,Tablas!$A$747:$G$749,4,TRUE)), (IF(4-$F$20=2, (VLOOKUP(2,Tablas!$A$747:$G$749,4,TRUE)), (VLOOKUP(3,Tablas!$A$747:$G$749,4,TRUE)))))))), (IF($F$18=3,(IF(3-$F$20=0,(VLOOKUP(1,Tablas!$A$747:$G$749,4,TRUE)), (IF(3-$F$20=1,(VLOOKUP(1,Tablas!$A$747:$G$749,4,TRUE)), (IF(3-$F$20=2, (VLOOKUP(2,Tablas!$A$747:$G$749,4,TRUE)), (VLOOKUP(3,Tablas!$A$747:$G$749,4,TRUE)))))))), (IF($F$18=2,(IF(2-$F$20=0, 0, (IF(2-$F$20=1,(VLOOKUP(1,Tablas!$A$747:$G$749,4,TRUE)), (IF(2-$F$20=2, (VLOOKUP(2,Tablas!$A$747:$G$749,4,TRUE)), 0)))))), (IF($F$18=1,(IF(1-$F$20=0, 0, (IF(1-$F$20=1,(VLOOKUP(1,Tablas!$A$747:$G$749,4,TRUE)),0)))),0)))))))))))))), (IF($F$18=0, 0, (IF($F$20>$F$18, (VLOOKUP($F$18,Tablas!$A$747:$G$749,4,TRUE)), (IF($F$18=4,(IF(4-$F$20=0, 0, (IF(4-$F$20=1, (VLOOKUP(1,Tablas!$A$747:$G$749,4,TRUE)), (IF(4-$F$20=2, (VLOOKUP(2,Tablas!$A$747:$G$749,4,TRUE)), (IF(4-$F$20=3, (VLOOKUP(3,Tablas!$A$747:$G$749,4,TRUE)), (IF(4-$F$20=4, (VLOOKUP(3,Tablas!$A$747:$G$749,4,TRUE)), 0)))))))))), (IF($F$18=5,(IF(5-$F$20=0, (VLOOKUP(1,Tablas!$A$747:$G$749,4,TRUE)), (IF(5-$F$20=1, (VLOOKUP(1,Tablas!$A$747:$G$749,4,TRUE)), (IF(5-$F$20=2, (VLOOKUP(2,Tablas!$A$747:$G$749,4,TRUE)), (IF(5-$F$20=3, (VLOOKUP(3,Tablas!$A$747:$G$749,4,TRUE)), (IF(5-$F$20=4, (VLOOKUP(3,Tablas!$A$747:$G$749,4,TRUE)), (VLOOKUP(3,Tablas!$A$747:$G$749,4,TRUE)))))))))))), (IF($F$18=6,(IF(6-$F$20=0, (VLOOKUP(2,Tablas!$A$747:$G$749,4,TRUE)), (IF(6-$F$20=1, (VLOOKUP(2,Tablas!$A$747:$G$749,4,TRUE)), (IF(6-$F$20=2, (VLOOKUP(2,Tablas!$A$747:$G$749,4,TRUE)), (IF(6-$F$20=3, (VLOOKUP(3,Tablas!$A$747:$G$749,4,TRUE)), (IF(6-$F$20=4, (VLOOKUP(3,Tablas!$A$747:$G$749,4,TRUE)), (VLOOKUP(3,Tablas!$A$747:$G$749,4,TRUE)))))))))))), (IF($F$18>6,(IF(7-$F$20=0, (VLOOKUP(3,Tablas!$A$747:$G$749,4,TRUE)), (IF(7-$F$20=1, (VLOOKUP(3,Tablas!$A$747:$G$749,4,TRUE)), (IF(7-$F$20=2, (VLOOKUP(3,Tablas!$A$747:$G$749,4,TRUE)), (IF(7-$F$20=3, (VLOOKUP(3,Tablas!$A$747:$G$749,4,TRUE)), (IF(7-$F$20=4, (VLOOKUP(3,Tablas!$A$747:$G$749,4,TRUE)), (VLOOKUP(3,Tablas!$A$747:$G$749,4,TRUE)))))))))))), (IF($F$18=3,(IF(3-$F$20=0,0, (IF(3-$F$20=1,(VLOOKUP(1,Tablas!$A$747:$G$749,4,TRUE)), (IF(3-$F$20=2, (VLOOKUP(2,Tablas!$A$747:$G$749,4,TRUE)), (VLOOKUP(3,Tablas!$A$747:$G$749,4,TRUE)))))))), (IF($F$18=2,(IF(2-$F$20=0, 0, (IF(2-$F$20=1,(VLOOKUP(1,Tablas!$A$747:$G$749,4,TRUE)), (IF(2-$F$20=2, (VLOOKUP(2,Tablas!$A$747:$G$749,4,TRUE)), 0)))))), (IF($F$18=1,(IF(1-$F$20=0, 0, (IF(1-$F$20=1,(VLOOKUP(1,Tablas!$A$747:$G$749,4,TRUE)),0)))),0))))))))))))))))))) -> 0 | I53: =IF($F$16=1, (IF($F$18=0, 0, (IF($F$20>$F$18, (VLOOKUP($F$18,Tablas!$A$747:$G$749,5,TRUE)), (IF($F$18>4,(IF($F$20=0, (VLOOKUP(3,Tablas!$A$747:$G$749,5,TRUE)), (IF($F$20=1, (VLOOKUP(3,Tablas!$A$747:$G$749,5,TRUE)), (IF($F$20=2, (VLOOKUP(3,Tablas!$A$747:$G$749,5,TRUE)), (VLOOKUP(3,Tablas!$A$747:$G$749,5,TRUE)))))))), (IF($F$18=4,(IF(4-$F$20=0,(VLOOKUP(2,Tablas!$A$747:$G$749,5,TRUE)), (IF(4-$F$20=1,(VLOOKUP(2,Tablas!$A$747:$G$749,5,TRUE)), (IF(4-$F$20=2, (VLOOKUP(2,Tablas!$A$747:$G$749,5,TRUE)), (VLOOKUP(3,Tablas!$A$747:$G$749,5,TRUE)))))))), (IF($F$18=3,(IF(3-$F$20=0,(VLOOKUP(1,Tablas!$A$747:$G$749,5,TRUE)), (IF(3-$F$20=1,(VLOOKUP(1,Tablas!$A$747:$G$749,5,TRUE)), (IF(3-$F$20=2, (VLOOKUP(2,Tablas!$A$747:$G$749,5,TRUE)), (VLOOKUP(3,Tablas!$A$747:$G$749,5,TRUE)))))))), (IF($F$18=2,(IF(2-$F$20=0, 0, (IF(2-$F$20=1,(VLOOKUP(1,Tablas!$A$747:$G$749,5,TRUE)), (IF(2-$F$20=2, (VLOOKUP(2,Tablas!$A$747:$G$749,5,TRUE)), 0)))))), (IF($F$18=1,(IF(1-$F$20=0, 0, (IF(1-$F$20=1,(VLOOKUP(1,Tablas!$A$747:$G$749,5,TRUE)),0)))),0)))))))))))))), (IF($F$18=0, 0, (IF($F$20>$F$18, (VLOOKUP($F$18,Tablas!$A$747:$G$749,5,TRUE)), (IF($F$18=4,(IF(4-$F$20=0, 0, (IF(4-$F$20=1, (VLOOKUP(1,Tablas!$A$747:$G$749,5,TRUE)), (IF(4-$F$20=2, (VLOOKUP(2,Tablas!$A$747:$G$749,5,TRUE)), (IF(4-$F$20=3, (VLOOKUP(3,Tablas!$A$747:$G$749,5,TRUE)), (IF(4-$F$20=4, (VLOOKUP(3,Tablas!$A$747:$G$749,5,TRUE)), 0)))))))))), (IF($F$18=5,(IF(5-$F$20=0, (VLOOKUP(1,Tablas!$A$747:$G$749,5,TRUE)), (IF(5-$F$20=1, (VLOOKUP(1,Tablas!$A$747:$G$749,5,TRUE)), (IF(5-$F$20=2, (VLOOKUP(2,Tablas!$A$747:$G$749,5,TRUE)), (IF(5-$F$20=3, (VLOOKUP(3,Tablas!$A$747:$G$749,5,TRUE)), (IF(5-$F$20=4, (VLOOKUP(3,Tablas!$A$747:$G$749,5,TRUE)), (VLOOKUP(3,Tablas!$A$747:$G$749,5,TRUE)))))))))))), (IF($F$18=6,(IF(6-$F$20=0, (VLOOKUP(2,Tablas!$A$747:$G$749,5,TRUE)), (IF(6-$F$20=1, (VLOOKUP(2,Tablas!$A$747:$G$749,5,TRUE)), (IF(6-$F$20=2, (VLOOKUP(2,Tablas!$A$747:$G$749,5,TRUE)), (IF(6-$F$20=3, (VLOOKUP(3,Tablas!$A$747:$G$749,5,TRUE)), (IF(6-$F$20=4, (VLOOKUP(3,Tablas!$A$747:$G$749,5,TRUE)), (VLOOKUP(3,Tablas!$A$747:$G$749,5,TRUE)))))))))))), (IF($F$18>6,(IF(7-$F$20=0, (VLOOKUP(3,Tablas!$A$747:$G$749,5,TRUE)), (IF(7-$F$20=1, (VLOOKUP(3,Tablas!$A$747:$G$749,5,TRUE)), (IF(7-$F$20=2, (VLOOKUP(3,Tablas!$A$747:$G$749,5,TRUE)), (IF(7-$F$20=3, (VLOOKUP(3,Tablas!$A$747:$G$749,5,TRUE)), (IF(7-$F$20=4, (VLOOKUP(3,Tablas!$A$747:$G$749,5,TRUE)), (VLOOKUP(3,Tablas!$A$747:$G$749,5,TRUE)))))))))))), (IF($F$18=3,(IF(3-$F$20=0,0, (IF(3-$F$20=1,(VLOOKUP(1,Tablas!$A$747:$G$749,5,TRUE)), (IF(3-$F$20=2, (VLOOKUP(2,Tablas!$A$747:$G$749,5,TRUE)), (VLOOKUP(3,Tablas!$A$747:$G$749,5,TRUE)))))))), (IF($F$18=2,(IF(2-$F$20=0, 0, (IF(2-$F$20=1,(VLOOKUP(1,Tablas!$A$747:$G$749,5,TRUE)), (IF(2-$F$20=2, (VLOOKUP(2,Tablas!$A$747:$G$749,5,TRUE)), 0)))))), (IF($F$18=1,(IF(1-$F$20=0, 0, (IF(1-$F$20=1,(VLOOKUP(1,Tablas!$A$747:$G$749,5,TRUE)),0)))),0))))))))))))))))))) -> 0 | J53: =IF($F$16=1, (IF($F$18=0, 0, (IF($F$20>$F$18, (VLOOKUP($F$18,Tablas!$A$747:$G$749,6,TRUE)), (IF($F$18>4,(IF($F$20=0, (VLOOKUP(3,Tablas!$A$747:$G$749,6,TRUE)), (IF($F$20=1, (VLOOKUP(3,Tablas!$A$747:$G$749,6,TRUE)), (IF($F$20=2, (VLOOKUP(3,Tablas!$A$747:$G$749,6,TRUE)), (VLOOKUP(3,Tablas!$A$747:$G$749,6,TRUE)))))))), (IF($F$18=4,(IF(4-$F$20=0,(VLOOKUP(2,Tablas!$A$747:$G$749,6,TRUE)), (IF(4-$F$20=1,(VLOOKUP(2,Tablas!$A$747:$G$749,6,TRUE)), (IF(4-$F$20=2, (VLOOKUP(2,Tablas!$A$747:$G$749,6,TRUE)), (VLOOKUP(3,Tablas!$A$747:$G$749,6,TRUE)))))))), (IF($F$18=3,(IF(3-$F$20=0,(VLOOKUP(1,Tablas!$A$747:$G$749,6,TRUE)), (IF(3-$F$20=1,(VLOOKUP(1,Tablas!$A$747:$G$749,6,TRUE)), (IF(3-$F$20=2, (VLOOKUP(2,Tablas!$A$747:$G$749,6,TRUE)), (VLOOKUP(3,Tablas!$A$747:$G$749,6,TRUE)))))))), (IF($F$18=2,(IF(2-$F$20=0, 0, (IF(2-$F$20=1,(VLOOKUP(1,Tablas!$A$747:$G$749,6,TRUE)), (IF(2-$F$20=2, (VLOOKUP(2,Tablas!$A$747:$G$749,6,TRUE)), 0)))))), (IF($F$18=1,(IF(1-$F$20=0, 0, (IF(1-$F$20=1,(VLOOKUP(1,Tablas!$A$747:$G$749,6,TRUE)),0)))),0)))))))))))))), (IF($F$18=0, 0, (IF($F$20>$F$18, (VLOOKUP($F$18,Tablas!$A$747:$G$749,6,TRUE)), (IF($F$18=4,(IF(4-$F$20=0, 0, (IF(4-$F$20=1, (VLOOKUP(1,Tablas!$A$747:$G$749,6,TRUE)), (IF(4-$F$20=2, (VLOOKUP(2,Tablas!$A$747:$G$749,6,TRUE)), (IF(4-$F$20=3, (VLOOKUP(3,Tablas!$A$747:$G$749,6,TRUE)), (IF(4-$F$20=4, (VLOOKUP(3,Tablas!$A$747:$G$749,6,TRUE)), 0)))))))))), (IF($F$18=5,(IF(5-$F$20=0, (VLOOKUP(1,Tablas!$A$747:$G$749,6,TRUE)), (IF(5-$F$20=1, (VLOOKUP(1,Tablas!$A$747:$G$749,6,TRUE)), (IF(5-$F$20=2, (VLOOKUP(2,Tablas!$A$747:$G$749,6,TRUE)), (IF(5-$F$20=3, (VLOOKUP(3,Tablas!$A$747:$G$749,6,TRUE)), (IF(5-$F$20=4, (VLOOKUP(3,Tablas!$A$747:$G$749,6,TRUE)), (VLOOKUP(3,Tablas!$A$747:$G$749,6,TRUE)))))))))))), (IF($F$18=6,(IF(6-$F$20=0, (VLOOKUP(2,Tablas!$A$747:$G$749,6,TRUE)), (IF(6-$F$20=1, (VLOOKUP(2,Tablas!$A$747:$G$749,6,TRUE)), (IF(6-$F$20=2, (VLOOKUP(2,Tablas!$A$747:$G$749,6,TRUE)), (IF(6-$F$20=3, (VLOOKUP(3,Tablas!$A$747:$G$749,6,TRUE)), (IF(6-$F$20=4, (VLOOKUP(3,Tablas!$A$747:$G$749,6,TRUE)), (VLOOKUP(3,Tablas!$A$747:$G$749,6,TRUE)))))))))))), (IF($F$18>6,(IF(7-$F$20=0, (VLOOKUP(3,Tablas!$A$747:$G$749,6,TRUE)), (IF(7-$F$20=1, (VLOOKUP(3,Tablas!$A$747:$G$749,6,TRUE)), (IF(7-$F$20=2, (VLOOKUP(3,Tablas!$A$747:$G$749,6,TRUE)), (IF(7-$F$20=3, (VLOOKUP(3,Tablas!$A$747:$G$749,6,TRUE)), (IF(7-$F$20=4, (VLOOKUP(3,Tablas!$A$747:$G$749,6,TRUE)), (VLOOKUP(3,Tablas!$A$747:$G$749,6,TRUE)))))))))))), (IF($F$18=3,(IF(3-$F$20=0,0, (IF(3-$F$20=1,(VLOOKUP(1,Tablas!$A$747:$G$749,6,TRUE)), (IF(3-$F$20=2, (VLOOKUP(2,Tablas!$A$747:$G$749,6,TRUE)), (VLOOKUP(3,Tablas!$A$747:$G$749,6,TRUE)))))))), (IF($F$18=2,(IF(2-$F$20=0, 0, (IF(2-$F$20=1,(VLOOKUP(1,Tablas!$A$747:$G$749,6,TRUE)), (IF(2-$F$20=2, (VLOOKUP(2,Tablas!$A$747:$G$749,6,TRUE)), 0)))))), (IF($F$18=1,(IF(1-$F$20=0, 0, (IF(1-$F$20=1,(VLOOKUP(1,Tablas!$A$747:$G$749,6,TRUE)),0)))),0))))))))))))))))))) -> 0 | K53: =IF($F$16=1, (IF($F$18=0, 0, (IF($F$20>$F$18, (VLOOKUP($F$18,Tablas!$A$747:$G$749,7,TRUE)), (IF($F$18>4,(IF($F$20=0, (VLOOKUP(3,Tablas!$A$747:$G$749,7,TRUE)), (IF($F$20=1, (VLOOKUP(3,Tablas!$A$747:$G$749,7,TRUE)), (IF($F$20=2, (VLOOKUP(3,Tablas!$A$747:$G$749,7,TRUE)), (VLOOKUP(3,Tablas!$A$747:$G$749,7,TRUE)))))))), (IF($F$18=4,(IF(4-$F$20=0,(VLOOKUP(2,Tablas!$A$747:$G$749,7,TRUE)), (IF(4-$F$20=1,(VLOOKUP(2,Tablas!$A$747:$G$749,7,TRUE)), (IF(4-$F$20=2, (VLOOKUP(2,Tablas!$A$747:$G$749,7,TRUE)), (VLOOKUP(3,Tablas!$A$747:$G$749,7,TRUE)))))))), (IF($F$18=3,(IF(3-$F$20=0,(VLOOKUP(1,Tablas!$A$747:$G$749,7,TRUE)), (IF(3-$F$20=1,(VLOOKUP(1,Tablas!$A$747:$G$749,7,TRUE)), (IF(3-$F$20=2, (VLOOKUP(2,Tablas!$A$747:$G$749,7,TRUE)), (VLOOKUP(3,Tablas!$A$747:$G$749,7,TRUE)))))))), (IF($F$18=2,(IF(2-$F$20=0, 0, (IF(2-$F$20=1,(VLOOKUP(1,Tablas!$A$747:$G$749,7,TRUE)), (IF(2-$F$20=2, (VLOOKUP(2,Tablas!$A$747:$G$749,7,TRUE)), 0)))))), (IF($F$18=1,(IF(1-$F$20=0, 0, (IF(1-$F$20=1,(VLOOKUP(1,Tablas!$A$747:$G$749,7,TRUE)),0)))),0)))))))))))))), (IF($F$18=0, 0, (IF($F$20>$F$18, (VLOOKUP($F$18,Tablas!$A$747:$G$749,7,TRUE)), (IF($F$18=4,(IF(4-$F$20=0, 0, (IF(4-$F$20=1, (VLOOKUP(1,Tablas!$A$747:$G$749,7,TRUE)), (IF(4-$F$20=2, (VLOOKUP(2,Tablas!$A$747:$G$749,7,TRUE)), (IF(4-$F$20=3, (VLOOKUP(3,Tablas!$A$747:$G$749,7,TRUE)), (IF(4-$F$20=4, (VLOOKUP(3,Tablas!$A$747:$G$749,7,TRUE)), 0)))))))))), (IF($F$18=5,(IF(5-$F$20=0, (VLOOKUP(1,Tablas!$A$747:$G$749,7,TRUE)), (IF(5-$F$20=1, (VLOOKUP(1,Tablas!$A$747:$G$749,7,TRUE)), (IF(5-$F$20=2, (VLOOKUP(2,Tablas!$A$747:$G$749,7,TRUE)), (IF(5-$F$20=3, (VLOOKUP(3,Tablas!$A$747:$G$749,7,TRUE)), (IF(5-$F$20=4, (VLOOKUP(3,Tablas!$A$747:$G$749,7,TRUE)), (VLOOKUP(3,Tablas!$A$747:$G$749,7,TRUE)))))))))))), (IF($F$18=6,(IF(6-$F$20=0, (VLOOKUP(2,Tablas!$A$747:$G$749,7,TRUE)), (IF(6-$F$20=1, (VLOOKUP(2,Tablas!$A$747:$G$749,7,TRUE)), (IF(6-$F$20=2, (VLOOKUP(2,Tablas!$A$747:$G$749,7,TRUE)), (IF(6-$F$20=3, (VLOOKUP(3,Tablas!$A$747:$G$749,7,TRUE)), (IF(6-$F$20=4, (VLOOKUP(3,Tablas!$A$747:$G$749,7,TRUE)), (VLOOKUP(3,Tablas!$A$747:$G$749,7,TRUE)))))))))))), (IF($F$18>6,(IF(7-$F$20=0, (VLOOKUP(3,Tablas!$A$747:$G$749,7,TRUE)), (IF(7-$F$20=1, (VLOOKUP(3,Tablas!$A$747:$G$749,7,TRUE)), (IF(7-$F$20=2, (VLOOKUP(3,Tablas!$A$747:$G$749,7,TRUE)), (IF(7-$F$20=3, (VLOOKUP(3,Tablas!$A$747:$G$749,7,TRUE)), (IF(7-$F$20=4, (VLOOKUP(3,Tablas!$A$747:$G$749,7,TRUE)), (VLOOKUP(3,Tablas!$A$747:$G$749,7,TRUE)))))))))))), (IF($F$18=3,(IF(3-$F$20=0,0, (IF(3-$F$20=1,(VLOOKUP(1,Tablas!$A$747:$G$749,7,TRUE)), (IF(3-$F$20=2, (VLOOKUP(2,Tablas!$A$747:$G$749,7,TRUE)), (VLOOKUP(3,Tablas!$A$747:$G$749,7,TRUE)))))))), (IF($F$18=2,(IF(2-$F$20=0, 0, (IF(2-$F$20=1,(VLOOKUP(1,Tablas!$A$747:$G$749,7,TRUE)), (IF(2-$F$20=2, (VLOOKUP(2,Tablas!$A$747:$G$749,7,TRUE)), 0)))))), (IF($F$18=1,(IF(1-$F$20=0, 0, (IF(1-$F$20=1,(VLOOKUP(1,Tablas!$A$747:$G$749,7,TRUE)),0)))),0))))))))))))))))))) -> 0
E54: Total de Prima neta | G54: =SUM(G51:G53) -> 5692.7 | H54: =SUM(H51:H53) -> 4999.7 | I54: =SUM(I51:I53) -> 4061.4 | J54: =SUM(J51:J53) -> 3533.4 | K54: =SUM(K51:K53) -> 2653.95
E55: Tarifa administrativa anual | G55: 0 | H55: 0 | I55: 0 | J55: 0 | K55: 0
E56: Contribución 3.5% Superintendencia de Bancos Contribución 0.5% Seguro Social Campesino | G56: =(G54)*4% -> 227.708 | H56: =(H54)*4% -> 199.988 | I56: =(I54)*4% -> 162.456 | J56: =(J54)*4% -> 141.336 | K56: =(K54)*4% -> 106.158
E57: TOTAL de primera cuota | G57: =SUM(G54:G56) -> 5920.408 | H57: =SUM(H54:H56) -> 5199.688 | I57: =SUM(I54:I56) -> 4223.856 | J57: =SUM(J54:J56) -> 3674.736 | K57: =SUM(K54:K56) -> 2760.108
E58: Tres (3) cuotas adicionales, cada una de: | G58: =G54+G56-78 -> 5842.408 | H58: =H54+H56-78 -> 5121.688 | I58: =I54+I56-78 -> 4145.856 | J58: =J54+J56-78 -> 3596.736 | K58: =K54+K56-78 -> 2682.108
E59: TOTAL ANUAL | G59: =G57+(G58*3) -> 23447.632 | H59: =H57+(H58*3) -> 20564.752 | I59: 16661.424 | J59: =J57+(J58*3) -> 14464.944 | K59: 10806.432
E60: Ahorros en tarifas de prima para niños | G60: =IF($F$16=1,IF($F$18=0,0,IF($F$20=0,0,IF($F$20=1,(VLOOKUP(1,Tablas!$A$747:$G$749,3,TRUE)),(VLOOKUP(2,Tablas!$A$747:$G$749,3,TRUE))))), IF($F$18=0,0,IF($F$20=0,0,IF($F$20=1,(VLOOKUP(1,Tablas!$A$747:$G$749,3,TRUE)),IF($F$20=2,(VLOOKUP(2,Tablas!$A$747:$G$749,3,TRUE)), (VLOOKUP(3,Tablas!$A$747:$G$749,3,TRUE))))))) -> 0 | H60: =IF($F$16=1,IF($F$18=0,0,IF($F$20=0,0,IF($F$20=1,(VLOOKUP(1,Tablas!$A$747:$G$749,4,TRUE)),(VLOOKUP(2,Tablas!$A$747:$G$749,4,TRUE))))), IF($F$18=0,0,IF($F$20=0,0,IF($F$20=1,(VLOOKUP(1,Tablas!$A$747:$G$749,4,TRUE)),IF($F$20=2,(VLOOKUP(2,Tablas!$A$747:$G$749,4,TRUE)), (VLOOKUP(3,Tablas!$A$747:$G$749,4,TRUE))))))) -> 0 | I60: =IF($F$16=1,IF($F$18=0,0,IF($F$20=0,0,IF($F$20=1,(VLOOKUP(1,Tablas!$A$747:$G$749,5,TRUE)),(VLOOKUP(2,Tablas!$A$747:$G$749,5,TRUE))))), IF($F$18=0,0,IF($F$20=0,0,IF($F$20=1,(VLOOKUP(1,Tablas!$A$747:$G$749,5,TRUE)),IF($F$20=2,(VLOOKUP(2,Tablas!$A$747:$G$749,5,TRUE)), (VLOOKUP(3,Tablas!$A$747:$G$749,5,TRUE))))))) -> 0 | J60: =IF($F$16=1,IF($F$18=0,0,IF($F$20=0,0,IF($F$20=1,(VLOOKUP(1,Tablas!$A$747:$G$749,6,TRUE)),(VLOOKUP(2,Tablas!$A$747:$G$749,6,TRUE))))), IF($F$18=0,0,IF($F$20=0,0,IF($F$20=1,(VLOOKUP(1,Tablas!$A$747:$G$749,6,TRUE)),IF($F$20=2,(VLOOKUP(2,Tablas!$A$747:$G$749,6,TRUE)), (VLOOKUP(3,Tablas!$A$747:$G$749,6,TRUE))))))) -> 0 | K60: =IF($F$16=1,IF($F$18=0,0,IF($F$20=0,0,IF($F$20=1,(VLOOKUP(1,Tablas!$A$747:$G$749,7,TRUE)),(VLOOKUP(2,Tablas!$A$747:$G$749,7,TRUE))))), IF($F$18=0,0,IF($F$20=0,0,IF($F$20=1,(VLOOKUP(1,Tablas!$A$747:$G$749,7,TRUE)),IF($F$20=2,(VLOOKUP(2,Tablas!$A$747:$G$749,7,TRUE)), (VLOOKUP(3,Tablas!$A$747:$G$749,7,TRUE))))))) -> 0
E62: Tarifas en US$ - Efectivas a partir del 1ro. de enero de 2022
E63: Este presupuesto solamente tiene carácter informativo y en ningún momento expresa compromiso legal para suministrarle cobertura de seguro. La emisión de una póliza de seguro Bupa está sujeta a todas las evaluaciones de riesgo por parte de Bupa y a la recepción de todos los pagos de prima requeridos.

Sheet Global Health Premier
A15: RESUMEN DE BENEFICIOS | D15: Nombre del Asegurado Titular | F15: =+'INGRESO DE DATOS'!$D$13 -> Nombre Completo
D17: Número de adultos en la póliza | F17: =+'INGRESO DE DATOS'!$D$15 -> 2 | H17: Edad del Asegurado Titular | I17: =+'INGRESO DE DATOS'!$D$17 -> 18
D19: Número de niños en la póliza | F19: =+'INGRESO DE DATOS'!$H$15 -> 0 | H19: Edad del/la conyuge | I19: =+'INGRESO DE DATOS'!$H$17 -> 18
F21: Fecha de la cotización: | G21: =NOW() -> 2022-01-13T13:40:57.550
H22: FALSE
E23: Zona de cotización: | F23: ='INGRESO DE DATOS'!D19 -> Guayas/Santa Elena
E25: Deducibles | G25: PLAN 1 | H25: PLAN 2 | I25: PLAN 3 | J25: PLAN 4 | K25: PLAN 5
E26: En el país de residencia | G26: 250 | H26: 2000 | I26: 5000 | J26: 10000 | K26: 20000
E27: Fuera del país de residencia | G27: 5000 | H27: 2000 | I27: 5000 | J27: 10000 | K27: 20000
E29: Tarifas Anuales
E30: Prima para Asegurado Titular | G30: =VLOOKUP($I$17,Tablas!$A$155:$G$221,3,TRUE)+75 -> 6731 | H30: =VLOOKUP($I$17,Tablas!$A$155:$G$221,4,TRUE)+75 -> 6115 | I30: =VLOOKUP($I$17,Tablas!$A$155:$G$221,5,TRUE)+75 -> 4485 | J30: =VLOOKUP($I$17,Tablas!$A$155:$G$221,6,TRUE)+75 -> 3231 | K30: =VLOOKUP($I$17,Tablas!$A$155:$G$221,7,TRUE)+75 -> 2551
E31: Prima para conyuge | G31: =IF($F$17=1,0,(VLOOKUP($I$19,Tablas!$A$155:$G$221,3,TRUE))) -> 6656 | H31: =IF($F$17=1,0,(VLOOKUP($I$19,Tablas!$A$155:$G$221,4,TRUE))) -> 6040 | I31: =IF($F$17=1,0,(VLOOKUP($I$19,Tablas!$A$155:$G$221,5,TRUE))) -> 4410 | J31: =IF($F$17=1,0,(VLOOKUP($I$19,Tablas!$A$155:$G$221,6,TRUE))) -> 3156 | K31: =IF($F$17=1,0,(VLOOKUP($I$19,Tablas!$A$155:$G$221,7,TRUE))) -> 2476
E32: Prima para hijo (s) | G32: =IF($F$19=0,0,(VLOOKUP($F$19,Tablas!$A$222:$G$224,3,TRUE))) -> 0 | H32: =IF($F$19=0,0,(VLOOKUP($F$19,Tablas!$A$222:$G$224,4,TRUE))) -> 0 | I32: =IF($F$19=0,0,(VLOOKUP($F$19,Tablas!$A$222:$G$224,5,TRUE))) -> 0 | J32: =IF($F$19=0,0,(VLOOKUP($F$19,Tablas!$A$222:$G$224,6,TRUE))) -> 0 | K32: =IF($F$19=0,0,(VLOOKUP($F$19,Tablas!$A$222:$G$224,7,TRUE))) -> 0
E33: Total de Prima neta | G33: =SUM(G30:G32) -> 13387 | H33: =SUM(H30:H32) -> 12155 | I33: 8895 | J33: =SUM(J30:J32) -> 6387 | K33: 5027
E34: Tarifa administrativa anual | G34: 0 | H34: 0 | I34: 0 | J34: 0 | K34: 0
E35: Contribución 3.5% Superintendencia de Bancos Contribución 0.5% Seguro Social Campesino | G35: =(G33)*4% -> 535.48 | H35: =(H33)*4% -> 486.2 | I35: =(I33)*4% -> 355.8 | J35: =(J33)*4% -> 255.48 | K35: =(K33)*4% -> 201.08
E36: TOTAL ANUAL | G36: =SUM(G33:G35) -> 13922.48 | H36: =SUM(H33:H35) -> 12641.2 | I36: =SUM(I33:I35) -> 9250.8 | J36: =SUM(J33:J35) -> 6642.48 | K36: =SUM(K33:K35) -> 5228.08
E38: Tarifas Semianuales
E39: Prima para Asegurado Titular | G39: =VLOOKUP($I$17,Tablas!$A$530:$G$596,3,TRUE)+75 -> 3602.68 | H39: =VLOOKUP($I$17,Tablas!$A$530:$G$596,4,TRUE)+75 -> 3276.2 | I39: =VLOOKUP($I$17,Tablas!$A$530:$G$596,5,TRUE)+75 -> 2412.3 | J39: =VLOOKUP($I$17,Tablas!$A$530:$G$596,6,TRUE)+75 -> 1747.68 | K39: =VLOOKUP($I$17,Tablas!$A$530:$G$596,7,TRUE)+75 -> 1387.28
E40: Prima para conyuge | G40: =IF($F$17=1,0,(VLOOKUP($I$19,Tablas!$A$530:$G$596,3,TRUE))) -> 3527.68 | H40: =IF($F$17=1,0,(VLOOKUP($I$19,Tablas!$A$530:$G$596,4,TRUE))) -> 3201.2 | I40: =IF($F$17=1,0,(VLOOKUP($I$19,Tablas!$A$530:$G$596,5,TRUE))) -> 2337.3 | J40: =IF($F$17=1,0,(VLOOKUP($I$19,Tablas!$A$530:$G$596,6,TRUE))) -> 1672.68 | K40: =IF($F$17=1,0,(VLOOKUP($I$19,Tablas!$A$530:$G$596,7,TRUE))) -> 1312.28
E41: Prima para hijo (s) | G41: =IF($F$19=0,0,(VLOOKUP($F$19,Tablas!$A$597:$G$599,3,TRUE))) -> 0 | H41: =IF($F$19=0,0,(VLOOKUP($F$19,Tablas!$A$597:$G$599,4,TRUE))) -> 0 | I41: =IF($F$19=0,0,(VLOOKUP($F$19,Tablas!$A$597:$G$599,5,TRUE))) -> 0 | J41: =IF($F$19=0,0,(VLOOKUP($F$19,Tablas!$A$597:$G$599,6,TRUE))) -> 0 | K41: =IF($F$19=0,0,(VLOOKUP($F$19,Tablas!$A$597:$G$599,7,TRUE))) -> 0
E42: Total de Prima neta | G42: =SUM(G39:G41) -> 7130.36 | H42: =SUM(H39:H41) -> 6477.4 | I42: =SUM(I39:I41) -> 4749.6 | J42: =SUM(J39:J41) -> 3420.36 | K42: =SUM(K39:K41) -> 2699.56
E43: Tarifa administrativa anual | G43: 0 | H43: 0 | I43: 0 | J43: 0 | K43: 0
E44: Contribución 3.5% Superintendencia de Bancos Contribución 0.5% Seguro Social Campesino | G44: =(G42)*4% -> 285.2144 | H44: =(H42)*4% -> 259.096 | I44: =(I42)*4% -> 189.984 | J44: =(J42)*4% -> 136.8144 | K44: =(K42)*4% -> 107.9824
E45: TOTAL de primera cuota | G45: =SUM(G42:G44) -> 7415.5744 | H45: =SUM(H42:H44) -> 6736.496 | I45: =SUM(I42:I44) -> 4939.584 | J45: =SUM(J42:J44) -> 3557.1744 | K45: =SUM(K42:K44) -> 2807.5424
E46: Costo de segunda cuota | G46: =G42+G44-78 -> 7337.5744 | H46: =H42+H44-78 -> 6658.496 | I46: =I42+I44-78 -> 4861.584 | J46: =J42+J44-78 -> 3479.1744 | K46: =K42+K44-78 -> 2729.5424
E47: TOTAL ANUAL | G47: =G45+G46 -> 14753.1488 | H47: =H45+H46 -> 13394.992 | I47: 9801.168 | J47: =J45+J46 -> 7036.3488 | K47: 5537.0848
E49: Tarifas Trimestrales
E50: Prima para Asegurado Titular | G50: =VLOOKUP($I$17,Tablas!$A$755:$G$821,3,TRUE)+75 -> 1905.4 | H50: =VLOOKUP($I$17,Tablas!$A$755:$G$821,4,TRUE)+75 -> 1736 | I50: =VLOOKUP($I$17,Tablas!$A$755:$G$821,5,TRUE)+75 -> 1287.75 | J50: =VLOOKUP($I$17,Tablas!$A$755:$G$821,6,TRUE)+75 -> 942.9 | K50: =VLOOKUP($I$17,Tablas!$A$755:$G$821,7,TRUE)+75 -> 755.9
E51: Prima para conyuge | G51: =IF($F$17=1,0,(VLOOKUP($I$19,Tablas!$A$755:$G$821,3,TRUE))) -> 1830.4 | H51: =IF($F$17=1,0,(VLOOKUP($I$19,Tablas!$A$755:$G$821,4,TRUE))) -> 1661 | I51: =IF($F$17=1,0,(VLOOKUP($I$19,Tablas!$A$755:$G$821,5,TRUE))) -> 1212.75 | J51: =IF($F$17=1,0,(VLOOKUP($I$19,Tablas!$A$755:$G$821,6,TRUE))) -> 867.9 | K51: =IF($F$17=1,0,(VLOOKUP($I$19,Tablas!$A$755:$G$821,7,TRUE))) -> 680.9
E52: Prima para hijo (s) | G52: =IF($F$19=0,0,(VLOOKUP($F$19,Tablas!$A$822:$G$824,3,TRUE))) -> 0 | H52: =IF($F$19=0,0,(VLOOKUP($F$19,Tablas!$A$822:$G$824,4,TRUE))) -> 0 | I52: =IF($F$19=0,0,(VLOOKUP($F$19,Tablas!$A$822:$G$824,5,TRUE))) -> 0 | J52: =IF($F$19=0,0,(VLOOKUP($F$19,Tablas!$A$822:$G$824,6,TRUE))) -> 0 | K52: =IF($F$19=0,0,(VLOOKUP($F$19,Tablas!$A$822:$G$824,7,TRUE))) -> 0
E53: Total de Prima neta | G53: =SUM(G50:G52) -> 3735.8 | H53: =SUM(H50:H52) -> 3397 | I53: =SUM(I50:I52) -> 2500.5 | J53: =SUM(J50:J52) -> 1810.8 | K53: =SUM(K50:K52) -> 1436.8
E54: Tarifa administrativa anual | G54: 0 | H54: 0 | I54: 0 | J54: 0 | K54: 0
E55: Contribución 3.5% Superintendencia de Bancos Contribución 0.5% Seguro Social Campesino | G55: =(G53)*4% -> 149.432 | H55: =(H53)*4% -> 135.88 | I55: =(I53)*4% -> 100.02 | J55: =(J53)*4% -> 72.432 | K55: =(K53)*4% -> 57.472
E56: TOTAL de primera cuota | G56: =SUM(G53:G55) -> 3885.232 | H56: =SUM(H53:H55) -> 3532.88 | I56: =SUM(I53:I55) -> 2600.52 | J56: =SUM(J53:J55) -> 1883.232 | K56: =SUM(K53:K55) -> 1494.272
E57: Tres (3) cuotas adicionales, cada una de: | G57: =G53+G55-78 -> 3807.232 | H57: =H53+H55-78 -> 3454.88 | I57: =I53+I55-78 -> 2522.52 | J57: =J53+J55-78 -> 1805.232 | K57: =K53+K55-78 -> 1416.272
E58: TOTAL ANUAL | G58: =G56+(G57*3) -> 15306.928 | H58: =H56+(H57*3) -> 13897.52 | I58: 10168.08 | J58: =J56+(J57*3) -> 7298.928 | K58: 5743.088
E60: Tarifas en US$ - Efectivas a partir del 1ro. de enero de 2022
E61: Este presupuesto solamente tiene carácter informativo y en ningún momento expresa compromiso legal para suministrarle cobertura de seguro. La emisión de una póliza de seguro Bupa está sujeta a todas las evaluaciones de riesgo por parte de Bupa y a la recepción de todos los pagos de prima requeridos.

Sheet Global Health Select
A14: RESUMEN DE BENEFICIOS | D14: Nombre del Asegurado Titular | F14: =+'INGRESO DE DATOS'!$D$13 -> Nombre Completo
D16: Número de adultos en la póliza | F16: =+'INGRESO DE DATOS'!$D$15 -> 2 | H16: Edad del Asegurado Titular | I16: =+'INGRESO DE DATOS'!$D$17 -> 18
D18: Número de niños en la póliza | F18: =+'INGRESO DE DATOS'!$H$15 -> 0 | H18: Edad del/la conyuge | I18: =+'INGRESO DE DATOS'!$H$17 -> 18
F20: Fecha de la cotización: | G20: =NOW() -> 2022-01-13T13:40:57.550
H21: FALSE
E22: Zona de cotización: | F22: ='INGRESO DE DATOS'!D19 -> Guayas/Santa Elena
E24: Deducibles | G24: PLAN 1 | H24: PLAN 2 | I24: PLAN 3 | J24: PLAN 4 | K24: PLAN 5
E25: En el país de residencia | G25: 250 | H25: 2000 | I25: 5000 | J25: 10000 | K25: 20000
E26: Fuera del país de residencia | G26: 5000 | H26: 2000 | I26: 5000 | J26: 10000 | K26: 20000
E28: Tarifas Anuales
E29: Prima para Asegurado Titular | G29: =VLOOKUP($I$16,Tablas!$A$305:$G$371,3,TRUE)+75 -> 4250 | H29: =VLOOKUP($I$16,Tablas!$A$305:$G$371,4,TRUE)+75 -> 4081 | I29: =VLOOKUP($I$16,Tablas!$A$305:$G$371,5,TRUE)+75 -> 3009 | J29: =VLOOKUP($I$16,Tablas!$A$305:$G$371,6,TRUE)+75 -> 2172 | K29: =VLOOKUP($I$16,Tablas!$A$305:$G$371,7,TRUE)+75 -> 1722
E30: Prima para conyuge | G30: =IF($F$16=1,0,(VLOOKUP($I$18,Tablas!$A$305:$G$371,3,TRUE))) -> 4175 | H30: =IF($F$16=1,0,(VLOOKUP($I$18,Tablas!$A$305:$G$371,4,TRUE))) -> 4006 | I30: =IF($F$16=1,0,(VLOOKUP($I$18,Tablas!$A$305:$G$371,5,TRUE))) -> 2934 | J30: =IF($F$16=1,0,(VLOOKUP($I$18,Tablas!$A$305:$G$371,6,TRUE))) -> 2097 | K30: =IF($F$16=1,0,(VLOOKUP($I$18,Tablas!$A$305:$G$371,7,TRUE))) -> 1647
E31: Prima para hijo (s) | G31: =IF($F$18=0,0,(VLOOKUP($F$18,Tablas!$A$372:$G$374,3,TRUE))) -> 0 | H31: =IF($F$18=0,0,(VLOOKUP($F$18,Tablas!$A$372:$G$374,4,TRUE))) -> 0 | I31: =IF($F$18=0,0,(VLOOKUP($F$18,Tablas!$A$372:$G$374,5,TRUE))) -> 0 | J31: =IF($F$18=0,0,(VLOOKUP($F$18,Tablas!$A$372:$G$374,6,TRUE))) -> 0 | K31: =IF($F$18=0,0,(VLOOKUP($F$18,Tablas!$A$372:$G$374,7,TRUE))) -> 0
E32: Total de Prima neta | G32: =SUM(G29:G31) -> 8425 | H32: =SUM(H29:H31) -> 8087 | I32: =SUM(I29:I31) -> 5943 | J32: =SUM(J29:J31) -> 4269 | K32: =SUM(K29:K31) -> 3369
E33: Tarifa administrativa anual | G33: 0 | H33: 0 | I33: 0 | J33: 0 | K33: 0
E34: Contribución 3.5% Superintendencia de Bancos Contribución 0.5% Seguro Social Campesino | G34: =(G32)*4% -> 337 | H34: =(H32)*4% -> 323.48 | I34: =(I32)*4% -> 237.72 | J34: =(J32)*4% -> 170.76 | K34: =(K32)*4% -> 134.76
E35: TOTAL ANUAL | G35: =SUM(G32:G34) -> 8762 | H35: =SUM(H32:H34) -> 8410.48 | I35: =SUM(I32:I34) -> 6180.72 | J35: =SUM(J32:J34) -> 4439.76 | K35: =SUM(K32:K34) -> 3503.76
E37: Tarifas Semianuales
E38: Prima para Asegurado Titular | G38: =VLOOKUP($I$16,Tablas!$A$605:$G$671,3,TRUE)+75 -> 2287.75 | H38: =VLOOKUP($I$16,Tablas!$A$605:$G$671,4,TRUE)+75 -> 2198.18 | I38: =VLOOKUP($I$16,Tablas!$A$605:$G$671,5,TRUE)+75 -> 1630.02 | J38: =VLOOKUP($I$16,Tablas!$A$605:$G$671,6,TRUE)+75 -> 1186.41 | K38: =VLOOKUP($I$16,Tablas!$A$605:$G$671,7,TRUE)+75 -> 947.91
E39: Prima para conyuge | G39: =IF($F$16=1,0,(VLOOKUP($I$18,Tablas!$A$605:$G$671,3,TRUE))) -> 2212.75 | H39: =IF($F$16=1,0,(VLOOKUP($I$18,Tablas!$A$605:$G$671,4,TRUE))) -> 2123.18 | I39: =IF($F$16=1,0,(VLOOKUP($I$18,Tablas!$A$605:$G$671,5,TRUE))) -> 1555.02 | J39: =IF($F$16=1,0,(VLOOKUP($I$18,Tablas!$A$605:$G$671,6,TRUE))) -> 1111.41 | K39: =IF($F$16=1,0,(VLOOKUP($I$18,Tablas!$A$605:$G$671,7,TRUE))) -> 872.91
E40: Prima para hijo (s) | G40: =IF($F$18=0,0,(VLOOKUP($F$18,Tablas!$A$672:$G$674,3,TRUE))) -> 0 | H40: =IF($F$18=0,0,(VLOOKUP($F$18,Tablas!$A$672:$G$674,4,TRUE))) -> 0 | I40: =IF($F$18=0,0,(VLOOKUP($F$18,Tablas!$A$672:$G$674,5,TRUE))) -> 0 | J40: =IF($F$18=0,0,(VLOOKUP($F$18,Tablas!$A$672:$G$674,6,TRUE))) -> 0 | K40: =IF($F$18=0,0,(VLOOKUP($F$18,Tablas!$A$672:$G$674,7,TRUE))) -> 0
E41: Total de Prima neta | G41: =SUM(G38:G40) -> 4500.5 | H41: =SUM(H38:H40) -> 4321.36 | I41: =SUM(I38:I40) -> 3185.04 | J41: =SUM(J38:J40) -> 2297.82 | K41: =SUM(K38:K40) -> 1820.82
E42: Tarifa administrativa anual | G42: 0 | H42: 0 | I42: 0 | J42: 0 | K42: 0
E43: Contribución 3.5% Superintendencia de Bancos Contribución 0.5% Seguro Social Campesino | G43: =(G41)*4% -> 180.02 | H43: =(H41)*4% -> 172.8544 | I43: =(I41)*4% -> 127.4016 | J43: =(J41)*4% -> 91.9128 | K43: =(K41)*4% -> 72.8328
E44: TOTAL de primera cuota | G44: =SUM(G41:G43) -> 4680.52 | H44: =SUM(H41:H43) -> 4494.2144 | I44: =SUM(I41:I43) -> 3312.4416 | J44: =SUM(J41:J43) -> 2389.7328 | K44: =SUM(K41:K43) -> 1893.6528
E45: Costo de segunda cuota | G45: =G41+G43-78 -> 4602.52 | H45: =H41+H43-78 -> 4416.2144 | I45: =I41+I43-78 -> 3234.4416 | J45: =J41+J43-78 -> 2311.7328 | K45: =K41+K43-78 -> 1815.6528
E46: TOTAL ANUAL | G46: =G44+G45 -> 9283.04 | H46: =H44+H45 -> 8910.4288 | I46: 6546.8832 | J46: =J44+J45 -> 4701.4656 | K46: 3709.3056
E48: Tarifas Trimestrales
E49: Prima para Asegurado Titular | G49: =VLOOKUP($I$16,Tablas!$A$830:$G$896,3,TRUE)+75 -> 1223.125 | H49: =VLOOKUP($I$16,Tablas!$A$830:$G$896,4,TRUE)+75 -> 1176.65 | I49: =VLOOKUP($I$16,Tablas!$A$830:$G$896,5,TRUE)+75 -> 881.85 | J49: =VLOOKUP($I$16,Tablas!$A$830:$G$896,6,TRUE)+75 -> 651.675 | K49: =VLOOKUP($I$16,Tablas!$A$830:$G$896,7,TRUE)+75 -> 527.925
E50: Prima para conyuge | G50: =IF($F$16=1,0,(VLOOKUP($I$18,Tablas!$A$830:$G$896,3,TRUE))) -> 1148.125 | H50: =IF($F$16=1,0,(VLOOKUP($I$18,Tablas!$A$830:$G$896,4,TRUE))) -> 1101.65 | I50: =IF($F$16=1,0,(VLOOKUP($I$18,Tablas!$A$830:$G$896,5,TRUE))) -> 806.85 | J50: =IF($F$16=1,0,(VLOOKUP($I$18,Tablas!$A$830:$G$896,6,TRUE))) -> 576.675 | K50: =IF($F$16=1,0,(VLOOKUP($I$18,Tablas!$A$830:$G$896,7,TRUE))) -> 452.925
E51: Prima para hijo (s) | G51: =IF($F$18=0,0,(VLOOKUP($F$18,Tablas!$A$897:$G$899,3,TRUE))) -> 0 | H51: =IF($F$18=0,0,(VLOOKUP($F$18,Tablas!$A$897:$G$899,4,TRUE))) -> 0 | I51: =IF($F$18=0,0,(VLOOKUP($F$18,Tablas!$A$897:$G$899,5,TRUE))) -> 0 | J51: =IF($F$18=0,0,(VLOOKUP($F$18,Tablas!$A$897:$G$899,6,TRUE))) -> 0 | K51: =IF($F$18=0,0,(VLOOKUP($F$18,Tablas!$A$897:$G$899,7,TRUE))) -> 0
E52: Total de Prima neta | G52: =SUM(G49:G51) -> 2371.25 | H52: =SUM(H49:H51) -> 2278.3 | I52: =SUM(I49:I51) -> 1688.7 | J52: =SUM(J49:J51) -> 1228.35 | K52: =SUM(K49:K51) -> 980.85
E53: Tarifa administrativa anual | G53: 0 | H53: 0 | I53: 0 | J53: 0 | K53: 0
E54: Contribución 3.5% Superintendencia de Bancos Contribución 0.5% Seguro Social Campesino | G54: =(G52)*4% -> 94.85 | H54: =(H52)*4% -> 91.132 | I54: =(I52)*4% -> 67.548 | J54: =(J52)*4% -> 49.134 | K54: =(K52)*4% -> 39.234
E55: TOTAL de primera cuota | G55: =SUM(G52:G54) -> 2466.1 | H55: =SUM(H52:H54) -> 2369.432 | I55: =SUM(I52:I54) -> 1756.248 | J55: =SUM(J52:J54) -> 1277.484 | K55: =SUM(K52:K54) -> 1020.084
E56: Tres (3) cuotas adicionales, cada una de: | G56: =G52+G54-78 -> 2388.1 | H56: =H52+H54-78 -> 2291.432 | I56: =I52+I54-78 -> 1678.248 | J56: =J52+J54-78 -> 1199.484 | K56: =K52+K54-78 -> 942.084
E57: TOTAL ANUAL | G57: =G55+(G56*3) -> 9630.4 | H57: =H55+(H56*3) -> 9243.728 | I57: 6790.992 | J57: =J55+(J56*3) -> 4875.936 | K57: 3846.336
E59: Tarifas en US$ - Efectivas a partir del 1ro. de enero de 2022
E60: Este presupuesto solamente tiene carácter informativo y en ningún momento expresa compromiso legal para suministrarle cobertura de seguro. La emisión de una póliza de seguro Bupa está sujeta a todas las evaluaciones de riesgo por parte de Bupa y a la recepción de todos los pagos de prima requeridos.

Sheet — (hidden)
A23: Global Major Medical Health Plan | D23: Nombre del Asegurado Titular | F23: =+'INGRESO DE DATOS'!$D$13 -> Nombre Completo
A24: Cobertura geográfica | B24: Mundial
A25: Red de proveedores | B25: En Latinoamérica: Abierta En estados Unidos: BCBS En el resto del Mundo: Red Global Bupa | D25: Número de adultos en la póliza | F25: =+'INGRESO DE DATOS'!$D$15 -> 2 | H25: Edad del Asegurado Titular | I25: =+'INGRESO DE DATOS'!$D$17 -> 18
A26: Opción fuera de la red de proveedores | B26: N/A
A27: Cobertura máxima annual | B27: US$5,000,000 | D27: Número de niños en la póliza | F27: =+'INGRESO DE DATOS'!$H$15 -> 0 | H27: Edad del/la conyuge | I27: =+'INGRESO DE DATOS'!$H$17 -> 18
A28: Cobertura extendida para dependientes elegibles | B28: 1 año
A29: Inclusión de niños sin costo | B29: Tarifas con descuentos para 1, 2 y 3 o más hijos | F29: Fecha de la cotización: | H29: =NOW() -> 2022-01-13T13:40:57.550
A30: TRATAMIENTOS AMBULATORIOS | H30: FALSE
A31: Cirugía ambulatoria | B31: 1 | E31: Deducibles | G31: PLAN 1 | H31: PLAN 2
A32: Exámenes de patología, radiología y diagnóstico | B32: 1 | E32: En el país de residencia | G32: 10000 | H32: 20000
A33: Honorarios médicos | B33: N/A | E33: Fuera del país de residencia | G33: 10000 | H33: 20000
A34: Enfermeros profesionales | B34: N/A
A35: Salud mental | B35: N/A | E35: Tarifas Anuales
A36: Fisioterapeutas, osteópatas y quiroprácticos | B36: N/A | E36: Prima para Asegurado Titular | G36: =VLOOKUP($I$25,Tablas!$A$1129:$G$1195,3,TRUE) -> 2609 | H36: =VLOOKUP($I$25,Tablas!$A$1129:$G$1195,4,TRUE) -> 2023
A37: Terapeuta ocupacional y ortóptico | B37: N/A | E37: Prima para conyuge | G37: =IF($F$25=1,0,(VLOOKUP($I$27,Tablas!$A$1129:$G$1195,3,TRUE))) -> 2609 | H37: =IF($F$25=1,0,(VLOOKUP($I$27,Tablas!$A$1129:$G$1195,4,TRUE))) -> 2023
A38: Podología | B38: N/A | E38: Prima para hijo (s) | G38: =IF($F$27=0,0,(VLOOKUP($F$27,Tablas!$A$1196:$G$1198,3,TRUE))) -> 0 | H38: =IF($F$27=0,0,(VLOOKUP($F$27,Tablas!$A$1196:$G$1198,4,TRUE))) -> 0
A39: Terapias complementarias | B39: N/A | E39: Total de Prima neta | G39: =SUM(G36:G38) -> 5218 | H39: =SUM(H36:H38) -> 4046
A40: Consultas medicina alternativa | B40: N/A | E40: Tarifa administrativa anual | G40: 75 | H40: 75
A41: Medicamentos y materiales de curación con receta médica | B41: 1 | E41: IVA (14.49%) | G41: =(G40)*14.49% -> 10.8675 | H41: =(H40)*14.49% -> 10.8675
A42: Equipo médico durable | B42: 1 | E42: TOTAL ANUAL | G42: =SUM(G39:G41) -> 5303.8675 | H42: =SUM(H39:H41) -> 4131.8675
A43: Asesoría nutricional | B43: N/A
A44: TRATAMIENTO DENTAL | E44: Tarifas Semianuales
A45: Tratamiento dental relacionado con un accidente cubierto | B45: 1 | E45: Prima para Asegurado Titular | G45: =VLOOKUP($I$25,Tablas!$A$1353:$G$1419,3,TRUE) -> 1382.77 | H45: =VLOOKUP($I$25,Tablas!$A$1353:$G$1419,4,TRUE) -> 1072.19
A46: Tratamiento dental : rellenos, tratamiento del conducto radicular, radiografia, extraccion dental, limpieza dental, anestecia | B46: N/A | E46: Prima para conyuge | G46: =IF($F$25=1,0,(VLOOKUP($I$27,Tablas!$A$1353:$G$1419,3,TRUE))) -> 1382.77 | H46: =IF($F$25=1,0,(VLOOKUP($I$27,Tablas!$A$1353:$G$1419,4,TRUE))) -> 1072.19
A47: Restauración mayor no estética : puentes, coronas, implantes dentales, dentaduras postizas | B47: N/A | E47: Prima para hijo (s) | G47: =IF($F$27=0,0,(VLOOKUP($F$27,Tablas!$A$1420:$G$1422,3,TRUE))) -> 0 | H47: =IF($F$27=0,0,(VLOOKUP($F$27,Tablas!$A$1420:$G$1422,4,TRUE))) -> 0
A48: Ortodoncia no estética | B48: N/A | E48: Total de Prima neta | G48: =SUM(G45:G47) -> 2765.54 | H48: =SUM(H45:H47) -> 2144.38
A49: HOSPITALIZACIÓN Y TRATAMIENTO EN EL HOSPITAL | E49: Tarifa administrativa anual | G49: 75 | H49: 75
A50: Alojamiento en el hospital y alimentos | B50: 100% habitación privada | E50: IVA (14.49%) | G50: =(G49)*14.49% -> 10.8675 | H50: =(H49)*14.49% -> 10.8675
E51: TOTAL de primera cuota | G51: =SUM(G48:G50) -> 2851.4075 | H51: =SUM(H48:H50) -> 2230.2475
A52: Gastos de alojamiento para acompañantes en caso de hospitalización | B52: N/A | E52: Costo de segunda cuota | G52: =G48+G50 - G49*14.49% -> 2765.54 | H52: =H48+H50 - H49*14.49% -> 2144.38
A53: Cama extra en el hospital para acompañante | B53: 100%, 1 persona | E53: TOTAL ANUAL | G53: =G51+G52 -> 5616.9475 | H53: =H51+H52 -> 4374.6275
A54: Derecho a sala, insumos, materiales clínicos y medicamentos | B54: 1
A55: Cuidados intensivos | B55: 1 | E55: Tarifas Trimestrales
A56: Cirugía, incluyendo honorarios de equipo médico quirúrgico | B56: 1 | E56: Prima para Asegurado Titular | G56: =VLOOKUP($I$25,Tablas!$A$1278:$G$1344,3,TRUE) -> 717.475 | H56: =VLOOKUP($I$25,Tablas!$A$1278:$G$1344,4,TRUE) -> 556.325
A57: Exámenes de patología, radiología y diagnóstico | B57: 1 | E57: Prima para conyuge | G57: =IF($F$25=1,0,(VLOOKUP($I$27,Tablas!$A$1278:$G$1344,3,TRUE))) -> 717.475 | H57: =IF($F$25=1,0,(VLOOKUP($I$27,Tablas!$A$1278:$G$1344,4,TRUE))) -> 556.325
A58: Fisioterapeutas, terapeutas ocupacionales, quinesiólogos, fonoaudiólogos y nutricionistas | B58: 1 | E58: Prima para hijo (s) | G58: =IF($F$27=0,0,(VLOOKUP($F$27,Tablas!$A$1345:$G$1347,3,TRUE))) -> 0 | H58: =IF($F$27=0,0,(VLOOKUP($F$27,Tablas!$A$1345:$G$1347,4,TRUE))) -> 0
A59: Cirugía por obesidad | B59: 100% (Período de espera de 24 meses) | E59: Total de Prima neta | G59: =SUM(G56:G58) -> 1434.95 | H59: =SUM(H56:H58) -> 1112.65
A60: Cirugía preventiva | B60: 1 | E60: Tarifa administrativa anual | G60: 75 | H60: 75
A61: Prótesis | B61: US$ 5,000 | E61: IVA (14.49%) | G61: =(G60)*14.49% -> 10.8675 | H61: =(H60)*14.49% -> 10.8675
A62: Implantes prostéticos y órtesis | B62: 1 | E62: TOTAL de primera cuota | G62: =SUM(G59:G61) -> 1520.8175 | H62: =SUM(H59:H61) -> 1198.5175
A63: Cirugía reconstructiva | B63: 1 | E63: Tres (3) cuotas adicionales, cada una de: | G63: =G59+G61 - G60*14.49% -> 1434.95 | H63: =H59+H61 - H60*14.49% -> 1112.65
A64: Salud Mental (durante hospitalización) | B64: 100% maximo 90 visitas de por vida | E64: TOTAL ANUAL | G64: =G62+(G63*3) -> 5825.6675 | H64: =H62+(H63*3) -> 4536.4675
A65: REHABILITACION Y CUIDADO PALIATIVOS
A66: Cuidados en el hogar | B66: US$ 300 por día, máximo 60 días | E66: Tarifas Mensuales
A67: Cuidados paliativos y centro para enfermeros terminales | B67: 1 | E67: Prima para Asegurado Titular | G67: =VLOOKUP($I$25,Tablas!$A$1203:$G$1269,3,TRUE) -> 243.5066667 | H67: =VLOOKUP($I$25,Tablas!$A$1203:$G$1269,4,TRUE) -> 188.8133333
A68: Rehabilitación (multidisciplinaria) | B68: 100% hasta 60 días | E68: Prima para conyuge | G68: =IF($F$25=1,0,(VLOOKUP($I$27,Tablas!$A$1203:$G$112694,3,TRUE))) -> 243.5066667 | H68: =IF($F$25=1,0,(VLOOKUP($I$27,Tablas!$A$1203:$G$1269,4,TRUE))) -> 188.8133333
A69: CUIDADOS PARA PACIENTES INTERNADOS Y/O PACIENTES AMBULATORIOS | E69: Prima para hijo (s) | G69: =IF($F$27=0,0,(VLOOKUP($F$27,Tablas!$A$1270:$G$1272,3,TRUE))) -> 0 | H69: =IF($F$27=0,0,(VLOOKUP($F$27,Tablas!$A$1270:$G$1272,4,TRUE))) -> 0
A70: Imagenología avanzada | B70: 1 | E70: Total de Prima neta | G70: =SUM(G67:G69) -> 487.0133333 | H70: =SUM(H67:H69) -> 377.6266667
A71: Condiciones congénitas | E71: Tarifa administrativa anual | G71: 75 | H71: 75
A72: 1. Diagnosticado antes de los 18 años de edad | B72: 1. US$500,000 de por vida | E72: IVA (14.49%) | G72: =(G71)*14.49% -> 10.8675 | H72: =(H71)*14.49% -> 10.8675
A73: 2. Diagnosticado al cumplir los 18 años de edad o después | B73: 2. 100% | E73: TOTAL de primera cuota | G73: =SUM(G70:G72) -> 572.8808333 | H73: =SUM(H70:H72) -> 463.4941667
A74: Tratamiento contra el cáncer | B74: 1 | E74: Once (11) cuotas mensuales cada una de: | G74: =G70+G72 - G71*14.49% -> 487.0133333 | H74: =H70+H72 - H71*14.49% -> 377.6266667
A75: Servicio de trasplantes | B75: US$1,000,000 por diagnóstico, de por vida | E75: TOTAL ANUAL | G75: =G73+(G74*11) -> 5930.0275 | H75: =H73+(H74*11) -> 4617.3875
A76: Diálisis renal | B76: 1
A77: Síndrome de inmunodeficiencia adquirida (SIDA) (período de espera de 1 año) | B77: US$500,000 de por vida
A78: Cobertura para actividades y deportes peligrosos (Tanto de forma amateur como profesional o por compensación) | B78: 1
A79: EMBARAZO Y PARTO
A80: Parto normal y cesárea | B80: N/A
A81: Tratamiento pre y post parto | B81: N/A
A82: Complicaciones del embarazo y parto | B82: N/A
A83: TRANSPORTE Y VIAJES | E83: Tarifas en US$ - Efectivas a partir del 01 de Enero, 2017 hasta Julio 1, 2017
A84: Evacuación médica hospitalaria | B84: 1 | E84: Este presupuesto solamente tiene carácter informativo y en ningún momento expresa compromiso legal para suministrarle cobertura de seguro. La emisión de una póliza de seguro Bupa está sujeta a todas las evaluaciones de riesgo por parte de Bupa y a la recepción de todos los pagos de prima requeridos.
A85: Repatriación médica | B85: 1
A86: Ambulancia aérea local | B86: 1
A87: Ambulancia terrestre local | B87: 1
A88: Costos de viaje de traslado para un acompañante (por evacuación o repatriación)) | B88: 1
A89: Costos de alimentación y transporte para acompañante | B89: US$150 por día; maximo 10 días por año políza
A90: Costos de viaje de traslado de niños | B90: 1
A91: Costos de viaje de traslado, alimentación y trasporte para visita compasiva | B91: N/A
A92: Repatriación de restos mortales | B92: 1
A93: TRATAMIENTO PREVENTIVO
A94: Examen de salud general (período de espera de 10 meses) | B94: N/A
A95: Vacunas para niños, VPH, e Influenza | B95: N/A
A96: Examen dental preventivo (período de espera de 6 meses) (no deducible) | B96: N/A
A97: Exámen de la vista (no deducible) | B97: N/A
A98: Aparatos auditivos | B98: N/A
A99: Anteojos y lentes de contacto | B99: N/A
A100: Cirugía refractiva (1 por ojo, de por vida) | B100: N/A
A101: Prueba genética de cáncer | B101: N/A

Sheet Resumen tarifas
A16: Cotizador de Seguro Médico - Global Health Plans
A18: Nombre del Asegurado Titular | C18: =+'INGRESO DE DATOS'!$D$13 -> Nombre Completo
A20: Número de adultos en la póliza | C20: =+'INGRESO DE DATOS'!$D$15 -> 2 | E20: Edad del Asegurado Titular | G20: =+'INGRESO DE DATOS'!$D$17 -> 18
A22: Número de niños en la póliza | C22: =+'INGRESO DE DATOS'!$H$15 -> 0 | E22: Edad del/la cónyuge | G22: =+'INGRESO DE DATOS'!$H$17 -> 18
C24: Fecha de la cotización: | D24: =NOW() -> 2022-01-13T13:40:57.550 | F24: Zona de cotización: | G24: ='INGRESO DE DATOS'!D19 -> Guayas/Santa Elena
A26: Global Ultimtate Health Plan
A27: Deducibles | C27: PLAN 1 | D27: PLAN 2
A28: En el país de residencia | C28: 0 | D28: 1000
A29: Fuera del país de residencia | C29: 0 | D29: 1000
C30: Tarifas anuales
C31: ='Global Health Ultimate'!G34 -> 50570 | D31: ='Global Health Ultimate'!H34 -> 32659.12
C32: Tarifas semi anuales
C33: ='Global Health Ultimate'!G45 -> 26760.76 | D33: ='Global Health Ultimate'!H45 -> 17267.9936
C34: Tarifas trimestrales
C35: ='Global Health Ultimate'!G57 -> 13885.3 | D35: ='Global Health Ultimate'!H57 -> 8959.808
A36: Ahorros en tarifas de prima para niños* | C36: ='Global Health Ultimate'!G35 -> 0 | D36: ='Global Health Ultimate'!H35 -> 0
A38: Global Elite Health Plan
A39: Deducibles | D39: PLAN 1 | E39: PLAN 2 | F39: PLAN 3 | G39: PLAN 4 | H39: PLAN 5
A40: En el país de residencia | D40: 250 | E40: 2000 | F40: 3500 | G40: 5000 | H40: 10000
A41: Fuera del país de residencia | D41: 5000 | E41: 2000 | F41: 3500 | G41: 5000 | H41: 10000
D42: Tarifas anuales
D43: =+'Global Health Elite'!G35 -> 21323.12 | E43: =+'Global Health Elite'!H35 -> 18702.32 | F43: =+'Global Health Elite'!I35 -> 15153.84 | G43: =+'Global Health Elite'!J35 -> 13157.04 | H43: =+'Global Health Elite'!K35 -> 9831.12
D44: Tarifas semi anuales
D45: =+'Global Health Elite'!G46 -> 11259.9136 | E45: =+'Global Health Elite'!H46 -> 9870.8896 | F45: =+'Global Health Elite'!I46 -> 7990.1952 | G45: =+'Global Health Elite'!J46 -> 6931.8912 | H45: =+'Global Health Elite'!K46 -> 5169.1536
D46: Tarifas trimestrales
D47: =+'Global Health Elite'!G58 -> 5842.408 | E47: =+'Global Health Elite'!H58 -> 5121.688 | F47: =+'Global Health Elite'!I58 -> 4145.856 | G47: =+'Global Health Elite'!J58 -> 3596.736 | H47: =+'Global Health Elite'!K58 -> 2682.108
A48: Ahorros en tarifas de prima para niños* | D48: =+'Global Health Elite'!G36 -> 0 | E48: =+'Global Health Elite'!H36 -> 0 | F48: =+'Global Health Elite'!I36 -> 0 | G48: =+'Global Health Elite'!J36 -> 0 | H48: =+'Global Health Elite'!K36 -> 0
A50: Global Premier Health Plan
A51: Deducibles | E51: PLAN 1 | F51: PLAN 2 | G51: PLAN 3 | H51: PLAN 4 | I51: PLAN 5
A52: En el país de residencia | E52: 250 | F52: 2000 | G52: 5000 | H52: 10000 | I52: 20000
A53: Fuera del país de residencia | E53: 5000 | F53: 2000 | G53: 5000 | H53: 10000 | I53: 20000
E54: Tarifas anuales
E55: =+'Global Health Premier'!G36 -> 13922.48 | F55: =+'Global Health Premier'!H36 -> 12641.2 | G55: =+'Global Health Premier'!I36 -> 9250.8 | H55: =+'Global Health Premier'!J36 -> 6642.48 | I55: =+'Global Health Premier'!K36 -> 5228.08
E56: Tarifas semi anuales
E57: =+'Global Health Premier'!G46 -> 7337.5744 | F57: =+'Global Health Premier'!H46 -> 6658.496 | G57: =+'Global Health Premier'!I46 -> 4861.584 | H57: =+'Global Health Premier'!J46 -> 3479.1744 | I57: =+'Global Health Premier'!K46 -> 2729.5424
E58: Tarifas trimestrales
E59: =+'Global Health Premier'!G57 -> 3807.232 | F59: =+'Global Health Premier'!H57 -> 3454.88 | G59: =+'Global Health Premier'!I57 -> 2522.52 | H59: =+'Global Health Premier'!J57 -> 1805.232 | I59: =+'Global Health Premier'!K57 -> 1416.272
A61: Global Select Health Plan
A62: Deducibles | E62: PLAN 1 | F62: PLAN 2 | G62: PLAN 3 | H62: PLAN 4 | I62: PLAN 5
A63: En el país de residencia | E63: 250 | F63: 2000 | G63: 5000 | H63: 10000 | I63: 20000
A64: Fuera del país de residencia | E64: 5000 | F64: 2000 | G64: 5000 | H64: 10000 | I64: 20000
E65: Tarifas anuales
E66: =+'Global Health Select'!G35 -> 8762 | F66: =+'Global Health Select'!H35 -> 8410.48 | G66: =+'Global Health Select'!I35 -> 6180.72 | H66: =+'Global Health Select'!J35 -> 4439.76 | I66: =+'Global Health Select'!K35 -> 3503.76
E67: Tarifas semi anuales
E68: =+'Global Health Select'!G45 -> 4602.52 | F68: =+'Global Health Select'!H45 -> 4416.2144 | G68: =+'Global Health Select'!I45 -> 3234.4416 | H68: =+'Global Health Select'!J45 -> 2311.7328 | I68: =+'Global Health Select'!K45 -> 1815.6528
E69: Tarifas trimestrales
E70: =+'Global Health Select'!G56 -> 2388.1 | F70: =+'Global Health Select'!H56 -> 2291.432 | G70: =+'Global Health Select'!I56 -> 1678.248 | H70: =+'Global Health Select'!J56 -> 1199.484 | I70: =+'Global Health Select'!K56 -> 942.084
A72: Bupa Global Major Medical Health Plan
A73: Deducibles | C73: PLAN 1 | D73: PLAN 2
A74: En el país de residencia | C74: 10000 | D74: 20000
A75: Fuera del país de residencia | C75: 10000 | D75: 20000
C76: Tarifas anuales
C77: =—!G42 -> 5303.8675 | D77: =—!H42 -> 4131.8675
C78: Tarifas semi anuales
C79: =—!G52 -> 2765.54 | D79: =—!H52 -> 2144.38
C80: Tarifas trimestrales
C81: =—!G63 -> 1434.95 | D81: =—!H63 -> 1112.65
A84: *Basado en un modo de pago anual
A86: Tarifas en US$ - Efectivas a partir del 1ro. de enero de 2022
A87: Este presupuesto solamente tiene carácter informativo y en ningún momento expresa compromiso legal para suministrarle cobertura de seguro. La emisión de una póliza de seguro Bupa está sujeta a todas las evaluaciones de riesgo por parte de Bupa y a la recepción de todos los pagos de prima requeridos.

Sheet Tablas (hidden)
M1: Zonas cotización
A2: BUPA GLOBAL ELITE | I2: FACTOR MENSUAL: | K2: =1.12/12 -> 0.09333333333 | M2: Guayas/Santa Elena
A3: TARIFAS ANUALES | I3: FACTOR TRIMESTRAL: | K3: =1.1/4 -> 0.275 | M3: Resto de Ecuador
A4: EDAD | I4: FACTOR SEMIANUAL: | K4: =1.06/2 -> 0.53
C5: 250 | D5: 2000 | E5: 3500 | F5: 5000 | G5: 10000
A6: 18 | C6: =IF('INGRESO DE DATOS'!$D$19="Guayas/Santa Elena",'Tablas Guayaquil'!C6,'Tablas Resto de Ecuador'!C6) -> 10214 | D6: =IF('INGRESO DE DATOS'!$D$19="Guayas/Santa Elena",'Tablas Guayaquil'!D6,'Tablas Resto de Ecuador'!D6) -> 8954 | E6: =IF('INGRESO DE DATOS'!$D$19="Guayas/Santa Elena",'Tablas Guayaquil'!E6,'Tablas Resto de Ecuador'!E6) -> 7248 | F6: =IF('INGRESO DE DATOS'!$D$19="Guayas/Santa Elena",'Tablas Guayaquil'!F6,'Tablas Resto de Ecuador'!F6) -> 6288 | G6: =IF('INGRESO DE DATOS'!$D$19="Guayas/Santa Elena",'Tablas Guayaquil'!G6,'Tablas Resto de Ecuador'!G6) -> 4689
A7: 19 | C7: =IF('INGRESO DE DATOS'!$D$19="Guayas/Santa Elena",'Tablas Guayaquil'!C7,'Tablas Resto de Ecuador'!C7) -> 10214 | D7: =IF('INGRESO DE DATOS'!$D$19="Guayas/Santa Elena",'Tablas Guayaquil'!D7,'Tablas Resto de Ecuador'!D7) -> 8954 | E7: =IF('INGRESO DE DATOS'!$D$19="Guayas/Santa Elena",'Tablas Guayaquil'!E7,'Tablas Resto de Ecuador'!E7) -> 7248 | F7: =IF('INGRESO DE DATOS'!$D$19="Guayas/Santa Elena",'Tablas Guayaquil'!F7,'Tablas Resto de Ecuador'!F7) -> 6288 | G7: =IF('INGRESO DE DATOS'!$D$19="Guayas/Santa Elena",'Tablas Guayaquil'!G7,'Tablas Resto de Ecuador'!G7) -> 4689
A8: 20 | C8: =IF('INGRESO DE DATOS'!$D$19="Guayas/Santa Elena",'Tablas Guayaquil'!C8,'Tablas Resto de Ecuador'!C8) -> 10214 | D8: =IF('INGRESO DE DATOS'!$D$19="Guayas/Santa Elena",'Tablas Guayaquil'!D8,'Tablas Resto de Ecuador'!D8) -> 8954 | E8: =IF('INGRESO DE DATOS'!$D$19="Guayas/Santa Elena",'Tablas Guayaquil'!E8,'Tablas Resto de Ecuador'!E8) -> 7248 | F8: =IF('INGRESO DE DATOS'!$D$19="Guayas/Santa Elena",'Tablas Guayaquil'!F8,'Tablas Resto de Ecuador'!F8) -> 6288 | G8: =IF('INGRESO DE DATOS'!$D$19="Guayas/Santa Elena",'Tablas Guayaquil'!G8,'Tablas Resto de Ecuador'!G8) -> 4689
A9: 21 | C9: =IF('INGRESO DE DATOS'!$D$19="Guayas/Santa Elena",'Tablas Guayaquil'!C9,'Tablas Resto de Ecuador'!C9) -> 10214 | D9: =IF('INGRESO DE DATOS'!$D$19="Guayas/Santa Elena",'Tablas Guayaquil'!D9,'Tablas Resto de Ecuador'!D9) -> 8954 | E9: =IF('INGRESO DE DATOS'!$D$19="Guayas/Santa Elena",'Tablas Guayaquil'!E9,'Tablas Resto de Ecuador'!E9) -> 7248 | F9: =IF('INGRESO DE DATOS'!$D$19="Guayas/Santa Elena",'Tablas Guayaquil'!F9,'Tablas Resto de Ecuador'!F9) -> 6288 | G9: =IF('INGRESO DE DATOS'!$D$19="Guayas/Santa Elena",'Tablas Guayaquil'!G9,'Tablas Resto de Ecuador'!G9) -> 4689
A10: 22 | C10: =IF('INGRESO DE DATOS'!$D$19="Guayas/Santa Elena",'Tablas Guayaquil'!C10,'Tablas Resto de Ecuador'!C10) -> 10214 | D10: =IF('INGRESO DE DATOS'!$D$19="Guayas/Santa Elena",'Tablas Guayaquil'!D10,'Tablas Resto de Ecuador'!D10) -> 8954 | E10: =IF('INGRESO DE DATOS'!$D$19="Guayas/Santa Elena",'Tablas Guayaquil'!E10,'Tablas Resto de Ecuador'!E10) -> 7248 | F10: =IF('INGRESO DE DATOS'!$D$19="Guayas/Santa Elena",'Tablas Guayaquil'!F10,'Tablas Resto de Ecuador'!F10) -> 6288 | G10: =IF('INGRESO DE DATOS'!$D$19="Guayas/Santa Elena",'Tablas Guayaquil'!G10,'Tablas Resto de Ecuador'!G10) -> 4689
A11: 23 | C11: =IF('INGRESO DE DATOS'!$D$19="Guayas/Santa Elena",'Tablas Guayaquil'!C11,'Tablas Resto de Ecuador'!C11) -> 10214 | D11: =IF('INGRESO DE DATOS'!$D$19="Guayas/Santa Elena",'Tablas Guayaquil'!D11,'Tablas Resto de Ecuador'!D11) -> 8954 | E11: =IF('INGRESO DE DATOS'!$D$19="Guayas/Santa Elena",'Tablas Guayaquil'!E11,'Tablas Resto de Ecuador'!E11) -> 7248 | F11: =IF('INGRESO DE DATOS'!$D$19="Guayas/Santa Elena",'Tablas Guayaquil'!F11,'Tablas Resto de Ecuador'!F11) -> 6288 | G11: =IF('INGRESO DE DATOS'!$D$19="Guayas/Santa Elena",'Tablas Guayaquil'!G11,'Tablas Resto de Ecuador'!G11) -> 4689
A12: 24 | C12: =IF('INGRESO DE DATOS'!$D$19="Guayas/Santa Elena",'Tablas Guayaquil'!C12,'Tablas Resto de Ecuador'!C12) -> 10214 | D12: =IF('INGRESO DE DATOS'!$D$19="Guayas/Santa Elena",'Tablas Guayaquil'!D12,'Tablas Resto de Ecuador'!D12) -> 8954 | E12: =IF('INGRESO DE DATOS'!$D$19="Guayas/Santa Elena",'Tablas Guayaquil'!E12,'Tablas Resto de Ecuador'!E12) -> 7248 | F12: =IF('INGRESO DE DATOS'!$D$19="Guayas/Santa Elena",'Tablas Guayaquil'!F12,'Tablas Resto de Ecuador'!F12) -> 6288 | G12: =IF('INGRESO DE DATOS'!$D$19="Guayas/Santa Elena",'Tablas Guayaquil'!G12,'Tablas Resto de Ecuador'!G12) -> 4689
A13: 25 | C13: =IF('INGRESO DE DATOS'!$D$19="Guayas/Santa Elena",'Tablas Guayaquil'!C13,'Tablas Resto de Ecuador'!C13) -> 10916 | D13: =IF('INGRESO DE DATOS'!$D$19="Guayas/Santa Elena",'Tablas Guayaquil'!D13,'Tablas Resto de Ecuador'!D13) -> 9568 | E13: =IF('INGRESO DE DATOS'!$D$19="Guayas/Santa Elena",'Tablas Guayaquil'!E13,'Tablas Resto de Ecuador'!E13) -> 7699 | F13: =IF('INGRESO DE DATOS'!$D$19="Guayas/Santa Elena",'Tablas Guayaquil'!F13,'Tablas Resto de Ecuador'!F13) -> 6678 | G13: =IF('INGRESO DE DATOS'!$D$19="Guayas/Santa Elena",'Tablas Guayaquil'!G13,'Tablas Resto de Ecuador'!G13) -> 4978
A14: 26 | C14: =IF('INGRESO DE DATOS'!$D$19="Guayas/Santa Elena",'Tablas Guayaquil'!C14,'Tablas Resto de Ecuador'!C14) -> 10916 | D14: =IF('INGRESO DE DATOS'!$D$19="Guayas/Santa Elena",'Tablas Guayaquil'!D14,'Tablas Resto de Ecuador'!D14) -> 9568 | E14: =IF('INGRESO DE DATOS'!$D$19="Guayas/Santa Elena",'Tablas Guayaquil'!E14,'Tablas Resto de Ecuador'!E14) -> 7699 | F14: =IF('INGRESO DE DATOS'!$D$19="Guayas/Santa Elena",'Tablas Guayaquil'!F14,'Tablas Resto de Ecuador'!F14) -> 6678 | G14: =IF('INGRESO DE DATOS'!$D$19="Guayas/Santa Elena",'Tablas Guayaquil'!G14,'Tablas Resto de Ecuador'!G14) -> 4978
A15: 27 | C15: =IF('INGRESO DE DATOS'!$D$19="Guayas/Santa Elena",'Tablas Guayaquil'!C15,'Tablas Resto de Ecuador'!C15) -> 10916 | D15: =IF('INGRESO DE DATOS'!$D$19="Guayas/Santa Elena",'Tablas Guayaquil'!D15,'Tablas Resto de Ecuador'!D15) -> 9568 | E15: =IF('INGRESO DE DATOS'!$D$19="Guayas/Santa Elena",'Tablas Guayaquil'!E15,'Tablas Resto de Ecuador'!E15) -> 7699 | F15: =IF('INGRESO DE DATOS'!$D$19="Guayas/Santa Elena",'Tablas Guayaquil'!F15,'Tablas Resto de Ecuador'!F15) -> 6678 | G15: =IF('INGRESO DE DATOS'!$D$19="Guayas/Santa Elena",'Tablas Guayaquil'!G15,'Tablas Resto de Ecuador'!G15) -> 4978
A16: 28 | C16: =IF('INGRESO DE DATOS'!$D$19="Guayas/Santa Elena",'Tablas Guayaquil'!C16,'Tablas Resto de Ecuador'!C16) -> 10916 | D16: =IF('INGRESO DE DATOS'!$D$19="Guayas/Santa Elena",'Tablas Guayaquil'!D16,'Tablas Resto de Ecuador'!D16) -> 9568 | E16: =IF('INGRESO DE DATOS'!$D$19="Guayas/Santa Elena",'Tablas Guayaquil'!E16,'Tablas Resto de Ecuador'!E16) -> 7699 | F16: =IF('INGRESO DE DATOS'!$D$19="Guayas/Santa Elena",'Tablas Guayaquil'!F16,'Tablas Resto de Ecuador'!F16) -> 6678 | G16: =IF('INGRESO DE DATOS'!$D$19="Guayas/Santa Elena",'Tablas Guayaquil'!G16,'Tablas Resto de Ecuador'!G16) -> 4978
A17: 29 | C17: =IF('INGRESO DE DATOS'!$D$19="Guayas/Santa Elena",'Tablas Guayaquil'!C17,'Tablas Resto de Ecuador'!C17) -> 10916 | D17: =IF('INGRESO DE DATOS'!$D$19="Guayas/Santa Elena",'Tablas Guayaquil'!D17,'Tablas Resto de Ecuador'!D17) -> 9568 | E17: =IF('INGRESO DE DATOS'!$D$19="Guayas/Santa Elena",'Tablas Guayaquil'!E17,'Tablas Resto de Ecuador'!E17) -> 7699 | F17: =IF('INGRESO DE DATOS'!$D$19="Guayas/Santa Elena",'Tablas Guayaquil'!F17,'Tablas Resto de Ecuador'!F17) -> 6678 | G17: =IF('INGRESO DE DATOS'!$D$19="Guayas/Santa Elena",'Tablas Guayaquil'!G17,'Tablas Resto de Ecuador'!G17) -> 4978
A18: 30 | C18: =IF('INGRESO DE DATOS'!$D$19="Guayas/Santa Elena",'Tablas Guayaquil'!C18,'Tablas Resto de Ecuador'!C18) -> 12138 | D18: =IF('INGRESO DE DATOS'!$D$19="Guayas/Santa Elena",'Tablas Guayaquil'!D18,'Tablas Resto de Ecuador'!D18) -> 10641 | E18: =IF('INGRESO DE DATOS'!$D$19="Guayas/Santa Elena",'Tablas Guayaquil'!E18,'Tablas Resto de Ecuador'!E18) -> 8498 | F18: =IF('INGRESO DE DATOS'!$D$19="Guayas/Santa Elena",'Tablas Guayaquil'!F18,'Tablas Resto de Ecuador'!F18) -> 7369 | G18: =IF('INGRESO DE DATOS'!$D$19="Guayas/Santa Elena",'Tablas Guayaquil'!G18,'Tablas Resto de Ecuador'!G18) -> 5494
A19: 31 | C19: =IF('INGRESO DE DATOS'!$D$19="Guayas/Santa Elena",'Tablas Guayaquil'!C19,'Tablas Resto de Ecuador'!C19) -> 12138 | D19: =IF('INGRESO DE DATOS'!$D$19="Guayas/Santa Elena",'Tablas Guayaquil'!D19,'Tablas Resto de Ecuador'!D19) -> 10641 | E19: =IF('INGRESO DE DATOS'!$D$19="Guayas/Santa Elena",'Tablas Guayaquil'!E19,'Tablas Resto de Ecuador'!E19) -> 8498 | F19: =IF('INGRESO DE DATOS'!$D$19="Guayas/Santa Elena",'Tablas Guayaquil'!F19,'Tablas Resto de Ecuador'!F19) -> 7369 | G19: =IF('INGRESO DE DATOS'!$D$19="Guayas/Santa Elena",'Tablas Guayaquil'!G19,'Tablas Resto de Ecuador'!G19) -> 5494
A20: 32 | C20: =IF('INGRESO DE DATOS'!$D$19="Guayas/Santa Elena",'Tablas Guayaquil'!C20,'Tablas Resto de Ecuador'!C20) -> 12138 | D20: =IF('INGRESO DE DATOS'!$D$19="Guayas/Santa Elena",'Tablas Guayaquil'!D20,'Tablas Resto de Ecuador'!D20) -> 10641 | E20: =IF('INGRESO DE DATOS'!$D$19="Guayas/Santa Elena",'Tablas Guayaquil'!E20,'Tablas Resto de Ecuador'!E20) -> 8498 | F20: =IF('INGRESO DE DATOS'!$D$19="Guayas/Santa Elena",'Tablas Guayaquil'!F20,'Tablas Resto de Ecuador'!F20) -> 7369 | G20: =IF('INGRESO DE DATOS'!$D$19="Guayas/Santa Elena",'Tablas Guayaquil'!G20,'Tablas Resto de Ecuador'!G20) -> 5494
A21: 33 | C21: =IF('INGRESO DE DATOS'!$D$19="Guayas/Santa Elena",'Tablas Guayaquil'!C21,'Tablas Resto de Ecuador'!C21) -> 12138 | D21: =IF('INGRESO DE DATOS'!$D$19="Guayas/Santa Elena",'Tablas Guayaquil'!D21,'Tablas Resto de Ecuador'!D21) -> 10641 | E21: =IF('INGRESO DE DATOS'!$D$19="Guayas/Santa Elena",'Tablas Guayaquil'!E21,'Tablas Resto de Ecuador'!E21) -> 8498 | F21: =IF('INGRESO DE DATOS'!$D$19="Guayas/Santa Elena",'Tablas Guayaquil'!F21,'Tablas Resto de Ecuador'!F21) -> 7369 | G21: =IF('INGRESO DE DATOS'!$D$19="Guayas/Santa Elena",'Tablas Guayaquil'!G21,'Tablas Resto de Ecuador'!G21) -> 5494
A22: 34 | C22: =IF('INGRESO DE DATOS'!$D$19="Guayas/Santa Elena",'Tablas Guayaquil'!C22,'Tablas Resto de Ecuador'!C22) -> 12138 | D22: =IF('INGRESO DE DATOS'!$D$19="Guayas/Santa Elena",'Tablas Guayaquil'!D22,'Tablas Resto de Ecuador'!D22) -> 10641 | E22: =IF('INGRESO DE DATOS'!$D$19="Guayas/Santa Elena",'Tablas Guayaquil'!E22,'Tablas Resto de Ecuador'!E22) -> 8498 | F22: =IF('INGRESO DE DATOS'!$D$19="Guayas/Santa Elena",'Tablas Guayaquil'!F22,'Tablas Resto de Ecuador'!F22) -> 7369 | G22: =IF('INGRESO DE DATOS'!$D$19="Guayas/Santa Elena",'Tablas Guayaquil'!G22,'Tablas Resto de Ecuador'!G22) -> 5494
A23: 35 | C23: =IF('INGRESO DE DATOS'!$D$19="Guayas/Santa Elena",'Tablas Guayaquil'!C23,'Tablas Resto de Ecuador'!C23) -> 13555 | D23: =IF('INGRESO DE DATOS'!$D$19="Guayas/Santa Elena",'Tablas Guayaquil'!D23,'Tablas Resto de Ecuador'!D23) -> 11878 | E23: =IF('INGRESO DE DATOS'!$D$19="Guayas/Santa Elena",'Tablas Guayaquil'!E23,'Tablas Resto de Ecuador'!E23) -> 9432 | F23: =IF('INGRESO DE DATOS'!$D$19="Guayas/Santa Elena",'Tablas Guayaquil'!F23,'Tablas Resto de Ecuador'!F23) -> 8179 | G23: =IF('INGRESO DE DATOS'!$D$19="Guayas/Santa Elena",'Tablas Guayaquil'!G23,'Tablas Resto de Ecuador'!G23) -> 6100
A24: 36 | C24: =IF('INGRESO DE DATOS'!$D$19="Guayas/Santa Elena",'Tablas Guayaquil'!C24,'Tablas Resto de Ecuador'!C24) -> 13555 | D24: =IF('INGRESO DE DATOS'!$D$19="Guayas/Santa Elena",'Tablas Guayaquil'!D24,'Tablas Resto de Ecuador'!D24) -> 11878 | E24: =IF('INGRESO DE DATOS'!$D$19="Guayas/Santa Elena",'Tablas Guayaquil'!E24,'Tablas Resto de Ecuador'!E24) -> 9432 | F24: =IF('INGRESO DE DATOS'!$D$19="Guayas/Santa Elena",'Tablas Guayaquil'!F24,'Tablas Resto de Ecuador'!F24) -> 8179 | G24: =IF('INGRESO DE DATOS'!$D$19="Guayas/Santa Elena",'Tablas Guayaquil'!G24,'Tablas Resto de Ecuador'!G24) -> 6100
A25: 37 | C25: =IF('INGRESO DE DATOS'!$D$19="Guayas/Santa Elena",'Tablas Guayaquil'!C25,'Tablas Resto de Ecuador'!C25) -> 13555 | D25: =IF('INGRESO DE DATOS'!$D$19="Guayas/Santa Elena",'Tablas Guayaquil'!D25,'Tablas Resto de Ecuador'!D25) -> 11878 | E25: =IF('INGRESO DE DATOS'!$D$19="Guayas/Santa Elena",'Tablas Guayaquil'!E25,'Tablas Resto de Ecuador'!E25) -> 9432 | F25: =IF('INGRESO DE DATOS'!$D$19="Guayas/Santa Elena",'Tablas Guayaquil'!F25,'Tablas Resto de Ecuador'!F25) -> 8179 | G25: =IF('INGRESO DE DATOS'!$D$19="Guayas/Santa Elena",'Tablas Guayaquil'!G25,'Tablas Resto de Ecuador'!G25) -> 6100
A26: 38 | C26: =IF('INGRESO DE DATOS'!$D$19="Guayas/Santa Elena",'Tablas Guayaquil'!C26,'Tablas Resto de Ecuador'!C26) -> 13555 | D26: =IF('INGRESO DE DATOS'!$D$19="Guayas/Santa Elena",'Tablas Guayaquil'!D26,'Tablas Resto de Ecuador'!D26) -> 11878 | E26: =IF('INGRESO DE DATOS'!$D$19="Guayas/Santa Elena",'Tablas Guayaquil'!E26,'Tablas Resto de Ecuador'!E26) -> 9432 | F26: =IF('INGRESO DE DATOS'!$D$19="Guayas/Santa Elena",'Tablas Guayaquil'!F26,'Tablas Resto de Ecuador'!F26) -> 8179 | G26: =IF('INGRESO DE DATOS'!$D$19="Guayas/Santa Elena",'Tablas Guayaquil'!G26,'Tablas Resto de Ecuador'!G26) -> 6100
A27: 39 | C27: =IF('INGRESO DE DATOS'!$D$19="Guayas/Santa Elena",'Tablas Guayaquil'!C27,'Tablas Resto de Ecuador'!C27) -> 13555 | D27: =IF('INGRESO DE DATOS'!$D$19="Guayas/Santa Elena",'Tablas Guayaquil'!D27,'Tablas Resto de Ecuador'!D27) -> 11878 | E27: =IF('INGRESO DE DATOS'!$D$19="Guayas/Santa Elena",'Tablas Guayaquil'!E27,'Tablas Resto de Ecuador'!E27) -> 9432 | F27: =IF('INGRESO DE DATOS'!$D$19="Guayas/Santa Elena",'Tablas Guayaquil'!F27,'Tablas Resto de Ecuador'!F27) -> 8179 | G27: =IF('INGRESO DE DATOS'!$D$19="Guayas/Santa Elena",'Tablas Guayaquil'!G27,'Tablas Resto de Ecuador'!G27) -> 6100
A28: 40 | C28: =IF('INGRESO DE DATOS'!$D$19="Guayas/Santa Elena",'Tablas Guayaquil'!C28,'Tablas Resto de Ecuador'!C28) -> 15181 | D28: =IF('INGRESO DE DATOS'!$D$19="Guayas/Santa Elena",'Tablas Guayaquil'!D28,'Tablas Resto de Ecuador'!D28) -> 13308 | E28: =IF('INGRESO DE DATOS'!$D$19="Guayas/Santa Elena",'Tablas Guayaquil'!E28,'Tablas Resto de Ecuador'!E28) -> 10519 | F28: =IF('INGRESO DE DATOS'!$D$19="Guayas/Santa Elena",'Tablas Guayaquil'!F28,'Tablas Resto de Ecuador'!F28) -> 9122 | G28: =IF('INGRESO DE DATOS'!$D$19="Guayas/Santa Elena",'Tablas Guayaquil'!G28,'Tablas Resto de Ecuador'!G28) -> 6801
A29: 41 | C29: =IF('INGRESO DE DATOS'!$D$19="Guayas/Santa Elena",'Tablas Guayaquil'!C29,'Tablas Resto de Ecuador'!C29) -> 15181 | D29: =IF('INGRESO DE DATOS'!$D$19="Guayas/Santa Elena",'Tablas Guayaquil'!D29,'Tablas Resto de Ecuador'!D29) -> 13308 | E29: =IF('INGRESO DE DATOS'!$D$19="Guayas/Santa Elena",'Tablas Guayaquil'!E29,'Tablas Resto de Ecuador'!E29) -> 10519 | F29: =IF('INGRESO DE DATOS'!$D$19="Guayas/Santa Elena",'Tablas Guayaquil'!F29,'Tablas Resto de Ecuador'!F29) -> 9122 | G29: =IF('INGRESO DE DATOS'!$D$19="Guayas/Santa Elena",'Tablas Guayaquil'!G29,'Tablas Resto de Ecuador'!G29) -> 6801
A30: 42 | C30: =IF('INGRESO DE DATOS'!$D$19="Guayas/Santa Elena",'Tablas Guayaquil'!C30,'Tablas Resto de Ecuador'!C30) -> 15181 | D30: =IF('INGRESO DE DATOS'!$D$19="Guayas/Santa Elena",'Tablas Guayaquil'!D30,'Tablas Resto de Ecuador'!D30) -> 13308 | E30: =IF('INGRESO DE DATOS'!$D$19="Guayas/Santa Elena",'Tablas Guayaquil'!E30,'Tablas Resto de Ecuador'!E30) -> 10519 | F30: =IF('INGRESO DE DATOS'!$D$19="Guayas/Santa Elena",'Tablas Guayaquil'!F30,'Tablas Resto de Ecuador'!F30) -> 9122 | G30: =IF('INGRESO DE DATOS'!$D$19="Guayas/Santa Elena",'Tablas Guayaquil'!G30,'Tablas Resto de Ecuador'!G30) -> 6801
A31: 43 | C31: =IF('INGRESO DE DATOS'!$D$19="Guayas/Santa Elena",'Tablas Guayaquil'!C31,'Tablas Resto de Ecuador'!C31) -> 15181 | D31: =IF('INGRESO DE DATOS'!$D$19="Guayas/Santa Elena",'Tablas Guayaquil'!D31,'Tablas Resto de Ecuador'!D31) -> 13308 | E31: =IF('INGRESO DE DATOS'!$D$19="Guayas/Santa Elena",'Tablas Guayaquil'!E31,'Tablas Resto de Ecuador'!E31) -> 10519 | F31: =IF('INGRESO DE DATOS'!$D$19="Guayas/Santa Elena",'Tablas Guayaquil'!F31,'Tablas Resto de Ecuador'!F31) -> 9122 | G31: =IF('INGRESO DE DATOS'!$D$19="Guayas/Santa Elena",'Tablas Guayaquil'!G31,'Tablas Resto de Ecuador'!G31) -> 6801
A32: 44 | C32: =IF('INGRESO DE DATOS'!$D$19="Guayas/Santa Elena",'Tablas Guayaquil'!C32,'Tablas Resto de Ecuador'!C32) -> 15181 | D32: =IF('INGRESO DE DATOS'!$D$19="Guayas/Santa Elena",'Tablas Guayaquil'!D32,'Tablas Resto de Ecuador'!D32) -> 13308 | E32: =IF('INGRESO DE DATOS'!$D$19="Guayas/Santa Elena",'Tablas Guayaquil'!E32,'Tablas Resto de Ecuador'!E32) -> 10519 | F32: =IF('INGRESO DE DATOS'!$D$19="Guayas/Santa Elena",'Tablas Guayaquil'!F32,'Tablas Resto de Ecuador'!F32) -> 9122 | G32: =IF('INGRESO DE DATOS'!$D$19="Guayas/Santa Elena",'Tablas Guayaquil'!G32,'Tablas Resto de Ecuador'!G32) -> 6801
A33: 45 | C33: =IF('INGRESO DE DATOS'!$D$19="Guayas/Santa Elena",'Tablas Guayaquil'!C33,'Tablas Resto de Ecuador'!C33) -> 16990 | D33: =IF('INGRESO DE DATOS'!$D$19="Guayas/Santa Elena",'Tablas Guayaquil'!D33,'Tablas Resto de Ecuador'!D33) -> 14895 | E33: =IF('INGRESO DE DATOS'!$D$19="Guayas/Santa Elena",'Tablas Guayaquil'!E33,'Tablas Resto de Ecuador'!E33) -> 11737 | F33: =IF('INGRESO DE DATOS'!$D$19="Guayas/Santa Elena",'Tablas Guayaquil'!F33,'Tablas Resto de Ecuador'!F33) -> 10177 | G33: =IF('INGRESO DE DATOS'!$D$19="Guayas/Santa Elena",'Tablas Guayaquil'!G33,'Tablas Resto de Ecuador'!G33) -> 7588
A34: 46 | C34: =IF('INGRESO DE DATOS'!$D$19="Guayas/Santa Elena",'Tablas Guayaquil'!C34,'Tablas Resto de Ecuador'!C34) -> 16990 | D34: =IF('INGRESO DE DATOS'!$D$19="Guayas/Santa Elena",'Tablas Guayaquil'!D34,'Tablas Resto de Ecuador'!D34) -> 14895 | E34: =IF('INGRESO DE DATOS'!$D$19="Guayas/Santa Elena",'Tablas Guayaquil'!E34,'Tablas Resto de Ecuador'!E34) -> 11737 | F34: =IF('INGRESO DE DATOS'!$D$19="Guayas/Santa Elena",'Tablas Guayaquil'!F34,'Tablas Resto de Ecuador'!F34) -> 10177 | G34: =IF('INGRESO DE DATOS'!$D$19="Guayas/Santa Elena",'Tablas Guayaquil'!G34,'Tablas Resto de Ecuador'!G34) -> 7588
A35: 47 | C35: =IF('INGRESO DE DATOS'!$D$19="Guayas/Santa Elena",'Tablas Guayaquil'!C35,'Tablas Resto de Ecuador'!C35) -> 16990 | D35: =IF('INGRESO DE DATOS'!$D$19="Guayas/Santa Elena",'Tablas Guayaquil'!D35,'Tablas Resto de Ecuador'!D35) -> 14895 | E35: =IF('INGRESO DE DATOS'!$D$19="Guayas/Santa Elena",'Tablas Guayaquil'!E35,'Tablas Resto de Ecuador'!E35) -> 11737 | F35: =IF('INGRESO DE DATOS'!$D$19="Guayas/Santa Elena",'Tablas Guayaquil'!F35,'Tablas Resto de Ecuador'!F35) -> 10177 | G35: =IF('INGRESO DE DATOS'!$D$19="Guayas/Santa Elena",'Tablas Guayaquil'!G35,'Tablas Resto de Ecuador'!G35) -> 7588
A36: 48 | C36: =IF('INGRESO DE DATOS'!$D$19="Guayas/Santa Elena",'Tablas Guayaquil'!C36,'Tablas Resto de Ecuador'!C36) -> 16990 | D36: =IF('INGRESO DE DATOS'!$D$19="Guayas/Santa Elena",'Tablas Guayaquil'!D36,'Tablas Resto de Ecuador'!D36) -> 14895 | E36: =IF('INGRESO DE DATOS'!$D$19="Guayas/Santa Elena",'Tablas Guayaquil'!E36,'Tablas Resto de Ecuador'!E36) -> 11737 | F36: =IF('INGRESO DE DATOS'!$D$19="Guayas/Santa Elena",'Tablas Guayaquil'!F36,'Tablas Resto de Ecuador'!F36) -> 10177 | G36: =IF('INGRESO DE DATOS'!$D$19="Guayas/Santa Elena",'Tablas Guayaquil'!G36,'Tablas Resto de Ecuador'!G36) -> 7588
A37: 49 | C37: =IF('INGRESO DE DATOS'!$D$19="Guayas/Santa Elena",'Tablas Guayaquil'!C37,'Tablas Resto de Ecuador'!C37) -> 16990 | D37: =IF('INGRESO DE DATOS'!$D$19="Guayas/Santa Elena",'Tablas Guayaquil'!D37,'Tablas Resto de Ecuador'!D37) -> 14895 | E37: =IF('INGRESO DE DATOS'!$D$19="Guayas/Santa Elena",'Tablas Guayaquil'!E37,'Tablas Resto de Ecuador'!E37) -> 11737 | F37: =IF('INGRESO DE DATOS'!$D$19="Guayas/Santa Elena",'Tablas Guayaquil'!F37,'Tablas Resto de Ecuador'!F37) -> 10177 | G37: =IF('INGRESO DE DATOS'!$D$19="Guayas/Santa Elena",'Tablas Guayaquil'!G37,'Tablas Resto de Ecuador'!G37) -> 7588
A38: 50 | C38: =IF('INGRESO DE DATOS'!$D$19="Guayas/Santa Elena",'Tablas Guayaquil'!C38,'Tablas Resto de Ecuador'!C38) -> 19028 | D38: =IF('INGRESO DE DATOS'!$D$19="Guayas/Santa Elena",'Tablas Guayaquil'!D38,'Tablas Resto de Ecuador'!D38) -> 16681 | E38: =IF('INGRESO DE DATOS'!$D$19="Guayas/Santa Elena",'Tablas Guayaquil'!E38,'Tablas Resto de Ecuador'!E38) -> 13115 | F38: =IF('INGRESO DE DATOS'!$D$19="Guayas/Santa Elena",'Tablas Guayaquil'!F38,'Tablas Resto de Ecuador'!F38) -> 11373 | G38: =IF('INGRESO DE DATOS'!$D$19="Guayas/Santa Elena",'Tablas Guayaquil'!G38,'Tablas Resto de Ecuador'!G38) -> 8478
A39: 51 | C39: =IF('INGRESO DE DATOS'!$D$19="Guayas/Santa Elena",'Tablas Guayaquil'!C39,'Tablas Resto de Ecuador'!C39) -> 19028 | D39: =IF('INGRESO DE DATOS'!$D$19="Guayas/Santa Elena",'Tablas Guayaquil'!D39,'Tablas Resto de Ecuador'!D39) -> 16681 | E39: =IF('INGRESO DE DATOS'!$D$19="Guayas/Santa Elena",'Tablas Guayaquil'!E39,'Tablas Resto de Ecuador'!E39) -> 13115 | F39: =IF('INGRESO DE DATOS'!$D$19="Guayas/Santa Elena",'Tablas Guayaquil'!F39,'Tablas Resto de Ecuador'!F39) -> 11373 | G39: =IF('INGRESO DE DATOS'!$D$19="Guayas/Santa Elena",'Tablas Guayaquil'!G39,'Tablas Resto de Ecuador'!G39) -> 8478
A40: 52 | C40: =IF('INGRESO DE DATOS'!$D$19="Guayas/Santa Elena",'Tablas Guayaquil'!C40,'Tablas Resto de Ecuador'!C40) -> 19028 | D40: =IF('INGRESO DE DATOS'!$D$19="Guayas/Santa Elena",'Tablas Guayaquil'!D40,'Tablas Resto de Ecuador'!D40) -> 16681 | E40: =IF('INGRESO DE DATOS'!$D$19="Guayas/Santa Elena",'Tablas Guayaquil'!E40,'Tablas Resto de Ecuador'!E40) -> 13115 | F40: =IF('INGRESO DE DATOS'!$D$19="Guayas/Santa Elena",'Tablas Guayaquil'!F40,'Tablas Resto de Ecuador'!F40) -> 11373 | G40: =IF('INGRESO DE DATOS'!$D$19="Guayas/Santa Elena",'Tablas Guayaquil'!G40,'Tablas Resto de Ecuador'!G40) -> 8478
A41: 53 | C41: =IF('INGRESO DE DATOS'!$D$19="Guayas/Santa Elena",'Tablas Guayaquil'!C41,'Tablas Resto de Ecuador'!C41) -> 19028 | D41: =IF('INGRESO DE DATOS'!$D$19="Guayas/Santa Elena",'Tablas Guayaquil'!D41,'Tablas Resto de Ecuador'!D41) -> 16681 | E41: =IF('INGRESO DE DATOS'!$D$19="Guayas/Santa Elena",'Tablas Guayaquil'!E41,'Tablas Resto de Ecuador'!E41) -> 13115 | F41: =IF('INGRESO DE DATOS'!$D$19="Guayas/Santa Elena",'Tablas Guayaquil'!F41,'Tablas Resto de Ecuador'!F41) -> 11373 | G41: =IF('INGRESO DE DATOS'!$D$19="Guayas/Santa Elena",'Tablas Guayaquil'!G41,'Tablas Resto de Ecuador'!G41) -> 8478
A42: 54 | C42: =IF('INGRESO DE DATOS'!$D$19="Guayas/Santa Elena",'Tablas Guayaquil'!C42,'Tablas Resto de Ecuador'!C42) -> 19028 | D42: =IF('INGRESO DE DATOS'!$D$19="Guayas/Santa Elena",'Tablas Guayaquil'!D42,'Tablas Resto de Ecuador'!D42) -> 16681 | E42: =IF('INGRESO DE DATOS'!$D$19="Guayas/Santa Elena",'Tablas Guayaquil'!E42,'Tablas Resto de Ecuador'!E42) -> 13115 | F42: =IF('INGRESO DE DATOS'!$D$19="Guayas/Santa Elena",'Tablas Guayaquil'!F42,'Tablas Resto de Ecuador'!F42) -> 11373 | G42: =IF('INGRESO DE DATOS'!$D$19="Guayas/Santa Elena",'Tablas Guayaquil'!G42,'Tablas Resto de Ecuador'!G42) -> 8478
A43: 55 | C43: =IF('INGRESO DE DATOS'!$D$19="Guayas/Santa Elena",'Tablas Guayaquil'!C43,'Tablas Resto de Ecuador'!C43) -> 21272 | D43: =IF('INGRESO DE DATOS'!$D$19="Guayas/Santa Elena",'Tablas Guayaquil'!D43,'Tablas Resto de Ecuador'!D43) -> 18647 | E43: =IF('INGRESO DE DATOS'!$D$19="Guayas/Santa Elena",'Tablas Guayaquil'!E43,'Tablas Resto de Ecuador'!E43) -> 14638 | F43: =IF('INGRESO DE DATOS'!$D$19="Guayas/Santa Elena",'Tablas Guayaquil'!F43,'Tablas Resto de Ecuador'!F43) -> 12695 | G43: =IF('INGRESO DE DATOS'!$D$19="Guayas/Santa Elena",'Tablas Guayaquil'!G43,'Tablas Resto de Ecuador'!G43) -> 9465
A44: 56 | C44: =IF('INGRESO DE DATOS'!$D$19="Guayas/Santa Elena",'Tablas Guayaquil'!C44,'Tablas Resto de Ecuador'!C44) -> 21272 | D44: =IF('INGRESO DE DATOS'!$D$19="Guayas/Santa Elena",'Tablas Guayaquil'!D44,'Tablas Resto de Ecuador'!D44) -> 18647 | E44: =IF('INGRESO DE DATOS'!$D$19="Guayas/Santa Elena",'Tablas Guayaquil'!E44,'Tablas Resto de Ecuador'!E44) -> 14638 | F44: =IF('INGRESO DE DATOS'!$D$19="Guayas/Santa Elena",'Tablas Guayaquil'!F44,'Tablas Resto de Ecuador'!F44) -> 12695 | G44: =IF('INGRESO DE DATOS'!$D$19="Guayas/Santa Elena",'Tablas Guayaquil'!G44,'Tablas Resto de Ecuador'!G44) -> 9465
A45: 57 | C45: =IF('INGRESO DE DATOS'!$D$19="Guayas/Santa Elena",'Tablas Guayaquil'!C45,'Tablas Resto de Ecuador'!C45) -> 21272 | D45: =IF('INGRESO DE DATOS'!$D$19="Guayas/Santa Elena",'Tablas Guayaquil'!D45,'Tablas Resto de Ecuador'!D45) -> 18647 | E45: =IF('INGRESO DE DATOS'!$D$19="Guayas/Santa Elena",'Tablas Guayaquil'!E45,'Tablas Resto de Ecuador'!E45) -> 14638 | F45: =IF('INGRESO DE DATOS'!$D$19="Guayas/Santa Elena",'Tablas Guayaquil'!F45,'Tablas Resto de Ecuador'!F45) -> 12695 | G45: =IF('INGRESO DE DATOS'!$D$19="Guayas/Santa Elena",'Tablas Guayaquil'!G45,'Tablas Resto de Ecuador'!G45) -> 9465
A46: 58 | C46: =IF('INGRESO DE DATOS'!$D$19="Guayas/Santa Elena",'Tablas Guayaquil'!C46,'Tablas Resto de Ecuador'!C46) -> 21272 | D46: =IF('INGRESO DE DATOS'!$D$19="Guayas/Santa Elena",'Tablas Guayaquil'!D46,'Tablas Resto de Ecuador'!D46) -> 18647 | E46: =IF('INGRESO DE DATOS'!$D$19="Guayas/Santa Elena",'Tablas Guayaquil'!E46,'Tablas Resto de Ecuador'!E46) -> 14638 | F46: =IF('INGRESO DE DATOS'!$D$19="Guayas/Santa Elena",'Tablas Guayaquil'!F46,'Tablas Resto de Ecuador'!F46) -> 12695 | G46: =IF('INGRESO DE DATOS'!$D$19="Guayas/Santa Elena",'Tablas Guayaquil'!G46,'Tablas Resto de Ecuador'!G46) -> 9465
A47: 59 | C47: =IF('INGRESO DE DATOS'!$D$19="Guayas/Santa Elena",'Tablas Guayaquil'!C47,'Tablas Resto de Ecuador'!C47) -> 21272 | D47: =IF('INGRESO DE DATOS'!$D$19="Guayas/Santa Elena",'Tablas Guayaquil'!D47,'Tablas Resto de Ecuador'!D47) -> 18647 | E47: =IF('INGRESO DE DATOS'!$D$19="Guayas/Santa Elena",'Tablas Guayaquil'!E47,'Tablas Resto de Ecuador'!E47) -> 14638 | F47: =IF('INGRESO DE DATOS'!$D$19="Guayas/Santa Elena",'Tablas Guayaquil'!F47,'Tablas Resto de Ecuador'!F47) -> 12695 | G47: =IF('INGRESO DE DATOS'!$D$19="Guayas/Santa Elena",'Tablas Guayaquil'!G47,'Tablas Resto de Ecuador'!G47) -> 9465
A48: 60 | C48: =IF('INGRESO DE DATOS'!$D$19="Guayas/Santa Elena",'Tablas Guayaquil'!C48,'Tablas Resto de Ecuador'!C48) -> 22767 | D48: =IF('INGRESO DE DATOS'!$D$19="Guayas/Santa Elena",'Tablas Guayaquil'!D48,'Tablas Resto de Ecuador'!D48) -> 19956 | E48: =IF('INGRESO DE DATOS'!$D$19="Guayas/Santa Elena",'Tablas Guayaquil'!E48,'Tablas Resto de Ecuador'!E48) -> 15659 | F48: =IF('INGRESO DE DATOS'!$D$19="Guayas/Santa Elena",'Tablas Guayaquil'!F48,'Tablas Resto de Ecuador'!F48) -> 13576 | G48: =IF('INGRESO DE DATOS'!$D$19="Guayas/Santa Elena",'Tablas Guayaquil'!G48,'Tablas Resto de Ecuador'!G48) -> 10124
A49: 61 | C49: =IF('INGRESO DE DATOS'!$D$19="Guayas/Santa Elena",'Tablas Guayaquil'!C49,'Tablas Resto de Ecuador'!C49) -> 25373 | D49: =IF('INGRESO DE DATOS'!$D$19="Guayas/Santa Elena",'Tablas Guayaquil'!D49,'Tablas Resto de Ecuador'!D49) -> 22238 | E49: =IF('INGRESO DE DATOS'!$D$19="Guayas/Santa Elena",'Tablas Guayaquil'!E49,'Tablas Resto de Ecuador'!E49) -> 17436 | F49: =IF('INGRESO DE DATOS'!$D$19="Guayas/Santa Elena",'Tablas Guayaquil'!F49,'Tablas Resto de Ecuador'!F49) -> 15121 | G49: =IF('INGRESO DE DATOS'!$D$19="Guayas/Santa Elena",'Tablas Guayaquil'!G49,'Tablas Resto de Ecuador'!G49) -> 11273
A50: 62 | C50: =IF('INGRESO DE DATOS'!$D$19="Guayas/Santa Elena",'Tablas Guayaquil'!C50,'Tablas Resto de Ecuador'!C50) -> 28187 | D50: =IF('INGRESO DE DATOS'!$D$19="Guayas/Santa Elena",'Tablas Guayaquil'!D50,'Tablas Resto de Ecuador'!D50) -> 24706 | E50: =IF('INGRESO DE DATOS'!$D$19="Guayas/Santa Elena",'Tablas Guayaquil'!E50,'Tablas Resto de Ecuador'!E50) -> 19366 | F50: =IF('INGRESO DE DATOS'!$D$19="Guayas/Santa Elena",'Tablas Guayaquil'!F50,'Tablas Resto de Ecuador'!F50) -> 16794 | G50: =IF('INGRESO DE DATOS'!$D$19="Guayas/Santa Elena",'Tablas Guayaquil'!G50,'Tablas Resto de Ecuador'!G50) -> 12520
A51: 63 | C51: =IF('INGRESO DE DATOS'!$D$19="Guayas/Santa Elena",'Tablas Guayaquil'!C51,'Tablas Resto de Ecuador'!C51) -> 31216 | D51: =IF('INGRESO DE DATOS'!$D$19="Guayas/Santa Elena",'Tablas Guayaquil'!D51,'Tablas Resto de Ecuador'!D51) -> 27361 | E51: =IF('INGRESO DE DATOS'!$D$19="Guayas/Santa Elena",'Tablas Guayaquil'!E51,'Tablas Resto de Ecuador'!E51) -> 21448 | F51: =IF('INGRESO DE DATOS'!$D$19="Guayas/Santa Elena",'Tablas Guayaquil'!F51,'Tablas Resto de Ecuador'!F51) -> 18600 | G51: =IF('INGRESO DE DATOS'!$D$19="Guayas/Santa Elena",'Tablas Guayaquil'!G51,'Tablas Resto de Ecuador'!G51) -> 13867
A52: 64 | C52: =IF('INGRESO DE DATOS'!$D$19="Guayas/Santa Elena",'Tablas Guayaquil'!C52,'Tablas Resto de Ecuador'!C52) -> 34459 | D52: =IF('INGRESO DE DATOS'!$D$19="Guayas/Santa Elena",'Tablas Guayaquil'!D52,'Tablas Resto de Ecuador'!D52) -> 30201 | E52: =IF('INGRESO DE DATOS'!$D$19="Guayas/Santa Elena",'Tablas Guayaquil'!E52,'Tablas Resto de Ecuador'!E52) -> 23681 | F52: =IF('INGRESO DE DATOS'!$D$19="Guayas/Santa Elena",'Tablas Guayaquil'!F52,'Tablas Resto de Ecuador'!F52) -> 20535 | G52: =IF('INGRESO DE DATOS'!$D$19="Guayas/Santa Elena",'Tablas Guayaquil'!G52,'Tablas Resto de Ecuador'!G52) -> 15310
A53: 65 | C53: =IF('INGRESO DE DATOS'!$D$19="Guayas/Santa Elena",'Tablas Guayaquil'!C53,'Tablas Resto de Ecuador'!C53) -> 37913 | D53: =IF('INGRESO DE DATOS'!$D$19="Guayas/Santa Elena",'Tablas Guayaquil'!D53,'Tablas Resto de Ecuador'!D53) -> 33231 | E53: =IF('INGRESO DE DATOS'!$D$19="Guayas/Santa Elena",'Tablas Guayaquil'!E53,'Tablas Resto de Ecuador'!E53) -> 26064 | F53: =IF('INGRESO DE DATOS'!$D$19="Guayas/Santa Elena",'Tablas Guayaquil'!F53,'Tablas Resto de Ecuador'!F53) -> 22603 | G53: =IF('INGRESO DE DATOS'!$D$19="Guayas/Santa Elena",'Tablas Guayaquil'!G53,'Tablas Resto de Ecuador'!G53) -> 16850
A54: 66 | C54: =IF('INGRESO DE DATOS'!$D$19="Guayas/Santa Elena",'Tablas Guayaquil'!C54,'Tablas Resto de Ecuador'!C54) -> 41577 | D54: =IF('INGRESO DE DATOS'!$D$19="Guayas/Santa Elena",'Tablas Guayaquil'!D54,'Tablas Resto de Ecuador'!D54) -> 36444 | E54: =IF('INGRESO DE DATOS'!$D$19="Guayas/Santa Elena",'Tablas Guayaquil'!E54,'Tablas Resto de Ecuador'!E54) -> 28597 | F54: =IF('INGRESO DE DATOS'!$D$19="Guayas/Santa Elena",'Tablas Guayaquil'!F54,'Tablas Resto de Ecuador'!F54) -> 24799 | G54: =IF('INGRESO DE DATOS'!$D$19="Guayas/Santa Elena",'Tablas Guayaquil'!G54,'Tablas Resto de Ecuador'!G54) -> 18485
A55: 67 | C55: =IF('INGRESO DE DATOS'!$D$19="Guayas/Santa Elena",'Tablas Guayaquil'!C55,'Tablas Resto de Ecuador'!C55) -> 45457 | D55: =IF('INGRESO DE DATOS'!$D$19="Guayas/Santa Elena",'Tablas Guayaquil'!D55,'Tablas Resto de Ecuador'!D55) -> 39844 | E55: =IF('INGRESO DE DATOS'!$D$19="Guayas/Santa Elena",'Tablas Guayaquil'!E55,'Tablas Resto de Ecuador'!E55) -> 31282 | F55: =IF('INGRESO DE DATOS'!$D$19="Guayas/Santa Elena",'Tablas Guayaquil'!F55,'Tablas Resto de Ecuador'!F55) -> 27124 | G55: =IF('INGRESO DE DATOS'!$D$19="Guayas/Santa Elena",'Tablas Guayaquil'!G55,'Tablas Resto de Ecuador'!G55) -> 20221
A56: 68 | C56: =IF('INGRESO DE DATOS'!$D$19="Guayas/Santa Elena",'Tablas Guayaquil'!C56,'Tablas Resto de Ecuador'!C56) -> 49546 | D56: =IF('INGRESO DE DATOS'!$D$19="Guayas/Santa Elena",'Tablas Guayaquil'!D56,'Tablas Resto de Ecuador'!D56) -> 43433 | E56: =IF('INGRESO DE DATOS'!$D$19="Guayas/Santa Elena",'Tablas Guayaquil'!E56,'Tablas Resto de Ecuador'!E56) -> 34117 | F56: =IF('INGRESO DE DATOS'!$D$19="Guayas/Santa Elena",'Tablas Guayaquil'!F56,'Tablas Resto de Ecuador'!F56) -> 29585 | G56: =IF('INGRESO DE DATOS'!$D$19="Guayas/Santa Elena",'Tablas Guayaquil'!G56,'Tablas Resto de Ecuador'!G56) -> 22056
A57: 69 | C57: =IF('INGRESO DE DATOS'!$D$19="Guayas/Santa Elena",'Tablas Guayaquil'!C57,'Tablas Resto de Ecuador'!C57) -> 53854 | D57: =IF('INGRESO DE DATOS'!$D$19="Guayas/Santa Elena",'Tablas Guayaquil'!D57,'Tablas Resto de Ecuador'!D57) -> 47203 | E57: =IF('INGRESO DE DATOS'!$D$19="Guayas/Santa Elena",'Tablas Guayaquil'!E57,'Tablas Resto de Ecuador'!E57) -> 37105 | F57: =IF('INGRESO DE DATOS'!$D$19="Guayas/Santa Elena",'Tablas Guayaquil'!F57,'Tablas Resto de Ecuador'!F57) -> 32176 | G57: =IF('INGRESO DE DATOS'!$D$19="Guayas/Santa Elena",'Tablas Guayaquil'!G57,'Tablas Resto de Ecuador'!G57) -> 23987
A58: 70 | C58: =IF('INGRESO DE DATOS'!$D$19="Guayas/Santa Elena",'Tablas Guayaquil'!C58,'Tablas Resto de Ecuador'!C58) -> 58370 | D58: =IF('INGRESO DE DATOS'!$D$19="Guayas/Santa Elena",'Tablas Guayaquil'!D58,'Tablas Resto de Ecuador'!D58) -> 51162 | E58: =IF('INGRESO DE DATOS'!$D$19="Guayas/Santa Elena",'Tablas Guayaquil'!E58,'Tablas Resto de Ecuador'!E58) -> 40241 | F58: =IF('INGRESO DE DATOS'!$D$19="Guayas/Santa Elena",'Tablas Guayaquil'!F58,'Tablas Resto de Ecuador'!F58) -> 34895 | G58: =IF('INGRESO DE DATOS'!$D$19="Guayas/Santa Elena",'Tablas Guayaquil'!G58,'Tablas Resto de Ecuador'!G58) -> 26013
A59: 71 | C59: =IF('INGRESO DE DATOS'!$D$19="Guayas/Santa Elena",'Tablas Guayaquil'!C59,'Tablas Resto de Ecuador'!C59) -> 63098 | D59: =IF('INGRESO DE DATOS'!$D$19="Guayas/Santa Elena",'Tablas Guayaquil'!D59,'Tablas Resto de Ecuador'!D59) -> 55308 | E59: =IF('INGRESO DE DATOS'!$D$19="Guayas/Santa Elena",'Tablas Guayaquil'!E59,'Tablas Resto de Ecuador'!E59) -> 43532 | F59: =IF('INGRESO DE DATOS'!$D$19="Guayas/Santa Elena",'Tablas Guayaquil'!F59,'Tablas Resto de Ecuador'!F59) -> 37746 | G59: =IF('INGRESO DE DATOS'!$D$19="Guayas/Santa Elena",'Tablas Guayaquil'!G59,'Tablas Resto de Ecuador'!G59) -> 28140
A60: 72 | C60: =IF('INGRESO DE DATOS'!$D$19="Guayas/Santa Elena",'Tablas Guayaquil'!C60,'Tablas Resto de Ecuador'!C60) -> 68040 | D60: =IF('INGRESO DE DATOS'!$D$19="Guayas/Santa Elena",'Tablas Guayaquil'!D60,'Tablas Resto de Ecuador'!D60) -> 59637 | E60: =IF('INGRESO DE DATOS'!$D$19="Guayas/Santa Elena",'Tablas Guayaquil'!E60,'Tablas Resto de Ecuador'!E60) -> 46968 | F60: =IF('INGRESO DE DATOS'!$D$19="Guayas/Santa Elena",'Tablas Guayaquil'!F60,'Tablas Resto de Ecuador'!F60) -> 40728 | G60: =IF('INGRESO DE DATOS'!$D$19="Guayas/Santa Elena",'Tablas Guayaquil'!G60,'Tablas Resto de Ecuador'!G60) -> 30361
A61: 73 | C61: =IF('INGRESO DE DATOS'!$D$19="Guayas/Santa Elena",'Tablas Guayaquil'!C61,'Tablas Resto de Ecuador'!C61) -> 73193 | D61: =IF('INGRESO DE DATOS'!$D$19="Guayas/Santa Elena",'Tablas Guayaquil'!D61,'Tablas Resto de Ecuador'!D61) -> 64156 | E61: =IF('INGRESO DE DATOS'!$D$19="Guayas/Santa Elena",'Tablas Guayaquil'!E61,'Tablas Resto de Ecuador'!E61) -> 50559 | F61: =IF('INGRESO DE DATOS'!$D$19="Guayas/Santa Elena",'Tablas Guayaquil'!F61,'Tablas Resto de Ecuador'!F61) -> 43841 | G61: =IF('INGRESO DE DATOS'!$D$19="Guayas/Santa Elena",'Tablas Guayaquil'!G61,'Tablas Resto de Ecuador'!G61) -> 32684
A62: 74 | C62: =IF('INGRESO DE DATOS'!$D$19="Guayas/Santa Elena",'Tablas Guayaquil'!C62,'Tablas Resto de Ecuador'!C62) -> 78561 | D62: =IF('INGRESO DE DATOS'!$D$19="Guayas/Santa Elena",'Tablas Guayaquil'!D62,'Tablas Resto de Ecuador'!D62) -> 68859 | E62: =IF('INGRESO DE DATOS'!$D$19="Guayas/Santa Elena",'Tablas Guayaquil'!E62,'Tablas Resto de Ecuador'!E62) -> 54300 | F62: =IF('INGRESO DE DATOS'!$D$19="Guayas/Santa Elena",'Tablas Guayaquil'!F62,'Tablas Resto de Ecuador'!F62) -> 47085 | G62: =IF('INGRESO DE DATOS'!$D$19="Guayas/Santa Elena",'Tablas Guayaquil'!G62,'Tablas Resto de Ecuador'!G62) -> 35102
A63: 75 | C63: =IF('INGRESO DE DATOS'!$D$19="Guayas/Santa Elena",'Tablas Guayaquil'!C63,'Tablas Resto de Ecuador'!C63) -> 84139 | D63: =IF('INGRESO DE DATOS'!$D$19="Guayas/Santa Elena",'Tablas Guayaquil'!D63,'Tablas Resto de Ecuador'!D63) -> 73753 | E63: =IF('INGRESO DE DATOS'!$D$19="Guayas/Santa Elena",'Tablas Guayaquil'!E63,'Tablas Resto de Ecuador'!E63) -> 58191 | F63: =IF('INGRESO DE DATOS'!$D$19="Guayas/Santa Elena",'Tablas Guayaquil'!F63,'Tablas Resto de Ecuador'!F63) -> 50459 | G63: =IF('INGRESO DE DATOS'!$D$19="Guayas/Santa Elena",'Tablas Guayaquil'!G63,'Tablas Resto de Ecuador'!G63) -> 37615
A64: 76 | C64: =IF('INGRESO DE DATOS'!$D$19="Guayas/Santa Elena",'Tablas Guayaquil'!C64,'Tablas Resto de Ecuador'!C64) -> 84139 | D64: =IF('INGRESO DE DATOS'!$D$19="Guayas/Santa Elena",'Tablas Guayaquil'!D64,'Tablas Resto de Ecuador'!D64) -> 73753 | E64: =IF('INGRESO DE DATOS'!$D$19="Guayas/Santa Elena",'Tablas Guayaquil'!E64,'Tablas Resto de Ecuador'!E64) -> 58191 | F64: =IF('INGRESO DE DATOS'!$D$19="Guayas/Santa Elena",'Tablas Guayaquil'!F64,'Tablas Resto de Ecuador'!F64) -> 50459 | G64: =IF('INGRESO DE DATOS'!$D$19="Guayas/Santa Elena",'Tablas Guayaquil'!G64,'Tablas Resto de Ecuador'!G64) -> 37615
A65: 77 | C65: =IF('INGRESO DE DATOS'!$D$19="Guayas/Santa Elena",'Tablas Guayaquil'!C65,'Tablas Resto de Ecuador'!C65) -> 84139 | D65: =IF('INGRESO DE DATOS'!$D$19="Guayas/Santa Elena",'Tablas Guayaquil'!D65,'Tablas Resto de Ecuador'!D65) -> 73753 | E65: =IF('INGRESO DE DATOS'!$D$19="Guayas/Santa Elena",'Tablas Guayaquil'!E65,'Tablas Resto de Ecuador'!E65) -> 58191 | F65: =IF('INGRESO DE DATOS'!$D$19="Guayas/Santa Elena",'Tablas Guayaquil'!F65,'Tablas Resto de Ecuador'!F65) -> 50459 | G65: =IF('INGRESO DE DATOS'!$D$19="Guayas/Santa Elena",'Tablas Guayaquil'!G65,'Tablas Resto de Ecuador'!G65) -> 37615
A66: 78 | C66: =IF('INGRESO DE DATOS'!$D$19="Guayas/Santa Elena",'Tablas Guayaquil'!C66,'Tablas Resto de Ecuador'!C66) -> 84139 | D66: =IF('INGRESO DE DATOS'!$D$19="Guayas/Santa Elena",'Tablas Guayaquil'!D66,'Tablas Resto de Ecuador'!D66) -> 73753 | E66: =IF('INGRESO DE DATOS'!$D$19="Guayas/Santa Elena",'Tablas Guayaquil'!E66,'Tablas Resto de Ecuador'!E66) -> 58191 | F66: =IF('INGRESO DE DATOS'!$D$19="Guayas/Santa Elena",'Tablas Guayaquil'!F66,'Tablas Resto de Ecuador'!F66) -> 50459 | G66: =IF('INGRESO DE DATOS'!$D$19="Guayas/Santa Elena",'Tablas Guayaquil'!G66,'Tablas Resto de Ecuador'!G66) -> 37615
A67: 79 | C67: =IF('INGRESO DE DATOS'!$D$19="Guayas/Santa Elena",'Tablas Guayaquil'!C67,'Tablas Resto de Ecuador'!C67) -> 84139 | D67: =IF('INGRESO DE DATOS'!$D$19="Guayas/Santa Elena",'Tablas Guayaquil'!D67,'Tablas Resto de Ecuador'!D67) -> 73753 | E67: =IF('INGRESO DE DATOS'!$D$19="Guayas/Santa Elena",'Tablas Guayaquil'!E67,'Tablas Resto de Ecuador'!E67) -> 58191 | F67: =IF('INGRESO DE DATOS'!$D$19="Guayas/Santa Elena",'Tablas Guayaquil'!F67,'Tablas Resto de Ecuador'!F67) -> 50459 | G67: =IF('INGRESO DE DATOS'!$D$19="Guayas/Santa Elena",'Tablas Guayaquil'!G67,'Tablas Resto de Ecuador'!G67) -> 37615
A68: 80 | C68: =IF('INGRESO DE DATOS'!$D$19="Guayas/Santa Elena",'Tablas Guayaquil'!C68,'Tablas Resto de Ecuador'!C68) -> 84139 | D68: =IF('INGRESO DE DATOS'!$D$19="Guayas/Santa Elena",'Tablas Guayaquil'!D68,'Tablas Resto de Ecuador'!D68) -> 73753 | E68: =IF('INGRESO DE DATOS'!$D$19="Guayas/Santa Elena",'Tablas Guayaquil'!E68,'Tablas Resto de Ecuador'!E68) -> 58191 | F68: =IF('INGRESO DE DATOS'!$D$19="Guayas/Santa Elena",'Tablas Guayaquil'!F68,'Tablas Resto de Ecuador'!F68) -> 50459 | G68: =IF('INGRESO DE DATOS'!$D$19="Guayas/Santa Elena",'Tablas Guayaquil'!G68,'Tablas Resto de Ecuador'!G68) -> 37615
A69: 81 | C69: =IF('INGRESO DE DATOS'!$D$19="Guayas/Santa Elena",'Tablas Guayaquil'!C69,'Tablas Resto de Ecuador'!C69) -> 84139 | D69: =IF('INGRESO DE DATOS'!$D$19="Guayas/Santa Elena",'Tablas Guayaquil'!D69,'Tablas Resto de Ecuador'!D69) -> 73753 | E69: =IF('INGRESO DE DATOS'!$D$19="Guayas/Santa Elena",'Tablas Guayaquil'!E69,'Tablas Resto de Ecuador'!E69) -> 58191 | F69: =IF('INGRESO DE DATOS'!$D$19="Guayas/Santa Elena",'Tablas Guayaquil'!F69,'Tablas Resto de Ecuador'!F69) -> 50459 | G69: =IF('INGRESO DE DATOS'!$D$19="Guayas/Santa Elena",'Tablas Guayaquil'!G69,'Tablas Resto de Ecuador'!G69) -> 37615
A70: 82 | C70: =IF('INGRESO DE DATOS'!$D$19="Guayas/Santa Elena",'Tablas Guayaquil'!C70,'Tablas Resto de Ecuador'!C70) -> 84139 | D70: =IF('INGRESO DE DATOS'!$D$19="Guayas/Santa Elena",'Tablas Guayaquil'!D70,'Tablas Resto de Ecuador'!D70) -> 73753 | E70: =IF('INGRESO DE DATOS'!$D$19="Guayas/Santa Elena",'Tablas Guayaquil'!E70,'Tablas Resto de Ecuador'!E70) -> 58191 | F70: =IF('INGRESO DE DATOS'!$D$19="Guayas/Santa Elena",'Tablas Guayaquil'!F70,'Tablas Resto de Ecuador'!F70) -> 50459 | G70: =IF('INGRESO DE DATOS'!$D$19="Guayas/Santa Elena",'Tablas Guayaquil'!G70,'Tablas Resto de Ecuador'!G70) -> 37615
A71: 83 | C71: =IF('INGRESO DE DATOS'!$D$19="Guayas/Santa Elena",'Tablas Guayaquil'!C71,'Tablas Resto de Ecuador'!C71) -> 84139 | D71: =IF('INGRESO DE DATOS'!$D$19="Guayas/Santa Elena",'Tablas Guayaquil'!D71,'Tablas Resto de Ecuador'!D71) -> 73753 | E71: =IF('INGRESO DE DATOS'!$D$19="Guayas/Santa Elena",'Tablas Guayaquil'!E71,'Tablas Resto de Ecuador'!E71) -> 58191 | F71: =IF('INGRESO DE DATOS'!$D$19="Guayas/Santa Elena",'Tablas Guayaquil'!F71,'Tablas Resto de Ecuador'!F71) -> 50459 | G71: =IF('INGRESO DE DATOS'!$D$19="Guayas/Santa Elena",'Tablas Guayaquil'!G71,'Tablas Resto de Ecuador'!G71) -> 37615
A72: 84 | B72: o más | C72: =IF('INGRESO DE DATOS'!$D$19="Guayas/Santa Elena",'Tablas Guayaquil'!C72,'Tablas Resto de Ecuador'!C72) -> 84139 | D72: =IF('INGRESO DE DATOS'!$D$19="Guayas/Santa Elena",'Tablas Guayaquil'!D72,'Tablas Resto de Ecuador'!D72) -> 73753 | E72: =IF('INGRESO DE DATOS'!$D$19="Guayas/Santa Elena",'Tablas Guayaquil'!E72,'Tablas Resto de Ecuador'!E72) -> 58191 | F72: =IF('INGRESO DE DATOS'!$D$19="Guayas/Santa Elena",'Tablas Guayaquil'!F72,'Tablas Resto de Ecuador'!F72) -> 50459 | G72: =IF('INGRESO DE DATOS'!$D$19="Guayas/Santa Elena",'Tablas Guayaquil'!G72,'Tablas Resto de Ecuador'!G72) -> 37615
A73: 1 | B73: Hijo | C73: =IF('INGRESO DE DATOS'!$D$19="Guayas/Santa Elena",'Tablas Guayaquil'!C73,'Tablas Resto de Ecuador'!C73) -> 4315 | D73: =IF('INGRESO DE DATOS'!$D$19="Guayas/Santa Elena",'Tablas Guayaquil'!D73,'Tablas Resto de Ecuador'!D73) -> 3786 | E73: =IF('INGRESO DE DATOS'!$D$19="Guayas/Santa Elena",'Tablas Guayaquil'!E73,'Tablas Resto de Ecuador'!E73) -> 3086 | F73: =IF('INGRESO DE DATOS'!$D$19="Guayas/Santa Elena",'Tablas Guayaquil'!F73,'Tablas Resto de Ecuador'!F73) -> 2677 | G73: =IF('INGRESO DE DATOS'!$D$19="Guayas/Santa Elena",'Tablas Guayaquil'!G73,'Tablas Resto de Ecuador'!G73) -> 1997
A74: 2 | B74: Hijos | C74: =IF('INGRESO DE DATOS'!$D$19="Guayas/Santa Elena",'Tablas Guayaquil'!C74,'Tablas Resto de Ecuador'!C74) -> 7338 | D74: =IF('INGRESO DE DATOS'!$D$19="Guayas/Santa Elena",'Tablas Guayaquil'!D74,'Tablas Resto de Ecuador'!D74) -> 6432 | E74: =IF('INGRESO DE DATOS'!$D$19="Guayas/Santa Elena",'Tablas Guayaquil'!E74,'Tablas Resto de Ecuador'!E74) -> 5242 | F74: =IF('INGRESO DE DATOS'!$D$19="Guayas/Santa Elena",'Tablas Guayaquil'!F74,'Tablas Resto de Ecuador'!F74) -> 4546 | G74: =IF('INGRESO DE DATOS'!$D$19="Guayas/Santa Elena",'Tablas Guayaquil'!G74,'Tablas Resto de Ecuador'!G74) -> 3391
A75: 3 | B75: Hijos o más | C75: =IF('INGRESO DE DATOS'!$D$19="Guayas/Santa Elena",'Tablas Guayaquil'!C75,'Tablas Resto de Ecuador'!C75) -> 10357 | D75: =IF('INGRESO DE DATOS'!$D$19="Guayas/Santa Elena",'Tablas Guayaquil'!D75,'Tablas Resto de Ecuador'!D75) -> 9082 | E75: =IF('INGRESO DE DATOS'!$D$19="Guayas/Santa Elena",'Tablas Guayaquil'!E75,'Tablas Resto de Ecuador'!E75) -> 7403 | F75: =IF('INGRESO DE DATOS'!$D$19="Guayas/Santa Elena",'Tablas Guayaquil'!F75,'Tablas Resto de Ecuador'!F75) -> 6418 | G75: =IF('INGRESO DE DATOS'!$D$19="Guayas/Santa Elena",'Tablas Guayaquil'!G75,'Tablas Resto de Ecuador'!G75) -> 4786
C76: =IF('INGRESO DE DATOS'!$D$19="Guayas/Santa Elena",'Tablas Guayaquil'!C76,'Tablas Resto de Ecuador'!C76) -> 0 | D76: =IF('INGRESO DE DATOS'!$D$19="Guayas/Santa Elena",'Tablas Guayaquil'!D76,'Tablas Resto de Ecuador'!D76) -> 0 | E76: =IF('INGRESO DE DATOS'!$D$19="Guayas/Santa Elena",'Tablas Guayaquil'!E76,'Tablas Resto de Ecuador'!E76) -> 0 | F76: =IF('INGRESO DE DATOS'!$D$19="Guayas/Santa Elena",'Tablas Guayaquil'!F76,'Tablas Resto de Ecuador'!F76) -> 0 | G76: =IF('INGRESO DE DATOS'!$D$19="Guayas/Santa Elena",'Tablas Guayaquil'!G76,'Tablas Resto de Ecuador'!G76) -> 0
A77: BUPA GLOBAL ELITE - MENSUALES | C77: =IF('INGRESO DE DATOS'!$D$19="Guayas/Santa Elena",'Tablas Guayaquil'!C77,'Tablas Resto de Ecuador'!C77) -> 0 | D77: =IF('INGRESO DE DATOS'!$D$19="Guayas/Santa Elena",'Tablas Guayaquil'!D77,'Tablas Resto de Ecuador'!D77) -> 0 | E77: =IF('INGRESO DE DATOS'!$D$19="Guayas/Santa Elena",'Tablas Guayaquil'!E77,'Tablas Resto de Ecuador'!E77) -> 0 | F77: =IF('INGRESO DE DATOS'!$D$19="Guayas/Santa Elena",'Tablas Guayaquil'!F77,'Tablas Resto de Ecuador'!F77) -> 0 | G77: =IF('INGRESO DE DATOS'!$D$19="Guayas/Santa Elena",'Tablas Guayaquil'!G77,'Tablas Resto de Ecuador'!G77) -> 0
A78: EDAD | C78: =IF('INGRESO DE DATOS'!$D$19="Guayas/Santa Elena",'Tablas Guayaquil'!C78,'Tablas Resto de Ecuador'!C78) -> 0 | D78: =IF('INGRESO DE DATOS'!$D$19="Guayas/Santa Elena",'Tablas Guayaquil'!D78,'Tablas Resto de Ecuador'!D78) -> 0 | E78: =IF('INGRESO DE DATOS'!$D$19="Guayas/Santa Elena",'Tablas Guayaquil'!E78,'Tablas Resto de Ecuador'!E78) -> 0 | F78: =IF('INGRESO DE DATOS'!$D$19="Guayas/Santa Elena",'Tablas Guayaquil'!F78,'Tablas Resto de Ecuador'!F78) -> 0 | G78: =IF('INGRESO DE DATOS'!$D$19="Guayas/Santa Elena",'Tablas Guayaquil'!G78,'Tablas Resto de Ecuador'!G78) -> 0
C79: =IF('INGRESO DE DATOS'!$D$19="Guayas/Santa Elena",'Tablas Guayaquil'!C79,'Tablas Resto de Ecuador'!C79) -> 1000 | D79: =IF('INGRESO DE DATOS'!$D$19="Guayas/Santa Elena",'Tablas Guayaquil'!D79,'Tablas Resto de Ecuador'!D79) -> 2000 | E79: =IF('INGRESO DE DATOS'!$D$19="Guayas/Santa Elena",'Tablas Guayaquil'!E79,'Tablas Resto de Ecuador'!E79) -> 3500 | F79: =IF('INGRESO DE DATOS'!$D$19="Guayas/Santa Elena",'Tablas Guayaquil'!F79,'Tablas Resto de Ecuador'!F79) -> 5000 | G79: =IF('INGRESO DE DATOS'!$D$19="Guayas/Santa Elena",'Tablas Guayaquil'!G79,'Tablas Resto de Ecuador'!G79) -> 10000
A80: 18 | C80: =IF('INGRESO DE DATOS'!$D$19="Guayas/Santa Elena",'Tablas Guayaquil'!C80,'Tablas Resto de Ecuador'!C80) -> 953.3066667 | D80: =IF('INGRESO DE DATOS'!$D$19="Guayas/Santa Elena",'Tablas Guayaquil'!D80,'Tablas Resto de Ecuador'!D80) -> 835.7066667 | E80: =IF('INGRESO DE DATOS'!$D$19="Guayas/Santa Elena",'Tablas Guayaquil'!E80,'Tablas Resto de Ecuador'!E80) -> 676.48 | F80: =IF('INGRESO DE DATOS'!$D$19="Guayas/Santa Elena",'Tablas Guayaquil'!F80,'Tablas Resto de Ecuador'!F80) -> 586.88 | G80: =IF('INGRESO DE DATOS'!$D$19="Guayas/Santa Elena",'Tablas Guayaquil'!G80,'Tablas Resto de Ecuador'!G80) -> 437.64
A81: 19 | C81: =IF('INGRESO DE DATOS'!$D$19="Guayas/Santa Elena",'Tablas Guayaquil'!C81,'Tablas Resto de Ecuador'!C81) -> 953.3066667 | D81: =IF('INGRESO DE DATOS'!$D$19="Guayas/Santa Elena",'Tablas Guayaquil'!D81,'Tablas Resto de Ecuador'!D81) -> 835.7066667 | E81: =IF('INGRESO DE DATOS'!$D$19="Guayas/Santa Elena",'Tablas Guayaquil'!E81,'Tablas Resto de Ecuador'!E81) -> 676.48 | F81: =IF('INGRESO DE DATOS'!$D$19="Guayas/Santa Elena",'Tablas Guayaquil'!F81,'Tablas Resto de Ecuador'!F81) -> 586.88 | G81: =IF('INGRESO DE DATOS'!$D$19="Guayas/Santa Elena",'Tablas Guayaquil'!G81,'Tablas Resto de Ecuador'!G81) -> 437.64
A82: 20 | C82: =IF('INGRESO DE DATOS'!$D$19="Guayas/Santa Elena",'Tablas Guayaquil'!C82,'Tablas Resto de Ecuador'!C82) -> 953.3066667 | D82: =IF('INGRESO DE DATOS'!$D$19="Guayas/Santa Elena",'Tablas Guayaquil'!D82,'Tablas Resto de Ecuador'!D82) -> 835.7066667 | E82: =IF('INGRESO DE DATOS'!$D$19="Guayas/Santa Elena",'Tablas Guayaquil'!E82,'Tablas Resto de Ecuador'!E82) -> 676.48 | F82: =IF('INGRESO DE DATOS'!$D$19="Guayas/Santa Elena",'Tablas Guayaquil'!F82,'Tablas Resto de Ecuador'!F82) -> 586.88 | G82: =IF('INGRESO DE DATOS'!$D$19="Guayas/Santa Elena",'Tablas Guayaquil'!G82,'Tablas Resto de Ecuador'!G82) -> 437.64
A83: 21 | C83: =IF('INGRESO DE DATOS'!$D$19="Guayas/Santa Elena",'Tablas Guayaquil'!C83,'Tablas Resto de Ecuador'!C83) -> 953.3066667 | D83: =IF('INGRESO DE DATOS'!$D$19="Guayas/Santa Elena",'Tablas Guayaquil'!D83,'Tablas Resto de Ecuador'!D83) -> 835.7066667 | E83: =IF('INGRESO DE DATOS'!$D$19="Guayas/Santa Elena",'Tablas Guayaquil'!E83,'Tablas Resto de Ecuador'!E83) -> 676.48 | F83: =IF('INGRESO DE DATOS'!$D$19="Guayas/Santa Elena",'Tablas Guayaquil'!F83,'Tablas Resto de Ecuador'!F83) -> 586.88 | G83: =IF('INGRESO DE DATOS'!$D$19="Guayas/Santa Elena",'Tablas Guayaquil'!G83,'Tablas Resto de Ecuador'!G83) -> 437.64
A84: 22 | C84: =IF('INGRESO DE DATOS'!$D$19="Guayas/Santa Elena",'Tablas Guayaquil'!C84,'Tablas Resto de Ecuador'!C84) -> 953.3066667 | D84: =IF('INGRESO DE DATOS'!$D$19="Guayas/Santa Elena",'Tablas Guayaquil'!D84,'Tablas Resto de Ecuador'!D84) -> 835.7066667 | E84: =IF('INGRESO DE DATOS'!$D$19="Guayas/Santa Elena",'Tablas Guayaquil'!E84,'Tablas Resto de Ecuador'!E84) -> 676.48 | F84: =IF('INGRESO DE DATOS'!$D$19="Guayas/Santa Elena",'Tablas Guayaquil'!F84,'Tablas Resto de Ecuador'!F84) -> 586.88 | G84: =IF('INGRESO DE DATOS'!$D$19="Guayas/Santa Elena",'Tablas Guayaquil'!G84,'Tablas Resto de Ecuador'!G84) -> 437.64
A85: 23 | C85: =IF('INGRESO DE DATOS'!$D$19="Guayas/Santa Elena",'Tablas Guayaquil'!C85,'Tablas Resto de Ecuador'!C85) -> 953.3066667 | D85: =IF('INGRESO DE DATOS'!$D$19="Guayas/Santa Elena",'Tablas Guayaquil'!D85,'Tablas Resto de Ecuador'!D85) -> 835.7066667 | E85: =IF('INGRESO DE DATOS'!$D$19="Guayas/Santa Elena",'Tablas Guayaquil'!E85,'Tablas Resto de Ecuador'!E85) -> 676.48 | F85: =IF('INGRESO DE DATOS'!$D$19="Guayas/Santa Elena",'Tablas Guayaquil'!F85,'Tablas Resto de Ecuador'!F85) -> 586.88 | G85: =IF('INGRESO DE DATOS'!$D$19="Guayas/Santa Elena",'Tablas Guayaquil'!G85,'Tablas Resto de Ecuador'!G85) -> 437.64
A86: 24 | C86: =IF('INGRESO DE DATOS'!$D$19="Guayas/Santa Elena",'Tablas Guayaquil'!C86,'Tablas Resto de Ecuador'!C86) -> 953.3066667 | D86: =IF('INGRESO DE DATOS'!$D$19="Guayas/Santa Elena",'Tablas Guayaquil'!D86,'Tablas Resto de Ecuador'!D86) -> 835.7066667 | E86: =IF('INGRESO DE DATOS'!$D$19="Guayas/Santa Elena",'Tablas Guayaquil'!E86,'Tablas Resto de Ecuador'!E86) -> 676.48 | F86: =IF('INGRESO DE DATOS'!$D$19="Guayas/Santa Elena",'Tablas Guayaquil'!F86,'Tablas Resto de Ecuador'!F86) -> 586.88 | G86: =IF('INGRESO DE DATOS'!$D$19="Guayas/Santa Elena",'Tablas Guayaquil'!G86,'Tablas Resto de Ecuador'!G86) -> 437.64
A87: 25 | C87: =IF('INGRESO DE DATOS'!$D$19="Guayas/Santa Elena",'Tablas Guayaquil'!C87,'Tablas Resto de Ecuador'!C87) -> 1018.826667 | D87: =IF('INGRESO DE DATOS'!$D$19="Guayas/Santa Elena",'Tablas Guayaquil'!D87,'Tablas Resto de Ecuador'!D87) -> 893.0133333 | E87: =IF('INGRESO DE DATOS'!$D$19="Guayas/Santa Elena",'Tablas Guayaquil'!E87,'Tablas Resto de Ecuador'!E87) -> 718.5733333 | F87: =IF('INGRESO DE DATOS'!$D$19="Guayas/Santa Elena",'Tablas Guayaquil'!F87,'Tablas Resto de Ecuador'!F87) -> 623.28 | G87: =IF('INGRESO DE DATOS'!$D$19="Guayas/Santa Elena",'Tablas Guayaquil'!G87,'Tablas Resto de Ecuador'!G87) -> 464.6133333
A88: 26 | C88: =IF('INGRESO DE DATOS'!$D$19="Guayas/Santa Elena",'Tablas Guayaquil'!C88,'Tablas Resto de Ecuador'!C88) -> 1018.826667 | D88: =IF('INGRESO DE DATOS'!$D$19="Guayas/Santa Elena",'Tablas Guayaquil'!D88,'Tablas Resto de Ecuador'!D88) -> 893.0133333 | E88: =IF('INGRESO DE DATOS'!$D$19="Guayas/Santa Elena",'Tablas Guayaquil'!E88,'Tablas Resto de Ecuador'!E88) -> 718.5733333 | F88: =IF('INGRESO DE DATOS'!$D$19="Guayas/Santa Elena",'Tablas Guayaquil'!F88,'Tablas Resto de Ecuador'!F88) -> 623.28 | G88: =IF('INGRESO DE DATOS'!$D$19="Guayas/Santa Elena",'Tablas Guayaquil'!G88,'Tablas Resto de Ecuador'!G88) -> 464.6133333
A89: 27 | C89: =IF('INGRESO DE DATOS'!$D$19="Guayas/Santa Elena",'Tablas Guayaquil'!C89,'Tablas Resto de Ecuador'!C89) -> 1018.826667 | D89: =IF('INGRESO DE DATOS'!$D$19="Guayas/Santa Elena",'Tablas Guayaquil'!D89,'Tablas Resto de Ecuador'!D89) -> 893.0133333 | E89: =IF('INGRESO DE DATOS'!$D$19="Guayas/Santa Elena",'Tablas Guayaquil'!E89,'Tablas Resto de Ecuador'!E89) -> 718.5733333 | F89: =IF('INGRESO DE DATOS'!$D$19="Guayas/Santa Elena",'Tablas Guayaquil'!F89,'Tablas Resto de Ecuador'!F89) -> 623.28 | G89: =IF('INGRESO DE DATOS'!$D$19="Guayas/Santa Elena",'Tablas Guayaquil'!G89,'Tablas Resto de Ecuador'!G89) -> 464.6133333
A90: 28 | C90: =IF('INGRESO DE DATOS'!$D$19="Guayas/Santa Elena",'Tablas Guayaquil'!C90,'Tablas Resto de Ecuador'!C90) -> 1018.826667 | D90: =IF('INGRESO DE DATOS'!$D$19="Guayas/Santa Elena",'Tablas Guayaquil'!D90,'Tablas Resto de Ecuador'!D90) -> 893.0133333 | E90: =IF('INGRESO DE DATOS'!$D$19="Guayas/Santa Elena",'Tablas Guayaquil'!E90,'Tablas Resto de Ecuador'!E90) -> 718.5733333 | F90: =IF('INGRESO DE DATOS'!$D$19="Guayas/Santa Elena",'Tablas Guayaquil'!F90,'Tablas Resto de Ecuador'!F90) -> 623.28 | G90: =IF('INGRESO DE DATOS'!$D$19="Guayas/Santa Elena",'Tablas Guayaquil'!G90,'Tablas Resto de Ecuador'!G90) -> 464.6133333
A91: 29 | C91: =IF('INGRESO DE DATOS'!$D$19="Guayas/Santa Elena",'Tablas Guayaquil'!C91,'Tablas Resto de Ecuador'!C91) -> 1018.826667 | D91: =IF('INGRESO DE DATOS'!$D$19="Guayas/Santa Elena",'Tablas Guayaquil'!D91,'Tablas Resto de Ecuador'!D91) -> 893.0133333 | E91: =IF('INGRESO DE DATOS'!$D$19="Guayas/Santa Elena",'Tablas Guayaquil'!E91,'Tablas Resto de Ecuador'!E91) -> 718.5733333 | F91: =IF('INGRESO DE DATOS'!$D$19="Guayas/Santa Elena",'Tablas Guayaquil'!F91,'Tablas Resto de Ecuador'!F91) -> 623.28 | G91: =IF('INGRESO DE DATOS'!$D$19="Guayas/Santa Elena",'Tablas Guayaquil'!G91,'Tablas Resto de Ecuador'!G91) -> 464.6133333
A92: 30 | C92: =IF('INGRESO DE DATOS'!$D$19="Guayas/Santa Elena",'Tablas Guayaquil'!C92,'Tablas Resto de Ecuador'!C92) -> 1132.88 | D92: =IF('INGRESO DE DATOS'!$D$19="Guayas/Santa Elena",'Tablas Guayaquil'!D92,'Tablas Resto de Ecuador'!D92) -> 993.16 | E92: =IF('INGRESO DE DATOS'!$D$19="Guayas/Santa Elena",'Tablas Guayaquil'!E92,'Tablas Resto de Ecuador'!E92) -> 793.1466667 | F92: =IF('INGRESO DE DATOS'!$D$19="Guayas/Santa Elena",'Tablas Guayaquil'!F92,'Tablas Resto de Ecuador'!F92) -> 687.7733333 | G92: =IF('INGRESO DE DATOS'!$D$19="Guayas/Santa Elena",'Tablas Guayaquil'!G92,'Tablas Resto de Ecuador'!G92) -> 512.7733333
A93: 31 | C93: =IF('INGRESO DE DATOS'!$D$19="Guayas/Santa Elena",'Tablas Guayaquil'!C93,'Tablas Resto de Ecuador'!C93) -> 1132.88 | D93: =IF('INGRESO DE DATOS'!$D$19="Guayas/Santa Elena",'Tablas Guayaquil'!D93,'Tablas Resto de Ecuador'!D93) -> 993.16 | E93: =IF('INGRESO DE DATOS'!$D$19="Guayas/Santa Elena",'Tablas Guayaquil'!E93,'Tablas Resto de Ecuador'!E93) -> 793.1466667 | F93: =IF('INGRESO DE DATOS'!$D$19="Guayas/Santa Elena",'Tablas Guayaquil'!F93,'Tablas Resto de Ecuador'!F93) -> 687.7733333 | G93: =IF('INGRESO DE DATOS'!$D$19="Guayas/Santa Elena",'Tablas Guayaquil'!G93,'Tablas Resto de Ecuador'!G93) -> 512.7733333
A94: 32 | C94: =IF('INGRESO DE DATOS'!$D$19="Guayas/Santa Elena",'Tablas Guayaquil'!C94,'Tablas Resto de Ecuador'!C94) -> 1132.88 | D94: =IF('INGRESO DE DATOS'!$D$19="Guayas/Santa Elena",'Tablas Guayaquil'!D94,'Tablas Resto de Ecuador'!D94) -> 993.16 | E94: =IF('INGRESO DE DATOS'!$D$19="Guayas/Santa Elena",'Tablas Guayaquil'!E94,'Tablas Resto de Ecuador'!E94) -> 793.1466667 | F94: =IF('INGRESO DE DATOS'!$D$19="Guayas/Santa Elena",'Tablas Guayaquil'!F94,'Tablas Resto de Ecuador'!F94) -> 687.7733333 | G94: =IF('INGRESO DE DATOS'!$D$19="Guayas/Santa Elena",'Tablas Guayaquil'!G94,'Tablas Resto de Ecuador'!G94) -> 512.7733333
A95: 33 | C95: =IF('INGRESO DE DATOS'!$D$19="Guayas/Santa Elena",'Tablas Guayaquil'!C95,'Tablas Resto de Ecuador'!C95) -> 1132.88 | D95: =IF('INGRESO DE DATOS'!$D$19="Guayas/Santa Elena",'Tablas Guayaquil'!D95,'Tablas Resto de Ecuador'!D95) -> 993.16 | E95: =IF('INGRESO DE DATOS'!$D$19="Guayas/Santa Elena",'Tablas Guayaquil'!E95,'Tablas Resto de Ecuador'!E95) -> 793.1466667 | F95: =IF('INGRESO DE DATOS'!$D$19="Guayas/Santa Elena",'Tablas Guayaquil'!F95,'Tablas Resto de Ecuador'!F95) -> 687.7733333 | G95: =IF('INGRESO DE DATOS'!$D$19="Guayas/Santa Elena",'Tablas Guayaquil'!G95,'Tablas Resto de Ecuador'!G95) -> 512.7733333
A96: 34 | C96: =IF('INGRESO DE DATOS'!$D$19="Guayas/Santa Elena",'Tablas Guayaquil'!C96,'Tablas Resto de Ecuador'!C96) -> 1132.88 | D96: =IF('INGRESO DE DATOS'!$D$19="Guayas/Santa Elena",'Tablas Guayaquil'!D96,'Tablas Resto de Ecuador'!D96) -> 993.16 | E96: =IF('INGRESO DE DATOS'!$D$19="Guayas/Santa Elena",'Tablas Guayaquil'!E96,'Tablas Resto de Ecuador'!E96) -> 793.1466667 | F96: =IF('INGRESO DE DATOS'!$D$19="Guayas/Santa Elena",'Tablas Guayaquil'!F96,'Tablas Resto de Ecuador'!F96) -> 687.7733333 | G96: =IF('INGRESO DE DATOS'!$D$19="Guayas/Santa Elena",'Tablas Guayaquil'!G96,'Tablas Resto de Ecuador'!G96) -> 512.7733333
A97: 35 | C97: =IF('INGRESO DE DATOS'!$D$19="Guayas/Santa Elena",'Tablas Guayaquil'!C97,'Tablas Resto de Ecuador'!C97) -> 1265.133333 | D97: =IF('INGRESO DE DATOS'!$D$19="Guayas/Santa Elena",'Tablas Guayaquil'!D97,'Tablas Resto de Ecuador'!D97) -> 1108.613333 | E97: =IF('INGRESO DE DATOS'!$D$19="Guayas/Santa Elena",'Tablas Guayaquil'!E97,'Tablas Resto de Ecuador'!E97) -> 880.32 | F97: =IF('INGRESO DE DATOS'!$D$19="Guayas/Santa Elena",'Tablas Guayaquil'!F97,'Tablas Resto de Ecuador'!F97) -> 763.3733333 | G97: =IF('INGRESO DE DATOS'!$D$19="Guayas/Santa Elena",'Tablas Guayaquil'!G97,'Tablas Resto de Ecuador'!G97) -> 569.3333333
A98: 36 | C98: =IF('INGRESO DE DATOS'!$D$19="Guayas/Santa Elena",'Tablas Guayaquil'!C98,'Tablas Resto de Ecuador'!C98) -> 1265.133333 | D98: =IF('INGRESO DE DATOS'!$D$19="Guayas/Santa Elena",'Tablas Guayaquil'!D98,'Tablas Resto de Ecuador'!D98) -> 1108.613333 | E98: =IF('INGRESO DE DATOS'!$D$19="Guayas/Santa Elena",'Tablas Guayaquil'!E98,'Tablas Resto de Ecuador'!E98) -> 880.32 | F98: =IF('INGRESO DE DATOS'!$D$19="Guayas/Santa Elena",'Tablas Guayaquil'!F98,'Tablas Resto de Ecuador'!F98) -> 763.3733333 | G98: =IF('INGRESO DE DATOS'!$D$19="Guayas/Santa Elena",'Tablas Guayaquil'!G98,'Tablas Resto de Ecuador'!G98) -> 569.3333333
A99: 37 | C99: =IF('INGRESO DE DATOS'!$D$19="Guayas/Santa Elena",'Tablas Guayaquil'!C99,'Tablas Resto de Ecuador'!C99) -> 1265.133333 | D99: =IF('INGRESO DE DATOS'!$D$19="Guayas/Santa Elena",'Tablas Guayaquil'!D99,'Tablas Resto de Ecuador'!D99) -> 1108.613333 | E99: =IF('INGRESO DE DATOS'!$D$19="Guayas/Santa Elena",'Tablas Guayaquil'!E99,'Tablas Resto de Ecuador'!E99) -> 880.32 | F99: =IF('INGRESO DE DATOS'!$D$19="Guayas/Santa Elena",'Tablas Guayaquil'!F99,'Tablas Resto de Ecuador'!F99) -> 763.3733333 | G99: =IF('INGRESO DE DATOS'!$D$19="Guayas/Santa Elena",'Tablas Guayaquil'!G99,'Tablas Resto de Ecuador'!G99) -> 569.3333333
A100: 38 | C100: =IF('INGRESO DE DATOS'!$D$19="Guayas/Santa Elena",'Tablas Guayaquil'!C100,'Tablas Resto de Ecuador'!C100) -> 1265.133333 | D100: =IF('INGRESO DE DATOS'!$D$19="Guayas/Santa Elena",'Tablas Guayaquil'!D100,'Tablas Resto de Ecuador'!D100) -> 1108.613333 | E100: =IF('INGRESO DE DATOS'!$D$19="Guayas/Santa Elena",'Tablas Guayaquil'!E100,'Tablas Resto de Ecuador'!E100) -> 880.32 | F100: =IF('INGRESO DE DATOS'!$D$19="Guayas/Santa Elena",'Tablas Guayaquil'!F100,'Tablas Resto de Ecuador'!F100) -> 763.3733333 | G100: =IF('INGRESO DE DATOS'!$D$19="Guayas/Santa Elena",'Tablas Guayaquil'!G100,'Tablas Resto de Ecuador'!G100) -> 569.3333333
A101: 39 | C101: =IF('INGRESO DE DATOS'!$D$19="Guayas/Santa Elena",'Tablas Guayaquil'!C101,'Tablas Resto de Ecuador'!C101) -> 1265.133333 | D101: =IF('INGRESO DE DATOS'!$D$19="Guayas/Santa Elena",'Tablas Guayaquil'!D101,'Tablas Resto de Ecuador'!D101) -> 1108.613333 | E101: =IF('INGRESO DE DATOS'!$D$19="Guayas/Santa Elena",'Tablas Guayaquil'!E101,'Tablas Resto de Ecuador'!E101) -> 880.32 | F101: =IF('INGRESO DE DATOS'!$D$19="Guayas/Santa Elena",'Tablas Guayaquil'!F101,'Tablas Resto de Ecuador'!F101) -> 763.3733333 | G101: =IF('INGRESO DE DATOS'!$D$19="Guayas/Santa Elena",'Tablas Guayaquil'!G101,'Tablas Resto de Ecuador'!G101) -> 569.3333333
A102: 40 | C102: =IF('INGRESO DE DATOS'!$D$19="Guayas/Santa Elena",'Tablas Guayaquil'!C102,'Tablas Resto de Ecuador'!C102) -> 1416.893333 | D102: =IF('INGRESO DE DATOS'!$D$19="Guayas/Santa Elena",'Tablas Guayaquil'!D102,'Tablas Resto de Ecuador'!D102) -> 1242.08 | E102: =IF('INGRESO DE DATOS'!$D$19="Guayas/Santa Elena",'Tablas Guayaquil'!E102,'Tablas Resto de Ecuador'!E102) -> 981.7733333 | F102: =IF('INGRESO DE DATOS'!$D$19="Guayas/Santa Elena",'Tablas Guayaquil'!F102,'Tablas Resto de Ecuador'!F102) -> 851.3866667 | G102: =IF('INGRESO DE DATOS'!$D$19="Guayas/Santa Elena",'Tablas Guayaquil'!G102,'Tablas Resto de Ecuador'!G102) -> 634.76
A103: 41 | C103: =IF('INGRESO DE DATOS'!$D$19="Guayas/Santa Elena",'Tablas Guayaquil'!C103,'Tablas Resto de Ecuador'!C103) -> 1416.893333 | D103: =IF('INGRESO DE DATOS'!$D$19="Guayas/Santa Elena",'Tablas Guayaquil'!D103,'Tablas Resto de Ecuador'!D103) -> 1242.08 | E103: =IF('INGRESO DE DATOS'!$D$19="Guayas/Santa Elena",'Tablas Guayaquil'!E103,'Tablas Resto de Ecuador'!E103) -> 981.7733333 | F103: =IF('INGRESO DE DATOS'!$D$19="Guayas/Santa Elena",'Tablas Guayaquil'!F103,'Tablas Resto de Ecuador'!F103) -> 851.3866667 | G103: =IF('INGRESO DE DATOS'!$D$19="Guayas/Santa Elena",'Tablas Guayaquil'!G103,'Tablas Resto de Ecuador'!G103) -> 634.76
A104: 42 | C104: =IF('INGRESO DE DATOS'!$D$19="Guayas/Santa Elena",'Tablas Guayaquil'!C104,'Tablas Resto de Ecuador'!C104) -> 1416.893333 | D104: =IF('INGRESO DE DATOS'!$D$19="Guayas/Santa Elena",'Tablas Guayaquil'!D104,'Tablas Resto de Ecuador'!D104) -> 1242.08 | E104: =IF('INGRESO DE DATOS'!$D$19="Guayas/Santa Elena",'Tablas Guayaquil'!E104,'Tablas Resto de Ecuador'!E104) -> 981.7733333 | F104: =IF('INGRESO DE DATOS'!$D$19="Guayas/Santa Elena",'Tablas Guayaquil'!F104,'Tablas Resto de Ecuador'!F104) -> 851.3866667 | G104: =IF('INGRESO DE DATOS'!$D$19="Guayas/Santa Elena",'Tablas Guayaquil'!G104,'Tablas Resto de Ecuador'!G104) -> 634.76
A105: 43 | C105: =IF('INGRESO DE DATOS'!$D$19="Guayas/Santa Elena",'Tablas Guayaquil'!C105,'Tablas Resto de Ecuador'!C105) -> 1416.893333 | D105: =IF('INGRESO DE DATOS'!$D$19="Guayas/Santa Elena",'Tablas Guayaquil'!D105,'Tablas Resto de Ecuador'!D105) -> 1242.08 | E105: =IF('INGRESO DE DATOS'!$D$19="Guayas/Santa Elena",'Tablas Guayaquil'!E105,'Tablas Resto de Ecuador'!E105) -> 981.7733333 | F105: =IF('INGRESO DE DATOS'!$D$19="Guayas/Santa Elena",'Tablas Guayaquil'!F105,'Tablas Resto de Ecuador'!F105) -> 851.3866667 | G105: =IF('INGRESO DE DATOS'!$D$19="Guayas/Santa Elena",'Tablas Guayaquil'!G105,'Tablas Resto de Ecuador'!G105) -> 634.76
A106: 44 | C106: =IF('INGRESO DE DATOS'!$D$19="Guayas/Santa Elena",'Tablas Guayaquil'!C106,'Tablas Resto de Ecuador'!C106) -> 1416.893333 | D106: =IF('INGRESO DE DATOS'!$D$19="Guayas/Santa Elena",'Tablas Guayaquil'!D106,'Tablas Resto de Ecuador'!D106) -> 1242.08 | E106: =IF('INGRESO DE DATOS'!$D$19="Guayas/Santa Elena",'Tablas Guayaquil'!E106,'Tablas Resto de Ecuador'!E106) -> 981.7733333 | F106: =IF('INGRESO DE DATOS'!$D$19="Guayas/Santa Elena",'Tablas Guayaquil'!F106,'Tablas Resto de Ecuador'!F106) -> 851.3866667 | G106: =IF('INGRESO DE DATOS'!$D$19="Guayas/Santa Elena",'Tablas Guayaquil'!G106,'Tablas Resto de Ecuador'!G106) -> 634.76
A107: 45 | C107: =IF('INGRESO DE DATOS'!$D$19="Guayas/Santa Elena",'Tablas Guayaquil'!C107,'Tablas Resto de Ecuador'!C107) -> 1585.733333 | D107: =IF('INGRESO DE DATOS'!$D$19="Guayas/Santa Elena",'Tablas Guayaquil'!D107,'Tablas Resto de Ecuador'!D107) -> 1390.2 | E107: =IF('INGRESO DE DATOS'!$D$19="Guayas/Santa Elena",'Tablas Guayaquil'!E107,'Tablas Resto de Ecuador'!E107) -> 1095.453333 | F107: =IF('INGRESO DE DATOS'!$D$19="Guayas/Santa Elena",'Tablas Guayaquil'!F107,'Tablas Resto de Ecuador'!F107) -> 949.8533333 | G107: =IF('INGRESO DE DATOS'!$D$19="Guayas/Santa Elena",'Tablas Guayaquil'!G107,'Tablas Resto de Ecuador'!G107) -> 708.2133333
A108: 46 | C108: =IF('INGRESO DE DATOS'!$D$19="Guayas/Santa Elena",'Tablas Guayaquil'!C108,'Tablas Resto de Ecuador'!C108) -> 1585.733333 | D108: =IF('INGRESO DE DATOS'!$D$19="Guayas/Santa Elena",'Tablas Guayaquil'!D108,'Tablas Resto de Ecuador'!D108) -> 1390.2 | E108: =IF('INGRESO DE DATOS'!$D$19="Guayas/Santa Elena",'Tablas Guayaquil'!E108,'Tablas Resto de Ecuador'!E108) -> 1095.453333 | F108: =IF('INGRESO DE DATOS'!$D$19="Guayas/Santa Elena",'Tablas Guayaquil'!F108,'Tablas Resto de Ecuador'!F108) -> 949.8533333 | G108: =IF('INGRESO DE DATOS'!$D$19="Guayas/Santa Elena",'Tablas Guayaquil'!G108,'Tablas Resto de Ecuador'!G108) -> 708.2133333
A109: 47 | C109: =IF('INGRESO DE DATOS'!$D$19="Guayas/Santa Elena",'Tablas Guayaquil'!C109,'Tablas Resto de Ecuador'!C109) -> 1585.733333 | D109: =IF('INGRESO DE DATOS'!$D$19="Guayas/Santa Elena",'Tablas Guayaquil'!D109,'Tablas Resto de Ecuador'!D109) -> 1390.2 | E109: =IF('INGRESO DE DATOS'!$D$19="Guayas/Santa Elena",'Tablas Guayaquil'!E109,'Tablas Resto de Ecuador'!E109) -> 1095.453333 | F109: =IF('INGRESO DE DATOS'!$D$19="Guayas/Santa Elena",'Tablas Guayaquil'!F109,'Tablas Resto de Ecuador'!F109) -> 949.8533333 | G109: =IF('INGRESO DE DATOS'!$D$19="Guayas/Santa Elena",'Tablas Guayaquil'!G109,'Tablas Resto de Ecuador'!G109) -> 708.2133333
A110: 48 | C110: =IF('INGRESO DE DATOS'!$D$19="Guayas/Santa Elena",'Tablas Guayaquil'!C110,'Tablas Resto de Ecuador'!C110) -> 1585.733333 | D110: =IF('INGRESO DE DATOS'!$D$19="Guayas/Santa Elena",'Tablas Guayaquil'!D110,'Tablas Resto de Ecuador'!D110) -> 1390.2 | E110: =IF('INGRESO DE DATOS'!$D$19="Guayas/Santa Elena",'Tablas Guayaquil'!E110,'Tablas Resto de Ecuador'!E110) -> 1095.453333 | F110: =IF('INGRESO DE DATOS'!$D$19="Guayas/Santa Elena",'Tablas Guayaquil'!F110,'Tablas Resto de Ecuador'!F110) -> 949.8533333 | G110: =IF('INGRESO DE DATOS'!$D$19="Guayas/Santa Elena",'Tablas Guayaquil'!G110,'Tablas Resto de Ecuador'!G110) -> 708.2133333
A111: 49 | C111: =IF('INGRESO DE DATOS'!$D$19="Guayas/Santa Elena",'Tablas Guayaquil'!C111,'Tablas Resto de Ecuador'!C111) -> 1585.733333 | D111: =IF('INGRESO DE DATOS'!$D$19="Guayas/Santa Elena",'Tablas Guayaquil'!D111,'Tablas Resto de Ecuador'!D111) -> 1390.2 | E111: =IF('INGRESO DE DATOS'!$D$19="Guayas/Santa Elena",'Tablas Guayaquil'!E111,'Tablas Resto de Ecuador'!E111) -> 1095.453333 | F111: =IF('INGRESO DE DATOS'!$D$19="Guayas/Santa Elena",'Tablas Guayaquil'!F111,'Tablas Resto de Ecuador'!F111) -> 949.8533333 | G111: =IF('INGRESO DE DATOS'!$D$19="Guayas/Santa Elena",'Tablas Guayaquil'!G111,'Tablas Resto de Ecuador'!G111) -> 708.2133333
A112: 50 | C112: =IF('INGRESO DE DATOS'!$D$19="Guayas/Santa Elena",'Tablas Guayaquil'!C112,'Tablas Resto de Ecuador'!C112) -> 1775.946667 | D112: =IF('INGRESO DE DATOS'!$D$19="Guayas/Santa Elena",'Tablas Guayaquil'!D112,'Tablas Resto de Ecuador'!D112) -> 1556.893333 | E112: =IF('INGRESO DE DATOS'!$D$19="Guayas/Santa Elena",'Tablas Guayaquil'!E112,'Tablas Resto de Ecuador'!E112) -> 1224.066667 | F112: =IF('INGRESO DE DATOS'!$D$19="Guayas/Santa Elena",'Tablas Guayaquil'!F112,'Tablas Resto de Ecuador'!F112) -> 1061.48 | G112: =IF('INGRESO DE DATOS'!$D$19="Guayas/Santa Elena",'Tablas Guayaquil'!G112,'Tablas Resto de Ecuador'!G112) -> 791.28
A113: 51 | C113: =IF('INGRESO DE DATOS'!$D$19="Guayas/Santa Elena",'Tablas Guayaquil'!C113,'Tablas Resto de Ecuador'!C113) -> 1775.946667 | D113: =IF('INGRESO DE DATOS'!$D$19="Guayas/Santa Elena",'Tablas Guayaquil'!D113,'Tablas Resto de Ecuador'!D113) -> 1556.893333 | E113: =IF('INGRESO DE DATOS'!$D$19="Guayas/Santa Elena",'Tablas Guayaquil'!E113,'Tablas Resto de Ecuador'!E113) -> 1224.066667 | F113: =IF('INGRESO DE DATOS'!$D$19="Guayas/Santa Elena",'Tablas Guayaquil'!F113,'Tablas Resto de Ecuador'!F113) -> 1061.48 | G113: =IF('INGRESO DE DATOS'!$D$19="Guayas/Santa Elena",'Tablas Guayaquil'!G113,'Tablas Resto de Ecuador'!G113) -> 791.28
A114: 52 | C114: =IF('INGRESO DE DATOS'!$D$19="Guayas/Santa Elena",'Tablas Guayaquil'!C114,'Tablas Resto de Ecuador'!C114) -> 1775.946667 | D114: =IF('INGRESO DE DATOS'!$D$19="Guayas/Santa Elena",'Tablas Guayaquil'!D114,'Tablas Resto de Ecuador'!D114) -> 1556.893333 | E114: =IF('INGRESO DE DATOS'!$D$19="Guayas/Santa Elena",'Tablas Guayaquil'!E114,'Tablas Resto de Ecuador'!E114) -> 1224.066667 | F114: =IF('INGRESO DE DATOS'!$D$19="Guayas/Santa Elena",'Tablas Guayaquil'!F114,'Tablas Resto de Ecuador'!F114) -> 1061.48 | G114: =IF('INGRESO DE DATOS'!$D$19="Guayas/Santa Elena",'Tablas Guayaquil'!G114,'Tablas Resto de Ecuador'!G114) -> 791.28
A115: 53 | C115: =IF('INGRESO DE DATOS'!$D$19="Guayas/Santa Elena",'Tablas Guayaquil'!C115,'Tablas Resto de Ecuador'!C115) -> 1775.946667 | D115: =IF('INGRESO DE DATOS'!$D$19="Guayas/Santa Elena",'Tablas Guayaquil'!D115,'Tablas Resto de Ecuador'!D115) -> 1556.893333 | E115: =IF('INGRESO DE DATOS'!$D$19="Guayas/Santa Elena",'Tablas Guayaquil'!E115,'Tablas Resto de Ecuador'!E115) -> 1224.066667 | F115: =IF('INGRESO DE DATOS'!$D$19="Guayas/Santa Elena",'Tablas Guayaquil'!F115,'Tablas Resto de Ecuador'!F115) -> 1061.48 | G115: =IF('INGRESO DE DATOS'!$D$19="Guayas/Santa Elena",'Tablas Guayaquil'!G115,'Tablas Resto de Ecuador'!G115) -> 791.28
A116: 54 | C116: =IF('INGRESO DE DATOS'!$D$19="Guayas/Santa Elena",'Tablas Guayaquil'!C116,'Tablas Resto de Ecuador'!C116) -> 1775.946667 | D116: =IF('INGRESO DE DATOS'!$D$19="Guayas/Santa Elena",'Tablas Guayaquil'!D116,'Tablas Resto de Ecuador'!D116) -> 1556.893333 | E116: =IF('INGRESO DE DATOS'!$D$19="Guayas/Santa Elena",'Tablas Guayaquil'!E116,'Tablas Resto de Ecuador'!E116) -> 1224.066667 | F116: =IF('INGRESO DE DATOS'!$D$19="Guayas/Santa Elena",'Tablas Guayaquil'!F116,'Tablas Resto de Ecuador'!F116) -> 1061.48 | G116: =IF('INGRESO DE DATOS'!$D$19="Guayas/Santa Elena",'Tablas Guayaquil'!G116,'Tablas Resto de Ecuador'!G116) -> 791.28
A117: 55 | C117: =IF('INGRESO DE DATOS'!$D$19="Guayas/Santa Elena",'Tablas Guayaquil'!C117,'Tablas Resto de Ecuador'!C117) -> 1985.386667 | D117: =IF('INGRESO DE DATOS'!$D$19="Guayas/Santa Elena",'Tablas Guayaquil'!D117,'Tablas Resto de Ecuador'!D117) -> 1740.386667 | E117: =IF('INGRESO DE DATOS'!$D$19="Guayas/Santa Elena",'Tablas Guayaquil'!E117,'Tablas Resto de Ecuador'!E117) -> 1366.213333 | F117: =IF('INGRESO DE DATOS'!$D$19="Guayas/Santa Elena",'Tablas Guayaquil'!F117,'Tablas Resto de Ecuador'!F117) -> 1184.866667 | G117: =IF('INGRESO DE DATOS'!$D$19="Guayas/Santa Elena",'Tablas Guayaquil'!G117,'Tablas Resto de Ecuador'!G117) -> 883.4
A118: 56 | C118: =IF('INGRESO DE DATOS'!$D$19="Guayas/Santa Elena",'Tablas Guayaquil'!C118,'Tablas Resto de Ecuador'!C118) -> 1985.386667 | D118: =IF('INGRESO DE DATOS'!$D$19="Guayas/Santa Elena",'Tablas Guayaquil'!D118,'Tablas Resto de Ecuador'!D118) -> 1740.386667 | E118: =IF('INGRESO DE DATOS'!$D$19="Guayas/Santa Elena",'Tablas Guayaquil'!E118,'Tablas Resto de Ecuador'!E118) -> 1366.213333 | F118: =IF('INGRESO DE DATOS'!$D$19="Guayas/Santa Elena",'Tablas Guayaquil'!F118,'Tablas Resto de Ecuador'!F118) -> 1184.866667 | G118: =IF('INGRESO DE DATOS'!$D$19="Guayas/Santa Elena",'Tablas Guayaquil'!G118,'Tablas Resto de Ecuador'!G118) -> 883.4
A119: 57 | C119: =IF('INGRESO DE DATOS'!$D$19="Guayas/Santa Elena",'Tablas Guayaquil'!C119,'Tablas Resto de Ecuador'!C119) -> 1985.386667 | D119: =IF('INGRESO DE DATOS'!$D$19="Guayas/Santa Elena",'Tablas Guayaquil'!D119,'Tablas Resto de Ecuador'!D119) -> 1740.386667 | E119: =IF('INGRESO DE DATOS'!$D$19="Guayas/Santa Elena",'Tablas Guayaquil'!E119,'Tablas Resto de Ecuador'!E119) -> 1366.213333 | F119: =IF('INGRESO DE DATOS'!$D$19="Guayas/Santa Elena",'Tablas Guayaquil'!F119,'Tablas Resto de Ecuador'!F119) -> 1184.866667 | G119: =IF('INGRESO DE DATOS'!$D$19="Guayas/Santa Elena",'Tablas Guayaquil'!G119,'Tablas Resto de Ecuador'!G119) -> 883.4
A120: 58 | C120: =IF('INGRESO DE DATOS'!$D$19="Guayas/Santa Elena",'Tablas Guayaquil'!C120,'Tablas Resto de Ecuador'!C120) -> 1985.386667 | D120: =IF('INGRESO DE DATOS'!$D$19="Guayas/Santa Elena",'Tablas Guayaquil'!D120,'Tablas Resto de Ecuador'!D120) -> 1740.386667 | E120: =IF('INGRESO DE DATOS'!$D$19="Guayas/Santa Elena",'Tablas Guayaquil'!E120,'Tablas Resto de Ecuador'!E120) -> 1366.213333 | F120: =IF('INGRESO DE DATOS'!$D$19="Guayas/Santa Elena",'Tablas Guayaquil'!F120,'Tablas Resto de Ecuador'!F120) -> 1184.866667 | G120: =IF('INGRESO DE DATOS'!$D$19="Guayas/Santa Elena",'Tablas Guayaquil'!G120,'Tablas Resto de Ecuador'!G120) -> 883.4
A121: 59 | C121: =IF('INGRESO DE DATOS'!$D$19="Guayas/Santa Elena",'Tablas Guayaquil'!C121,'Tablas Resto de Ecuador'!C121) -> 1985.386667 | D121: =IF('INGRESO DE DATOS'!$D$19="Guayas/Santa Elena",'Tablas Guayaquil'!D121,'Tablas Resto de Ecuador'!D121) -> 1740.386667 | E121: =IF('INGRESO DE DATOS'!$D$19="Guayas/Santa Elena",'Tablas Guayaquil'!E121,'Tablas Resto de Ecuador'!E121) -> 1366.213333 | F121: =IF('INGRESO DE DATOS'!$D$19="Guayas/Santa Elena",'Tablas Guayaquil'!F121,'Tablas Resto de Ecuador'!F121) -> 1184.866667 | G121: =IF('INGRESO DE DATOS'!$D$19="Guayas/Santa Elena",'Tablas Guayaquil'!G121,'Tablas Resto de Ecuador'!G121) -> 883.4
A122: 60 | C122: =IF('INGRESO DE DATOS'!$D$19="Guayas/Santa Elena",'Tablas Guayaquil'!C122,'Tablas Resto de Ecuador'!C122) -> 2124.92 | D122: =IF('INGRESO DE DATOS'!$D$19="Guayas/Santa Elena",'Tablas Guayaquil'!D122,'Tablas Resto de Ecuador'!D122) -> 1862.56 | E122: =IF('INGRESO DE DATOS'!$D$19="Guayas/Santa Elena",'Tablas Guayaquil'!E122,'Tablas Resto de Ecuador'!E122) -> 1461.506667 | F122: =IF('INGRESO DE DATOS'!$D$19="Guayas/Santa Elena",'Tablas Guayaquil'!F122,'Tablas Resto de Ecuador'!F122) -> 1267.093333 | G122: =IF('INGRESO DE DATOS'!$D$19="Guayas/Santa Elena",'Tablas Guayaquil'!G122,'Tablas Resto de Ecuador'!G122) -> 944.9066667
A123: 61 | C123: =IF('INGRESO DE DATOS'!$D$19="Guayas/Santa Elena",'Tablas Guayaquil'!C123,'Tablas Resto de Ecuador'!C123) -> 2368.146667 | D123: =IF('INGRESO DE DATOS'!$D$19="Guayas/Santa Elena",'Tablas Guayaquil'!D123,'Tablas Resto de Ecuador'!D123) -> 2075.546667 | E123: =IF('INGRESO DE DATOS'!$D$19="Guayas/Santa Elena",'Tablas Guayaquil'!E123,'Tablas Resto de Ecuador'!E123) -> 1627.36 | F123: =IF('INGRESO DE DATOS'!$D$19="Guayas/Santa Elena",'Tablas Guayaquil'!F123,'Tablas Resto de Ecuador'!F123) -> 1411.293333 | G123: =IF('INGRESO DE DATOS'!$D$19="Guayas/Santa Elena",'Tablas Guayaquil'!G123,'Tablas Resto de Ecuador'!G123) -> 1052.146667
A124: 62 | C124: =IF('INGRESO DE DATOS'!$D$19="Guayas/Santa Elena",'Tablas Guayaquil'!C124,'Tablas Resto de Ecuador'!C124) -> 2630.786667 | D124: =IF('INGRESO DE DATOS'!$D$19="Guayas/Santa Elena",'Tablas Guayaquil'!D124,'Tablas Resto de Ecuador'!D124) -> 2305.893333 | E124: =IF('INGRESO DE DATOS'!$D$19="Guayas/Santa Elena",'Tablas Guayaquil'!E124,'Tablas Resto de Ecuador'!E124) -> 1807.493333 | F124: =IF('INGRESO DE DATOS'!$D$19="Guayas/Santa Elena",'Tablas Guayaquil'!F124,'Tablas Resto de Ecuador'!F124) -> 1567.44 | G124: =IF('INGRESO DE DATOS'!$D$19="Guayas/Santa Elena",'Tablas Guayaquil'!G124,'Tablas Resto de Ecuador'!G124) -> 1168.533333
A125: 63 | C125: =IF('INGRESO DE DATOS'!$D$19="Guayas/Santa Elena",'Tablas Guayaquil'!C125,'Tablas Resto de Ecuador'!C125) -> 2913.493333 | D125: =IF('INGRESO DE DATOS'!$D$19="Guayas/Santa Elena",'Tablas Guayaquil'!D125,'Tablas Resto de Ecuador'!D125) -> 2553.693333 | E125: =IF('INGRESO DE DATOS'!$D$19="Guayas/Santa Elena",'Tablas Guayaquil'!E125,'Tablas Resto de Ecuador'!E125) -> 2001.813333 | F125: =IF('INGRESO DE DATOS'!$D$19="Guayas/Santa Elena",'Tablas Guayaquil'!F125,'Tablas Resto de Ecuador'!F125) -> 1736 | G125: =IF('INGRESO DE DATOS'!$D$19="Guayas/Santa Elena",'Tablas Guayaquil'!G125,'Tablas Resto de Ecuador'!G125) -> 1294.253333
A126: 64 | C126: =IF('INGRESO DE DATOS'!$D$19="Guayas/Santa Elena",'Tablas Guayaquil'!C126,'Tablas Resto de Ecuador'!C126) -> 3216.173333 | D126: =IF('INGRESO DE DATOS'!$D$19="Guayas/Santa Elena",'Tablas Guayaquil'!D126,'Tablas Resto de Ecuador'!D126) -> 2818.76 | E126: =IF('INGRESO DE DATOS'!$D$19="Guayas/Santa Elena",'Tablas Guayaquil'!E126,'Tablas Resto de Ecuador'!E126) -> 2210.226667 | F126: =IF('INGRESO DE DATOS'!$D$19="Guayas/Santa Elena",'Tablas Guayaquil'!F126,'Tablas Resto de Ecuador'!F126) -> 1916.6 | G126: =IF('INGRESO DE DATOS'!$D$19="Guayas/Santa Elena",'Tablas Guayaquil'!G126,'Tablas Resto de Ecuador'!G126) -> 1428.933333
A127: 65 | C127: =IF('INGRESO DE DATOS'!$D$19="Guayas/Santa Elena",'Tablas Guayaquil'!C127,'Tablas Resto de Ecuador'!C127) -> 3538.546667 | D127: =IF('INGRESO DE DATOS'!$D$19="Guayas/Santa Elena",'Tablas Guayaquil'!D127,'Tablas Resto de Ecuador'!D127) -> 3101.56 | E127: =IF('INGRESO DE DATOS'!$D$19="Guayas/Santa Elena",'Tablas Guayaquil'!E127,'Tablas Resto de Ecuador'!E127) -> 2432.64 | F127: =IF('INGRESO DE DATOS'!$D$19="Guayas/Santa Elena",'Tablas Guayaquil'!F127,'Tablas Resto de Ecuador'!F127) -> 2109.613333 | G127: =IF('INGRESO DE DATOS'!$D$19="Guayas/Santa Elena",'Tablas Guayaquil'!G127,'Tablas Resto de Ecuador'!G127) -> 1572.666667
A128: 66 | C128: =IF('INGRESO DE DATOS'!$D$19="Guayas/Santa Elena",'Tablas Guayaquil'!C128,'Tablas Resto de Ecuador'!C128) -> 3880.52 | D128: =IF('INGRESO DE DATOS'!$D$19="Guayas/Santa Elena",'Tablas Guayaquil'!D128,'Tablas Resto de Ecuador'!D128) -> 3401.44 | E128: =IF('INGRESO DE DATOS'!$D$19="Guayas/Santa Elena",'Tablas Guayaquil'!E128,'Tablas Resto de Ecuador'!E128) -> 2669.053333 | F128: =IF('INGRESO DE DATOS'!$D$19="Guayas/Santa Elena",'Tablas Guayaquil'!F128,'Tablas Resto de Ecuador'!F128) -> 2314.573333 | G128: =IF('INGRESO DE DATOS'!$D$19="Guayas/Santa Elena",'Tablas Guayaquil'!G128,'Tablas Resto de Ecuador'!G128) -> 1725.266667
A129: 67 | C129: =IF('INGRESO DE DATOS'!$D$19="Guayas/Santa Elena",'Tablas Guayaquil'!C129,'Tablas Resto de Ecuador'!C129) -> 4242.653333 | D129: =IF('INGRESO DE DATOS'!$D$19="Guayas/Santa Elena",'Tablas Guayaquil'!D129,'Tablas Resto de Ecuador'!D129) -> 3718.773333 | E129: =IF('INGRESO DE DATOS'!$D$19="Guayas/Santa Elena",'Tablas Guayaquil'!E129,'Tablas Resto de Ecuador'!E129) -> 2919.653333 | F129: =IF('INGRESO DE DATOS'!$D$19="Guayas/Santa Elena",'Tablas Guayaquil'!F129,'Tablas Resto de Ecuador'!F129) -> 2531.573333 | G129: =IF('INGRESO DE DATOS'!$D$19="Guayas/Santa Elena",'Tablas Guayaquil'!G129,'Tablas Resto de Ecuador'!G129) -> 1887.293333
A130: 68 | C130: =IF('INGRESO DE DATOS'!$D$19="Guayas/Santa Elena",'Tablas Guayaquil'!C130,'Tablas Resto de Ecuador'!C130) -> 4624.293333 | D130: =IF('INGRESO DE DATOS'!$D$19="Guayas/Santa Elena",'Tablas Guayaquil'!D130,'Tablas Resto de Ecuador'!D130) -> 4053.746667 | E130: =IF('INGRESO DE DATOS'!$D$19="Guayas/Santa Elena",'Tablas Guayaquil'!E130,'Tablas Resto de Ecuador'!E130) -> 3184.253333 | F130: =IF('INGRESO DE DATOS'!$D$19="Guayas/Santa Elena",'Tablas Guayaquil'!F130,'Tablas Resto de Ecuador'!F130) -> 2761.266667 | G130: =IF('INGRESO DE DATOS'!$D$19="Guayas/Santa Elena",'Tablas Guayaquil'!G130,'Tablas Resto de Ecuador'!G130) -> 2058.56
A131: 69 | C131: =IF('INGRESO DE DATOS'!$D$19="Guayas/Santa Elena",'Tablas Guayaquil'!C131,'Tablas Resto de Ecuador'!C131) -> 5026.373333 | D131: =IF('INGRESO DE DATOS'!$D$19="Guayas/Santa Elena",'Tablas Guayaquil'!D131,'Tablas Resto de Ecuador'!D131) -> 4405.613333 | E131: =IF('INGRESO DE DATOS'!$D$19="Guayas/Santa Elena",'Tablas Guayaquil'!E131,'Tablas Resto de Ecuador'!E131) -> 3463.133333 | F131: =IF('INGRESO DE DATOS'!$D$19="Guayas/Santa Elena",'Tablas Guayaquil'!F131,'Tablas Resto de Ecuador'!F131) -> 3003.093333 | G131: =IF('INGRESO DE DATOS'!$D$19="Guayas/Santa Elena",'Tablas Guayaquil'!G131,'Tablas Resto de Ecuador'!G131) -> 2238.786667
A132: 70 | C132: =IF('INGRESO DE DATOS'!$D$19="Guayas/Santa Elena",'Tablas Guayaquil'!C132,'Tablas Resto de Ecuador'!C132) -> 5447.866667 | D132: =IF('INGRESO DE DATOS'!$D$19="Guayas/Santa Elena",'Tablas Guayaquil'!D132,'Tablas Resto de Ecuador'!D132) -> 4775.12 | E132: =IF('INGRESO DE DATOS'!$D$19="Guayas/Santa Elena",'Tablas Guayaquil'!E132,'Tablas Resto de Ecuador'!E132) -> 3755.826667 | F132: =IF('INGRESO DE DATOS'!$D$19="Guayas/Santa Elena",'Tablas Guayaquil'!F132,'Tablas Resto de Ecuador'!F132) -> 3256.866667 | G132: =IF('INGRESO DE DATOS'!$D$19="Guayas/Santa Elena",'Tablas Guayaquil'!G132,'Tablas Resto de Ecuador'!G132) -> 2427.88
A133: 71 | C133: =IF('INGRESO DE DATOS'!$D$19="Guayas/Santa Elena",'Tablas Guayaquil'!C133,'Tablas Resto de Ecuador'!C133) -> 5889.146667 | D133: =IF('INGRESO DE DATOS'!$D$19="Guayas/Santa Elena",'Tablas Guayaquil'!D133,'Tablas Resto de Ecuador'!D133) -> 5162.08 | E133: =IF('INGRESO DE DATOS'!$D$19="Guayas/Santa Elena",'Tablas Guayaquil'!E133,'Tablas Resto de Ecuador'!E133) -> 4062.986667 | F133: =IF('INGRESO DE DATOS'!$D$19="Guayas/Santa Elena",'Tablas Guayaquil'!F133,'Tablas Resto de Ecuador'!F133) -> 3522.96 | G133: =IF('INGRESO DE DATOS'!$D$19="Guayas/Santa Elena",'Tablas Guayaquil'!G133,'Tablas Resto de Ecuador'!G133) -> 2626.4
A134: 72 | C134: =IF('INGRESO DE DATOS'!$D$19="Guayas/Santa Elena",'Tablas Guayaquil'!C134,'Tablas Resto de Ecuador'!C134) -> 6350.4 | D134: =IF('INGRESO DE DATOS'!$D$19="Guayas/Santa Elena",'Tablas Guayaquil'!D134,'Tablas Resto de Ecuador'!D134) -> 5566.12 | E134: =IF('INGRESO DE DATOS'!$D$19="Guayas/Santa Elena",'Tablas Guayaquil'!E134,'Tablas Resto de Ecuador'!E134) -> 4383.68 | F134: =IF('INGRESO DE DATOS'!$D$19="Guayas/Santa Elena",'Tablas Guayaquil'!F134,'Tablas Resto de Ecuador'!F134) -> 3801.28 | G134: =IF('INGRESO DE DATOS'!$D$19="Guayas/Santa Elena",'Tablas Guayaquil'!G134,'Tablas Resto de Ecuador'!G134) -> 2833.693333
A135: 73 | C135: =IF('INGRESO DE DATOS'!$D$19="Guayas/Santa Elena",'Tablas Guayaquil'!C135,'Tablas Resto de Ecuador'!C135) -> 6831.346667 | D135: =IF('INGRESO DE DATOS'!$D$19="Guayas/Santa Elena",'Tablas Guayaquil'!D135,'Tablas Resto de Ecuador'!D135) -> 5987.893333 | E135: =IF('INGRESO DE DATOS'!$D$19="Guayas/Santa Elena",'Tablas Guayaquil'!E135,'Tablas Resto de Ecuador'!E135) -> 4718.84 | F135: =IF('INGRESO DE DATOS'!$D$19="Guayas/Santa Elena",'Tablas Guayaquil'!F135,'Tablas Resto de Ecuador'!F135) -> 4091.826667 | G135: =IF('INGRESO DE DATOS'!$D$19="Guayas/Santa Elena",'Tablas Guayaquil'!G135,'Tablas Resto de Ecuador'!G135) -> 3050.506667
A136: 74 | C136: =IF('INGRESO DE DATOS'!$D$19="Guayas/Santa Elena",'Tablas Guayaquil'!C136,'Tablas Resto de Ecuador'!C136) -> 7332.36 | D136: =IF('INGRESO DE DATOS'!$D$19="Guayas/Santa Elena",'Tablas Guayaquil'!D136,'Tablas Resto de Ecuador'!D136) -> 6426.84 | E136: =IF('INGRESO DE DATOS'!$D$19="Guayas/Santa Elena",'Tablas Guayaquil'!E136,'Tablas Resto de Ecuador'!E136) -> 5068 | F136: =IF('INGRESO DE DATOS'!$D$19="Guayas/Santa Elena",'Tablas Guayaquil'!F136,'Tablas Resto de Ecuador'!F136) -> 4394.6 | G136: =IF('INGRESO DE DATOS'!$D$19="Guayas/Santa Elena",'Tablas Guayaquil'!G136,'Tablas Resto de Ecuador'!G136) -> 3276.186667
A137: 75 | C137: =IF('INGRESO DE DATOS'!$D$19="Guayas/Santa Elena",'Tablas Guayaquil'!C137,'Tablas Resto de Ecuador'!C137) -> 7852.973333 | D137: =IF('INGRESO DE DATOS'!$D$19="Guayas/Santa Elena",'Tablas Guayaquil'!D137,'Tablas Resto de Ecuador'!D137) -> 6883.613333 | E137: =IF('INGRESO DE DATOS'!$D$19="Guayas/Santa Elena",'Tablas Guayaquil'!E137,'Tablas Resto de Ecuador'!E137) -> 5431.16 | F137: =IF('INGRESO DE DATOS'!$D$19="Guayas/Santa Elena",'Tablas Guayaquil'!F137,'Tablas Resto de Ecuador'!F137) -> 4709.506667 | G137: =IF('INGRESO DE DATOS'!$D$19="Guayas/Santa Elena",'Tablas Guayaquil'!G137,'Tablas Resto de Ecuador'!G137) -> 3510.733333
A138: 76 | C138: =IF('INGRESO DE DATOS'!$D$19="Guayas/Santa Elena",'Tablas Guayaquil'!C138,'Tablas Resto de Ecuador'!C138) -> 7852.973333 | D138: =IF('INGRESO DE DATOS'!$D$19="Guayas/Santa Elena",'Tablas Guayaquil'!D138,'Tablas Resto de Ecuador'!D138) -> 6883.613333 | E138: =IF('INGRESO DE DATOS'!$D$19="Guayas/Santa Elena",'Tablas Guayaquil'!E138,'Tablas Resto de Ecuador'!E138) -> 5431.16 | F138: =IF('INGRESO DE DATOS'!$D$19="Guayas/Santa Elena",'Tablas Guayaquil'!F138,'Tablas Resto de Ecuador'!F138) -> 4709.506667 | G138: =IF('INGRESO DE DATOS'!$D$19="Guayas/Santa Elena",'Tablas Guayaquil'!G138,'Tablas Resto de Ecuador'!G138) -> 3510.733333
A139: 77 | C139: =IF('INGRESO DE DATOS'!$D$19="Guayas/Santa Elena",'Tablas Guayaquil'!C139,'Tablas Resto de Ecuador'!C139) -> 7852.973333 | D139: =IF('INGRESO DE DATOS'!$D$19="Guayas/Santa Elena",'Tablas Guayaquil'!D139,'Tablas Resto de Ecuador'!D139) -> 6883.613333 | E139: =IF('INGRESO DE DATOS'!$D$19="Guayas/Santa Elena",'Tablas Guayaquil'!E139,'Tablas Resto de Ecuador'!E139) -> 5431.16 | F139: =IF('INGRESO DE DATOS'!$D$19="Guayas/Santa Elena",'Tablas Guayaquil'!F139,'Tablas Resto de Ecuador'!F139) -> 4709.506667 | G139: =IF('INGRESO DE DATOS'!$D$19="Guayas/Santa Elena",'Tablas Guayaquil'!G139,'Tablas Resto de Ecuador'!G139) -> 3510.733333
A140: 78 | C140: =IF('INGRESO DE DATOS'!$D$19="Guayas/Santa Elena",'Tablas Guayaquil'!C140,'Tablas Resto de Ecuador'!C140) -> 7852.973333 | D140: =IF('INGRESO DE DATOS'!$D$19="Guayas/Santa Elena",'Tablas Guayaquil'!D140,'Tablas Resto de Ecuador'!D140) -> 6883.613333 | E140: =IF('INGRESO DE DATOS'!$D$19="Guayas/Santa Elena",'Tablas Guayaquil'!E140,'Tablas Resto de Ecuador'!E140) -> 5431.16 | F140: =IF('INGRESO DE DATOS'!$D$19="Guayas/Santa Elena",'Tablas Guayaquil'!F140,'Tablas Resto de Ecuador'!F140) -> 4709.506667 | G140: =IF('INGRESO DE DATOS'!$D$19="Guayas/Santa Elena",'Tablas Guayaquil'!G140,'Tablas Resto de Ecuador'!G140) -> 3510.733333
A141: 79 | C141: =IF('INGRESO DE DATOS'!$D$19="Guayas/Santa Elena",'Tablas Guayaquil'!C141,'Tablas Resto de Ecuador'!C141) -> 7852.973333 | D141: =IF('INGRESO DE DATOS'!$D$19="Guayas/Santa Elena",'Tablas Guayaquil'!D141,'Tablas Resto de Ecuador'!D141) -> 6883.613333 | E141: =IF('INGRESO DE DATOS'!$D$19="Guayas/Santa Elena",'Tablas Guayaquil'!E141,'Tablas Resto de Ecuador'!E141) -> 5431.16 | F141: =IF('INGRESO DE DATOS'!$D$19="Guayas/Santa Elena",'Tablas Guayaquil'!F141,'Tablas Resto de Ecuador'!F141) -> 4709.506667 | G141: =IF('INGRESO DE DATOS'!$D$19="Guayas/Santa Elena",'Tablas Guayaquil'!G141,'Tablas Resto de Ecuador'!G141) -> 3510.733333
A142: 80 | C142: =IF('INGRESO DE DATOS'!$D$19="Guayas/Santa Elena",'Tablas Guayaquil'!C142,'Tablas Resto de Ecuador'!C142) -> 7852.973333 | D142: =IF('INGRESO DE DATOS'!$D$19="Guayas/Santa Elena",'Tablas Guayaquil'!D142,'Tablas Resto de Ecuador'!D142) -> 6883.613333 | E142: =IF('INGRESO DE DATOS'!$D$19="Guayas/Santa Elena",'Tablas Guayaquil'!E142,'Tablas Resto de Ecuador'!E142) -> 5431.16 | F142: =IF('INGRESO DE DATOS'!$D$19="Guayas/Santa Elena",'Tablas Guayaquil'!F142,'Tablas Resto de Ecuador'!F142) -> 4709.506667 | G142: =IF('INGRESO DE DATOS'!$D$19="Guayas/Santa Elena",'Tablas Guayaquil'!G142,'Tablas Resto de Ecuador'!G142) -> 3510.733333
A143: 81 | C143: =IF('INGRESO DE DATOS'!$D$19="Guayas/Santa Elena",'Tablas Guayaquil'!C143,'Tablas Resto de Ecuador'!C143) -> 7852.973333 | D143: =IF('INGRESO DE DATOS'!$D$19="Guayas/Santa Elena",'Tablas Guayaquil'!D143,'Tablas Resto de Ecuador'!D143) -> 6883.613333 | E143: =IF('INGRESO DE DATOS'!$D$19="Guayas/Santa Elena",'Tablas Guayaquil'!E143,'Tablas Resto de Ecuador'!E143) -> 5431.16 | F143: =IF('INGRESO DE DATOS'!$D$19="Guayas/Santa Elena",'Tablas Guayaquil'!F143,'Tablas Resto de Ecuador'!F143) -> 4709.506667 | G143: =IF('INGRESO DE DATOS'!$D$19="Guayas/Santa Elena",'Tablas Guayaquil'!G143,'Tablas Resto de Ecuador'!G143) -> 3510.733333
A144: 82 | C144: =IF('INGRESO DE DATOS'!$D$19="Guayas/Santa Elena",'Tablas Guayaquil'!C144,'Tablas Resto de Ecuador'!C144) -> 7852.973333 | D144: =IF('INGRESO DE DATOS'!$D$19="Guayas/Santa Elena",'Tablas Guayaquil'!D144,'Tablas Resto de Ecuador'!D144) -> 6883.613333 | E144: =IF('INGRESO DE DATOS'!$D$19="Guayas/Santa Elena",'Tablas Guayaquil'!E144,'Tablas Resto de Ecuador'!E144) -> 5431.16 | F144: =IF('INGRESO DE DATOS'!$D$19="Guayas/Santa Elena",'Tablas Guayaquil'!F144,'Tablas Resto de Ecuador'!F144) -> 4709.506667 | G144: =IF('INGRESO DE DATOS'!$D$19="Guayas/Santa Elena",'Tablas Guayaquil'!G144,'Tablas Resto de Ecuador'!G144) -> 3510.733333
A145: 83 | C145: =IF('INGRESO DE DATOS'!$D$19="Guayas/Santa Elena",'Tablas Guayaquil'!C145,'Tablas Resto de Ecuador'!C145) -> 7852.973333 | D145: =IF('INGRESO DE DATOS'!$D$19="Guayas/Santa Elena",'Tablas Guayaquil'!D145,'Tablas Resto de Ecuador'!D145) -> 6883.613333 | E145: =IF('INGRESO DE DATOS'!$D$19="Guayas/Santa Elena",'Tablas Guayaquil'!E145,'Tablas Resto de Ecuador'!E145) -> 5431.16 | F145: =IF('INGRESO DE DATOS'!$D$19="Guayas/Santa Elena",'Tablas Guayaquil'!F145,'Tablas Resto de Ecuador'!F145) -> 4709.506667 | G145: =IF('INGRESO DE DATOS'!$D$19="Guayas/Santa Elena",'Tablas Guayaquil'!G145,'Tablas Resto de Ecuador'!G145) -> 3510.733333
A146: 84 | B146: o más | C146: =IF('INGRESO DE DATOS'!$D$19="Guayas/Santa Elena",'Tablas Guayaquil'!C146,'Tablas Resto de Ecuador'!C146) -> 7852.973333 | D146: =IF('INGRESO DE DATOS'!$D$19="Guayas/Santa Elena",'Tablas Guayaquil'!D146,'Tablas Resto de Ecuador'!D146) -> 6883.613333 | E146: =IF('INGRESO DE DATOS'!$D$19="Guayas/Santa Elena",'Tablas Guayaquil'!E146,'Tablas Resto de Ecuador'!E146) -> 5431.16 | F146: =IF('INGRESO DE DATOS'!$D$19="Guayas/Santa Elena",'Tablas Guayaquil'!F146,'Tablas Resto de Ecuador'!F146) -> 4709.506667 | G146: =IF('INGRESO DE DATOS'!$D$19="Guayas/Santa Elena",'Tablas Guayaquil'!G146,'Tablas Resto de Ecuador'!G146) -> 3510.733333
A147: 1 | B147: Hijo | C147: =IF('INGRESO DE DATOS'!$D$19="Guayas/Santa Elena",'Tablas Guayaquil'!C147,'Tablas Resto de Ecuador'!C147) -> 402.7333333 | D147: =IF('INGRESO DE DATOS'!$D$19="Guayas/Santa Elena",'Tablas Guayaquil'!D147,'Tablas Resto de Ecuador'!D147) -> 353.36 | E147: =IF('INGRESO DE DATOS'!$D$19="Guayas/Santa Elena",'Tablas Guayaquil'!E147,'Tablas Resto de Ecuador'!E147) -> 288.0266667 | F147: =IF('INGRESO DE DATOS'!$D$19="Guayas/Santa Elena",'Tablas Guayaquil'!F147,'Tablas Resto de Ecuador'!F147) -> 249.8533333 | G147: =IF('INGRESO DE DATOS'!$D$19="Guayas/Santa Elena",'Tablas Guayaquil'!G147,'Tablas Resto de Ecuador'!G147) -> 186.3866667
A148: 2 | B148: Hijos | C148: =IF('INGRESO DE DATOS'!$D$19="Guayas/Santa Elena",'Tablas Guayaquil'!C148,'Tablas Resto de Ecuador'!C148) -> 684.88 | D148: =IF('INGRESO DE DATOS'!$D$19="Guayas/Santa Elena",'Tablas Guayaquil'!D148,'Tablas Resto de Ecuador'!D148) -> 600.32 | E148: =IF('INGRESO DE DATOS'!$D$19="Guayas/Santa Elena",'Tablas Guayaquil'!E148,'Tablas Resto de Ecuador'!E148) -> 489.2533333 | F148: =IF('INGRESO DE DATOS'!$D$19="Guayas/Santa Elena",'Tablas Guayaquil'!F148,'Tablas Resto de Ecuador'!F148) -> 424.2933333 | G148: =IF('INGRESO DE DATOS'!$D$19="Guayas/Santa Elena",'Tablas Guayaquil'!G148,'Tablas Resto de Ecuador'!G148) -> 316.4933333
A149: 3 | B149: Hijos o más | C149: =IF('INGRESO DE DATOS'!$D$19="Guayas/Santa Elena",'Tablas Guayaquil'!C149,'Tablas Resto de Ecuador'!C149) -> 966.6533333 | D149: =IF('INGRESO DE DATOS'!$D$19="Guayas/Santa Elena",'Tablas Guayaquil'!D149,'Tablas Resto de Ecuador'!D149) -> 847.6533333 | E149: =IF('INGRESO DE DATOS'!$D$19="Guayas/Santa Elena",'Tablas Guayaquil'!E149,'Tablas Resto de Ecuador'!E149) -> 690.9466667 | F149: =IF('INGRESO DE DATOS'!$D$19="Guayas/Santa Elena",'Tablas Guayaquil'!F149,'Tablas Resto de Ecuador'!F149) -> 599.0133333 | G149: =IF('INGRESO DE DATOS'!$D$19="Guayas/Santa Elena",'Tablas Guayaquil'!G149,'Tablas Resto de Ecuador'!G149) -> 446.6933333
C150: =IF('INGRESO DE DATOS'!$D$19="Guayas/Santa Elena",'Tablas Guayaquil'!C150,'Tablas Resto de Ecuador'!C150) -> 0 | D150: =IF('INGRESO DE DATOS'!$D$19="Guayas/Santa Elena",'Tablas Guayaquil'!D150,'Tablas Resto de Ecuador'!D150) -> 0 | E150: =IF('INGRESO DE DATOS'!$D$19="Guayas/Santa Elena",'Tablas Guayaquil'!E150,'Tablas Resto de Ecuador'!E150) -> 0 | F150: =IF('INGRESO DE DATOS'!$D$19="Guayas/Santa Elena",'Tablas Guayaquil'!F150,'Tablas Resto de Ecuador'!F150) -> 0 | G150: =IF('INGRESO DE DATOS'!$D$19="Guayas/Santa Elena",'Tablas Guayaquil'!G150,'Tablas Resto de Ecuador'!G150) -> 0
A151: BUPA GLOBAL PREMIER | C151: =IF('INGRESO DE DATOS'!$D$19="Guayas/Santa Elena",'Tablas Guayaquil'!C151,'Tablas Resto de Ecuador'!C151) -> 0 | D151: =IF('INGRESO DE DATOS'!$D$19="Guayas/Santa Elena",'Tablas Guayaquil'!D151,'Tablas Resto de Ecuador'!D151) -> 0 | E151: =IF('INGRESO DE DATOS'!$D$19="Guayas/Santa Elena",'Tablas Guayaquil'!E151,'Tablas Resto de Ecuador'!E151) -> 0 | F151: =IF('INGRESO DE DATOS'!$D$19="Guayas/Santa Elena",'Tablas Guayaquil'!F151,'Tablas Resto de Ecuador'!F151) -> 0 | G151: =IF('INGRESO DE DATOS'!$D$19="Guayas/Santa Elena",'Tablas Guayaquil'!G151,'Tablas Resto de Ecuador'!G151) -> 0
A152: TARIFAS ANUALES | C152: =IF('INGRESO DE DATOS'!$D$19="Guayas/Santa Elena",'Tablas Guayaquil'!C152,'Tablas Resto de Ecuador'!C152) -> 0 | D152: =IF('INGRESO DE DATOS'!$D$19="Guayas/Santa Elena",'Tablas Guayaquil'!D152,'Tablas Resto de Ecuador'!D152) -> 0 | E152: =IF('INGRESO DE DATOS'!$D$19="Guayas/Santa Elena",'Tablas Guayaquil'!E152,'Tablas Resto de Ecuador'!E152) -> 0 | F152: =IF('INGRESO DE DATOS'!$D$19="Guayas/Santa Elena",'Tablas Guayaquil'!F152,'Tablas Resto de Ecuador'!F152) -> 0 | G152: =IF('INGRESO DE DATOS'!$D$19="Guayas/Santa Elena",'Tablas Guayaquil'!G152,'Tablas Resto de Ecuador'!G152) -> 0
A153: EDAD | C153: =IF('INGRESO DE DATOS'!$D$19="Guayas/Santa Elena",'Tablas Guayaquil'!C153,'Tablas Resto de Ecuador'!C153) -> 0 | D153: =IF('INGRESO DE DATOS'!$D$19="Guayas/Santa Elena",'Tablas Guayaquil'!D153,'Tablas Resto de Ecuador'!D153) -> 0 | E153: =IF('INGRESO DE DATOS'!$D$19="Guayas/Santa Elena",'Tablas Guayaquil'!E153,'Tablas Resto de Ecuador'!E153) -> 0 | F153: =IF('INGRESO DE DATOS'!$D$19="Guayas/Santa Elena",'Tablas Guayaquil'!F153,'Tablas Resto de Ecuador'!F153) -> 0 | G153: =IF('INGRESO DE DATOS'!$D$19="Guayas/Santa Elena",'Tablas Guayaquil'!G153,'Tablas Resto de Ecuador'!G153) -> 0
C154: =IF('INGRESO DE DATOS'!$D$19="Guayas/Santa Elena",'Tablas Guayaquil'!C154,'Tablas Resto de Ecuador'!C154) -> 250 | D154: =IF('INGRESO DE DATOS'!$D$19="Guayas/Santa Elena",'Tablas Guayaquil'!D154,'Tablas Resto de Ecuador'!D154) -> 2000 | E154: =IF('INGRESO DE DATOS'!$D$19="Guayas/Santa Elena",'Tablas Guayaquil'!E154,'Tablas Resto de Ecuador'!E154) -> 5000 | F154: =IF('INGRESO DE DATOS'!$D$19="Guayas/Santa Elena",'Tablas Guayaquil'!F154,'Tablas Resto de Ecuador'!F154) -> 10000 | G154: =IF('INGRESO DE DATOS'!$D$19="Guayas/Santa Elena",'Tablas Guayaquil'!G154,'Tablas Resto de Ecuador'!G154) -> 20000
A155: 18 | C155: =IF('INGRESO DE DATOS'!$D$19="Guayas/Santa Elena",'Tablas Guayaquil'!C155,'Tablas Resto de Ecuador'!C155) -> 6656 | D155: =IF('INGRESO DE DATOS'!$D$19="Guayas/Santa Elena",'Tablas Guayaquil'!D155,'Tablas Resto de Ecuador'!D155) -> 6040 | E155: =IF('INGRESO DE DATOS'!$D$19="Guayas/Santa Elena",'Tablas Guayaquil'!E155,'Tablas Resto de Ecuador'!E155) -> 4410 | F155: =IF('INGRESO DE DATOS'!$D$19="Guayas/Santa Elena",'Tablas Guayaquil'!F155,'Tablas Resto de Ecuador'!F155) -> 3156 | G155: =IF('INGRESO DE DATOS'!$D$19="Guayas/Santa Elena",'Tablas Guayaquil'!G155,'Tablas Resto de Ecuador'!G155) -> 2476
A156: 19 | C156: =IF('INGRESO DE DATOS'!$D$19="Guayas/Santa Elena",'Tablas Guayaquil'!C156,'Tablas Resto de Ecuador'!C156) -> 6656 | D156: =IF('INGRESO DE DATOS'!$D$19="Guayas/Santa Elena",'Tablas Guayaquil'!D156,'Tablas Resto de Ecuador'!D156) -> 6040 | E156: =IF('INGRESO DE DATOS'!$D$19="Guayas/Santa Elena",'Tablas Guayaquil'!E156,'Tablas Resto de Ecuador'!E156) -> 4410 | F156: =IF('INGRESO DE DATOS'!$D$19="Guayas/Santa Elena",'Tablas Guayaquil'!F156,'Tablas Resto de Ecuador'!F156) -> 3156 | G156: =IF('INGRESO DE DATOS'!$D$19="Guayas/Santa Elena",'Tablas Guayaquil'!G156,'Tablas Resto de Ecuador'!G156) -> 2476
A157: 20 | C157: =IF('INGRESO DE DATOS'!$D$19="Guayas/Santa Elena",'Tablas Guayaquil'!C157,'Tablas Resto de Ecuador'!C157) -> 6656 | D157: =IF('INGRESO DE DATOS'!$D$19="Guayas/Santa Elena",'Tablas Guayaquil'!D157,'Tablas Resto de Ecuador'!D157) -> 6040 | E157: =IF('INGRESO DE DATOS'!$D$19="Guayas/Santa Elena",'Tablas Guayaquil'!E157,'Tablas Resto de Ecuador'!E157) -> 4410 | F157: =IF('INGRESO DE DATOS'!$D$19="Guayas/Santa Elena",'Tablas Guayaquil'!F157,'Tablas Resto de Ecuador'!F157) -> 3156 | G157: =IF('INGRESO DE DATOS'!$D$19="Guayas/Santa Elena",'Tablas Guayaquil'!G157,'Tablas Resto de Ecuador'!G157) -> 2476
A158: 21 | C158: =IF('INGRESO DE DATOS'!$D$19="Guayas/Santa Elena",'Tablas Guayaquil'!C158,'Tablas Resto de Ecuador'!C158) -> 6656 | D158: =IF('INGRESO DE DATOS'!$D$19="Guayas/Santa Elena",'Tablas Guayaquil'!D158,'Tablas Resto de Ecuador'!D158) -> 6040 | E158: =IF('INGRESO DE DATOS'!$D$19="Guayas/Santa Elena",'Tablas Guayaquil'!E158,'Tablas Resto de Ecuador'!E158) -> 4410 | F158: =IF('INGRESO DE DATOS'!$D$19="Guayas/Santa Elena",'Tablas Guayaquil'!F158,'Tablas Resto de Ecuador'!F158) -> 3156 | G158: =IF('INGRESO DE DATOS'!$D$19="Guayas/Santa Elena",'Tablas Guayaquil'!G158,'Tablas Resto de Ecuador'!G158) -> 2476
A159: 22 | C159: =IF('INGRESO DE DATOS'!$D$19="Guayas/Santa Elena",'Tablas Guayaquil'!C159,'Tablas Resto de Ecuador'!C159) -> 6656 | D159: =IF('INGRESO DE DATOS'!$D$19="Guayas/Santa Elena",'Tablas Guayaquil'!D159,'Tablas Resto de Ecuador'!D159) -> 6040 | E159: =IF('INGRESO DE DATOS'!$D$19="Guayas/Santa Elena",'Tablas Guayaquil'!E159,'Tablas Resto de Ecuador'!E159) -> 4410 | F159: =IF('INGRESO DE DATOS'!$D$19="Guayas/Santa Elena",'Tablas Guayaquil'!F159,'Tablas Resto de Ecuador'!F159) -> 3156 | G159: =IF('INGRESO DE DATOS'!$D$19="Guayas/Santa Elena",'Tablas Guayaquil'!G159,'Tablas Resto de Ecuador'!G159) -> 2476
A160: 23 | C160: =IF('INGRESO DE DATOS'!$D$19="Guayas/Santa Elena",'Tablas Guayaquil'!C160,'Tablas Resto de Ecuador'!C160) -> 6656 | D160: =IF('INGRESO DE DATOS'!$D$19="Guayas/Santa Elena",'Tablas Guayaquil'!D160,'Tablas Resto de Ecuador'!D160) -> 6040 | E160: =IF('INGRESO DE DATOS'!$D$19="Guayas/Santa Elena",'Tablas Guayaquil'!E160,'Tablas Resto de Ecuador'!E160) -> 4410 | F160: =IF('INGRESO DE DATOS'!$D$19="Guayas/Santa Elena",'Tablas Guayaquil'!F160,'Tablas Resto de Ecuador'!F160) -> 3156 | G160: =IF('INGRESO DE DATOS'!$D$19="Guayas/Santa Elena",'Tablas Guayaquil'!G160,'Tablas Resto de Ecuador'!G160) -> 2476
A161: 24 | C161: =IF('INGRESO DE DATOS'!$D$19="Guayas/Santa Elena",'Tablas Guayaquil'!C161,'Tablas Resto de Ecuador'!C161) -> 6656 | D161: =IF('INGRESO DE DATOS'!$D$19="Guayas/Santa Elena",'Tablas Guayaquil'!D161,'Tablas Resto de Ecuador'!D161) -> 6040 | E161: =IF('INGRESO DE DATOS'!$D$19="Guayas/Santa Elena",'Tablas Guayaquil'!E161,'Tablas Resto de Ecuador'!E161) -> 4410 | F161: =IF('INGRESO DE DATOS'!$D$19="Guayas/Santa Elena",'Tablas Guayaquil'!F161,'Tablas Resto de Ecuador'!F161) -> 3156 | G161: =IF('INGRESO DE DATOS'!$D$19="Guayas/Santa Elena",'Tablas Guayaquil'!G161,'Tablas Resto de Ecuador'!G161) -> 2476
A162: 25 | C162: =IF('INGRESO DE DATOS'!$D$19="Guayas/Santa Elena",'Tablas Guayaquil'!C162,'Tablas Resto de Ecuador'!C162) -> 7113 | D162: =IF('INGRESO DE DATOS'!$D$19="Guayas/Santa Elena",'Tablas Guayaquil'!D162,'Tablas Resto de Ecuador'!D162) -> 6454 | E162: =IF('INGRESO DE DATOS'!$D$19="Guayas/Santa Elena",'Tablas Guayaquil'!E162,'Tablas Resto de Ecuador'!E162) -> 4663 | F162: =IF('INGRESO DE DATOS'!$D$19="Guayas/Santa Elena",'Tablas Guayaquil'!F162,'Tablas Resto de Ecuador'!F162) -> 3336 | G162: =IF('INGRESO DE DATOS'!$D$19="Guayas/Santa Elena",'Tablas Guayaquil'!G162,'Tablas Resto de Ecuador'!G162) -> 2617
A163: 26 | C163: =IF('INGRESO DE DATOS'!$D$19="Guayas/Santa Elena",'Tablas Guayaquil'!C163,'Tablas Resto de Ecuador'!C163) -> 7113 | D163: =IF('INGRESO DE DATOS'!$D$19="Guayas/Santa Elena",'Tablas Guayaquil'!D163,'Tablas Resto de Ecuador'!D163) -> 6454 | E163: =IF('INGRESO DE DATOS'!$D$19="Guayas/Santa Elena",'Tablas Guayaquil'!E163,'Tablas Resto de Ecuador'!E163) -> 4663 | F163: =IF('INGRESO DE DATOS'!$D$19="Guayas/Santa Elena",'Tablas Guayaquil'!F163,'Tablas Resto de Ecuador'!F163) -> 3336 | G163: =IF('INGRESO DE DATOS'!$D$19="Guayas/Santa Elena",'Tablas Guayaquil'!G163,'Tablas Resto de Ecuador'!G163) -> 2617
A164: 27 | C164: =IF('INGRESO DE DATOS'!$D$19="Guayas/Santa Elena",'Tablas Guayaquil'!C164,'Tablas Resto de Ecuador'!C164) -> 7113 | D164: =IF('INGRESO DE DATOS'!$D$19="Guayas/Santa Elena",'Tablas Guayaquil'!D164,'Tablas Resto de Ecuador'!D164) -> 6454 | E164: =IF('INGRESO DE DATOS'!$D$19="Guayas/Santa Elena",'Tablas Guayaquil'!E164,'Tablas Resto de Ecuador'!E164) -> 4663 | F164: =IF('INGRESO DE DATOS'!$D$19="Guayas/Santa Elena",'Tablas Guayaquil'!F164,'Tablas Resto de Ecuador'!F164) -> 3336 | G164: =IF('INGRESO DE DATOS'!$D$19="Guayas/Santa Elena",'Tablas Guayaquil'!G164,'Tablas Resto de Ecuador'!G164) -> 2617
A165: 28 | C165: =IF('INGRESO DE DATOS'!$D$19="Guayas/Santa Elena",'Tablas Guayaquil'!C165,'Tablas Resto de Ecuador'!C165) -> 7113 | D165: =IF('INGRESO DE DATOS'!$D$19="Guayas/Santa Elena",'Tablas Guayaquil'!D165,'Tablas Resto de Ecuador'!D165) -> 6454 | E165: =IF('INGRESO DE DATOS'!$D$19="Guayas/Santa Elena",'Tablas Guayaquil'!E165,'Tablas Resto de Ecuador'!E165) -> 4663 | F165: =IF('INGRESO DE DATOS'!$D$19="Guayas/Santa Elena",'Tablas Guayaquil'!F165,'Tablas Resto de Ecuador'!F165) -> 3336 | G165: =IF('INGRESO DE DATOS'!$D$19="Guayas/Santa Elena",'Tablas Guayaquil'!G165,'Tablas Resto de Ecuador'!G165) -> 2617
A166: 29 | C166: =IF('INGRESO DE DATOS'!$D$19="Guayas/Santa Elena",'Tablas Guayaquil'!C166,'Tablas Resto de Ecuador'!C166) -> 7113 | D166: =IF('INGRESO DE DATOS'!$D$19="Guayas/Santa Elena",'Tablas Guayaquil'!D166,'Tablas Resto de Ecuador'!D166) -> 6454 | E166: =IF('INGRESO DE DATOS'!$D$19="Guayas/Santa Elena",'Tablas Guayaquil'!E166,'Tablas Resto de Ecuador'!E166) -> 4663 | F166: =IF('INGRESO DE DATOS'!$D$19="Guayas/Santa Elena",'Tablas Guayaquil'!F166,'Tablas Resto de Ecuador'!F166) -> 3336 | G166: =IF('INGRESO DE DATOS'!$D$19="Guayas/Santa Elena",'Tablas Guayaquil'!G166,'Tablas Resto de Ecuador'!G166) -> 2617
A167: 30 | C167: =IF('INGRESO DE DATOS'!$D$19="Guayas/Santa Elena",'Tablas Guayaquil'!C167,'Tablas Resto de Ecuador'!C167) -> 7911 | D167: =IF('INGRESO DE DATOS'!$D$19="Guayas/Santa Elena",'Tablas Guayaquil'!D167,'Tablas Resto de Ecuador'!D167) -> 7178 | E167: =IF('INGRESO DE DATOS'!$D$19="Guayas/Santa Elena",'Tablas Guayaquil'!E167,'Tablas Resto de Ecuador'!E167) -> 5118 | F167: =IF('INGRESO DE DATOS'!$D$19="Guayas/Santa Elena",'Tablas Guayaquil'!F167,'Tablas Resto de Ecuador'!F167) -> 3661 | G167: =IF('INGRESO DE DATOS'!$D$19="Guayas/Santa Elena",'Tablas Guayaquil'!G167,'Tablas Resto de Ecuador'!G167) -> 2871
A168: 31 | C168: =IF('INGRESO DE DATOS'!$D$19="Guayas/Santa Elena",'Tablas Guayaquil'!C168,'Tablas Resto de Ecuador'!C168) -> 7911 | D168: =IF('INGRESO DE DATOS'!$D$19="Guayas/Santa Elena",'Tablas Guayaquil'!D168,'Tablas Resto de Ecuador'!D168) -> 7178 | E168: =IF('INGRESO DE DATOS'!$D$19="Guayas/Santa Elena",'Tablas Guayaquil'!E168,'Tablas Resto de Ecuador'!E168) -> 5118 | F168: =IF('INGRESO DE DATOS'!$D$19="Guayas/Santa Elena",'Tablas Guayaquil'!F168,'Tablas Resto de Ecuador'!F168) -> 3661 | G168: =IF('INGRESO DE DATOS'!$D$19="Guayas/Santa Elena",'Tablas Guayaquil'!G168,'Tablas Resto de Ecuador'!G168) -> 2871
A169: 32 | C169: =IF('INGRESO DE DATOS'!$D$19="Guayas/Santa Elena",'Tablas Guayaquil'!C169,'Tablas Resto de Ecuador'!C169) -> 7911 | D169: =IF('INGRESO DE DATOS'!$D$19="Guayas/Santa Elena",'Tablas Guayaquil'!D169,'Tablas Resto de Ecuador'!D169) -> 7178 | E169: =IF('INGRESO DE DATOS'!$D$19="Guayas/Santa Elena",'Tablas Guayaquil'!E169,'Tablas Resto de Ecuador'!E169) -> 5118 | F169: =IF('INGRESO DE DATOS'!$D$19="Guayas/Santa Elena",'Tablas Guayaquil'!F169,'Tablas Resto de Ecuador'!F169) -> 3661 | G169: =IF('INGRESO DE DATOS'!$D$19="Guayas/Santa Elena",'Tablas Guayaquil'!G169,'Tablas Resto de Ecuador'!G169) -> 2871
A170: 33 | C170: =IF('INGRESO DE DATOS'!$D$19="Guayas/Santa Elena",'Tablas Guayaquil'!C170,'Tablas Resto de Ecuador'!C170) -> 7911 | D170: =IF('INGRESO DE DATOS'!$D$19="Guayas/Santa Elena",'Tablas Guayaquil'!D170,'Tablas Resto de Ecuador'!D170) -> 7178 | E170: =IF('INGRESO DE DATOS'!$D$19="Guayas/Santa Elena",'Tablas Guayaquil'!E170,'Tablas Resto de Ecuador'!E170) -> 5118 | F170: =IF('INGRESO DE DATOS'!$D$19="Guayas/Santa Elena",'Tablas Guayaquil'!F170,'Tablas Resto de Ecuador'!F170) -> 3661 | G170: =IF('INGRESO DE DATOS'!$D$19="Guayas/Santa Elena",'Tablas Guayaquil'!G170,'Tablas Resto de Ecuador'!G170) -> 2871
A171: 34 | C171: =IF('INGRESO DE DATOS'!$D$19="Guayas/Santa Elena",'Tablas Guayaquil'!C171,'Tablas Resto de Ecuador'!C171) -> 7911 | D171: =IF('INGRESO DE DATOS'!$D$19="Guayas/Santa Elena",'Tablas Guayaquil'!D171,'Tablas Resto de Ecuador'!D171) -> 7178 | E171: =IF('INGRESO DE DATOS'!$D$19="Guayas/Santa Elena",'Tablas Guayaquil'!E171,'Tablas Resto de Ecuador'!E171) -> 5118 | F171: =IF('INGRESO DE DATOS'!$D$19="Guayas/Santa Elena",'Tablas Guayaquil'!F171,'Tablas Resto de Ecuador'!F171) -> 3661 | G171: =IF('INGRESO DE DATOS'!$D$19="Guayas/Santa Elena",'Tablas Guayaquil'!G171,'Tablas Resto de Ecuador'!G171) -> 2871
A172: 35 | C172: =IF('INGRESO DE DATOS'!$D$19="Guayas/Santa Elena",'Tablas Guayaquil'!C172,'Tablas Resto de Ecuador'!C172) -> 8828 | D172: =IF('INGRESO DE DATOS'!$D$19="Guayas/Santa Elena",'Tablas Guayaquil'!D172,'Tablas Resto de Ecuador'!D172) -> 8014 | E172: =IF('INGRESO DE DATOS'!$D$19="Guayas/Santa Elena",'Tablas Guayaquil'!E172,'Tablas Resto de Ecuador'!E172) -> 5656 | F172: =IF('INGRESO DE DATOS'!$D$19="Guayas/Santa Elena",'Tablas Guayaquil'!F172,'Tablas Resto de Ecuador'!F172) -> 4048 | G172: =IF('INGRESO DE DATOS'!$D$19="Guayas/Santa Elena",'Tablas Guayaquil'!G172,'Tablas Resto de Ecuador'!G172) -> 3175
A173: 36 | C173: =IF('INGRESO DE DATOS'!$D$19="Guayas/Santa Elena",'Tablas Guayaquil'!C173,'Tablas Resto de Ecuador'!C173) -> 8828 | D173: =IF('INGRESO DE DATOS'!$D$19="Guayas/Santa Elena",'Tablas Guayaquil'!D173,'Tablas Resto de Ecuador'!D173) -> 8014 | E173: =IF('INGRESO DE DATOS'!$D$19="Guayas/Santa Elena",'Tablas Guayaquil'!E173,'Tablas Resto de Ecuador'!E173) -> 5656 | F173: =IF('INGRESO DE DATOS'!$D$19="Guayas/Santa Elena",'Tablas Guayaquil'!F173,'Tablas Resto de Ecuador'!F173) -> 4048 | G173: =IF('INGRESO DE DATOS'!$D$19="Guayas/Santa Elena",'Tablas Guayaquil'!G173,'Tablas Resto de Ecuador'!G173) -> 3175
A174: 37 | C174: =IF('INGRESO DE DATOS'!$D$19="Guayas/Santa Elena",'Tablas Guayaquil'!C174,'Tablas Resto de Ecuador'!C174) -> 8828 | D174: =IF('INGRESO DE DATOS'!$D$19="Guayas/Santa Elena",'Tablas Guayaquil'!D174,'Tablas Resto de Ecuador'!D174) -> 8014 | E174: =IF('INGRESO DE DATOS'!$D$19="Guayas/Santa Elena",'Tablas Guayaquil'!E174,'Tablas Resto de Ecuador'!E174) -> 5656 | F174: =IF('INGRESO DE DATOS'!$D$19="Guayas/Santa Elena",'Tablas Guayaquil'!F174,'Tablas Resto de Ecuador'!F174) -> 4048 | G174: =IF('INGRESO DE DATOS'!$D$19="Guayas/Santa Elena",'Tablas Guayaquil'!G174,'Tablas Resto de Ecuador'!G174) -> 3175
A175: 38 | C175: =IF('INGRESO DE DATOS'!$D$19="Guayas/Santa Elena",'Tablas Guayaquil'!C175,'Tablas Resto de Ecuador'!C175) -> 8828 | D175: =IF('INGRESO DE DATOS'!$D$19="Guayas/Santa Elena",'Tablas Guayaquil'!D175,'Tablas Resto de Ecuador'!D175) -> 8014 | E175: =IF('INGRESO DE DATOS'!$D$19="Guayas/Santa Elena",'Tablas Guayaquil'!E175,'Tablas Resto de Ecuador'!E175) -> 5656 | F175: =IF('INGRESO DE DATOS'!$D$19="Guayas/Santa Elena",'Tablas Guayaquil'!F175,'Tablas Resto de Ecuador'!F175) -> 4048 | G175: =IF('INGRESO DE DATOS'!$D$19="Guayas/Santa Elena",'Tablas Guayaquil'!G175,'Tablas Resto de Ecuador'!G175) -> 3175
A176: 39 | C176: =IF('INGRESO DE DATOS'!$D$19="Guayas/Santa Elena",'Tablas Guayaquil'!C176,'Tablas Resto de Ecuador'!C176) -> 8828 | D176: =IF('INGRESO DE DATOS'!$D$19="Guayas/Santa Elena",'Tablas Guayaquil'!D176,'Tablas Resto de Ecuador'!D176) -> 8014 | E176: =IF('INGRESO DE DATOS'!$D$19="Guayas/Santa Elena",'Tablas Guayaquil'!E176,'Tablas Resto de Ecuador'!E176) -> 5656 | F176: =IF('INGRESO DE DATOS'!$D$19="Guayas/Santa Elena",'Tablas Guayaquil'!F176,'Tablas Resto de Ecuador'!F176) -> 4048 | G176: =IF('INGRESO DE DATOS'!$D$19="Guayas/Santa Elena",'Tablas Guayaquil'!G176,'Tablas Resto de Ecuador'!G176) -> 3175
A177: 40 | C177: =IF('INGRESO DE DATOS'!$D$19="Guayas/Santa Elena",'Tablas Guayaquil'!C177,'Tablas Resto de Ecuador'!C177) -> 9891 | D177: =IF('INGRESO DE DATOS'!$D$19="Guayas/Santa Elena",'Tablas Guayaquil'!D177,'Tablas Resto de Ecuador'!D177) -> 8974 | E177: =IF('INGRESO DE DATOS'!$D$19="Guayas/Santa Elena",'Tablas Guayaquil'!E177,'Tablas Resto de Ecuador'!E177) -> 6288 | F177: =IF('INGRESO DE DATOS'!$D$19="Guayas/Santa Elena",'Tablas Guayaquil'!F177,'Tablas Resto de Ecuador'!F177) -> 4498 | G177: =IF('INGRESO DE DATOS'!$D$19="Guayas/Santa Elena",'Tablas Guayaquil'!G177,'Tablas Resto de Ecuador'!G177) -> 3528
A178: 41 | C178: =IF('INGRESO DE DATOS'!$D$19="Guayas/Santa Elena",'Tablas Guayaquil'!C178,'Tablas Resto de Ecuador'!C178) -> 9891 | D178: =IF('INGRESO DE DATOS'!$D$19="Guayas/Santa Elena",'Tablas Guayaquil'!D178,'Tablas Resto de Ecuador'!D178) -> 8974 | E178: =IF('INGRESO DE DATOS'!$D$19="Guayas/Santa Elena",'Tablas Guayaquil'!E178,'Tablas Resto de Ecuador'!E178) -> 6288 | F178: =IF('INGRESO DE DATOS'!$D$19="Guayas/Santa Elena",'Tablas Guayaquil'!F178,'Tablas Resto de Ecuador'!F178) -> 4498 | G178: =IF('INGRESO DE DATOS'!$D$19="Guayas/Santa Elena",'Tablas Guayaquil'!G178,'Tablas Resto de Ecuador'!G178) -> 3528
A179: 42 | C179: =IF('INGRESO DE DATOS'!$D$19="Guayas/Santa Elena",'Tablas Guayaquil'!C179,'Tablas Resto de Ecuador'!C179) -> 9891 | D179: =IF('INGRESO DE DATOS'!$D$19="Guayas/Santa Elena",'Tablas Guayaquil'!D179,'Tablas Resto de Ecuador'!D179) -> 8974 | E179: =IF('INGRESO DE DATOS'!$D$19="Guayas/Santa Elena",'Tablas Guayaquil'!E179,'Tablas Resto de Ecuador'!E179) -> 6288 | F179: =IF('INGRESO DE DATOS'!$D$19="Guayas/Santa Elena",'Tablas Guayaquil'!F179,'Tablas Resto de Ecuador'!F179) -> 4498 | G179: =IF('INGRESO DE DATOS'!$D$19="Guayas/Santa Elena",'Tablas Guayaquil'!G179,'Tablas Resto de Ecuador'!G179) -> 3528
A180: 43 | C180: =IF('INGRESO DE DATOS'!$D$19="Guayas/Santa Elena",'Tablas Guayaquil'!C180,'Tablas Resto de Ecuador'!C180) -> 9891 | D180: =IF('INGRESO DE DATOS'!$D$19="Guayas/Santa Elena",'Tablas Guayaquil'!D180,'Tablas Resto de Ecuador'!D180) -> 8974 | E180: =IF('INGRESO DE DATOS'!$D$19="Guayas/Santa Elena",'Tablas Guayaquil'!E180,'Tablas Resto de Ecuador'!E180) -> 6288 | F180: =IF('INGRESO DE DATOS'!$D$19="Guayas/Santa Elena",'Tablas Guayaquil'!F180,'Tablas Resto de Ecuador'!F180) -> 4498 | G180: =IF('INGRESO DE DATOS'!$D$19="Guayas/Santa Elena",'Tablas Guayaquil'!G180,'Tablas Resto de Ecuador'!G180) -> 3528
A181: 44 | C181: =IF('INGRESO DE DATOS'!$D$19="Guayas/Santa Elena",'Tablas Guayaquil'!C181,'Tablas Resto de Ecuador'!C181) -> 9891 | D181: =IF('INGRESO DE DATOS'!$D$19="Guayas/Santa Elena",'Tablas Guayaquil'!D181,'Tablas Resto de Ecuador'!D181) -> 8974 | E181: =IF('INGRESO DE DATOS'!$D$19="Guayas/Santa Elena",'Tablas Guayaquil'!E181,'Tablas Resto de Ecuador'!E181) -> 6288 | F181: =IF('INGRESO DE DATOS'!$D$19="Guayas/Santa Elena",'Tablas Guayaquil'!F181,'Tablas Resto de Ecuador'!F181) -> 4498 | G181: =IF('INGRESO DE DATOS'!$D$19="Guayas/Santa Elena",'Tablas Guayaquil'!G181,'Tablas Resto de Ecuador'!G181) -> 3528
A182: 45 | C182: =IF('INGRESO DE DATOS'!$D$19="Guayas/Santa Elena",'Tablas Guayaquil'!C182,'Tablas Resto de Ecuador'!C182) -> 11068 | D182: =IF('INGRESO DE DATOS'!$D$19="Guayas/Santa Elena",'Tablas Guayaquil'!D182,'Tablas Resto de Ecuador'!D182) -> 10045 | E182: =IF('INGRESO DE DATOS'!$D$19="Guayas/Santa Elena",'Tablas Guayaquil'!E182,'Tablas Resto de Ecuador'!E182) -> 6999 | F182: =IF('INGRESO DE DATOS'!$D$19="Guayas/Santa Elena",'Tablas Guayaquil'!F182,'Tablas Resto de Ecuador'!F182) -> 5005 | G182: =IF('INGRESO DE DATOS'!$D$19="Guayas/Santa Elena",'Tablas Guayaquil'!G182,'Tablas Resto de Ecuador'!G182) -> 3926
A183: 46 | C183: =IF('INGRESO DE DATOS'!$D$19="Guayas/Santa Elena",'Tablas Guayaquil'!C183,'Tablas Resto de Ecuador'!C183) -> 11068 | D183: =IF('INGRESO DE DATOS'!$D$19="Guayas/Santa Elena",'Tablas Guayaquil'!D183,'Tablas Resto de Ecuador'!D183) -> 10045 | E183: =IF('INGRESO DE DATOS'!$D$19="Guayas/Santa Elena",'Tablas Guayaquil'!E183,'Tablas Resto de Ecuador'!E183) -> 6999 | F183: =IF('INGRESO DE DATOS'!$D$19="Guayas/Santa Elena",'Tablas Guayaquil'!F183,'Tablas Resto de Ecuador'!F183) -> 5005 | G183: =IF('INGRESO DE DATOS'!$D$19="Guayas/Santa Elena",'Tablas Guayaquil'!G183,'Tablas Resto de Ecuador'!G183) -> 3926
A184: 47 | C184: =IF('INGRESO DE DATOS'!$D$19="Guayas/Santa Elena",'Tablas Guayaquil'!C184,'Tablas Resto de Ecuador'!C184) -> 11068 | D184: =IF('INGRESO DE DATOS'!$D$19="Guayas/Santa Elena",'Tablas Guayaquil'!D184,'Tablas Resto de Ecuador'!D184) -> 10045 | E184: =IF('INGRESO DE DATOS'!$D$19="Guayas/Santa Elena",'Tablas Guayaquil'!E184,'Tablas Resto de Ecuador'!E184) -> 6999 | F184: =IF('INGRESO DE DATOS'!$D$19="Guayas/Santa Elena",'Tablas Guayaquil'!F184,'Tablas Resto de Ecuador'!F184) -> 5005 | G184: =IF('INGRESO DE DATOS'!$D$19="Guayas/Santa Elena",'Tablas Guayaquil'!G184,'Tablas Resto de Ecuador'!G184) -> 3926
A185: 48 | C185: =IF('INGRESO DE DATOS'!$D$19="Guayas/Santa Elena",'Tablas Guayaquil'!C185,'Tablas Resto de Ecuador'!C185) -> 11068 | D185: =IF('INGRESO DE DATOS'!$D$19="Guayas/Santa Elena",'Tablas Guayaquil'!D185,'Tablas Resto de Ecuador'!D185) -> 10045 | E185: =IF('INGRESO DE DATOS'!$D$19="Guayas/Santa Elena",'Tablas Guayaquil'!E185,'Tablas Resto de Ecuador'!E185) -> 6999 | F185: =IF('INGRESO DE DATOS'!$D$19="Guayas/Santa Elena",'Tablas Guayaquil'!F185,'Tablas Resto de Ecuador'!F185) -> 5005 | G185: =IF('INGRESO DE DATOS'!$D$19="Guayas/Santa Elena",'Tablas Guayaquil'!G185,'Tablas Resto de Ecuador'!G185) -> 3926
A186: 49 | C186: =IF('INGRESO DE DATOS'!$D$19="Guayas/Santa Elena",'Tablas Guayaquil'!C186,'Tablas Resto de Ecuador'!C186) -> 11068 | D186: =IF('INGRESO DE DATOS'!$D$19="Guayas/Santa Elena",'Tablas Guayaquil'!D186,'Tablas Resto de Ecuador'!D186) -> 10045 | E186: =IF('INGRESO DE DATOS'!$D$19="Guayas/Santa Elena",'Tablas Guayaquil'!E186,'Tablas Resto de Ecuador'!E186) -> 6999 | F186: =IF('INGRESO DE DATOS'!$D$19="Guayas/Santa Elena",'Tablas Guayaquil'!F186,'Tablas Resto de Ecuador'!F186) -> 5005 | G186: =IF('INGRESO DE DATOS'!$D$19="Guayas/Santa Elena",'Tablas Guayaquil'!G186,'Tablas Resto de Ecuador'!G186) -> 3926
A187: 50 | C187: =IF('INGRESO DE DATOS'!$D$19="Guayas/Santa Elena",'Tablas Guayaquil'!C187,'Tablas Resto de Ecuador'!C187) -> 12395 | D187: =IF('INGRESO DE DATOS'!$D$19="Guayas/Santa Elena",'Tablas Guayaquil'!D187,'Tablas Resto de Ecuador'!D187) -> 11252 | E187: =IF('INGRESO DE DATOS'!$D$19="Guayas/Santa Elena",'Tablas Guayaquil'!E187,'Tablas Resto de Ecuador'!E187) -> 7808 | F187: =IF('INGRESO DE DATOS'!$D$19="Guayas/Santa Elena",'Tablas Guayaquil'!F187,'Tablas Resto de Ecuador'!F187) -> 5584 | G187: =IF('INGRESO DE DATOS'!$D$19="Guayas/Santa Elena",'Tablas Guayaquil'!G187,'Tablas Resto de Ecuador'!G187) -> 4381
A188: 51 | C188: =IF('INGRESO DE DATOS'!$D$19="Guayas/Santa Elena",'Tablas Guayaquil'!C188,'Tablas Resto de Ecuador'!C188) -> 12395 | D188: =IF('INGRESO DE DATOS'!$D$19="Guayas/Santa Elena",'Tablas Guayaquil'!D188,'Tablas Resto de Ecuador'!D188) -> 11252 | E188: =IF('INGRESO DE DATOS'!$D$19="Guayas/Santa Elena",'Tablas Guayaquil'!E188,'Tablas Resto de Ecuador'!E188) -> 7808 | F188: =IF('INGRESO DE DATOS'!$D$19="Guayas/Santa Elena",'Tablas Guayaquil'!F188,'Tablas Resto de Ecuador'!F188) -> 5584 | G188: =IF('INGRESO DE DATOS'!$D$19="Guayas/Santa Elena",'Tablas Guayaquil'!G188,'Tablas Resto de Ecuador'!G188) -> 4381
A189: 52 | C189: =IF('INGRESO DE DATOS'!$D$19="Guayas/Santa Elena",'Tablas Guayaquil'!C189,'Tablas Resto de Ecuador'!C189) -> 12395 | D189: =IF('INGRESO DE DATOS'!$D$19="Guayas/Santa Elena",'Tablas Guayaquil'!D189,'Tablas Resto de Ecuador'!D189) -> 11252 | E189: =IF('INGRESO DE DATOS'!$D$19="Guayas/Santa Elena",'Tablas Guayaquil'!E189,'Tablas Resto de Ecuador'!E189) -> 7808 | F189: =IF('INGRESO DE DATOS'!$D$19="Guayas/Santa Elena",'Tablas Guayaquil'!F189,'Tablas Resto de Ecuador'!F189) -> 5584 | G189: =IF('INGRESO DE DATOS'!$D$19="Guayas/Santa Elena",'Tablas Guayaquil'!G189,'Tablas Resto de Ecuador'!G189) -> 4381
A190: 53 | C190: =IF('INGRESO DE DATOS'!$D$19="Guayas/Santa Elena",'Tablas Guayaquil'!C190,'Tablas Resto de Ecuador'!C190) -> 12395 | D190: =IF('INGRESO DE DATOS'!$D$19="Guayas/Santa Elena",'Tablas Guayaquil'!D190,'Tablas Resto de Ecuador'!D190) -> 11252 | E190: =IF('INGRESO DE DATOS'!$D$19="Guayas/Santa Elena",'Tablas Guayaquil'!E190,'Tablas Resto de Ecuador'!E190) -> 7808 | F190: =IF('INGRESO DE DATOS'!$D$19="Guayas/Santa Elena",'Tablas Guayaquil'!F190,'Tablas Resto de Ecuador'!F190) -> 5584 | G190: =IF('INGRESO DE DATOS'!$D$19="Guayas/Santa Elena",'Tablas Guayaquil'!G190,'Tablas Resto de Ecuador'!G190) -> 4381
A191: 54 | C191: =IF('INGRESO DE DATOS'!$D$19="Guayas/Santa Elena",'Tablas Guayaquil'!C191,'Tablas Resto de Ecuador'!C191) -> 12395 | D191: =IF('INGRESO DE DATOS'!$D$19="Guayas/Santa Elena",'Tablas Guayaquil'!D191,'Tablas Resto de Ecuador'!D191) -> 11252 | E191: =IF('INGRESO DE DATOS'!$D$19="Guayas/Santa Elena",'Tablas Guayaquil'!E191,'Tablas Resto de Ecuador'!E191) -> 7808 | F191: =IF('INGRESO DE DATOS'!$D$19="Guayas/Santa Elena",'Tablas Guayaquil'!F191,'Tablas Resto de Ecuador'!F191) -> 5584 | G191: =IF('INGRESO DE DATOS'!$D$19="Guayas/Santa Elena",'Tablas Guayaquil'!G191,'Tablas Resto de Ecuador'!G191) -> 4381
A192: 55 | C192: =IF('INGRESO DE DATOS'!$D$19="Guayas/Santa Elena",'Tablas Guayaquil'!C192,'Tablas Resto de Ecuador'!C192) -> 13861 | D192: =IF('INGRESO DE DATOS'!$D$19="Guayas/Santa Elena",'Tablas Guayaquil'!D192,'Tablas Resto de Ecuador'!D192) -> 12575 | E192: =IF('INGRESO DE DATOS'!$D$19="Guayas/Santa Elena",'Tablas Guayaquil'!E192,'Tablas Resto de Ecuador'!E192) -> 8705 | F192: =IF('INGRESO DE DATOS'!$D$19="Guayas/Santa Elena",'Tablas Guayaquil'!F192,'Tablas Resto de Ecuador'!F192) -> 6225 | G192: =IF('INGRESO DE DATOS'!$D$19="Guayas/Santa Elena",'Tablas Guayaquil'!G192,'Tablas Resto de Ecuador'!G192) -> 4885
A193: 56 | C193: =IF('INGRESO DE DATOS'!$D$19="Guayas/Santa Elena",'Tablas Guayaquil'!C193,'Tablas Resto de Ecuador'!C193) -> 13861 | D193: =IF('INGRESO DE DATOS'!$D$19="Guayas/Santa Elena",'Tablas Guayaquil'!D193,'Tablas Resto de Ecuador'!D193) -> 12575 | E193: =IF('INGRESO DE DATOS'!$D$19="Guayas/Santa Elena",'Tablas Guayaquil'!E193,'Tablas Resto de Ecuador'!E193) -> 8705 | F193: =IF('INGRESO DE DATOS'!$D$19="Guayas/Santa Elena",'Tablas Guayaquil'!F193,'Tablas Resto de Ecuador'!F193) -> 6225 | G193: =IF('INGRESO DE DATOS'!$D$19="Guayas/Santa Elena",'Tablas Guayaquil'!G193,'Tablas Resto de Ecuador'!G193) -> 4885
A194: 57 | C194: =IF('INGRESO DE DATOS'!$D$19="Guayas/Santa Elena",'Tablas Guayaquil'!C194,'Tablas Resto de Ecuador'!C194) -> 13861 | D194: =IF('INGRESO DE DATOS'!$D$19="Guayas/Santa Elena",'Tablas Guayaquil'!D194,'Tablas Resto de Ecuador'!D194) -> 12575 | E194: =IF('INGRESO DE DATOS'!$D$19="Guayas/Santa Elena",'Tablas Guayaquil'!E194,'Tablas Resto de Ecuador'!E194) -> 8705 | F194: =IF('INGRESO DE DATOS'!$D$19="Guayas/Santa Elena",'Tablas Guayaquil'!F194,'Tablas Resto de Ecuador'!F194) -> 6225 | G194: =IF('INGRESO DE DATOS'!$D$19="Guayas/Santa Elena",'Tablas Guayaquil'!G194,'Tablas Resto de Ecuador'!G194) -> 4885
A195: 58 | C195: =IF('INGRESO DE DATOS'!$D$19="Guayas/Santa Elena",'Tablas Guayaquil'!C195,'Tablas Resto de Ecuador'!C195) -> 13861 | D195: =IF('INGRESO DE DATOS'!$D$19="Guayas/Santa Elena",'Tablas Guayaquil'!D195,'Tablas Resto de Ecuador'!D195) -> 12575 | E195: =IF('INGRESO DE DATOS'!$D$19="Guayas/Santa Elena",'Tablas Guayaquil'!E195,'Tablas Resto de Ecuador'!E195) -> 8705 | F195: =IF('INGRESO DE DATOS'!$D$19="Guayas/Santa Elena",'Tablas Guayaquil'!F195,'Tablas Resto de Ecuador'!F195) -> 6225 | G195: =IF('INGRESO DE DATOS'!$D$19="Guayas/Santa Elena",'Tablas Guayaquil'!G195,'Tablas Resto de Ecuador'!G195) -> 4885
A196: 59 | C196: =IF('INGRESO DE DATOS'!$D$19="Guayas/Santa Elena",'Tablas Guayaquil'!C196,'Tablas Resto de Ecuador'!C196) -> 13861 | D196: =IF('INGRESO DE DATOS'!$D$19="Guayas/Santa Elena",'Tablas Guayaquil'!D196,'Tablas Resto de Ecuador'!D196) -> 12575 | E196: =IF('INGRESO DE DATOS'!$D$19="Guayas/Santa Elena",'Tablas Guayaquil'!E196,'Tablas Resto de Ecuador'!E196) -> 8705 | F196: =IF('INGRESO DE DATOS'!$D$19="Guayas/Santa Elena",'Tablas Guayaquil'!F196,'Tablas Resto de Ecuador'!F196) -> 6225 | G196: =IF('INGRESO DE DATOS'!$D$19="Guayas/Santa Elena",'Tablas Guayaquil'!G196,'Tablas Resto de Ecuador'!G196) -> 4885
A197: 60 | C197: =IF('INGRESO DE DATOS'!$D$19="Guayas/Santa Elena",'Tablas Guayaquil'!C197,'Tablas Resto de Ecuador'!C197) -> 14830 | D197: =IF('INGRESO DE DATOS'!$D$19="Guayas/Santa Elena",'Tablas Guayaquil'!D197,'Tablas Resto de Ecuador'!D197) -> 13461 | E197: =IF('INGRESO DE DATOS'!$D$19="Guayas/Santa Elena",'Tablas Guayaquil'!E197,'Tablas Resto de Ecuador'!E197) -> 9307 | F197: =IF('INGRESO DE DATOS'!$D$19="Guayas/Santa Elena",'Tablas Guayaquil'!F197,'Tablas Resto de Ecuador'!F197) -> 6657 | G197: =IF('INGRESO DE DATOS'!$D$19="Guayas/Santa Elena",'Tablas Guayaquil'!G197,'Tablas Resto de Ecuador'!G197) -> 5222
A198: 61 | C198: =IF('INGRESO DE DATOS'!$D$19="Guayas/Santa Elena",'Tablas Guayaquil'!C198,'Tablas Resto de Ecuador'!C198) -> 16527 | D198: =IF('INGRESO DE DATOS'!$D$19="Guayas/Santa Elena",'Tablas Guayaquil'!D198,'Tablas Resto de Ecuador'!D198) -> 15000 | E198: =IF('INGRESO DE DATOS'!$D$19="Guayas/Santa Elena",'Tablas Guayaquil'!E198,'Tablas Resto de Ecuador'!E198) -> 10358 | F198: =IF('INGRESO DE DATOS'!$D$19="Guayas/Santa Elena",'Tablas Guayaquil'!F198,'Tablas Resto de Ecuador'!F198) -> 7409 | G198: =IF('INGRESO DE DATOS'!$D$19="Guayas/Santa Elena",'Tablas Guayaquil'!G198,'Tablas Resto de Ecuador'!G198) -> 5811
A199: 62 | C199: =IF('INGRESO DE DATOS'!$D$19="Guayas/Santa Elena",'Tablas Guayaquil'!C199,'Tablas Resto de Ecuador'!C199) -> 18363 | D199: =IF('INGRESO DE DATOS'!$D$19="Guayas/Santa Elena",'Tablas Guayaquil'!D199,'Tablas Resto de Ecuador'!D199) -> 16666 | E199: =IF('INGRESO DE DATOS'!$D$19="Guayas/Santa Elena",'Tablas Guayaquil'!E199,'Tablas Resto de Ecuador'!E199) -> 11503 | F199: =IF('INGRESO DE DATOS'!$D$19="Guayas/Santa Elena",'Tablas Guayaquil'!F199,'Tablas Resto de Ecuador'!F199) -> 8225 | G199: =IF('INGRESO DE DATOS'!$D$19="Guayas/Santa Elena",'Tablas Guayaquil'!G199,'Tablas Resto de Ecuador'!G199) -> 6452
A200: 63 | C200: =IF('INGRESO DE DATOS'!$D$19="Guayas/Santa Elena",'Tablas Guayaquil'!C200,'Tablas Resto de Ecuador'!C200) -> 20335 | D200: =IF('INGRESO DE DATOS'!$D$19="Guayas/Santa Elena",'Tablas Guayaquil'!D200,'Tablas Resto de Ecuador'!D200) -> 18455 | E200: =IF('INGRESO DE DATOS'!$D$19="Guayas/Santa Elena",'Tablas Guayaquil'!E200,'Tablas Resto de Ecuador'!E200) -> 12741 | F200: =IF('INGRESO DE DATOS'!$D$19="Guayas/Santa Elena",'Tablas Guayaquil'!F200,'Tablas Resto de Ecuador'!F200) -> 9110 | G200: =IF('INGRESO DE DATOS'!$D$19="Guayas/Santa Elena",'Tablas Guayaquil'!G200,'Tablas Resto de Ecuador'!G200) -> 7147
... 1297 more rows

Sheet Tablas Guayaquil (hidden)
A2: BUPA GLOBAL ELITE | I2: FACTOR MENSUAL: | K2: =1.12/12 -> 0.09333333333
A3: TARIFAS ANUALES | I3: FACTOR TRIMESTRAL: | K3: =1.1/4 -> 0.275
A4: EDAD | I4: FACTOR SEMIANUAL: | K4: =1.06/2 -> 0.53
C5: 250 | D5: 2000 | E5: 3500 | F5: 5000 | G5: 10000
A6: 18 | C6: 10214 | D6: 8954 | E6: 7248 | F6: 6288 | G6: 4689
A7: 19 | C7: 10214 | D7: 8954 | E7: 7248 | F7: 6288 | G7: 4689
A8: 20 | C8: 10214 | D8: 8954 | E8: 7248 | F8: 6288 | G8: 4689
A9: 21 | C9: 10214 | D9: 8954 | E9: 7248 | F9: 6288 | G9: 4689
A10: 22 | C10: 10214 | D10: 8954 | E10: 7248 | F10: 6288 | G10: 4689
A11: 23 | C11: 10214 | D11: 8954 | E11: 7248 | F11: 6288 | G11: 4689
A12: 24 | C12: 10214 | D12: 8954 | E12: 7248 | F12: 6288 | G12: 4689
A13: 25 | C13: 10916 | D13: 9568 | E13: 7699 | F13: 6678 | G13: 4978
A14: 26 | C14: 10916 | D14: 9568 | E14: 7699 | F14: 6678 | G14: 4978
A15: 27 | C15: 10916 | D15: 9568 | E15: 7699 | F15: 6678 | G15: 4978
A16: 28 | C16: 10916 | D16: 9568 | E16: 7699 | F16: 6678 | G16: 4978
A17: 29 | C17: 10916 | D17: 9568 | E17: 7699 | F17: 6678 | G17: 4978
A18: 30 | C18: 12138 | D18: 10641 | E18: 8498 | F18: 7369 | G18: 5494
A19: 31 | C19: 12138 | D19: 10641 | E19: 8498 | F19: 7369 | G19: 5494
A20: 32 | C20: 12138 | D20: 10641 | E20: 8498 | F20: 7369 | G20: 5494
A21: 33 | C21: 12138 | D21: 10641 | E21: 8498 | F21: 7369 | G21: 5494
A22: 34 | C22: 12138 | D22: 10641 | E22: 8498 | F22: 7369 | G22: 5494
A23: 35 | C23: 13555 | D23: 11878 | E23: 9432 | F23: 8179 | G23: 6100
A24: 36 | C24: 13555 | D24: 11878 | E24: 9432 | F24: 8179 | G24: 6100
A25: 37 | C25: 13555 | D25: 11878 | E25: 9432 | F25: 8179 | G25: 6100
A26: 38 | C26: 13555 | D26: 11878 | E26: 9432 | F26: 8179 | G26: 6100
A27: 39 | C27: 13555 | D27: 11878 | E27: 9432 | F27: 8179 | G27: 6100
A28: 40 | C28: 15181 | D28: 13308 | E28: 10519 | F28: 9122 | G28: 6801
A29: 41 | C29: 15181 | D29: 13308 | E29: 10519 | F29: 9122 | G29: 6801
A30: 42 | C30: 15181 | D30: 13308 | E30: 10519 | F30: 9122 | G30: 6801
A31: 43 | C31: 15181 | D31: 13308 | E31: 10519 | F31: 9122 | G31: 6801
A32: 44 | C32: 15181 | D32: 13308 | E32: 10519 | F32: 9122 | G32: 6801
A33: 45 | C33: 16990 | D33: 14895 | E33: 11737 | F33: 10177 | G33: 7588
A34: 46 | C34: 16990 | D34: 14895 | E34: 11737 | F34: 10177 | G34: 7588
A35: 47 | C35: 16990 | D35: 14895 | E35: 11737 | F35: 10177 | G35: 7588
A36: 48 | C36: 16990 | D36: 14895 | E36: 11737 | F36: 10177 | G36: 7588
A37: 49 | C37: 16990 | D37: 14895 | E37: 11737 | F37: 10177 | G37: 7588
A38: 50 | C38: 19028 | D38: 16681 | E38: 13115 | F38: 11373 | G38: 8478
A39: 51 | C39: 19028 | D39: 16681 | E39: 13115 | F39: 11373 | G39: 8478
A40: 52 | C40: 19028 | D40: 16681 | E40: 13115 | F40: 11373 | G40: 8478
A41: 53 | C41: 19028 | D41: 16681 | E41: 13115 | F41: 11373 | G41: 8478
A42: 54 | C42: 19028 | D42: 16681 | E42: 13115 | F42: 11373 | G42: 8478
A43: 55 | C43: 21272 | D43: 18647 | E43: 14638 | F43: 12695 | G43: 9465
A44: 56 | C44: 21272 | D44: 18647 | E44: 14638 | F44: 12695 | G44: 9465
A45: 57 | C45: 21272 | D45: 18647 | E45: 14638 | F45: 12695 | G45: 9465
A46: 58 | C46: 21272 | D46: 18647 | E46: 14638 | F46: 12695 | G46: 9465
A47: 59 | C47: 21272 | D47: 18647 | E47: 14638 | F47: 12695 | G47: 9465
A48: 60 | C48: 22767 | D48: 19956 | E48: 15659 | F48: 13576 | G48: 10124
A49: 61 | C49: 25373 | D49: 22238 | E49: 17436 | F49: 15121 | G49: 11273
A50: 62 | C50: 28187 | D50: 24706 | E50: 19366 | F50: 16794 | G50: 12520
A51: 63 | C51: 31216 | D51: 27361 | E51: 21448 | F51: 18600 | G51: 13867
A52: 64 | C52: 34459 | D52: 30201 | E52: 23681 | F52: 20535 | G52: 15310
A53: 65 | C53: 37913 | D53: 33231 | E53: 26064 | F53: 22603 | G53: 16850
A54: 66 | C54: 41577 | D54: 36444 | E54: 28597 | F54: 24799 | G54: 18485
A55: 67 | C55: 45457 | D55: 39844 | E55: 31282 | F55: 27124 | G55: 20221
A56: 68 | C56: 49546 | D56: 43433 | E56: 34117 | F56: 29585 | G56: 22056
A57: 69 | C57: 53854 | D57: 47203 | E57: 37105 | F57: 32176 | G57: 23987
A58: 70 | C58: 58370 | D58: 51162 | E58: 40241 | F58: 34895 | G58: 26013
A59: 71 | C59: 63098 | D59: 55308 | E59: 43532 | F59: 37746 | G59: 28140
A60: 72 | C60: 68040 | D60: 59637 | E60: 46968 | F60: 40728 | G60: 30361
A61: 73 | C61: 73193 | D61: 64156 | E61: 50559 | F61: 43841 | G61: 32684
A62: 74 | C62: 78561 | D62: 68859 | E62: 54300 | F62: 47085 | G62: 35102
A63: 75 | C63: 84139 | D63: 73753 | E63: 58191 | F63: 50459 | G63: 37615
A64: 76 | C64: 84139 | D64: 73753 | E64: 58191 | F64: 50459 | G64: 37615
A65: 77 | C65: 84139 | D65: 73753 | E65: 58191 | F65: 50459 | G65: 37615
A66: 78 | C66: 84139 | D66: 73753 | E66: 58191 | F66: 50459 | G66: 37615
A67: 79 | C67: 84139 | D67: 73753 | E67: 58191 | F67: 50459 | G67: 37615
A68: 80 | C68: 84139 | D68: 73753 | E68: 58191 | F68: 50459 | G68: 37615
A69: 81 | C69: 84139 | D69: 73753 | E69: 58191 | F69: 50459 | G69: 37615
A70: 82 | C70: 84139 | D70: 73753 | E70: 58191 | F70: 50459 | G70: 37615
A71: 83 | C71: 84139 | D71: 73753 | E71: 58191 | F71: 50459 | G71: 37615
A72: 84 | B72: o más | C72: 84139 | D72: 73753 | E72: 58191 | F72: 50459 | G72: 37615
A73: 1 | B73: Hijo | C73: 4315 | D73: 3786 | E73: 3086 | F73: 2677 | G73: 1997
A74: 2 | B74: Hijos | C74: 7338 | D74: 6432 | E74: 5242 | F74: 4546 | G74: 3391
A75: 3 | B75: Hijos o más | C75: 10357 | D75: 9082 | E75: 7403 | F75: 6418 | G75: 4786
A77: BUPA GLOBAL ELITE - MENSUALES
A78: EDAD
C79: 1000 | D79: 2000 | E79: 3500 | F79: 5000 | G79: 10000
A80: 18 | C80: =+C6*$K$2 -> 953.3066667 | D80: =+D6*$K$2 -> 835.7066667 | E80: 676.48 | F80: 586.88 | G80: 437.64
A81: 19 | C81: =+C7*$K$2 -> 953.3066667 | D81: 835.7066667 | E81: 676.48 | F81: 586.88 | G81: 437.64
A82: 20 | C82: 953.3066667 | D82: 835.7066667 | E82: 676.48 | F82: 586.88 | G82: 437.64
A83: 21 | C83: 953.3066667 | D83: 835.7066667 | E83: 676.48 | F83: 586.88 | G83: 437.64
A84: 22 | C84: 953.3066667 | D84: 835.7066667 | E84: 676.48 | F84: 586.88 | G84: 437.64
A85: 23 | C85: 953.3066667 | D85: 835.7066667 | E85: 676.48 | F85: 586.88 | G85: 437.64
A86: 24 | C86: 953.3066667 | D86: 835.7066667 | E86: 676.48 | F86: 586.88 | G86: 437.64
A87: 25 | C87: 1018.826667 | D87: 893.0133333 | E87: 718.5733333 | F87: 623.28 | G87: 464.6133333
A88: 26 | C88: 1018.826667 | D88: 893.0133333 | E88: 718.5733333 | F88: 623.28 | G88: 464.6133333
A89: 27 | C89: 1018.826667 | D89: 893.0133333 | E89: 718.5733333 | F89: 623.28 | G89: 464.6133333
A90: 28 | C90: 1018.826667 | D90: 893.0133333 | E90: 718.5733333 | F90: 623.28 | G90: 464.6133333
A91: 29 | C91: 1018.826667 | D91: 893.0133333 | E91: 718.5733333 | F91: 623.28 | G91: 464.6133333
A92: 30 | C92: 1132.88 | D92: 993.16 | E92: 793.1466667 | F92: 687.7733333 | G92: 512.7733333
A93: 31 | C93: 1132.88 | D93: 993.16 | E93: 793.1466667 | F93: 687.7733333 | G93: 512.7733333
A94: 32 | C94: 1132.88 | D94: 993.16 | E94: 793.1466667 | F94: 687.7733333 | G94: 512.7733333
A95: 33 | C95: 1132.88 | D95: 993.16 | E95: 793.1466667 | F95: 687.7733333 | G95: 512.7733333
A96: 34 | C96: 1132.88 | D96: 993.16 | E96: 793.1466667 | F96: 687.7733333 | G96: 512.7733333
A97: 35 | C97: =+C23*$K$2 -> 1265.133333 | D97: 1108.613333 | E97: 880.32 | F97: 763.3733333 | G97: 569.3333333
A98: 36 | C98: 1265.133333 | D98: 1108.613333 | E98: 880.32 | F98: 763.3733333 | G98: 569.3333333
A99: 37 | C99: 1265.133333 | D99: 1108.613333 | E99: 880.32 | F99: 763.3733333 | G99: 569.3333333
A100: 38 | C100: 1265.133333 | D100: 1108.613333 | E100: 880.32 | F100: 763.3733333 | G100: 569.3333333
A101: 39 | C101: 1265.133333 | D101: 1108.613333 | E101: 880.32 | F101: 763.3733333 | G101: 569.3333333
A102: 40 | C102: 1416.893333 | D102: 1242.08 | E102: 981.7733333 | F102: 851.3866667 | G102: 634.76
A103: 41 | C103: 1416.893333 | D103: 1242.08 | E103: 981.7733333 | F103: 851.3866667 | G103: 634.76
A104: 42 | C104: 1416.893333 | D104: 1242.08 | E104: 981.7733333 | F104: 851.3866667 | G104: 634.76
A105: 43 | C105: 1416.893333 | D105: 1242.08 | E105: 981.7733333 | F105: 851.3866667 | G105: 634.76
A106: 44 | C106: 1416.893333 | D106: 1242.08 | E106: 981.7733333 | F106: 851.3866667 | G106: 634.76
A107: 45 | C107: 1585.733333 | D107: 1390.2 | E107: 1095.453333 | F107: 949.8533333 | G107: 708.2133333
A108: 46 | C108: 1585.733333 | D108: 1390.2 | E108: 1095.453333 | F108: 949.8533333 | G108: 708.2133333
A109: 47 | C109: 1585.733333 | D109: 1390.2 | E109: 1095.453333 | F109: 949.8533333 | G109: 708.2133333
A110: 48 | C110: 1585.733333 | D110: 1390.2 | E110: 1095.453333 | F110: 949.8533333 | G110: 708.2133333
A111: 49 | C111: 1585.733333 | D111: 1390.2 | E111: 1095.453333 | F111: 949.8533333 | G111: 708.2133333
A112: 50 | C112: 1775.946667 | D112: 1556.893333 | E112: 1224.066667 | F112: 1061.48 | G112: 791.28
A113: 51 | C113: =+C39*$K$2 -> 1775.946667 | D113: 1556.893333 | E113: 1224.066667 | F113: 1061.48 | G113: 791.28
A114: 52 | C114: 1775.946667 | D114: 1556.893333 | E114: 1224.066667 | F114: 1061.48 | G114: 791.28
A115: 53 | C115: 1775.946667 | D115: 1556.893333 | E115: 1224.066667 | F115: 1061.48 | G115: 791.28
A116: 54 | C116: 1775.946667 | D116: 1556.893333 | E116: 1224.066667 | F116: 1061.48 | G116: 791.28
A117: 55 | C117: 1985.386667 | D117: 1740.386667 | E117: 1366.213333 | F117: 1184.866667 | G117: 883.4
A118: 56 | C118: 1985.386667 | D118: 1740.386667 | E118: 1366.213333 | F118: 1184.866667 | G118: 883.4
A119: 57 | C119: 1985.386667 | D119: 1740.386667 | E119: 1366.213333 | F119: 1184.866667 | G119: 883.4
A120: 58 | C120: 1985.386667 | D120: 1740.386667 | E120: 1366.213333 | F120: 1184.866667 | G120: 883.4
A121: 59 | C121: 1985.386667 | D121: 1740.386667 | E121: 1366.213333 | F121: 1184.866667 | G121: 883.4
A122: 60 | C122: 2124.92 | D122: 1862.56 | E122: 1461.506667 | F122: 1267.093333 | G122: 944.9066667
A123: 61 | C123: 2368.146667 | D123: 2075.546667 | E123: 1627.36 | F123: 1411.293333 | G123: 1052.146667
A124: 62 | C124: 2630.786667 | D124: 2305.893333 | E124: 1807.493333 | F124: 1567.44 | G124: 1168.533333
A125: 63 | C125: 2913.493333 | D125: 2553.693333 | E125: 2001.813333 | F125: 1736 | G125: 1294.253333
A126: 64 | C126: 3216.173333 | D126: 2818.76 | E126: 2210.226667 | F126: 1916.6 | G126: 1428.933333
A127: 65 | C127: 3538.546667 | D127: 3101.56 | E127: 2432.64 | F127: 2109.613333 | G127: 1572.666667
A128: 66 | C128: 3880.52 | D128: 3401.44 | E128: 2669.053333 | F128: 2314.573333 | G128: 1725.266667
A129: 67 | C129: =+C55*$K$2 -> 4242.653333 | D129: 3718.773333 | E129: 2919.653333 | F129: 2531.573333 | G129: 1887.293333
A130: 68 | C130: 4624.293333 | D130: 4053.746667 | E130: 3184.253333 | F130: 2761.266667 | G130: 2058.56
A131: 69 | C131: 5026.373333 | D131: 4405.613333 | E131: 3463.133333 | F131: 3003.093333 | G131: 2238.786667
A132: 70 | C132: 5447.866667 | D132: 4775.12 | E132: 3755.826667 | F132: 3256.866667 | G132: 2427.88
A133: 71 | C133: 5889.146667 | D133: 5162.08 | E133: 4062.986667 | F133: 3522.96 | G133: 2626.4
A134: 72 | C134: 6350.4 | D134: 5566.12 | E134: 4383.68 | F134: 3801.28 | G134: 2833.693333
A135: 73 | C135: 6831.346667 | D135: 5987.893333 | E135: 4718.84 | F135: 4091.826667 | G135: 3050.506667
A136: 74 | C136: 7332.36 | D136: 6426.84 | E136: 5068 | F136: 4394.6 | G136: 3276.186667
A137: 75 | C137: 7852.973333 | D137: 6883.613333 | E137: 5431.16 | F137: 4709.506667 | G137: 3510.733333
A138: 76 | C138: 7852.973333 | D138: 6883.613333 | E138: 5431.16 | F138: 4709.506667 | G138: 3510.733333
A139: 77 | C139: 7852.973333 | D139: 6883.613333 | E139: 5431.16 | F139: 4709.506667 | G139: 3510.733333
A140: 78 | C140: 7852.973333 | D140: 6883.613333 | E140: 5431.16 | F140: 4709.506667 | G140: 3510.733333
A141: 79 | C141: 7852.973333 | D141: 6883.613333 | E141: 5431.16 | F141: 4709.506667 | G141: 3510.733333
A142: 80 | C142: 7852.973333 | D142: 6883.613333 | E142: 5431.16 | F142: 4709.506667 | G142: 3510.733333
A143: 81 | C143: 7852.973333 | D143: 6883.613333 | E143: 5431.16 | F143: 4709.506667 | G143: 3510.733333
A144: 82 | C144: 7852.973333 | D144: 6883.613333 | E144: 5431.16 | F144: 4709.506667 | G144: 3510.733333
A145: 83 | C145: =+C71*$K$2 -> 7852.973333 | D145: 6883.613333 | E145: 5431.16 | F145: 4709.506667 | G145: 3510.733333
A146: 84 | B146: o más | C146: 7852.973333 | D146: 6883.613333 | E146: 5431.16 | F146: 4709.506667 | G146: 3510.733333
A147: 1 | B147: Hijo | C147: 402.7333333 | D147: 353.36 | E147: 288.0266667 | F147: 249.8533333 | G147: 186.3866667
A148: 2 | B148: Hijos | C148: 684.88 | D148: 600.32 | E148: 489.2533333 | F148: 424.2933333 | G148: 316.4933333
A149: 3 | B149: Hijos o más | C149: 966.6533333 | D149: 847.6533333 | E149: 690.9466667 | F149: 599.0133333 | G149: 446.6933333
A151: BUPA GLOBAL PREMIER
A152: TARIFAS ANUALES
A153: EDAD
C154: 250 | D154: 2000 | E154: 5000 | F154: 10000 | G154: 20000
A155: 18 | C155: 6656 | D155: 6040 | E155: 4410 | F155: 3156 | G155: 2476
A156: 19 | C156: 6656 | D156: 6040 | E156: 4410 | F156: 3156 | G156: 2476
A157: 20 | C157: 6656 | D157: 6040 | E157: 4410 | F157: 3156 | G157: 2476
A158: 21 | C158: 6656 | D158: 6040 | E158: 4410 | F158: 3156 | G158: 2476
A159: 22 | C159: 6656 | D159: 6040 | E159: 4410 | F159: 3156 | G159: 2476
A160: 23 | C160: 6656 | D160: 6040 | E160: 4410 | F160: 3156 | G160: 2476
A161: 24 | C161: 6656 | D161: 6040 | E161: 4410 | F161: 3156 | G161: 2476
A162: 25 | C162: 7113 | D162: 6454 | E162: 4663 | F162: 3336 | G162: 2617
A163: 26 | C163: 7113 | D163: 6454 | E163: 4663 | F163: 3336 | G163: 2617
A164: 27 | C164: 7113 | D164: 6454 | E164: 4663 | F164: 3336 | G164: 2617
A165: 28 | C165: 7113 | D165: 6454 | E165: 4663 | F165: 3336 | G165: 2617
A166: 29 | C166: 7113 | D166: 6454 | E166: 4663 | F166: 3336 | G166: 2617
A167: 30 | C167: 7911 | D167: 7178 | E167: 5118 | F167: 3661 | G167: 2871
A168: 31 | C168: 7911 | D168: 7178 | E168: 5118 | F168: 3661 | G168: 2871
A169: 32 | C169: 7911 | D169: 7178 | E169: 5118 | F169: 3661 | G169: 2871
A170: 33 | C170: 7911 | D170: 7178 | E170: 5118 | F170: 3661 | G170: 2871
A171: 34 | C171: 7911 | D171: 7178 | E171: 5118 | F171: 3661 | G171: 2871
A172: 35 | C172: 8828 | D172: 8014 | E172: 5656 | F172: 4048 | G172: 3175
A173: 36 | C173: 8828 | D173: 8014 | E173: 5656 | F173: 4048 | G173: 3175
A174: 37 | C174: 8828 | D174: 8014 | E174: 5656 | F174: 4048 | G174: 3175
A175: 38 | C175: 8828 | D175: 8014 | E175: 5656 | F175: 4048 | G175: 3175
A176: 39 | C176: 8828 | D176: 8014 | E176: 5656 | F176: 4048 | G176: 3175
A177: 40 | C177: 9891 | D177: 8974 | E177: 6288 | F177: 4498 | G177: 3528
A178: 41 | C178: 9891 | D178: 8974 | E178: 6288 | F178: 4498 | G178: 3528
A179: 42 | C179: 9891 | D179: 8974 | E179: 6288 | F179: 4498 | G179: 3528
A180: 43 | C180: 9891 | D180: 8974 | E180: 6288 | F180: 4498 | G180: 3528
A181: 44 | C181: 9891 | D181: 8974 | E181: 6288 | F181: 4498 | G181: 3528
A182: 45 | C182: 11068 | D182: 10045 | E182: 6999 | F182: 5005 | G182: 3926
A183: 46 | C183: 11068 | D183: 10045 | E183: 6999 | F183: 5005 | G183: 3926
A184: 47 | C184: 11068 | D184: 10045 | E184: 6999 | F184: 5005 | G184: 3926
A185: 48 | C185: 11068 | D185: 10045 | E185: 6999 | F185: 5005 | G185: 3926
A186: 49 | C186: 11068 | D186: 10045 | E186: 6999 | F186: 5005 | G186: 3926
A187: 50 | C187: 12395 | D187: 11252 | E187: 7808 | F187: 5584 | G187: 4381
A188: 51 | C188: 12395 | D188: 11252 | E188: 7808 | F188: 5584 | G188: 4381
A189: 52 | C189: 12395 | D189: 11252 | E189: 7808 | F189: 5584 | G189: 4381
A190: 53 | C190: 12395 | D190: 11252 | E190: 7808 | F190: 5584 | G190: 4381
A191: 54 | C191: 12395 | D191: 11252 | E191: 7808 | F191: 5584 | G191: 4381
A192: 55 | C192: 13861 | D192: 12575 | E192: 8705 | F192: 6225 | G192: 4885
A193: 56 | C193: 13861 | D193: 12575 | E193: 8705 | F193: 6225 | G193: 4885
A194: 57 | C194: 13861 | D194: 12575 | E194: 8705 | F194: 6225 | G194: 4885
A195: 58 | C195: 13861 | D195: 12575 | E195: 8705 | F195: 6225 | G195: 4885
A196: 59 | C196: 13861 | D196: 12575 | E196: 8705 | F196: 6225 | G196: 4885
A197: 60 | C197: 14830 | D197: 13461 | E197: 9307 | F197: 6657 | G197: 5222
A198: 61 | C198: 16527 | D198: 15000 | E198: 10358 | F198: 7409 | G198: 5811
A199: 62 | C199: 18363 | D199: 16666 | E199: 11503 | F199: 8225 | G199: 6452
A200: 63 | C200: 20335 | D200: 18455 | E200: 12741 | F200: 9110 | G200: 7147
A201: 64 | C201: 22447 | D201: 20373 | E201: 14068 | F201: 10058 | G201: 7892
A202: 65 | C202: 24695 | D202: 22412 | E202: 15488 | F202: 11075 | G202: 8690
A203: 66 | C203: 27083 | D203: 24581 | E203: 16998 | F203: 12156 | G203: 9539
... 1275 more rows

Sheet Tablas Resto de Ecuador (hidden)
A2: BUPA GLOBAL ELITE | I2: FACTOR MENSUAL: | K2: =1.12/12 -> 0.09333333333
A3: TARIFAS ANUALES | I3: FACTOR TRIMESTRAL: | K3: =1.1/4 -> 0.275
A4: EDAD | I4: FACTOR SEMIANUAL: | K4: =1.06/2 -> 0.53
C5: 250 | D5: 2000 | E5: 3500 | F5: 5000 | G5: 10000
A6: 18 | C6: 9452 | D6: 8286 | E6: 6686 | F6: 5801 | G6: 4311
A7: 19 | C7: 9452 | D7: 8286 | E7: 6686 | F7: 5801 | G7: 4311
A8: 20 | C8: 9452 | D8: 8286 | E8: 6686 | F8: 5801 | G8: 4311
A9: 21 | C9: 9452 | D9: 8286 | E9: 6686 | F9: 5801 | G9: 4311
A10: 22 | C10: 9452 | D10: 8286 | E10: 6686 | F10: 5801 | G10: 4311
A11: 23 | C11: 9452 | D11: 8286 | E11: 6686 | F11: 5801 | G11: 4311
A12: 24 | C12: 9452 | D12: 8286 | E12: 6686 | F12: 5801 | G12: 4311
A13: 25 | C13: 10102 | D13: 8854 | E13: 7102 | F13: 6160 | G13: 4576
A14: 26 | C14: 10102 | D14: 8854 | E14: 7102 | F14: 6160 | G14: 4576
A15: 27 | C15: 10102 | D15: 8854 | E15: 7102 | F15: 6160 | G15: 4576
A16: 28 | C16: 10102 | D16: 8854 | E16: 7102 | F16: 6160 | G16: 4576
A17: 29 | C17: 10102 | D17: 8854 | E17: 7102 | F17: 6160 | G17: 4576
A18: 30 | C18: 11232 | D18: 9847 | E18: 7839 | F18: 6798 | G18: 5051
A19: 31 | C19: 11232 | D19: 9847 | E19: 7839 | F19: 6798 | G19: 5051
A20: 32 | C20: 11232 | D20: 9847 | E20: 7839 | F20: 6798 | G20: 5051
A21: 33 | C21: 11232 | D21: 9847 | E21: 7839 | F21: 6798 | G21: 5051
A22: 34 | C22: 11232 | D22: 9847 | E22: 7839 | F22: 6798 | G22: 5051
A23: 35 | C23: 12543 | D23: 10992 | E23: 8701 | F23: 7545 | G23: 5608
A24: 36 | C24: 12543 | D24: 10992 | E24: 8701 | F24: 7545 | G24: 5608
A25: 37 | C25: 12543 | D25: 10992 | E25: 8701 | F25: 7545 | G25: 5608
A26: 38 | C26: 12543 | D26: 10992 | E26: 8701 | F26: 7545 | G26: 5608
A27: 39 | C27: 12543 | D27: 10992 | E27: 8701 | F27: 7545 | G27: 5608
A28: 40 | C28: 14048 | D28: 12315 | E28: 9704 | F28: 8415 | G28: 6252
A29: 41 | C29: 14048 | D29: 12315 | E29: 9704 | F29: 8415 | G29: 6252
A30: 42 | C30: 14048 | D30: 12315 | E30: 9704 | F30: 8415 | G30: 6252
A31: 43 | C31: 14048 | D31: 12315 | E31: 9704 | F31: 8415 | G31: 6252
A32: 44 | C32: 14048 | D32: 12315 | E32: 9704 | F32: 8415 | G32: 6252
A33: 45 | C33: 15722 | D33: 13783 | E33: 10827 | F33: 9388 | G33: 6976
A34: 46 | C34: 15722 | D34: 13783 | E34: 10827 | F34: 9388 | G34: 6976
A35: 47 | C35: 15722 | D35: 13783 | E35: 10827 | F35: 9388 | G35: 6976
A36: 48 | C36: 15722 | D36: 13783 | E36: 10827 | F36: 9388 | G36: 6976
A37: 49 | C37: 15722 | D37: 13783 | E37: 10827 | F37: 9388 | G37: 6976
A38: 50 | C38: 17608 | D38: 15436 | E38: 12098 | F38: 10492 | G38: 7795
A39: 51 | C39: 17608 | D39: 15436 | E39: 12098 | F39: 10492 | G39: 7795
A40: 52 | C40: 17608 | D40: 15436 | E40: 12098 | F40: 10492 | G40: 7795
A41: 53 | C41: 17608 | D41: 15436 | E41: 12098 | F41: 10492 | G41: 7795
A42: 54 | C42: 17608 | D42: 15436 | E42: 12098 | F42: 10492 | G42: 7795
A43: 55 | C43: 19684 | D43: 17255 | E43: 13503 | F43: 11711 | G43: 8702
A44: 56 | C44: 19684 | D44: 17255 | E44: 13503 | F44: 11711 | G44: 8702
A45: 57 | C45: 19684 | D45: 17255 | E45: 13503 | F45: 11711 | G45: 8702
A46: 58 | C46: 19684 | D46: 17255 | E46: 13503 | F46: 11711 | G46: 8702
A47: 59 | C47: 19684 | D47: 17255 | E47: 13503 | F47: 11711 | G47: 8702
A48: 60 | C48: 21068 | D48: 18467 | E48: 14445 | F48: 12524 | G48: 9307
A49: 61 | C49: 23480 | D49: 20578 | E49: 16085 | F49: 13948 | G49: 10364
A50: 62 | C50: 26084 | D50: 22862 | E50: 17865 | F50: 15492 | G50: 11510
A51: 63 | C51: 28886 | D51: 25319 | E51: 19785 | F51: 17158 | G51: 12749
A52: 64 | C52: 31887 | D52: 27948 | E52: 21845 | F52: 18943 | G52: 14075
A53: 65 | C53: 35084 | D53: 30751 | E53: 24043 | F53: 20850 | G53: 15491
A54: 66 | C54: 38474 | D54: 33725 | E54: 26380 | F54: 22877 | G54: 16994
A55: 67 | C55: 42065 | D55: 36871 | E55: 28857 | F55: 25021 | G55: 18590
A56: 68 | C56: 45848 | D56: 40191 | E56: 31472 | F56: 27292 | G56: 20278
A57: 69 | C57: 49835 | D57: 43681 | E57: 34228 | F57: 29681 | G57: 22053
A58: 70 | C58: 54014 | D58: 47344 | E58: 37121 | F58: 32190 | G58: 23915
A59: 71 | C59: 58390 | D59: 51180 | E59: 40157 | F59: 34820 | G59: 25871
A60: 72 | C60: 62963 | D60: 55187 | E60: 43327 | F60: 37571 | G60: 27912
A61: 73 | C61: 67731 | D61: 59368 | E61: 46640 | F61: 40443 | G61: 30049
A62: 74 | C62: 72698 | D62: 63720 | E62: 50091 | F62: 43435 | G62: 32272
A63: 75 | C63: 77860 | D63: 68249 | E63: 53680 | F63: 46547 | G63: 34581
A64: 76 | C64: 77860 | D64: 68249 | E64: 53680 | F64: 46547 | G64: 34581
A65: 77 | C65: 77860 | D65: 68249 | E65: 53680 | F65: 46547 | G65: 34581
A66: 78 | C66: 77860 | D66: 68249 | E66: 53680 | F66: 46547 | G66: 34581
A67: 79 | C67: 77860 | D67: 68249 | E67: 53680 | F67: 46547 | G67: 34581
A68: 80 | C68: 77860 | D68: 68249 | E68: 53680 | F68: 46547 | G68: 34581
A69: 81 | C69: 77860 | D69: 68249 | E69: 53680 | F69: 46547 | G69: 34581
A70: 82 | C70: 77860 | D70: 68249 | E70: 53680 | F70: 46547 | G70: 34581
A71: 83 | C71: 77860 | D71: 68249 | E71: 53680 | F71: 46547 | G71: 34581
A72: 84 | B72: o más | C72: 77860 | D72: 68249 | E72: 53680 | F72: 46547 | G72: 34581
A73: 1 | B73: Hijo | C73: 3993 | D73: 3503 | E73: 2847 | F73: 2470 | G73: 1836
A74: 2 | B74: Hijos | C74: 6791 | D74: 5952 | E74: 4835 | F74: 4194 | G74: 3117
A75: 3 | B75: Hijos o más | C75: 9584 | D75: 8404 | E75: 6829 | F75: 5921 | G75: 4400
A77: BUPA GLOBAL ELITE - MENSUALES
A78: EDAD
C79: 1000 | D79: 2000 | E79: 3500 | F79: 5000 | G79: 10000
A80: 18 | C80: =+C6*$K$2 -> 882.1866667 | D80: =+D6*$K$2 -> 773.36 | E80: 624.0266667 | F80: 541.4266667 | G80: 402.36
A81: 19 | C81: =+C7*$K$2 -> 882.1866667 | D81: 773.36 | E81: 624.0266667 | F81: 541.4266667 | G81: 402.36
A82: 20 | C82: 882.1866667 | D82: 773.36 | E82: 624.0266667 | F82: 541.4266667 | G82: 402.36
A83: 21 | C83: 882.1866667 | D83: 773.36 | E83: 624.0266667 | F83: 541.4266667 | G83: 402.36
A84: 22 | C84: 882.1866667 | D84: 773.36 | E84: 624.0266667 | F84: 541.4266667 | G84: 402.36
A85: 23 | C85: 882.1866667 | D85: 773.36 | E85: 624.0266667 | F85: 541.4266667 | G85: 402.36
A86: 24 | C86: 882.1866667 | D86: 773.36 | E86: 624.0266667 | F86: 541.4266667 | G86: 402.36
A87: 25 | C87: 942.8533333 | D87: 826.3733333 | E87: 662.8533333 | F87: 574.9333333 | G87: 427.0933333
A88: 26 | C88: 942.8533333 | D88: 826.3733333 | E88: 662.8533333 | F88: 574.9333333 | G88: 427.0933333
A89: 27 | C89: 942.8533333 | D89: 826.3733333 | E89: 662.8533333 | F89: 574.9333333 | G89: 427.0933333
A90: 28 | C90: 942.8533333 | D90: 826.3733333 | E90: 662.8533333 | F90: 574.9333333 | G90: 427.0933333
A91: 29 | C91: 942.8533333 | D91: 826.3733333 | E91: 662.8533333 | F91: 574.9333333 | G91: 427.0933333
A92: 30 | C92: 1048.32 | D92: 919.0533333 | E92: 731.64 | F92: 634.48 | G92: 471.4266667
A93: 31 | C93: 1048.32 | D93: 919.0533333 | E93: 731.64 | F93: 634.48 | G93: 471.4266667
A94: 32 | C94: 1048.32 | D94: 919.0533333 | E94: 731.64 | F94: 634.48 | G94: 471.4266667
A95: 33 | C95: 1048.32 | D95: 919.0533333 | E95: 731.64 | F95: 634.48 | G95: 471.4266667
A96: 34 | C96: 1048.32 | D96: 919.0533333 | E96: 731.64 | F96: 634.48 | G96: 471.4266667
A97: 35 | C97: =+C23*$K$2 -> 1170.68 | D97: 1025.92 | E97: 812.0933333 | F97: 704.2 | G97: 523.4133333
A98: 36 | C98: 1170.68 | D98: 1025.92 | E98: 812.0933333 | F98: 704.2 | G98: 523.4133333
A99: 37 | C99: 1170.68 | D99: 1025.92 | E99: 812.0933333 | F99: 704.2 | G99: 523.4133333
A100: 38 | C100: 1170.68 | D100: 1025.92 | E100: 812.0933333 | F100: 704.2 | G100: 523.4133333
A101: 39 | C101: 1170.68 | D101: 1025.92 | E101: 812.0933333 | F101: 704.2 | G101: 523.4133333
A102: 40 | C102: 1311.146667 | D102: 1149.4 | E102: 905.7066667 | F102: 785.4 | G102: 583.52
A103: 41 | C103: 1311.146667 | D103: 1149.4 | E103: 905.7066667 | F103: 785.4 | G103: 583.52
A104: 42 | C104: 1311.146667 | D104: 1149.4 | E104: 905.7066667 | F104: 785.4 | G104: 583.52
A105: 43 | C105: 1311.146667 | D105: 1149.4 | E105: 905.7066667 | F105: 785.4 | G105: 583.52
A106: 44 | C106: 1311.146667 | D106: 1149.4 | E106: 905.7066667 | F106: 785.4 | G106: 583.52
A107: 45 | C107: 1467.386667 | D107: 1286.413333 | E107: 1010.52 | F107: 876.2133333 | G107: 651.0933333
A108: 46 | C108: 1467.386667 | D108: 1286.413333 | E108: 1010.52 | F108: 876.2133333 | G108: 651.0933333
A109: 47 | C109: 1467.386667 | D109: 1286.413333 | E109: 1010.52 | F109: 876.2133333 | G109: 651.0933333
A110: 48 | C110: 1467.386667 | D110: 1286.413333 | E110: 1010.52 | F110: 876.2133333 | G110: 651.0933333
A111: 49 | C111: 1467.386667 | D111: 1286.413333 | E111: 1010.52 | F111: 876.2133333 | G111: 651.0933333
A112: 50 | C112: 1643.413333 | D112: 1440.693333 | E112: 1129.146667 | F112: 979.2533333 | G112: 727.5333333
A113: 51 | C113: =+C39*$K$2 -> 1643.413333 | D113: 1440.693333 | E113: 1129.146667 | F113: 979.2533333 | G113: 727.5333333
A114: 52 | C114: 1643.413333 | D114: 1440.693333 | E114: 1129.146667 | F114: 979.2533333 | G114: 727.5333333
A115: 53 | C115: 1643.413333 | D115: 1440.693333 | E115: 1129.146667 | F115: 979.2533333 | G115: 727.5333333
A116: 54 | C116: 1643.413333 | D116: 1440.693333 | E116: 1129.146667 | F116: 979.2533333 | G116: 727.5333333
A117: 55 | C117: 1837.173333 | D117: 1610.466667 | E117: 1260.28 | F117: 1093.026667 | G117: 812.1866667
A118: 56 | C118: 1837.173333 | D118: 1610.466667 | E118: 1260.28 | F118: 1093.026667 | G118: 812.1866667
A119: 57 | C119: 1837.173333 | D119: 1610.466667 | E119: 1260.28 | F119: 1093.026667 | G119: 812.1866667
A120: 58 | C120: 1837.173333 | D120: 1610.466667 | E120: 1260.28 | F120: 1093.026667 | G120: 812.1866667
A121: 59 | C121: 1837.173333 | D121: 1610.466667 | E121: 1260.28 | F121: 1093.026667 | G121: 812.1866667
A122: 60 | C122: 1966.346667 | D122: 1723.586667 | E122: 1348.2 | F122: 1168.906667 | G122: 868.6533333
A123: 61 | C123: 2191.466667 | D123: 1920.613333 | E123: 1501.266667 | F123: 1301.813333 | G123: 967.3066667
A124: 62 | C124: 2434.506667 | D124: 2133.786667 | E124: 1667.4 | F124: 1445.92 | G124: 1074.266667
A125: 63 | C125: 2696.026667 | D125: 2363.106667 | E125: 1846.6 | F125: 1601.413333 | G125: 1189.906667
A126: 64 | C126: 2976.12 | D126: 2608.48 | E126: 2038.866667 | F126: 1768.013333 | G126: 1313.666667
A127: 65 | C127: 3274.506667 | D127: 2870.093333 | E127: 2244.013333 | F127: 1946 | G127: 1445.826667
A128: 66 | C128: 3590.906667 | D128: 3147.666667 | E128: 2462.133333 | F128: 2135.186667 | G128: 1586.106667
A129: 67 | C129: =+C55*$K$2 -> 3926.066667 | D129: 3441.293333 | E129: 2693.32 | F129: 2335.293333 | G129: 1735.066667
A130: 68 | C130: 4279.146667 | D130: 3751.16 | E130: 2937.386667 | F130: 2547.253333 | G130: 1892.613333
A131: 69 | C131: 4651.266667 | D131: 4076.893333 | E131: 3194.613333 | F131: 2770.226667 | G131: 2058.28
A132: 70 | C132: 5041.306667 | D132: 4418.773333 | E132: 3464.626667 | F132: 3004.4 | G132: 2232.066667
A133: 71 | C133: 5449.733333 | D133: 4776.8 | E133: 3747.986667 | F133: 3249.866667 | G133: 2414.626667
A134: 72 | C134: 5876.546667 | D134: 5150.786667 | E134: 4043.853333 | F134: 3506.626667 | G134: 2605.12
A135: 73 | C135: 6321.56 | D135: 5541.013333 | E135: 4353.066667 | F135: 3774.68 | G135: 2804.573333
A136: 74 | C136: 6785.146667 | D136: 5947.2 | E136: 4675.16 | F136: 4053.933333 | G136: 3012.053333
A137: 75 | C137: 7266.933333 | D137: 6369.906667 | E137: 5010.133333 | F137: 4344.386667 | G137: 3227.56
A138: 76 | C138: 7266.933333 | D138: 6369.906667 | E138: 5010.133333 | F138: 4344.386667 | G138: 3227.56
A139: 77 | C139: 7266.933333 | D139: 6369.906667 | E139: 5010.133333 | F139: 4344.386667 | G139: 3227.56
A140: 78 | C140: 7266.933333 | D140: 6369.906667 | E140: 5010.133333 | F140: 4344.386667 | G140: 3227.56
A141: 79 | C141: 7266.933333 | D141: 6369.906667 | E141: 5010.133333 | F141: 4344.386667 | G141: 3227.56
A142: 80 | C142: 7266.933333 | D142: 6369.906667 | E142: 5010.133333 | F142: 4344.386667 | G142: 3227.56
A143: 81 | C143: 7266.933333 | D143: 6369.906667 | E143: 5010.133333 | F143: 4344.386667 | G143: 3227.56
A144: 82 | C144: 7266.933333 | D144: 6369.906667 | E144: 5010.133333 | F144: 4344.386667 | G144: 3227.56
A145: 83 | C145: =+C71*$K$2 -> 7266.933333 | D145: 6369.906667 | E145: 5010.133333 | F145: 4344.386667 | G145: 3227.56
A146: 84 | B146: o más | C146: 7266.933333 | D146: 6369.906667 | E146: 5010.133333 | F146: 4344.386667 | G146: 3227.56
A147: 1 | B147: Hijo | C147: 372.68 | D147: 326.9466667 | E147: 265.72 | F147: 230.5333333 | G147: 171.36
A148: 2 | B148: Hijos | C148: 633.8266667 | D148: 555.52 | E148: 451.2666667 | F148: 391.44 | G148: 290.92
A149: 3 | B149: Hijos o más | C149: 894.5066667 | D149: 784.3733333 | E149: 637.3733333 | F149: 552.6266667 | G149: 410.6666667
A151: BUPA GLOBAL PREMIER
A152: TARIFAS ANUALES
A153: EDAD
C154: 250 | D154: 2000 | E154: 5000 | F154: 10000 | G154: 20000
A155: 18 | C155: 6160 | D155: 5589 | E155: 4068 | F155: 2902 | G155: 2276
A156: 19 | C156: 6160 | D156: 5589 | E156: 4068 | F156: 2902 | G156: 2276
A157: 20 | C157: 6160 | D157: 5589 | E157: 4068 | F157: 2902 | G157: 2276
A158: 21 | C158: 6160 | D158: 5589 | E158: 4068 | F158: 2902 | G158: 2276
A159: 22 | C159: 6160 | D159: 5589 | E159: 4068 | F159: 2902 | G159: 2276
A160: 23 | C160: 6160 | D160: 5589 | E160: 4068 | F160: 2902 | G160: 2276
A161: 24 | C161: 6160 | D161: 5589 | E161: 4068 | F161: 2902 | G161: 2276
A162: 25 | C162: 6582 | D162: 5972 | E162: 4301 | F162: 3067 | G162: 2406
A163: 26 | C163: 6582 | D163: 5972 | E163: 4301 | F163: 3067 | G163: 2406
A164: 27 | C164: 6582 | D164: 5972 | E164: 4301 | F164: 3067 | G164: 2406
A165: 28 | C165: 6582 | D165: 5972 | E165: 4301 | F165: 3067 | G165: 2406
A166: 29 | C166: 6582 | D166: 5972 | E166: 4301 | F166: 3067 | G166: 2406
A167: 30 | C167: 7320 | D167: 6642 | E167: 4721 | F167: 3366 | G167: 2640
A168: 31 | C168: 7320 | D168: 6642 | E168: 4721 | F168: 3366 | G168: 2640
A169: 32 | C169: 7320 | D169: 6642 | E169: 4721 | F169: 3366 | G169: 2640
A170: 33 | C170: 7320 | D170: 6642 | E170: 4721 | F170: 3366 | G170: 2640
A171: 34 | C171: 7320 | D171: 6642 | E171: 4721 | F171: 3366 | G171: 2640
A172: 35 | C172: 8170 | D172: 7416 | E172: 5217 | F172: 3721 | G172: 2919
A173: 36 | C173: 8170 | D173: 7416 | E173: 5217 | F173: 3721 | G173: 2919
A174: 37 | C174: 8170 | D174: 7416 | E174: 5217 | F174: 3721 | G174: 2919
A175: 38 | C175: 8170 | D175: 7416 | E175: 5217 | F175: 3721 | G175: 2919
A176: 39 | C176: 8170 | D176: 7416 | E176: 5217 | F176: 3721 | G176: 2919
A177: 40 | C177: 9153 | D177: 8305 | E177: 5801 | F177: 4135 | G177: 3244
A178: 41 | C178: 9153 | D178: 8305 | E178: 5801 | F178: 4135 | G178: 3244
A179: 42 | C179: 9153 | D179: 8305 | E179: 5801 | F179: 4135 | G179: 3244
A180: 43 | C180: 9153 | D180: 8305 | E180: 5801 | F180: 4135 | G180: 3244
A181: 44 | C181: 9153 | D181: 8305 | E181: 5801 | F181: 4135 | G181: 3244
A182: 45 | C182: 10242 | D182: 9296 | E182: 6456 | F182: 4602 | G182: 3610
A183: 46 | C183: 10242 | D183: 9296 | E183: 6456 | F183: 4602 | G183: 3610
A184: 47 | C184: 10242 | D184: 9296 | E184: 6456 | F184: 4602 | G184: 3610
A185: 48 | C185: 10242 | D185: 9296 | E185: 6456 | F185: 4602 | G185: 3610
A186: 49 | C186: 10242 | D186: 9296 | E186: 6456 | F186: 4602 | G186: 3610
A187: 50 | C187: 11470 | D187: 10413 | E187: 7202 | F187: 5134 | G187: 4028
A188: 51 | C188: 11470 | D188: 10413 | E188: 7202 | F188: 5134 | G188: 4028
A189: 52 | C189: 11470 | D189: 10413 | E189: 7202 | F189: 5134 | G189: 4028
A190: 53 | C190: 11470 | D190: 10413 | E190: 7202 | F190: 5134 | G190: 4028
A191: 54 | C191: 11470 | D191: 10413 | E191: 7202 | F191: 5134 | G191: 4028
A192: 55 | C192: 12827 | D192: 11637 | E192: 8031 | F192: 5723 | G192: 4491
A193: 56 | C193: 12827 | D193: 11637 | E193: 8031 | F193: 5723 | G193: 4491
A194: 57 | C194: 12827 | D194: 11637 | E194: 8031 | F194: 5723 | G194: 4491
A195: 58 | C195: 12827 | D195: 11637 | E195: 8031 | F195: 5723 | G195: 4491
A196: 59 | C196: 12827 | D196: 11637 | E196: 8031 | F196: 5723 | G196: 4491
A197: 60 | C197: 13724 | D197: 12456 | E197: 8585 | F197: 6120 | G197: 4801
A198: 61 | C198: 15293 | D198: 13881 | E198: 9555 | F198: 6812 | G198: 5343
A199: 62 | C199: 16992 | D199: 15422 | E199: 10612 | F199: 7562 | G199: 5932
A200: 63 | C200: 18817 | D200: 17078 | E200: 11753 | F200: 8375 | G200: 6570
A201: 64 | C201: 20772 | D201: 18852 | E201: 12977 | F201: 9247 | G201: 7255
A202: 65 | C202: 22852 | D202: 20739 | E202: 14288 | F202: 10182 | G202: 7990
A203: 66 | C203: 25062 | D203: 22747 | E203: 15680 | F203: 11176 | G203: 8769
... 1275 more rows
